Workbook

Sheet INDICE
F1: POLÓNIA
F2: Trocas comerciais com Portugal (PT) 2018-2022 Setores agrícola e agroalimentar, do mar e das florestas
C3: Fonte
D4: Estatísticas do Comércio Internacional | F4: Polónia - Síntese
D5: dados: 2021 provisórios; 2022 preliminares | F5: 1. Evolução da balança comercial
F6: 2. Ranking dos parceiros comerciais de Portugal por país
C7: Data | D7: 2023-04-27T17:29:25.040 | F7: 2A Parceiros comerciais de Portugal - UE vs. Países Terceiros
F8: 3. Principais produtos transacionados (NC a 2 e 4 dígitos)
F9: 3A Principais produtos transacionados (sem mar nem florestas)
F10: 4. Evolução da balança comercial por país x produto
F11: 4A Evolução da balança comercial por produto
F12: 5.2. Trocas comerciais por produto (NC 2 dígitos)

Sheet Sintese
A1: Polónia - Síntese (2018-2022)
A3: • As trocas comerciais de bens transacionáveis (excluindo serviços) entre Portugal e Polónia representam um total de 853,5 milhões de € (M€) em exportações e 1266,4 M€ em importações, na média do período 2018-2022, correspondendo a um saldo negativo da balança comercial de cerca de -412,9 M€.
A4: • No que respeita aos produtos dos setores agrícola e agroalimentar, mar e florestas, Portugal exportou para Polónia 251,4 M€ em média anual, no mesmo período (este país ocupa assim a 11ª posição em relação ao total dos países), enquanto as importações totalizaram 207,2 M€ (10ª posição), com um saldo positivo de 44,1 M€. Estes setores representam perto de 29,5% do total de exportações de bens transacionáveis e 16,4% das correspondentes importações.
A5: • Se nos referirmos apenas ao setor agrícola e agroalimentar, as exportações representam, em média, 134,3 M€ (13ª posição) e as importações 183,4 milhões (10ª posição), ou seja, Portugal tem um saldo negativo de -49,1 M€. Estes valores representam, respetivamente, cerca de 53,4% das exportações do setor agroflorestal e mar e 88,5% das importações.
A6: • As principais exportações agrícolas e agroalimentares (NC 4 dígitos) neste período são Vinhos de uvas frescas (20%), Citrinos, frescos ou secos (8%) e Tomates preparados (7%). As importações agrícolas e agroalimentares mais relevantes referem-se a Charutos, cigarrilhas e cigarros (25%), Carnes de bovino, frescas ou refrigeradas (20%) e Trigo e mistura trigo/centeio (7%). Se considerarmos também os produtos do mar e da floresta, merecem particular destaque, em termos de exportações, Pastas químicas de madeira, à soda ou ao sulfato (33%), Vinhos de uvas frescas (11%) e Papel e cartão p/ escrita, etc. (4%). Nas importações destes setores, destacam-se Charutos, cigarrilhas e cigarros (22%), Carnes de bovino, frescas ou refrigeradas (17%) e Trigo e mistura trigo/centeio (7%).
A9: Saldo da Balança Comercial | B9: 2018 | C9: 2019 | D9: 2020 | E9: 2021 | F9: 2022 | G9: média 2018-2022 | J9: Posição entre os parceiros comerciais de Portugal (milhares de euros)
A10: Total de Bens Transacionáveis* | B10: -122139.098 | C10: -233833.015 | D10: -385290.628 | E10: -594712.6 | F10: -728572.16 | G10: -412909.5002 | J10: AA + M + F | K10: Posição | L10: média 2018-2022 | M10: % do total | N10: TVMA* 2018-2022 | O10: TVT* 2018-2022
A11: Agrícola e Agroalimentar (AA) | B11: 13400.812 | C11: -13724.419 | D11: -67508.793 | E11: -61410.125 | F11: -116407.375 | G11: -49129.98 | J11: Exportações | K11: 11ª | L11: 251380.4784 | M11: 0.01939587393 | N11: 0.05740291034 | O11: 0.2501496556
A12: Mar (M) | B12: 3453.51 | C12: 5847.103 | D12: 2691.883 | E12: 1243.514 | F12: 483.779 | G12: 2743.9578 | J12: Importações | K12: 10ª | L12: 207249.91 | M12: 0.01385554887 | N12: 0.1753041359 | O12: 0.9080996756
A13: Florestas (F) | B13: 80026.92 | C13: 2092-06-09T21:37:26.400 | D13: 64294.773 | E13: 102633.909 | F13: 2270-07-15T10:48:00 | G13: 90516.5906 | J13: AA
A14: AA + M + F | B14: 96881.242 | C14: 2070-11-15T14:02:24 | D14: -522.137 | E14: 42467.298 | F14: 1953-02-23T20:29:45.600 | G14: 44130.5684 | J14: Exportações | K14: 13ª | L14: 134299.3618 | M14: 0.01900480566 | N14: 0.01765256877 | O14: 0.07250205437
J15: Importações | K15: 10ª | L15: 183429.3418 | M15: 0.01798214624 | N15: 0.1592783578 | O15: 1.093816612
A16: milhares de euros *exclui serviços | K16: *TVMA - Taxa de variação média anual; TVT - Taxa de variação total
A18: Evolução das trocas comerciais Portugal-Polónia em milhares de euros (2018-2022)
E27: Exportações | G27: Importações | I27: Saldo
A28: Principais produtos agrícolas e agroalimentares, do mar e da floresta transacionados (NC 4 dígitos)
A47: Principais produtos agrícolas e agroalimentares transacionados (NC 4 dígitos)
A81: Fonte: GPP a partir de dados INE/Comércio Internacional (2021 provisórios; 2022 preliminares) | N81: 2023-04-27T17:29:25.040

Sheet 1
A1: Evolução da balança comercial Portugal-Polónia 2018-2022 em milhões de euros
A3: Total de Bens Transacionáveis (BT)(1) | B3: 2018 | C3: 2019 | D3: 2020 | E3: 2021 | F3: 2022 | G3: média quinquénio | H3: var. 18/19 | I3: var. 19/20 | J3: var. 20/21 | K3: var. 21/22 | L3: TVMA* 2018-2022 | M3: TVT* 2018-2022
A4: Exportações | B4: 766.494452 | C4: 781.113143 | D4: 734.491948 | E4: 915.978479 | F4: 1069.399014 | G4: 853.4954072 | H4: 0.01907214196 | I4: -0.05968558514 | J4: 0.2470912465 | K4: 0.1674936022 | L4: 0.08682017283 | M4: 0.3951816758
A5: Importações | B5: 888.63355 | C5: 1014.946158 | D5: 1119.782576 | E5: 1510.691079 | F5: 1797.971174 | G5: 1266.404907 | H5: 0.1421425153 | I5: 0.1032925906 | J5: 0.3490932181 | K5: 0.1901646862 | L5: 0.1926554709 | M5: 1.023298776
A6: Saldo (exp-imp) | B6: -122.139098 | C6: -233.833015 | D6: -385.290628 | E6: -594.7126 | F6: -728.57216 | G6: -412.9095002
A7: Cobertura (exp/imp) | B7: 0.8625540325 | C7: 0.769610424 | D7: 0.6559237157 | E7: 0.6063307659 | F7: 0.5947809561 | G7: 0.673951437
A8: Exp BT Polónia / Exp BT Mundo | B8: 0.01324968994 | C8: 0.01303967449 | D8: 0.01366308731 | E8: 0.01439798353 | F8: 0.01367495914 | G8: 0.01361975342 | L8: Exportações
A9: Imp BT Polónia / Imp BT Mundo | B9: 0.01177945955 | C9: 0.01269045512 | D9: 0.01643221429 | E9: 0.01816919949 | F9: 0.01645127843 | G9: 0.01522127418 | L9: Importações
A10: Exp BT Polónia / Exp TE Mundo | B10: 0.00859841242 | C10: 0.00837466121 | D10: 0.009887384325 | E10: 0.01024530451 | F10: 0.008930130798 | G10: 0.009160487369
A11: Imp BT Polónia / Imp TE Mundo | B11: 0.01007585257 | C11: 0.01099595553 | D11: 0.01424935815 | E11: 0.01581367335 | F11: 0.01430390463 | G11: 0.01318321637
A12: (1) Todos os produtos transacionados entre PT e Polónia (exclui serviços) | D12: TE - Total da Economia (bens e serviços) Fonte: INE/Contas Nacionais | H12: *TVMA - Taxa de variação média anual; TVT - Taxa de variação total
A24: Agro(1) + Mar + Florestas (AMF) | B24: 2018 | C24: 2019 | D24: 2020 | E24: 2021 | F24: 2022 | G24: média quinquénio | H24: var. 18/19 | I24: var. 19/20 | J24: var. 20/21 | K24: var. 21/22 | L24: TVMA* 2018-2022 | M24: TVT* 2018-2022
A25: Exportações | B25: 251.455593 | C25: 222.505279 | D25: 200.371892 | E25: 268.212505 | F25: 314.357123 | G25: 251.3804784 | H25: -0.1151309209 | I25: -0.09947353654 | J25: 0.3385735011 | K25: 0.172044991 | L25: 0.05740291034 | M25: 0.2501496556
A26: Importações | B26: 154.574351 | C26: 160.092694 | D26: 200.894029 | E26: 225.745207 | F26: 294.943269 | G26: 207.24991 | H26: 0.03570025017 | I26: 0.2548606934 | J26: 0.12370292 | K26: 0.3065316997 | L26: 0.1753041359 | M26: 0.9080996756
A27: Saldo (exp-imp) | B27: 96.881242 | C27: 62.412585 | D27: -0.522137 | E27: 42.467298 | F27: 19.413854 | G27: 44.1305684
A28: Cobertura (exp/imp) | B28: 1.626761435 | C28: 1.3898528 | D28: 0.9974009332 | E28: 1.188120486 | F28: 1.065822333 | G28: 1.212934078
A29: Exp AMF / Exp BT | B29: 0.3280592473 | C29: 0.2848566574 | D29: 0.2728033882 | E29: 0.2928152911 | F29: 0.2939568102 | G29: 0.2945305578 | L29: Exportações
A30: Imp AMF / Imp BT | B30: 0.173946112 | C30: 0.1577351594 | D30: 0.1794044963 | E30: 0.1494317469 | F30: 0.1640422679 | G30: 0.1636521691 | L30: Importações
A31: Exp AMF Polónia / Exp AMF Mundo | B31: 0.02158285648 | C31: 0.01881201925 | D31: 0.01737011406 | E31: 0.02002098402 | F31: 0.01917744643 | G31: 0.01939587393
A32: Imp AMF Polónia / Imp AMF Mundo | B32: 0.01134024822 | C32: 0.01157293887 | D32: 0.01539962106 | E32: 0.01510545878 | F32: 0.01525394755 | G32: 0.01385554887
A33: (1) Produtos agrícolas e agroalimentares | B33: BT - Total de Bens Transacionáveis (exclui serviços) | H33: *TVMA - Taxa de variação média anual; TVT - Taxa de variação total
A45: Agroalimentar (AA)(1) | B45: 2018 | C45: 2019 | D45: 2020 | E45: 2021 | F45: 2022 | G45: média quinquénio | H45: var. 18/19 | I45: var. 19/20 | J45: var. 20/21 | K45: var. 21/22 | L45: TVMA* 2018-2022 | M45: TVT* 2018-2022
A46: Exportações | B46: 141.451247 | C46: 124.607295 | D46: 112.676248 | E46: 141.055266 | F46: 151.706753 | G46: 134.2993618 | H46: -0.1190795582 | I46: -0.09574918547 | J46: 0.2518633563 | K46: 0.07551286316 | L46: 0.01765256877 | M46: 0.07250205437
A47: Importações | B47: 128.050435 | C47: 138.331714 | D47: 180.185041 | E47: 202.465391 | F47: 268.114128 | G47: 183.4293418 | H47: 0.08029085571 | I47: 0.3025577128 | J47: 0.1236526067 | K47: 0.3242467104 | L47: 0.202914224 | M47: 1.093816612
A48: Saldo (exp-imp) | B48: 13.400812 | C48: -13.724419 | D48: -67.508793 | E48: -61.410125 | F48: -116.407375 | G48: -49.12998
A49: Cobertura (exp/imp) | B49: 1.104652608 | C49: 0.9007861711 | D49: 0.6253363064 | E49: 0.6966882849 | F49: 0.5658290152 | G49: 0.7321585548
A50: Exp AA / Exp AMF | B50: 0.5625297306 | C50: 0.5600194996 | D50: 0.5623355994 | E50: 0.5259086112 | F50: 0.4825936551 | G50: 0.5342473793 | L50: Exportações
A51: Imp AA / Imp AMF | B51: 0.8284067452 | C51: 0.8640726228 | D51: 0.896915861 | E51: 0.896875702 | F51: 0.9090362662 | G51: 0.8850635535 | L51: Importações
A52: Exp AA / Exp BT | B52: 0.18454308 | C52: 0.1595252828 | D52: 0.1534070568 | E52: 0.1539940831 | F52: 0.1418616915 | G52: 0.1573521787
A53: Imp AA / Imp BT | B53: 0.1440981325 | C53: 0.1362946329 | D53: 0.1609107383 | E53: 0.1340217029 | F53: 0.1491203707 | G53: 0.1448425703
A54: Exp AA Polónia / Exp AA Mundo | B54: 0.02316261673 | C54: 0.01980515574 | D54: 0.01702808794 | E54: 0.01892901217 | F54: 0.0171118816 | G54: 0.01900480566
A55: Imp AA Polónia / Imp AA Mundo | B55: 0.01407785539 | C55: 0.01484712117 | D55: 0.0198344443 | E55: 0.01971263519 | F55: 0.0202580549 | G55: 0.01798214624
A56: (1) Produtos agrícolas e agroalimentares | B56: AMF - Agroalimentar, Mar e Florestas; BT - Total de Bens Transacionáveis (exclui serviços) | H56: *TVMA - Taxa de variação média anual; TVT - Taxa de variação total
A67: Mar (M) | B67: 2018 | C67: 2019 | D67: 2020 | E67: 2021 | F67: 2022 | G67: média quinquénio | H67: var. 18/19 | I67: var. 19/20 | J67: var. 20/21 | K67: var. 21/22 | L67: TVMA* 2018-2022 | M67: TVT* 2018-2022
A68: Exportações | B68: 4.301431 | C68: 6.607663 | D68: 4.910543 | E68: 4.274916 | F68: 3.923782 | G68: 4.803667 | H68: 0.536154596 | I68: -0.2568411858 | J68: -0.1294412858 | K68: -0.08213822213 | L68: -0.02271107443 | M68: -0.0877961311
A69: Importações | B69: 0.847921 | C69: 0.76056 | D69: 2.21866 | E69: 3.031402 | F69: 3.440003 | G69: 2.0597092 | H69: -0.1030296455 | I69: 1.917140002 | J69: 0.3663211127 | K69: 0.1347894473 | L69: 0.4192237083
A70: Saldo (exp-imp) | B70: 3.45351 | C70: 5.847103 | D70: 2.691883 | E70: 1.243514 | F70: 0.483779 | G70: 2.7439578
A71: Cobertura (exp/imp) | B71: 5.072914812 | C71: 8.687891817 | D71: 2.213292257 | E71: 1.410210853 | F71: 1.140633308 | G71: 2.33220641
A72: Exp M / Exp AMF | B72: 0.01710612577 | C72: 0.02969665722 | D72: 0.02450714494 | E72: 0.01593854097 | F72: 0.0124819249 | G72: 0.01910914893 | L72: Exportações
A73: Imp M / Imp AMF | B73: 0.00548552198 | C73: 0.004750747714 | D73: 0.01104393202 | E73: 0.01342842242 | F73: 0.01166327006 | G73: 0.009938287549 | L73: Importações
A74: Exp M / Exp BT | B74: 0.005611822745 | C74: 0.008459290513 | D74: 0.006685632175 | E74: 0.004667048515 | F74: 0.003669146828 | G74: 0.005628228294
A75: Imp M / Imp BT | B75: 0.0009541852207 | C75: 0.0007493599478 | D75: 0.001981331062 | E75: 0.002006632621 | F75: 0.001913269272 | G75: 0.001626422314
A76: Exp M Polónia / Exp M Mundo | B76: 0.003943347134 | C76: 0.006184709657 | D76: 0.005458162089 | E76: 0.003902514399 | F76: 0.003052839812 | G76: 0.004415476849
A77: Imp M Polónia / Imp M Mundo | B77: 0.0003846781552 | C77: 0.0003489860314 | D77: 0.001152630343 | E77: 0.001449007118 | F77: 0.001319088757 | G77: 0.0009355203076
A78: AMF - Agroalimentar, Mar e Florestas; BT - Total de Bens Transacionáveis (exclui serviços) | H78: *TVMA - Taxa de variação média anual; TVT - Taxa de variação total
A90: Florestas (F) | B90: 2018 | C90: 2019 | D90: 2020 | E90: 2021 | F90: 2022 | G90: média quinquénio | H90: var. 18/19 | I90: var. 19/20 | J90: var. 20/21 | K90: var. 21/22 | L90: TVMA* 2018-2022 | M90: TVT* 2018-2022
A91: Exportações | B91: 105.702915 | C91: 91.290321 | D91: 82.785101 | E91: 122.882323 | F91: 158.726588 | G91: 112.2774496 | H91: -0.1363500146 | I91: -0.09316672246 | J91: 0.4843531205 | K91: 0.2916958609 | L91: 0.1069823059 | M91: 0.5016292408
A92: Importações | B92: 25.675995 | C92: 21.00042 | D92: 18.490328 | E92: 20.248414 | F92: 23.389138 | G92: 21.760859 | H92: -0.1820990774 | I92: -0.1195258 | J92: 0.09508138525 | K92: 0.1551096298 | L92: -0.02305135817 | M92: -0.08906595441
A93: Saldo (exp-imp) | B93: 80.02692 | C93: 70.289901 | D93: 64.294773 | E93: 102.633909 | F93: 135.33745 | G93: 90.5165906
A94: Cobertura (exp/imp) | B94: 4.116799174 | C94: 4.347071201 | D94: 4.477211059 | E94: 6.068738174 | F94: 6.786337658 | G94: 5.159605584
A95: Exp F / Exp AMF | B95: 0.4203641436 | C95: 0.4102838432 | D95: 0.4131572556 | E95: 0.4581528479 | F95: 0.50492442 | G95: 0.4466434717 | L95: Exportações
A96: Imp F / Imp AMF | B96: 0.1661077328 | C96: 0.1311766295 | D96: 0.09204020693 | E96: 0.08969587558 | F96: 0.07930046371 | G96: 0.104998159 | L96: Importações
A97: Exp F / Exp BT | B97: 0.1379043445 | C97: 0.1168720842 | D97: 0.1127106992 | E97: 0.1341541595 | F97: 0.1484259719 | G97: 0.1315501509
A98: Imp F / Imp BT | B98: 0.0288937943 | C98: 0.02069116656 | D98: 0.01651242696 | E98: 0.01340341138 | F98: 0.01300862791 | G98: 0.01718317647
A99: Exp F Polónia / Exp F Mundo | B99: 0.0237373243 | C99: 0.02043304302 | D99: 0.02060003333 | E99: 0.02534000622 | F99: 0.02543225433 | G99: 0.0233619465
A100: Imp F Polónia / Imp F Mundo | B100: 0.01101744532 | C100: 0.008986250668 | D100: 0.009081382475 | E100: 0.007843015059 | F100: 0.006696511702 | G100: 0.008515002073
A101: AMF - Agroalimentar, Mar e Florestas; BT - Total de Bens Transacionáveis (exclui serviços) | H101: *TVMA - Taxa de variação média anual; TVT - Taxa de variação total
A111: Fonte: GPP a partir de dados INE/Comércio Internacional (2021 provisórios; 2022 preliminares) | H111: 2023-04-27T17:29:25.040

Sheet 2
A1: Ranking dos parceiros comerciais de Portugal por país (média 2018-2022 em milhares de euros) produtos agrícolas e agroalimentares, do mar e da floresta
A2: Exportações | F2: Importações | K2: Trocas comerciais (total e saldo)
A3: P | B3: País | C3: média quinquénio | D3: % do Total | F3: P | G3: País | H3: média quinquénio | I3: % do Total | K3: P | L3: País | M3: Total (exp+imp) | N3: % do Total | O3: Saldo (exp-imp)
A4: 1 | B4: Espanha | C4: 4147137.938 | D4: 0.3199825426 | F4: 1 | G4: Espanha | H4: 6901979.232 | I4: 0.4614270306 | K4: 1 | L4: Espanha | M4: 11049117.17 | N4: 0.3957645176 | O4: -2754841.293
A5: 2 | B5: França | C5: 1359640.969 | D5: 0.1049064152 | F5: 2 | G5: França | H5: 986185.2734 | I5: 0.0659307319 | K5: 2 | L5: França | M5: 2345826.243 | N5: 0.08402434124 | O5: 373455.696
A6: 3 | B6: Itália | C6: 876774.7284 | D6: 0.06764969264 | F6: 3 | G6: Alemanha | H6: 880951.0908 | I6: 0.05889537367 | K6: 3 | L6: Alemanha | M6: 1516599.607 | N6: 0.05432255832 | O6: -245302.5748
A7: 4 | B7: Alemanha | C7: 635648.516 | D7: 0.04904501161 | F7: 4 | G7: Países Baixos | H7: 833152.697 | I7: 0.05569984523 | K7: 4 | L7: Países Baixos | M7: 1421542.299 | N7: 0.0509177334 | O7: -244763.0948
A8: 5 | B8: Países Baixos | C8: 588389.6022 | D8: 0.04539863485 | F8: 5 | G8: Brasil | H8: 705274.2876 | I8: 0.04715062294 | K8: 5 | L8: Itália | M8: 1323334.658 | N8: 0.04740006776 | O8: 430214.799
A9: 6 | B9: Estados Unidos | C9: 554106.8534 | D9: 0.04275346575 | F9: 6 | G9: Itália | H9: 446559.9294 | I9: 0.02985445411 | K9: 6 | L9: Brasil | M9: 1157990.816 | N9: 0.04147767371 | O9: -252557.7592 | P9: Nota: Nesta listagem, o Reino Unido passa a ser constituído por três componentes: Reino Unido [até 2020] ; Reino Unido (sem Irlanda do Norte) pós-2020 e Reino Unido (Irlanda do Norte) pós-2020. Estas componentes são calculadas igualmente como média do quinquénio, embora a primeira corresponda apenas a 2018-2020 e as duas últimas a 2021-2022.
A10: 7 | B10: Brasil | C10: 452716.5284 | D10: 0.03493044793 | F10: 7 | G10: Suécia | H10: 342692.7562 | I10: 0.02291048634 | K10: 7 | L10: Estados Unidos | M10: 835578.634 | N10: 0.02992930294 | O10: 272635.0728
A11: 8 | B11: Reino Unido | C11: 382822.421 | D11: 0.0295375976 | F11: 8 | G11: Bélgica | H11: 284922.9008 | I11: 0.01904832276 | K11: 8 | L11: Reino Unido | M11: 527725.3878 | N11: 0.01890241368 | O11: 237919.4542
A12: 9 | B12: Angola | C12: 331120.0664 | D12: 0.02554837633 | F12: 9 | G12: Estados Unidos | H12: 281471.7806 | I12: 0.01881760051 | K12: 9 | L12: Bélgica | M12: 524078.8948 | N12: 0.01877180121 | O12: -45766.9068
A13: 10 | B13: Reino Unido (sem Irlanda do Norte) pós 2020 | C13: 297928.3204 | D13: 0.02298738621 | F13: 10 | G13: Polónia | H13: 207249.91 | I13: 0.01385554887 | K13: 10 | L13: Polónia | M13: 458630.3884 | N13: 0.01642752372 | O13: 44130.5684
A14: 11 | B14: Polónia | C14: 251380.4784 | D14: 0.01939587393 | F14: 11 | G14: Ucrânia | H14: 195332.8996 | I14: 0.01305884541 | K14: 11 | L14: Suécia | M14: 436691.4122 | N14: 0.0156416991 | O14: -248694.1002
A15: 12 | B15: Bélgica | C15: 239155.994 | D15: 0.01845266402 | F15: 12 | G15: China, República Popular da | H15: 173709.004 | I15: 0.01161319488 | K15: 12 | L15: China, República Popular da | M15: 367378.4436 | N15: 0.01315900178 | O15: 19960.4356
A16: 13 | B16: Israel | C16: 214334.0624 | D16: 0.01653746735 | F16: 13 | G16: África do Sul | H16: 145344.5192 | I16: 0.009716906942 | K16: 13 | L16: Reino Unido (sem Irlanda do Norte) pós 2020 | M16: 358990.3996 | N16: 0.01285855333 | O16: 236866.2412
A17: 14 | B17: China, República Popular da | C17: 193669.4396 | D17: 0.01494303798 | F17: 14 | G17: Reino Unido | H17: 144902.9668 | I17: 0.009687387263 | K17: 14 | L17: Angola | M17: 346543.215 | N17: 0.01241271191 | O17: 315696.9178
A18: 15 | B18: Turquia | C18: 167228.7496 | D18: 0.01290294205 | F18: 15 | G18: Dinamarca | H18: 144434.8984 | I18: 0.009656094875 | K18: 15 | L18: Dinamarca | M18: 229206.2586 | N18: 0.008209859936 | O18: -59663.5382
A19: 16 | B19: Suíça | C19: 143381.926 | D19: 0.01106298221 | F19: 16 | G19: Roménia | H19: 138756.2138 | I19: 0.009276450357 | K19: 16 | L19: Turquia | M19: 223208.1582 | N19: 0.007995016046 | O19: 111249.341
A20: 17 | B20: Marrocos | C20: 109032.6026 | D20: 0.008412676387 | F20: 17 | G20: Irlanda | H20: 118290.7746 | I20: 0.007908247626 | K20: 17 | L20: Israel | M20: 222677.5138 | N20: 0.007976009077 | O20: 205990.611
A21: 18 | B21: Cabo Verde | C21: 100901.0544 | D21: 0.007785266952 | F21: 18 | G21: Canadá | H21: 108500.262 | I21: 0.007253709702 | K21: 18 | L21: Ucrânia | M21: 209672.7922 | N21: 0.007510197439 | O21: -180993.007
A22: 19 | B22: Canadá | C22: 96471.0096 | D22: 0.007443456041 | F22: 19 | G22: Rússia, Federação da | H22: 105947.3528 | I22: 0.007083036729 | K22: 19 | L22: Canadá | M22: 204971.2716 | N22: 0.007341795294 | O22: -12029.2524
A23: 20 | B23: Suécia | C23: 93998.656 | D23: 0.007252695569 | F23: 20 | G23: Uruguai | H23: 102111.7952 | I23: 0.006826613188 | K23: 20 | L23: Rússia, Federação da | M23: 185992.9178 | N23: 0.006662016183 | O23: -25901.7878
A24: 21 | B24: Dinamarca | C24: 84771.3602 | D24: 0.006540741055 | F24: 21 | G24: Argentina | H24: 97726.5184 | I24: 0.006533438552 | K24: 21 | L24: África do Sul | M24: 182500.0166 | N24: 0.00653690516 | O24: -108189.0218
A25: 22 | B25: Egito | C25: 83378.3752 | D25: 0.0064332619 | F25: 22 | G25: Índia | H25: 75540.6788 | I25: 0.005050219645 | K25: 22 | L25: Irlanda | M25: 182267.8406 | N25: 0.006528588928 | O25: -54313.7086
A26: 23 | B26: Rússia, Federação da | C26: 80045.565 | D26: 0.006176110801 | F26: 23 | G26: Finlândia | H26: 74110.91 | I26: 0.004954633445 | K26: 23 | L26: Roménia | M26: 164596.3888 | N26: 0.00589562129 | O26: -112916.0388
A27: 24 | B27: Argélia | C27: 78380.8918 | D27: 0.00604766888 | F27: 24 | G27: Vietname | H27: 70006.3292 | I27: 0.004680224545 | K27: 24 | L27: Marrocos | M27: 151640.996 | N27: 0.005431576543 | O27: 66424.2092
A28: 25 | B28: México | C28: 73464.5916 | D28: 0.005668339747 | F28: 25 | G28: Costa Rica | H28: 69968.8442 | I28: 0.004677718511 | K28: 25 | L28: Suíça | M28: 147879.1934 | N28: 0.005296833833 | O28: 138884.6586
A29: 26 | B29: Japão | C29: 66614.1746 | D29: 0.005139779115 | F29: 26 | G29: Áustria | H29: 64420.9792 | I29: 0.004306819847 | K29: 26 | L29: Grécia | M29: 116206.8788 | N29: 0.004162374118 | O29: -11091.8156
A30: 27 | B30: Irlanda | C30: 63977.066 | D30: 0.004936306569 | F30: 27 | G30: Grécia | H30: 63649.3472 | I30: 0.004255232926 | K30: 27 | L30: Argentina | M30: 113791.3158 | N30: 0.0040758519 | O30: -81661.721
A31: 28 | B31: Luxemburgo | C31: 55247.7972 | D31: 0.004262778544 | F31: 28 | G31: Reino Unido (sem Irlanda do Norte) pós 2020 | H31: 61062.0792 | I31: 0.004082262919 | K31: 28 | L31: Uruguai | M31: 105100.8748 | N31: 0.003764571991 | O31: -99122.7156
A32: 29 | B32: Grécia | C32: 52557.5316 | D32: 0.00405520454 | F32: 29 | G32: Turquia | H32: 55979.4086 | I32: 0.003742464504 | K32: 29 | L32: Áustria | M32: 103584.973 | N32: 0.003710274427 | O32: -25256.9854
A33: 30 | B33: Áustria | C33: 39163.9938 | D33: 0.003021793463 | F33: 30 | G33: Equador | H33: 48766.9652 | I33: 0.003260281607 | K33: 30 | L33: Finlândia | M33: 103332.8204 | N33: 0.00370124266 | O33: -44888.9996
A34: 31 | B34: Moçambique | C34: 37451.371 | D34: 0.002889651874 | F34: 31 | G34: Chile | H34: 47783.2146 | I34: 0.003194513644 | K34: 31 | L34: Cabo Verde | M34: 101737.191 | N34: 0.003644089361 | O34: 100064.9178
A35: 32 | B35: África do Sul | C35: 37155.4974 | D35: 0.002866823025 | F35: 32 | G35: Bulgária | H35: 47615.198 | I35: 0.003183281011 | K35: 32 | L35: Índia | M35: 100003.3314 | N35: 0.003581984841 | O35: -51078.0262
A36: 33 | B36: Chile | C36: 36026.5554 | D36: 0.002779716751 | F36: 33 | G36: Cuba | H36: 43073.8564 | I36: 0.00287967277 | K36: 33 | L36: Egito | M36: 93743.8836 | N36: 0.003357779839 | O36: 73012.8668
A37: 34 | B37: Austrália | C37: 34889.2258 | D37: 0.002691963312 | F37: 34 | G37: Marrocos | H37: 42608.3934 | I37: 0.002848554565 | K37: 34 | L37: México | M37: 93550.6764 | N37: 0.003350859417 | O37: 53378.5068
A38: 35 | B38: Arábia Saudita | C38: 32824.7102 | D38: 0.002532670576 | F38: 35 | G38: Moçambique | H38: 40008.1492 | I38: 0.002674717044 | K38: 35 | L38: Chile | M38: 83809.77 | N38: 0.00300195325 | O38: -11756.6592
A39: 36 | B39: Guiné-Bissau | C39: 32182.3282 | D39: 0.002483106026 | F39: 36 | G39: Checa, República | H39: 35954.3558 | I39: 0.0024037035 | K39: 36 | L39: Argélia | M39: 83292.5462 | N39: 0.002983426989 | O39: 73469.2374
A40: 37 | B40: Finlândia | C40: 29221.9104 | D40: 0.00225468777 | F40: 37 | G40: Colômbia | H40: 29155.8878 | I40: 0.001949196641 | K40: 37 | L40: Japão | M40: 83024.7762 | N40: 0.002973835828 | O40: 50203.573
A41: 38 | B41: Checa, República | C41: 29121.3328 | D41: 0.00224692746 | F41: 38 | G41: Indonésia | H41: 28536.2748 | I41: 0.001907772844 | K41: 38 | L41: Moçambique | M41: 77459.5202 | N41: 0.002774495842 | O41: -2556.7782
A42: 39 | B42: Emirados Árabes Unidos | C42: 29075.6888 | D42: 0.002243405686 | F42: 39 | G42: Guiana | H42: 28025.2642 | I42: 0.001873609585 | K42: 39 | L42: Vietname | M42: 75952.8202 | N42: 0.002720527875 | O42: -64059.8382
A43: 40 | B43: São Tomé e Príncipe | C43: 26794.1658 | D43: 0.002067369214 | F43: 40 | G43: Hungria | H43: 24241.9694 | I43: 0.001620680037 | K43: 40 | L43: Costa Rica | M43: 73986.1334 | N43: 0.002650083798 | O43: -65951.555
A44: 41 | B44: Jordânia | C44: 26642.1032 | D44: 0.002055636453 | F44: 41 | G44: Namíbia | H44: 22812.3548 | I44: 0.001525104145 | K44: 41 | L44: Checa, República | M44: 65075.6886 | N44: 0.002330923649 | O44: -6833.023
A45: 42 | B45: Roménia | C45: 25840.175 | D45: 0.001993761727 | F45: 42 | G45: Costa do Marfim | H45: 22796.1714 | I45: 0.001524022215 | K45: 42 | L45: Luxemburgo | M45: 63935.742 | N45: 0.002290092295 | O45: 46559.8524
A46: 43 | B46: Tunísia | C46: 24967.3514 | D46: 0.001926416893 | F46: 43 | G46: Uganda | H46: 22685.1304 | I46: 0.001516598646 | K46: 43 | L46: Bulgária | M46: 60599.4354 | N46: 0.002170590279 | O46: -34630.9606
A47: 44 | B47: Índia | C47: 24462.6526 | D47: 0.001887475626 | F47: 44 | G47: México | H47: 20086.0848 | I47: 0.001342841257 | K47: 44 | L47: Equador | M47: 51816.5236 | N47: 0.00185599819 | O47: -45717.4068
A48: 45 | B48: Noruega | C48: 22053.074 | D48: 0.001701558712 | F48: 45 | G48: Peru | H48: 19492.7516 | I48: 0.001303174378 | K48: 45 | L48: Austrália | M48: 48706.4602 | N48: 0.001744599902 | O48: 21071.9914
A49: 46 | B49: Coreia, República da | C49: 18918.1652 | D49: 0.001459677178 | F49: 46 | G49: Paraguai | H49: 18841.0926 | I49: 0.001259608167 | K49: 46 | L49: Cuba | M49: 48370.083 | N49: 0.001732551323 | O49: -37777.6298
A50: 47 | B50: Hungria | C50: 18307.2964 | D50: 0.001412544106 | F50: 47 | G50: Senegal | H50: 17576.369 | I50: 0.001175055949 | K50: 47 | L50: Hungria | M50: 42549.2658 | N50: 0.001524057479 | O50: -5934.673
A51: 48 | B51: Nigéria | C51: 16230.2952 | D51: 0.001252288012 | F51: 48 | G51: Nova Zelânda | H51: 17376.4264 | I51: 0.001161688925 | K51: 48 | L51: Colômbia | M51: 37488.773 | N51: 0.001342797432 | O51: -20823.0026
A52: 49 | B52: Argentina | C52: 16064.7974 | D52: 0.001239518626 | F52: 49 | G52: Japão | H52: 16410.6016 | I52: 0.001097119379 | K52: 49 | L52: Tunísia | M52: 35512.9364 | N52: 0.001272025622 | O52: 14421.7664
A53: 50 | B53: Lituânia | C53: 14413.7628 | D53: 0.001112129024 | F53: 50 | G53: Angola | H53: 15423.1486 | I53: 0.001031103894 | K53: 50 | L53: Noruega | M53: 34929.1028 | N53: 0.001251113488 | O53: 9177.0452
A54: 51 | B54: Ucrânia | C54: 14339.8926 | D54: 0.001106429389 | F54: 51 | G54: Lituânia | H54: 14634.3552 | I54: 0.0009783696586 | K54: 51 | L54: Costa do Marfim | M54: 32980.227 | N54: 0.001181307378 | O54: -12612.1158
A55: 52 | B55: Macau | C55: 14162.3014 | D55: 0.001092726907 | F55: 52 | G55: Mauritânia | H55: 14124.4552 | I55: 0.0009442806481 | K55: 52 | L55: Arábia Saudita | M55: 32858.648 | N55: 0.001176952581 | O55: 32790.7724
A56: 53 | B56: Síria, República Árabe da | C56: 13309.7072 | D56: 0.001026942922 | F56: 53 | G56: Austrália | H56: 13817.2344 | I56: 0.0009237416147 | K56: 53 | L56: Guiné-Bissau | M56: 32561.5328 | N56: 0.001166310315 | O56: 31803.1236
A57: 54 | B57: Iraque | C57: 13221.9204 | D57: 0.001020169517 | F57: 54 | G57: Tanzânia, República Unida da | H57: 13710.948 | I57: 0.0009166359112 | K57: 54 | L57: Indonésia | M57: 32138.0738 | N57: 0.001151142583 | O57: -24934.4758
A58: 55 | B58: Bulgária | C58: 12984.2374 | D58: 0.001001830505 | F58: 55 | G58: Eslovénia | H58: 13650.401 | I58: 0.0009125880836 | K58: 55 | L58: Coreia, República da | M58: 31290.6162 | N58: 0.001120787791 | O58: 6545.7142
A59: 56 | B59: HongKong | C59: 12801.5844 | D59: 0.0009877374677 | F59: 56 | G59: Suazilândia | H59: 13238.574 | I59: 0.0008850556754 | K59: 56 | L59: Emirados Árabes Unidos | M59: 29704.3194 | N59: 0.001063968773 | O59: 28447.0582
A60: 57 | B60: Eslováquia | C60: 12721.3848 | D60: 0.000981549472 | F60: 57 | G60: Noruega | H60: 12876.0288 | I60: 0.0008608179677 | K60: 57 | L60: Lituânia | M60: 29048.118 | N60: 0.001040464521 | O60: -220.5924
A61: 58 | B61: Letónia | C61: 11855.2754 | D61: 0.0009147226888 | F61: 58 | G61: Tailândia | H61: 12763.9036 | I61: 0.0008533219153 | K61: 58 | L61: Senegal | M61: 28854.7126 | N61: 0.001033537 | O61: -6298.0254
A62: 59 | B62: Croácia | C62: 11368.3906 | D62: 0.0008771559045 | F62: 59 | G62: Camarões | H62: 12420.1756 | I62: 0.0008303422184 | K62: 59 | L62: Guiana | M62: 28164.8444 | N62: 0.001008826849 | O62: -27885.684
A63: 60 | B63: Senegal | C63: 11278.3436 | D63: 0.0008702081086 | F63: 60 | G63: Coreia, República da | H63: 12372.451 | I63: 0.0008271516234 | K63: 60 | L63: São Tomé e Príncipe | M63: 27847.8924 | N63: 0.0009974740546 | O63: 25740.4392
A64: 61 | B64: Dominicana, República | C64: 11207.4662 | D64: 0.0008647393899 | F64: 61 | G64: Estónia | H64: 12168.0976 | I64: 0.0008134897187 | K64: 61 | L64: Jordânia | M64: 26698.3012 | N64: 0.0009562972438 | O64: 26585.9052
A65: 62 | B65: Líbia, Jamahira Árabe da | C65: 11110.442 | D65: 0.0008572532511 | F65: 62 | G65: Moldava, República de | H65: 11911.7076 | I65: 0.0007963489432 | K65: 62 | L65: Peru | M65: 25630.734 | N65: 0.0009180584224 | O65: -13354.7692
A66: 63 | B66: Costa do Marfim | C66: 10184.0556 | D66: 0.000785775649 | F66: 63 | G66: Sérvia | H66: 11556.9174 | I66: 0.0007726296907 | K66: 63 | L66: Uganda | M66: 23651.9568 | N66: 0.0008471812843 | O66: -21718.304
A67: 64 | B67: Malta | C67: 9933.0434 | D67: 0.0007664081904 | F67: 64 | G67: Letónia | H67: 10708.7876 | I67: 0.0007159285616 | K67: 64 | L67: Namíbia | M67: 23552.016 | N67: 0.0008436015392 | O67: -22072.6936
A68: 65 | B68: Líbano | C68: 9909.3948 | D68: 0.000764583525 | F68: 65 | G68: Tunísia | H68: 10545.585 | I68: 0.0007050177651 | K68: 65 | L68: Letónia | M68: 22564.063 | N68: 0.0008082143914 | O68: 1146.4878
A69: 66 | B69: Território Palestiniano Ocupado | C69: 9895.7186 | D69: 0.0007635283045 | F69: 66 | G69: Paquistão | H69: 10439.2814 | I69: 0.0006979109117 | K69: 66 | L69: Tailândia | M69: 22047.6444 | N69: 0.0007897169717 | O69: -3480.1628
A70: 67 | B70: Chipre | C70: 9812.818 | D70: 0.0007571319065 | F70: 67 | G70: Egito | H70: 10365.5084 | I70: 0.000692978869 | K70: 67 | L70: Eslovénia | M70: 21976.3266 | N70: 0.000787162464 | O70: -5324.4754
A71: 68 | B71: Tailândia | C71: 9283.7408 | D71: 0.0007163096647 | F71: 68 | G71: Islândia | H71: 10004.2966 | I71: 0.0006688303048 | K71: 68 | L71: Nigéria | M71: 21616.2318 | N71: 0.0007742643525 | O71: 10844.3586
A72: 69 | B72: Kuwait | C72: 9136.5242 | D72: 0.0007049508088 | F72: 69 | G72: Maurícias | H72: 9636.258 | I72: 0.0006442253397 | K72: 69 | L72: Nova Zelânda | M72: 21601.4804 | N72: 0.0007737359772 | O72: -13151.3724
A73: 70 | B73: Camarões | C73: 9091.9556 | D73: 0.0007015120098 | F73: 70 | G73: Luxemburgo | H73: 8687.9448 | I73: 0.000580826519 | K73: 70 | L73: Camarões | M73: 21512.1312 | N73: 0.000770535609 | O73: -3328.22
A74: 71 | B74: Colômbia | C74: 8332.8852 | D74: 0.0006429440817 | F74: 71 | G74: Israel | H74: 8343.4514 | I74: 0.0005577956518 | K74: 71 | L74: Estónia | M74: 20482.628 | N74: 0.0007336601889 | O74: -3853.5672
A75: 72 | B75: Eslovénia | C75: 8325.9256 | D75: 0.0006424070968 | F75: 72 | G75: Filipinas | H75: 8336.7014 | I75: 0.0005573443853 | K75: 72 | L75: Paraguai | M75: 20050.3854 | N75: 0.0007181778403 | O75: -17631.7998
A76: 73 | B76: Estónia | C76: 8314.5304 | D76: 0.0006415278723 | F76: 73 | G76: Belize | H76: 8129.6594 | I76: 0.0005435027361 | K76: 73 | L76: Croácia | M76: 18456.18 | N76: 0.0006610755468 | O76: 4280.6012
A77: 74 | B77: Geórgia | C77: 8048.6886 | D77: 0.0006210161999 | F77: 74 | G77: Malásia | H77: 8111.8758 | I77: 0.0005423138258 | K77: 74 | L77: Eslováquia | M77: 18115.4256 | N77: 0.0006488701825 | O77: 7327.344
A78: 75 | B78: Gibraltar | C78: 7970.9208 | D78: 0.0006150158356 | F78: 75 | G78: Bangladesh | H78: 7928.3318 | I78: 0.0005300431191 | K78: 75 | L78: Sérvia | M78: 17501.5482 | N78: 0.0006268819196 | O78: -5612.2866
A79: 76 | B79: Gana | C79: 7302.601 | D79: 0.0005634499914 | F79: 76 | G79: Croácia | H79: 7087.7894 | I79: 0.0004738492404 | K79: 76 | L79: Mauritânia | M79: 16926.9998 | N79: 0.0006063023686 | O79: -11321.9106
A80: 77 | B80: Taiwan | C80: 6604.3054 | D80: 0.0005095712912 | F80: 77 | G80: Quénia | H80: 6720.3804 | I80: 0.0004492863668 | K80: 77 | L80: HongKong | M80: 15599.17 | N80: 0.0005587412909 | O80: 10003.9988
A81: 78 | B81: Belarus | C81: 6189.2796 | D81: 0.0004775489633 | F81: 78 | G81: Gana | H81: 6620.3222 | I81: 0.0004425970453 | K81: 78 | L81: Maurícias | M81: 15492.8062 | N81: 0.0005549314826 | O81: -3779.7098
A82: 79 | B82: Guatemala | C82: 6179.8032 | D82: 0.0004768177886 | F82: 79 | G82: Reino Unido (Irlanda do Norte) pós-2020 | H82: 6512.7256 | I82: 0.0004354037492 | K82: 79 | L82: Suazilândia | M82: 15229.7308 | N82: 0.0005455084756 | O82: -11247.4172
A83: 80 | B83: Peru | C83: 6137.9824 | D83: 0.0004735910027 | F83: 80 | G83: Panamá | H83: 6501.636 | I83: 0.0004346623617 | K83: 80 | L83: Moldava, República de | M83: 14880.8148 | N83: 0.0005330107737 | O83: -8942.6004
A84: 81 | B84: Vietname | C84: 5946.491 | D84: 0.0004588160167 | F84: 81 | G84: Honduras | H84: 6221.2504 | I84: 0.0004159173771 | K84: 81 | L84: Síria, República Árabe da | M84: 14259.5412 | N84: 0.0005107575889 | O84: 12359.8732
A85: 82 | B85: Sérvia | C85: 5944.6308 | D85: 0.0004586724885 | F85: 82 | G85: Suriname | H85: 5829.6302 | I85: 0.0003897358804 | K85: 82 | L85: Tanzânia, República Unida da | M85: 14227.4994 | N85: 0.0005096098947 | O85: -13194.3966
A86: 83 | B86: Maurícias | C86: 5856.5482 | D86: 0.0004518762606 | F86: 83 | G86: Eslováquia | H86: 5394.0408 | I86: 0.0003606148535 | K86: 83 | L86: Macau | M86: 14180.6616 | N86: 0.0005079322277 | O86: 14143.9412
A87: 84 | B87: Andorra | C87: 5401.2632 | D87: 0.000416747636 | F87: 84 | G87: Nigéria | H87: 5385.9366 | I87: 0.0003600730528 | K87: 84 | L87: Gana | M87: 13922.9232 | N87: 0.0004987003848 | O87: 682.2788
A88: 85 | B88: Cuba | C88: 5296.2266 | D88: 0.0004086432809 | F88: 85 | G88: Etiópia | H88: 5332.739 | I88: 0.0003565165642 | K88: 85 | L88: Paquistão | M88: 13694.5862 | N88: 0.0004905216605 | O88: -7183.9766
A89: 86 | B89: Singapura | C89: 4688.1098 | D89: 0.000361722546 | F89: 86 | G89: Congo | H89: 5207.2118 | I89: 0.0003481245304 | K89: 86 | L89: Dominicana, República | M89: 13458.9994 | N89: 0.0004820832582 | O89: 8955.933
A90: 87 | B90: Omã | C90: 4393.4536 | D90: 0.0003389876282 | F90: 87 | G90: Guatemala | H90: 5138.5064 | I90: 0.0003435312785 | K90: 87 | L90: Chipre | M90: 13259.2352 | N90: 0.0004749279732 | O90: 6366.4008
A91: 88 | B91: Nova Zelânda | C91: 4225.054 | D91: 0.0003259943464 | F91: 88 | G91: Camboja | H91: 4965.2796 | I91: 0.0003319503211 | K91: 88 | L91: Iraque | M91: 13234.1844 | N91: 0.0004740306872 | O91: 13209.6564
A92: 89 | B92: Panamá | C92: 4203.97 | D92: 0.0003243675589 | F92: 89 | G92: Argélia | H92: 4911.6544 | I92: 0.0003283652455 | K92: 89 | L92: Malta | M92: 12121.6218 | N92: 0.0004341801911 | O92: 7744.465
A93: 90 | B93: Costa Rica | C93: 4017.2892 | D93: 0.0003099637465 | F93: 90 | G93: Macedónia, Antiga República jugoslava da | H93: 4838.0028 | I93: 0.0003234413189 | K93: 90 | L93: Filipinas | M93: 11815.5126 | N93: 0.0004232157713 | O93: -4857.8902
A94: 91 | B94: Catar | C94: 3815.048 | D94: 0.0002943593334 | F94: 91 | G94: Zimbabwe | H94: 4709.1506 | I94: 0.0003148269946 | K94: 91 | L94: Islândia | M94: 11807.758 | N94: 0.0004229380119 | O94: -8200.8352
A95: 92 | B95: Burquina Faso | C95: 3646.8948 | D95: 0.0002813850632 | F95: 92 | G95: Suíça | H95: 4497.2674 | I95: 0.0003006616903 | K95: 92 | L95: Malásia | M95: 11523.7994 | N95: 0.0004127669968 | O95: -4699.9522
A96: 93 | B96: Indonésia | C96: 3601.799 | D96: 0.0002779055867 | F96: 93 | G96: Sri Lanca | H96: 4393.1556 | I96: 0.0002937013682 | K96: 93 | L96: Guatemala | M96: 11318.3096 | N96: 0.0004054066285 | O96: 1041.2968
A97: 94 | B97: Sudão | C97: 3570.9408 | D97: 0.000275524647 | F97: 94 | G97: Madagáscar | H97: 3797.768 | I97: 0.0002538971435 | K97: 94 | L97: Líbia, Jamahira Árabe da | M97: 11116.443 | N97: 0.0003981760383 | O97: 11104.441
A98: 95 | B98: Filipinas | C98: 3478.8112 | D98: 0.000268416163 | F98: 95 | G98: Mali | H98: 3762.5872 | I98: 0.0002515451555 | K98: 95 | L98: Panamá | M98: 10705.606 | N98: 0.0003834604095 | O98: -2297.666
A99: 96 | B99: Mali | C99: 3441.82 | D99: 0.0002655620168 | F99: 96 | G99: Myanmar | H99: 3487.5904 | I99: 0.0002331604353 | K99: 96 | L99: Líbano | M99: 10450.9178 | N99: 0.0003743378207 | O99: 9367.8718
A100: 97 | B100: Malásia | C100: 3411.9236 | D100: 0.0002632552871 | F100: 97 | G100: Nicarágua | H100: 3458.6086 | I100: 0.0002312228772 | K100: 97 | L100: Kuwait | M100: 10320.1982 | N100: 0.0003696556204 | O100: 7952.8502
A101: 98 | B101: Venezuela | C101: 3292.4432 | D101: 0.0002540364854 | F101: 98 | G101: Chipre | H101: 3446.4172 | I101: 0.0002304078296 | K101: 98 | L101: Taiwan | M101: 10028.0136 | N101: 0.000359189961 | O101: 3180.5972
A102: 99 | B102: Paquistão | C102: 3255.3048 | D102: 0.0002511709816 | F102: 99 | G102: Taiwan | H102: 3423.7082 | I102: 0.0002288896352 | K102: 99 | L102: Território Palestiniano Ocupado | M102: 9896.2038 | N102: 0.0003544687112 | O102: 9895.2334
A103: 100 | B103: Irão, República Islâmica do | C103: 3151.3458 | D103: 0.0002431497714 | F103: 100 | G103: Congo, República Democrática do | H103: 3287.5874 | I103: 0.0002197893736 | K103: 100 | L103: Bangladesh | M103: 9893.1502 | N103: 0.0003543593354 | O103: -5963.5134
A104: 101 | B104: Equador | C104: 3049.5584 | D104: 0.0002352961163 | F104: 101 | G104: Malavi | H104: 3258.318 | I104: 0.0002178325882 | K104: 101 | L104: Quénia | M104: 9767.4084 | N104: 0.0003498554332 | O104: -3673.3524
A105: 102 | B105: Quénia | C105: 3047.028 | D105: 0.0002351008771 | F105: 102 | G105: Papuásia-Nova Guiné | H105: 3105.1676 | I105: 0.0002075938245 | K105: 102 | L105: Reino Unido (Irlanda do Norte) pós-2020 | M105: 9039.3634 | N105: 0.0003237778404 | O105: -3986.0878
A106: 103 | B106: Uruguai | C106: 2989.0796 | D106: 0.000230629727 | F106: 103 | G106: HongKong | H106: 2797.5856 | I106: 0.0001870306434 | K106: 103 | L106: Geórgia | M106: 8359.3498 | N106: 0.0002994206678 | O106: 7738.0274
A107: 104 | B107: Moldava, República de | C107: 2969.1072 | D107: 0.0002290887077 | F107: 104 | G107: Gabão | H107: 2642.8406 | I107: 0.0001766852738 | K107: 104 | L107: Belize | M107: 8131.84 | N107: 0.0002912715727 | O107: -8127.4788
A108: 105 | B108: Mauritânia | C108: 2802.5446 | D108: 0.0002162371641 | F108: 105 | G108: Centro-Africana, República | H108: 2579.2684 | I108: 0.0001724351985 | K108: 105 | L108: Gibraltar | M108: 7990.6994 | N108: 0.0002862161062 | O108: 7951.1422
A109: 106 | B109: Timor-Leste | C109: 2726.394 | D109: 0.0002103615788 | F109: 106 | G109: Gâmbia | H109: 2389.373 | I109: 0.0001597398734 | K109: 106 | L109: Congo | M109: 7640.4052 | N109: 0.0002736690391 | O109: -2774.0184
A110: 107 | B110: Guiné | C110: 2676.647 | D110: 0.0002065232277 | F110: 107 | G110: Dominicana, República | H110: 2251.5332 | I110: 0.0001505246892 | K110: 107 | L110: Honduras | M110: 7590.891 | N110: 0.000271895507 | O110: -4851.6098
A111: 108 | B111: Arménia | C111: 2588.4812 | D111: 0.0001997205803 | F111: 108 | G111: Malta | H111: 2188.5784 | I111: 0.0001463158898 | K111: 108 | L111: Etiópia | M111: 7364.853 | N111: 0.0002637991299 | O111: -3300.625
A112: 109 | B112: Gabão | C112: 2550.5466 | D112: 0.0001967936438 | F112: 109 | G112: Serra Leoa | H112: 1997.8504 | I112: 0.0001335649017 | K112: 109 | L112: Mali | M112: 7204.4072 | N112: 0.0002580521771 | O112: -320.7672
A113: 110 | B113: Reino Unido (Irlanda do Norte) pós-2020 | C113: 2526.6378 | D113: 0.000194948902 | F113: 110 | G113: Benim | H113: 1832.152 | I113: 0.0001224872502 | K113: 110 | L113: Belarus | M113: 7048.6518 | N113: 0.0002524732281 | O113: 5329.9074
A114: 111 | B114: Congo | C114: 2433.1934 | D114: 0.0001877389714 | F114: 111 | G114: El Salvador | H114: 1779.4546 | I114: 0.0001189642021 | K114: 111 | L114: Suriname | M114: 6411.9606 | N114: 0.0002296678056 | O114: -5247.2998
A115: 112 | B115: Albânia | C115: 2230.3856 | D115: 0.0001720908409 | F115: 112 | G115: Burquina Faso | H115: 1725.7416 | I115: 0.0001153732568 | K115: 112 | L115: Singapura | M115: 5996.509 | N115: 0.000214786888 | O115: 3379.7106
A116: 113 | B116: Seychelles | C116: 2209.8298 | D116: 0.000170504808 | F116: 113 | G116: Laos, República Democrática Popular do | H116: 1570.485 | I116: 0.0001049936845 | K116: 113 | L116: Camboja | M116: 5868.657 | N116: 0.0002102074013 | O116: -4061.9022
A117: 114 | B117: Guiné Equatorial | C117: 2176.4366 | D117: 0.0001679282743 | F117: 114 | G117: Singapura | H117: 1308.3992 | I117: 8.74721203e-05 | K117: 114 | L117: Sri Lanca | M117: 5833.9434 | N117: 0.0002089640068 | O117: -2952.3678
A118: 115 | B118: Etiópia | C118: 2032.114 | D118: 0.000156792712 | F118: 115 | G118: Seychelles | H118: 1264.2444 | I118: 8.45201818e-05 | K118: 115 | L118: Macedónia, Antiga República jugoslava da | M118: 5788.8886 | N118: 0.0002073502045 | O118: -3887.117
A119: 116 | B119: Suazilândia | C119: 1991.1568 | D119: 0.0001536325594 | F119: 116 | G119: Kuwait | H119: 1183.674 | I119: 7.913370364e-05 | K119: 116 | L119: Andorra | M119: 5443.4826 | N119: 0.0001949782261 | O119: 5359.0438
A120: 117 | B120: Bangladesh | C120: 1964.8184 | D120: 0.0001516003559 | F120: 117 | G120: Bolívia | H120: 1171.2708 | I120: 7.830449631e-05 | K120: 117 | L120: Burquina Faso | M120: 5372.6364 | N120: 0.0001924406105 | O120: 1921.1532
A121: 118 | B121: Islândia | C121: 1803.4614 | D121: 0.000139150463 | F121: 118 | G121: Togo | H121: 1123.3014 | I121: 7.509753537e-05 | K121: 118 | L121: Gabão | M121: 5193.3872 | N121: 0.0001860201452 | O121: -92.294
A122: 119 | B122: Benim | C122: 1771.8166 | D122: 0.0001367088313 | F122: 119 | G122: São Tomé e Príncipe | H122: 1053.7266 | I122: 7.044616041e-05 | K122: 119 | L122: Nicarágua | M122: 5085.0522 | N122: 0.0001821397312 | O122: -1832.165
A123: 120 | B123: Congo, República Democrática do | C123: 1727.2344 | D123: 0.0001332689829 | F123: 120 | G123: Venezuela | H123: 1042.4414 | I123: 6.96916962e-05 | K123: 120 | L123: Congo, República Democrática do | M123: 5014.8218 | N123: 0.0001796241727 | O123: -1560.353
A124: 121 | B124: Jamaica | C124: 1687.498 | D124: 0.000130203024 | F124: 121 | G124: Iémen | H124: 1024.4982 | I124: 6.849211602e-05 | K124: 121 | L124: Omã | M124: 4887.3662 | N124: 0.0001750588845 | O124: 3899.541
A125: 122 | B125: Nicarágua | C125: 1626.4436 | D125: 0.0001254922229 | F125: 122 | G125: Síria, República Árabe da | H125: 949.834 | I125: 6.350049275e-05 | K125: 122 | L125: Zimbabwe | M125: 4774.1098 | N125: 0.0001710021926 | O125: -4644.1914
A126: 123 | B126: Togo | C126: 1570.864 | D126: 0.0001212038433 | F126: 123 | G126: Belarus | H126: 859.3722 | I126: 5.745273191e-05 | K126: 123 | L126: Venezuela | M126: 4334.8846 | N126: 0.0001552697366 | O126: 2250.0018
A127: 124 | B127: El Salvador | C127: 1565.6294 | D127: 0.000120799955 | F127: 124 | G127: Cabo Verde | H127: 836.1366 | I127: 5.5899332e-05 | K127: 124 | L127: Madagáscar | M127: 4107.7632 | N127: 0.0001471345535 | O127: -3487.7728
A128: 125 | B128: Cazaquistão | C128: 1539.9044 | D128: 0.0001188150798 | F128: 125 | G128: Bósnia-Herzegovina | H128: 758.1446 | I128: 5.068523098e-05 | K128: 125 | L128: Myanmar | M128: 3979.9732 | N128: 0.0001425572876 | O128: -2995.2076
A129: 126 | B129: Sri Lanca | C129: 1440.7878 | D129: 0.0001111674968 | F129: 126 | G129: Turquemenistão | H129: 720.6558 | I129: 4.817894327e-05 | K129: 126 | L129: Catar | M129: 3835.8118 | N129: 0.0001373936201 | O129: 3794.2842
A130: 127 | B130: Azerbaijão | C130: 1435.1898 | D130: 0.0001107355695 | F130: 127 | G130: Chade | H130: 675.9004 | I130: 4.518685207e-05 | K130: 127 | L130: Benim | M130: 3603.9686 | N130: 0.0001290893085 | O130: -60.3354
A131: 128 | B131: Bolívia | C131: 1412.2374 | D131: 0.0001089646211 | F131: 128 | G131: Emirados Árabes Unidos | H131: 628.6306 | I131: 4.202666241e-05 | K131: 128 | L131: Sudão | M131: 3591.4234 | N131: 0.0001286399563 | O131: 3550.4582
A132: 129 | B132: Honduras | C132: 1369.6406 | D132: 0.0001056779611 | F132: 129 | G132: Timor-Leste | H132: 614.51 | I132: 4.108263949e-05 | K132: 129 | L132: Seychelles | M132: 3474.0742 | N132: 0.0001244366657 | O132: 945.5854
A133: 130 | B133: São Bartolomeu | C133: 1280.9726 | D133: 9.883656527e-05 | F133: 130 | G133: Faroé, Ilhas | H133: 597.6172 | I133: 3.995328308e-05 | K133: 130 | L133: Irão, República Islâmica do | M133: 3375.8016 | N133: 0.0001209166734 | O133: 2926.89
A134: 131 | B134: Ruanda | C134: 1241.2404 | D134: 9.577093048e-05 | F134: 131 | G134: Líbano | H134: 541.523 | I134: 3.620314427e-05 | K134: 131 | L134: El Salvador | M134: 3345.084 | N134: 0.0001198164103 | O134: -213.8252
A135: 132 | B135: Paraguai | C135: 1209.2928 | D135: 9.330593548e-05 | F135: 132 | G135: Omã | H135: 493.9126 | I135: 3.302018403e-05 | K135: 132 | L135: Timor-Leste | M135: 3340.904 | N135: 0.0001196666883 | O135: 2111.884
A136: 133 | B136: Iémen | C136: 1145.3826 | D136: 8.837478812e-05 | F136: 133 | G136: Gronelândia | H136: 481.3548 | I136: 3.218064103e-05 | K136: 133 | L136: Malavi | M136: 3267.4472 | N136: 0.0001170355645 | O136: -3249.1888
A137: 134 | B137: Montenegro | C137: 1046.3476 | D137: 8.073350114e-05 | F137: 134 | G137: Guiné-Bissau | H137: 379.2046 | I137: 2.535146031e-05 | K137: 134 | L137: Papuásia-Nova Guiné | M137: 3108.0532 | N137: 0.0001113262858 | O137: -3102.282
A138: 135 | B138: Uganda | C138: 966.8264 | D138: 7.4597849e-05 | F138: 135 | G138: Geórgia | H138: 310.6612 | I138: 2.076903888e-05 | K138: 135 | L138: Guiné | M138: 2979.4642 | N138: 0.0001067204007 | O138: 2373.8298
A139: 136 | B139: Macedónia, Antiga República jugoslava da | C139: 950.8858 | D139: 7.336791313e-05 | F139: 136 | G139: Usbequistão | H139: 308.3052 | I139: 2.061153014e-05 | K139: 136 | L139: Gâmbia | M139: 2880.9438 | N139: 0.0001031915325 | O139: -1897.8022
A140: 137 | B140: Bermudas | C140: 907.5284 | D140: 7.002256718e-05 | F140: 137 | G140: Guiné | H140: 302.8172 | I140: 2.024463371e-05 | K140: 137 | L140: Togo | M140: 2694.1654 | N140: 9.650138139e-05 | O140: 447.5626
A141: 138 | B141: Camboja | C141: 903.3774 | D141: 6.970228665e-05 | F141: 138 | G141: Irão, República Islâmica do | H141: 224.4558 | I141: 1.500583671e-05 | K141: 138 | L141: Centro-Africana, República | M141: 2675.6308 | N141: 9.583749694e-05 | O141: -2482.906
A142: 139 | B142: Barbados | C142: 886.8842 | D142: 6.842971358e-05 | F142: 139 | G142: Zâmbia | H142: 199.4064 | I142: 1.333117646e-05 | K142: 139 | L142: Arménia | M142: 2615.4888 | N142: 9.368329138e-05 | O142: 2561.4736
A143: 140 | B143: Trindade e Tobago | C143: 878.7574 | D143: 6.780267051e-05 | F143: 140 | G143: Azerbaijão | H143: 125.9648 | I143: 8.421289267e-06 | K143: 140 | L143: Bolívia | M143: 2583.5082 | N143: 9.25377893e-05 | O143: 240.9666
A144: 141 | B144: Namíbia | C144: 739.6612 | D144: 5.707036394e-05 | F144: 141 | G144: Fiji, Ilhas | H144: 123.8224 | I144: 8.278060602e-06 | K144: 141 | L144: Serra Leoa | M144: 2504.667 | N144: 8.971380354e-05 | O144: -1491.0338
A145: 142 | B145: Turquemenistão | C145: 730.8192 | D145: 5.638813786e-05 | F145: 142 | G145: Maldivas | H145: 106.1904 | I145: 7.099285481e-06 | K145: 142 | L145: Albânia | M145: 2336.138 | N145: 8.367732141e-05 | O145: 2124.6332
A146: 143 | B146: Barém | C146: 714.5288 | D146: 5.513121232e-05 | F146: 143 | G146: Albânia | H146: 105.7524 | I146: 7.070003295e-06 | K146: 143 | L146: Guiné Equatorial | M146: 2182.423 | N146: 7.817145683e-05 | O146: 2170.4502
A147: 144 | B147: Burundi | C147: 677.1012 | D147: 5.224339455e-05 | F147: 144 | G147: Tajiquistão | H147: 59.4122 | I147: 3.971961391e-06 | K147: 144 | L147: Iémen | M147: 2169.8808 | N147: 7.77222121e-05 | O147: 120.8844
A148: 145 | B148: Aruba | C148: 656.9934 | D148: 5.06919282e-05 | F148: 145 | G148: Jordânia | H148: 56.198 | I148: 3.757078281e-06 | K148: 145 | L148: Jamaica | M148: 1698.6206 | N148: 6.084230551e-05 | O148: 1676.3754
A149: 146 | B149: Niger | C149: 652.165 | D149: 5.031938122e-05 | F149: 146 | G149: Andorra | H149: 42.2194 | I149: 2.822548681e-06 | K149: 146 | L149: Laos, República Democrática Popular do | M149: 1586.3348 | N149: 5.682037916e-05 | O149: -1554.6352
A150: 147 | B150: São Martinho (parte holandesa) | C150: 597.7744 | D150: 4.612274182e-05 | F150: 147 | G150: Libéria | H150: 38.8276 | I150: 2.595792246e-06 | K150: 147 | L150: Azerbaijão | M150: 1561.1546 | N150: 5.591845826e-05 | O150: 1309.225
A151: 148 | B151: Suriname | C151: 582.3304 | D151: 4.493112233e-05 | F151: 148 | G151: Falkland Ilhas (Malvinas) | H151: 38.0622 | I151: 2.544621961e-06 | K151: 148 | L151: Cazaquistão | M151: 1555.7084 | N151: 5.57233827e-05 | O151: 1524.1004
A152: 149 | B152: Bósnia-Herzegovina | C152: 535.6404 | D152: 4.13286415e-05 | F152: 149 | G152: Aruba | H152: 38.029 | I152: 2.542402398e-06 | K152: 149 | L152: Turquemenistão | M152: 1451.475 | N152: 5.198988249e-05 | O152: 10.1634
A153: 150 | B153: Tanzânia, República Unida da | C153: 516.5514 | D153: 3.985578315e-05 | F153: 150 | G153: Arábia Saudita | H153: 33.9378 | I153: 2.268888061e-06 | K153: 150 | L153: Bósnia-Herzegovina | M153: 1293.785 | N153: 4.634163876e-05 | O153: -222.5042
A154: 151 | B154: Ceuta e Melilha | C154: 507.8786 | D154: 3.918661211e-05 | F154: 151 | G154: São Marino | H154: 32.7702 | I154: 2.190828974e-06 | K154: 151 | L154: São Bartolomeu | M154: 1281.3862 | N154: 4.589753041e-05 | O154: 1280.559
A155: 152 | B155: Serra Leoa | C155: 506.8166 | D155: 3.910467091e-05 | F155: 152 | G155: Botswana | H155: 29.9908 | I155: 2.005014116e-06 | K155: 152 | L155: Ruanda | M155: 1241.8804 | N155: 4.448248579e-05 | O155: 1240.6004
A156: 153 | B156: Myanmar | C156: 492.3828 | D156: 3.799099587e-05 | F156: 153 | G156: São Pedro e Miquelon | H156: 28.9156 | I156: 1.933132367e-06 | K156: 153 | L156: Montenegro | M156: 1046.6634 | N156: 3.749007539e-05 | O156: 1046.0318
A157: 154 | B157: Gâmbia | C157: 491.5708 | D157: 3.792834403e-05 | F157: 154 | G157: Arménia | H157: 27.0076 | I157: 1.805574351e-06 | K157: 154 | L157: Bermudas | M157: 908.2538 | N157: 3.253242965e-05 | O157: 906.803
A158: 155 | B158: Curaçau | C158: 479.6396 | D158: 3.700776319e-05 | F158: 155 | G158: Catar | H158: 20.7638 | I158: 1.388149436e-06 | K158: 155 | L158: Barbados | M158: 897.2042 | N158: 3.213664784e-05 | O158: 876.5642
A159: 156 | B159: Kosovo | C159: 471.1818 | D159: 3.6355181e-05 | F159: 156 | G159: Sudão | H159: 20.4826 | I159: 1.369350005e-06 | K159: 156 | L159: Trindade e Tobago | M159: 878.7678 | N159: 3.147628079e-05 | O159: 878.747
A160: 157 | B160: Polinésia Francesa | C160: 366.6458 | D160: 2.828945096e-05 | F160: 157 | G160: Gibraltar | H160: 19.7786 | I160: 1.322284574e-06 | K160: 157 | L160: Barém | M160: 719.082 | N160: 2.575655018e-05 | O160: 709.9756
A161: 158 | B161: Antígua e Barbuda | C161: 363.7054 | D161: 2.806257722e-05 | F161: 158 | G161: Macau | H161: 18.3602 | I161: 1.227458426e-06 | K161: 158 | L161: Aruba | M161: 695.0224 | N161: 2.489476767e-05 | O161: 618.9644
A162: 159 | B162: Haiti | C162: 328.5232 | D162: 2.534800877e-05 | F162: 159 | G162: Quirguizistão | H162: 17.4752 | I162: 1.168292366e-06 | K162: 159 | L162: Burundi | M162: 677.2152 | N162: 2.425693771e-05 | O162: 676.9872
A163: 160 | B163: Comores | C163: 311.607 | D163: 2.40427981e-05 | F163: 160 | G163: Salomão, Ilhas | H163: 16.0532 | I163: 1.073225543e-06 | K163: 160 | L163: Chade | M163: 676.014 | N163: 2.421391234e-05 | O163: -675.7868
A164: 161 | B164: Madagáscar | C164: 309.9952 | D164: 2.391843574e-05 | F164: 161 | G164: Cazaquistão | H164: 15.804 | I164: 1.05656545e-06 | K164: 161 | L164: Niger | M164: 655.4318 | N164: 2.347668562e-05 | O164: 648.8982
A165: 162 | B165: Nova Caledónia | C165: 302.6442 | D165: 2.335125141e-05 | F165: 162 | G165: Santa Helena | H165: 15.7338 | I165: 1.051872278e-06 | K165: 162 | L165: Faroé, Ilhas | M165: 598.4668 | N165: 2.143627593e-05 | O165: -596.7676
A166: 163 | B166: Libéria | C166: 295.8354 | D166: 2.282590184e-05 | F166: 163 | G166: Marshall, Ilhas | H166: 13.4098 | I166: 8.965028707e-07 | K166: 163 | L166: São Martinho (parte holandesa) | M166: 597.7772 | N166: 2.141157538e-05 | O166: 597.7716
A167: 164 | B167: Somália | C167: 292.9902 | D167: 2.260637349e-05 | F167: 164 | G167: Curaçau | H167: 12.9632 | I167: 8.666457377e-07 | K167: 164 | L167: Usbequistão | M167: 531.3872 | N167: 1.903357487e-05 | O167: -85.2232
A168: 165 | B168: Bahamas | C168: 280.4744 | D168: 2.164068642e-05 | F168: 165 | G168: Iraque | H168: 12.264 | I168: 8.199012071e-07 | K168: 165 | L168: Ceuta e Melilha | M168: 507.8786 | N168: 1.819152843e-05 | O168: 507.8786
A169: 166 | B169: Usbequistão | C169: 223.082 | D169: 1.721243581e-05 | F169: 166 | G169: Jamaica | H169: 11.1226 | I169: 7.435937024e-07 | K169: 166 | L169: Curaçau | M169: 492.6028 | N169: 1.764436982e-05 | O169: 466.6764
A170: 167 | B170: São Marino | C170: 219.9688 | D170: 1.697222927e-05 | F170: 167 | G170: Nepal | H170: 10.3458 | I170: 6.916612776e-07 | K170: 167 | L170: Gronelândia | M170: 481.9304 | N170: 1.72620988e-05 | O170: -480.7792
A171: 168 | B171: Bonaire, Santo Eustáquio e Saba | C171: 206.5448 | D171: 1.593646781e-05 | F171: 168 | G171: Barbados | H171: 10.32 | I171: 6.899364365e-07 | K171: 168 | L171: Kosovo | M171: 479.554 | N171: 1.717697935e-05 | O171: 462.8096
A172: 169 | B172: Guiana | C172: 139.5802 | D172: 1.076965077e-05 | F172: 169 | G172: Antígua e Barbuda | H172: 9.2326 | I172: 6.172390643e-07 | K172: 169 | L172: Antígua e Barbuda | M172: 372.938 | N172: 1.335813762e-05 | O172: 354.4728
A173: 170 | B173: Zâmbia | C173: 138.1944 | D173: 1.066272599e-05 | F173: 170 | G173: Kosovo | H173: 8.3722 | I173: 5.597176195e-07 | K173: 170 | L173: Polinésia Francesa | M173: 367.1436 | N173: 1.315059e-05 | O173: 366.148
A174: 171 | B174: Maldivas | C174: 129.0678 | D174: 9.958540908e-06 | F174: 171 | G174: Jibuti | H174: 7.3022 | I174: 4.881835123e-07 | K174: 171 | L174: Zâmbia | M174: 337.6008 | N174: 1.209240663e-05 | O174: -61.212
A175: 172 | B175: Santa Lúcia | C175: 120.252 | D175: 9.278336357e-06 | F175: 172 | G175: Líbia, Jamahira Árabe da | H175: 6.001 | I175: 4.011926895e-07 | K175: 172 | L175: Libéria | M175: 334.663 | N175: 1.198717859e-05 | O175: 257.0078
A176: 173 | B176: Liechtenstein | C176: 119.4194 | D176: 9.214095074e-06 | F176: 173 | G176: Guiné Equatorial | H176: 5.9864 | I176: 4.002166166e-07 | K176: 173 | L176: Haiti | M176: 328.8008 | N176: 1.177720247e-05 | O176: 328.2456
A177: 174 | B177: Afeganistão | C177: 109.4574 | D177: 8.445452666e-06 | F177: 174 | G177: Barém | H177: 4.5532 | I177: 3.044010254e-07 | K177: 174 | L177: Comores | M177: 311.607 | N177: 1.116134368e-05 | O177: 311.607
A178: 175 | B178: Quirguizistão | C178: 109.2342 | D178: 8.428231126e-06 | F178: 175 | G178: São Cristovão e Nevis | H178: 4.4378 | I178: 2.966860385e-07 | K178: 175 | L178: Nova Caledónia | M178: 303.3498 | N178: 1.086558188e-05 | O178: 301.9386
A179: 176 | B179: Virgens Britânicas, Ilhas | C179: 102.589 | D179: 7.915504512e-06 | F179: 176 | G179: Afeganistão | H179: 4.3662 | I179: 2.918992702e-07 | K179: 176 | L179: Somália | M179: 292.9902 | N179: 1.049451494e-05 | O179: 292.9902
A180: 177 | B180: Botswana | C180: 98.1832 | D180: 7.575564267e-06 | F180: 177 | G180: Niger | H180: 3.2668 | I180: 2.183996464e-07 | K180: 177 | L180: Bahamas | M180: 280.4744 | N180: 1.004621581e-05 | O180: 280.4744
A181: 178 | B181: Jibuti | C181: 96.957 | D181: 7.480953815e-06 | F181: 178 | G181: Liechtenstein | H181: 1.7444 | I181: 1.166206511e-07 | K181: 178 | L181: São Marino | M181: 252.739 | N181: 9.052771085e-06 | O181: 187.1986
A182: 179 | B182: Centro-Africana, República | C182: 96.3624 | D182: 7.435076002e-06 | F182: 179 | G182: Lesoto | H182: 1.7136 | I182: 1.145615385e-07 | K182: 179 | L182: Maldivas | M182: 235.2582 | N182: 8.426632338e-06 | O182: 22.8774
A183: 180 | B183: Nepal | C183: 77.231 | D183: 5.958946173e-06 | F183: 180 | G183: Butão | H183: 1.2178 | I183: 8.141517368e-08 | K183: 180 | L183: Bonaire, Santo Eustáquio e Saba | M183: 206.5448 | N183: 7.398156965e-06 | O183: 206.5448
A184: 181 | B184: Zimbabwe | C184: 64.9592 | D184: 5.012085513e-06 | F184: 181 | G184: Bermudas | H184: 0.7254 | I184: 4.849611347e-08 | K184: 181 | L184: Fiji, Ilhas | M184: 135.9286 | N184: 4.868779649e-06 | O184: -111.7162
A185: 182 | B185: Caimão, Ilhas | C185: 51.6906 | D185: 3.988314318e-06 | F185: 182 | G185: Nova Caledónia | H185: 0.7056 | I185: 4.717239822e-08 | K185: 182 | L185: Botswana | M185: 128.174 | N185: 4.591020305e-06 | O185: 68.1924
A186: 183 | B186: Mongólia | C186: 37.8358 | D186: 2.919313431e-06 | F186: 183 | G186: Ruanda | H186: 0.64 | I186: 4.278675575e-08 | K186: 183 | L186: Quirguizistão | M186: 126.7094 | N186: 4.538560303e-06 | O186: 91.759
A187: 184 | B187: Turcas e Caicos, Ilhas | C187: 19.071 | D187: 1.47146952e-06 | F187: 184 | G187: Polinésia Francesa | H187: 0.4978 | I187: 3.328007346e-08 | K187: 184 | L187: Liechtenstein | M187: 121.1638 | N187: 4.339924369e-06 | O187: 117.675
A188: 185 | B188: Laos, República Democrática Popular do | C188: 15.8498 | D188: 1.222929977e-06 | F188: 185 | G188: Território Palestiniano Ocupado | H188: 0.4852 | I188: 3.24377092e-08 | K188: 185 | L188: Santa Lúcia | M188: 120.2706 | N188: 4.307931146e-06 | O188: 120.2334
A189: 186 | B189: Fiji, Ilhas | C189: 12.1062 | D189: 9.340833883e-07 | F189: 186 | G189: São Bartolomeu | H189: 0.4136 | I189: 2.76509409e-08 | K189: 186 | L189: Afeganistão | M189: 113.8236 | N189: 4.077008277e-06 | O189: 105.0912
A190: 187 | B190: Anguila | C190: 10.0614 | D190: 7.76311857e-07 | F190: 187 | G190: Micronésia, Estados Federados da | H190: 0.3438 | I190: 2.298451035e-08 | K190: 187 | L190: Jibuti | M190: 104.2592 | N190: 3.734424331e-06 | O190: 89.6548
A191: 188 | B191: Malavi | C191: 9.1292 | D191: 7.043856923e-07 | F191: 188 | G191: Montenegro | H191: 0.3158 | I191: 2.111258979e-08 | K191: 188 | L191: Virgens Britânicas, Ilhas | M191: 102.589 | N191: 3.674600013e-06 | O191: 102.589
A192: 189 | B192: Brunei Darussalam | C192: 7.7238 | D192: 5.959486275e-07 | F192: 189 | G192: Haiti | H192: 0.2776 | I192: 1.855875531e-08 | K192: 189 | L192: Nepal | M192: 87.5768 | N192: 3.136883199e-06 | O192: 66.8852
A193: 190 | B193: São Vicente e Granadinas | C193: 7.6034 | D193: 5.866588719e-07 | F193: 190 | G193: Burundi | H193: 0.114 | I193: 7.621390868e-09 | K193: 190 | L193: Tajiquistão | M193: 59.4122 | N193: 2.128065104e-06 | O193: -59.4122
A194: 191 | B194: Guam | C194: 6.6636 | D194: 5.141463107e-07 | F194: 191 | G194: Oceano Indico, Território Britânico do | H194: 0.098 | I194: 6.551721974e-09 | K194: 191 | L194: Caimão, Ilhas | M194: 51.6906 | N194: 1.851487776e-06 | O194: 51.6906
A195: 192 | B195: Territórios Franceses do Sul | C195: 6.3102 | D195: 4.868788717e-07 | F195: 192 | G195: Nauru | H195: 0.0694 | I195: 4.639688827e-09 | K195: 192 | L195: Falkland Ilhas (Malvinas) | M195: 38.0622 | N195: 1.363336816e-06 | O195: -38.0622
A196: 193 | B196: Menores distantes dos Estados Unidos, lhas | C196: 4.5544 | D196: 3.514058403e-07 | F196: 193 | G196: Vanuatu | H196: 0.065 | I196: 4.345529881e-09 | K196: 193 | L196: Mongólia | M196: 37.8488 | N196: 1.355693115e-06 | O196: 37.8228
A197: 194 | B197: Sudão do Sul | C197: 3.771 | D197: 2.909607026e-07 | F197: 194 | G197: São Vicente e Granadinas | H197: 0.0416 | I197: 2.781139124e-09 | K197: 194 | L197: São Pedro e Miquelon | M197: 29.2314 | N197: 1.047029436e-06 | O197: -28.5998
A198: 195 | B198: Melilha | C198: 3.6164 | D198: 2.790321625e-07 | F198: 195 | G198: Santa Sé (Cidade Estado do Vaticano) | H198: 0.021 | I198: 1.403940423e-09 | K198: 195 | L198: Turcas e Caicos, Ilhas | M198: 19.071 | N198: 6.830975724e-07 | O198: 19.071
A199: 196 | B199: Marianas do Norte, Ilhas | C199: 2.9244 | D199: 2.256392147e-07 | F199: 196 | G199: Santa Lúcia | H199: 0.0186 | I199: 1.243490089e-09 | K199: 196 | L199: Salomão, Ilhas | M199: 16.0532 | N199: 5.750040349e-07 | O199: -16.0532
A200: 197 | B200: Papuásia-Nova Guiné | C200: 2.8856 | D200: 2.22645506e-07 | F200: 197 | G200: Mongólia | H200: 0.013 | I200: 8.691059762e-10 | K200: 197 | L200: Santa Helena | M200: 15.7338 | N200: 5.635635564e-07 | O200: -15.7338
... 58 more rows

Sheet 2AA
A1: Ranking dos parceiros comerciais de Portugal por país (média 2018-2022 em milhares de euros) produtos agrícolas e agroalimentares
A2: Exportações | F2: Importações | K2: Trocas comerciais (total e saldo)
A3: P | B3: País | C3: média quinquénio | D3: % do Total | F3: P | G3: País | H3: média quinquénio | I3: % do Total | K3: P | L3: País | M3: Total (exp+imp) | N3: % do Total | O3: Saldo (exp-imp)
A4: 1 | B4: Espanha | C4: 2411384.356 | D4: 0.3412368491 | F4: 1 | G4: Espanha | H4: 4705156.347 | I4: 0.461261043 | K4: 1 | L4: Espanha | M4: 7116540.703 | N4: 0.4121412567 | O4: -2293771.991
A5: 2 | B5: França | C5: 676917.193 | D5: 0.095791071 | F5: 2 | G5: França | H5: 802414.1936 | I5: 0.07866314753 | K5: 2 | L5: França | M5: 1479331.387 | N5: 0.08567273374 | O5: -125497.0006
A6: 3 | B6: Itália | C6: 450062.431 | D6: 0.06368867969 | F6: 3 | G6: Alemanha | H6: 691414.1182 | I6: 0.0677814665 | K6: 3 | L6: Alemanha | M6: 951387.8206 | N6: 0.05509786122 | O6: -431440.4158
A7: 4 | B7: Brasil | C7: 371211.2184 | D7: 0.05253038414 | F7: 4 | G7: Países Baixos | H7: 595089.4646 | I7: 0.05833846251 | K7: 4 | L7: Países Baixos | M7: 927519.5784 | N7: 0.05371557624 | O7: -262659.3508
A8: 5 | B8: Países Baixos | C8: 332430.1138 | D8: 0.04704244029 | F8: 5 | G8: Brasil | H8: 551854.2014 | I8: 0.05409997581 | K8: 5 | L8: Brasil | M8: 923065.4198 | N8: 0.0534576219 | O8: -180642.983
A9: 6 | B9: Angola | C9: 270815.6406 | D9: 0.03832332895 | F9: 6 | G9: Itália | H9: 325226.391 | I9: 0.03188294995 | K9: 6 | L9: Itália | M9: 775288.822 | N9: 0.0448994143 | O9: 124836.04 | P9: Nota: Nesta listagem, o Reino Unido passa a ser constituído por três componentes: Reino Unido [até 2020] ; Reino Unido (sem Irlanda do Norte) pós-2020 e Reino Unido (Irlanda do Norte) pós-2020. Estas componentes são calculadas igualmente como média do quinquénio, embora a primeira corresponda apenas a 2018-2020 e as duas últimas a 2021-2022.
A10: 7 | B10: Alemanha | C10: 259973.7024 | D10: 0.03678907796 | F10: 7 | G10: Bélgica | H10: 255604.7054 | I10: 0.02505772058 | K10: 7 | L10: Bélgica | M10: 422129.3612 | N10: 0.02444683909 | O10: -89080.0496
A11: 8 | B11: Reino Unido | C11: 202835.6198 | D11: 0.02870342408 | F11: 8 | G11: Estados Unidos | H11: 216780.4662 | I11: 0.02125166022 | K11: 8 | L11: Estados Unidos | M11: 400397.4384 | N11: 0.02318827508 | O11: -33163.494
A12: 9 | B12: Estados Unidos | C12: 183616.9722 | D12: 0.02598377852 | F12: 9 | G12: Ucrânia | H12: 191923.2566 | I12: 0.01881483101 | K12: 9 | L12: Polónia | M12: 317728.7036 | N12: 0.01840066862 | O12: -49129.98
A13: 10 | B13: Israel | C13: 169490.6434 | D13: 0.0239847509 | F13: 10 | G13: Polónia | H13: 183429.3418 | I13: 0.01798214624 | K13: 10 | L13: Reino Unido | M13: 313115.4092 | N13: 0.01813349823 | O13: 92555.8304
A14: 11 | B14: Bélgica | C14: 166524.6558 | D14: 0.02356503172 | F14: 11 | G14: Roménia | H14: 135147.0966 | I14: 0.01324888827 | K14: 11 | L14: Angola | M14: 277936.943 | N14: 0.0160962026 | O14: 263694.3382
A15: 12 | B15: Reino Unido (sem Irlanda do Norte) pós 2020 | C15: 153212.605 | D15: 0.02168123321 | F15: 12 | G15: África do Sul | H15: 112523.4846 | I15: 0.01103102555 | K15: 12 | L15: Reino Unido (sem Irlanda do Norte) pós 2020 | M15: 202799.7018 | N15: 0.01174476862 | O15: 103625.5082
A16: 13 | B16: Polónia | C16: 134299.3618 | D16: 0.01900480566 | F16: 13 | G16: Irlanda | H16: 110291.18 | I16: 0.01081218582 | K16: 13 | L16: Ucrânia | M16: 198678.4348 | N16: 0.01150609309 | O16: -185168.0784
A17: 14 | B17: Suíça | C17: 92002.5032 | D17: 0.01301934477 | F17: 14 | G17: Reino Unido | H17: 110279.7894 | I17: 0.01081106916 | K17: 14 | L17: Canadá | M17: 175349.2144 | N17: 0.01015502456 | O17: -30879.5124
A18: 15 | B18: Cabo Verde | C18: 85448.1822 | D18: 0.01209183778 | F18: 15 | G18: Canadá | H18: 103114.3634 | I18: 0.01010862027 | K18: 15 | L18: Israel | M18: 174656.3316 | N18: 0.01011489753 | O18: 164324.9552
A19: 16 | B19: Canadá | C19: 72234.851 | D19: 0.01022200915 | F19: 16 | G19: Argentina | H19: 72786.9924 | I19: 0.007135534201 | K19: 16 | L19: Roménia | M19: 150956.573 | N19: 0.008742369966 | O19: -119337.6202
A20: 17 | B20: China, República Popular da | C20: 72213.8082 | D20: 0.01021903137 | F20: 17 | G20: Dinamarca | H20: 70235.3942 | I20: 0.00688539313 | K20: 17 | L20: Irlanda | M20: 137073.4678 | N20: 0.007938355676 | O20: -83508.8922
A21: 18 | B21: Japão | C21: 54930.0814 | D21: 0.007773197936 | F21: 18 | G21: Costa Rica | H21: 69966.4528 | I21: 0.006859027972 | K21: 18 | L21: África do Sul | M21: 134358.9168 | N21: 0.007781147489 | O21: -90688.0524
A22: 19 | B22: Suécia | C22: 50847.6768 | D22: 0.007195493731 | F22: 19 | G22: Reino Unido (sem Irlanda do Norte) pós 2020 | H22: 49587.0968 | I22: 0.004861176612 | K22: 19 | L22: Dinamarca | M22: 117607.5464 | N22: 0.006811022939 | O22: -22863.242
A23: 20 | B23: Rússia, Federação da | C23: 48396.534 | D23: 0.006848630634 | F23: 20 | G23: Bulgária | H23: 45267.761 | I23: 0.004437738752 | K23: 20 | L23: China, República Popular da | M23: 117263.0136 | N23: 0.006791069961 | O23: 27164.6028
A24: 21 | B24: Dinamarca | C24: 47372.1522 | D24: 0.00670366958 | F24: 21 | G24: China, República Popular da | H24: 45049.2054 | I24: 0.00441631307 | K24: 21 | L24: Suíça | M24: 94989.5902 | N24: 0.005501145952 | O24: 89015.4162
A25: 22 | B25: Luxemburgo | C25: 45467.1782 | D25: 0.006434095249 | F25: 22 | G25: Cuba | H25: 35800.4636 | I25: 0.003509630279 | K25: 22 | L25: Cabo Verde | M25: 85574.9204 | N25: 0.004955912811 | O25: 85321.444
A26: 23 | B26: Marrocos | C26: 40790.7978 | D26: 0.005772337073 | F26: 23 | G26: Grécia | H26: 30695.8376 | I26: 0.003009207989 | K26: 23 | L26: Argentina | M26: 73024.3208 | N26: 0.004229068111 | O26: -72549.664
A27: 24 | B27: Guiné-Bissau | C27: 30105.257 | D27: 0.004260218001 | F27: 24 | G27: Vietname | H27: 28842.503 | I27: 0.00282751986 | K27: 24 | L27: Costa Rica | M27: 71166.176 | N27: 0.004121457101 | O27: -68766.7296
A28: 25 | B28: Irlanda | C28: 26782.2878 | D28: 0.003789982082 | F28: 25 | G28: Colômbia | H28: 28226.344 | I28: 0.002767115886 | K28: 25 | L28: Japão | M28: 68521.65 | N28: 0.003968304282 | O28: 41338.5128
A29: 26 | B29: São Tomé e Príncipe | C29: 25260.8806 | D29: 0.003574686582 | F29: 26 | G29: Guiana | H29: 28025.2642 | I29: 0.002747403411 | K29: 26 | L29: Suécia | M29: 64561.625 | N29: 0.003738966778 | O29: 37133.7286
A30: 27 | B30: Arábia Saudita | C30: 25200.9646 | D30: 0.003566207823 | F30: 27 | G30: Chile | H30: 24582.6414 | I30: 0.00240991244 | K30: 27 | L30: Rússia, Federação da | M30: 60555.2322 | N30: 0.003506943969 | O30: 36237.8358
A31: 28 | B31: Moçambique | C31: 25040.048 | D31: 0.003543436392 | F31: 28 | G31: Áustria | H31: 23768.2002 | I31: 0.002330070248 | K31: 28 | L31: Luxemburgo | M31: 53710.6 | N31: 0.003110549789 | O31: 37223.7564
A32: 29 | B32: Grécia | C32: 22268.7026 | D32: 0.003151261179 | F32: 29 | G32: Uruguai | H32: 22544.114 | I32: 0.002210069288 | K32: 29 | L32: Bulgária | M32: 53424.102 | N32: 0.003093957789 | O32: -37111.42
A33: 30 | B33: África do Sul | C33: 21835.4322 | D33: 0.003089948753 | F33: 30 | G33: Checa, República | H33: 22169.9018 | I33: 0.002173384108 | K33: 30 | L33: Grécia | M33: 52964.5402 | N33: 0.003067343119 | O33: -8427.135
A34: 31 | B34: Finlândia | C34: 19885.3292 | D34: 0.002813988182 | F34: 31 | G34: Costa do Marfim | H34: 21706.6942 | I34: 0.002127974433 | K34: 31 | L34: Marrocos | M34: 50677.0038 | N34: 0.002934864691 | O34: 30904.5918
A35: 32 | B35: Checa, República | C35: 18233.8742 | D35: 0.002580289519 | F35: 32 | G35: Índia | H35: 20821.1078 | I35: 0.002041157656 | K35: 32 | L35: Checa, República | M35: 40403.776 | N35: 0.002339909756 | O35: -3936.0276
A36: 33 | B36: Jordânia | C36: 17519.4376 | D36: 0.002479189048 | F36: 33 | G36: Paraguai | H36: 18543.3936 | I36: 0.001817866282 | K36: 33 | L36: Cuba | M36: 38670.0018 | N36: 0.002239501438 | O36: -32930.9254
A37: 34 | B37: Noruega | C37: 16995.9884 | D37: 0.00240511535 | F37: 34 | G37: Turquia | H37: 17986.1158 | I37: 0.001763234614 | K37: 34 | L37: Áustria | M37: 38055.3092 | N37: 0.002203902656 | O37: -9481.0912
A38: 35 | B38: Roménia | C38: 15809.4764 | D38: 0.002237211127 | F38: 35 | G38: Hungria | H38: 16799.7058 | I38: 0.001646927169 | K38: 35 | L38: Moçambique | M38: 35153.372 | N38: 0.002035842345 | O38: 14926.724
A39: 36 | B39: Austrália | C39: 14444.1886 | D39: 0.002044008204 | F39: 36 | G39: Uganda | H39: 16711.9112 | I39: 0.001638320392 | K39: 36 | L39: Colômbia | M39: 34587.7746 | N39: 0.002003086821 | O39: -21864.9134
A40: 37 | B40: Áustria | C40: 14287.109 | D40: 0.002021779749 | F40: 37 | G40: Suécia | H40: 13713.9482 | I40: 0.001344420798 | K40: 37 | L40: Vietname | M40: 30876.7168 | N40: 0.001788167791 | O40: -26808.2892
A41: 38 | B41: Coreia, República da | C41: 13714.1396 | D41: 0.00194069841 | F41: 38 | G41: Japão | H41: 13591.5686 | I41: 0.001332423547 | K41: 38 | L41: Guiné-Bissau | M41: 30466.7032 | N41: 0.001764422613 | O41: 29743.8108
A42: 39 | B42: Iraque | C42: 12402.8826 | D42: 0.001755141426 | F42: 39 | G42: Suazilândia | H42: 13238.5734 | I42: 0.001297818335 | K42: 39 | L42: Chile | M42: 30212.416 | N42: 0.001749696042 | O42: -18952.8668
A43: 40 | B43: Emirados Árabes Unidos | C43: 11850.4352 | D43: 0.001676964171 | F43: 40 | G43: Indonésia | H43: 13223.1014 | I43: 0.001296301567 | K43: 40 | L43: Guiana | M43: 28043.5076 | N43: 0.001624087734 | O43: -28007.0208
A44: 41 | B44: Argélia | C44: 11256.5744 | D44: 0.001592926474 | F44: 41 | G44: México | H44: 13063.4442 | I44: 0.001280649877 | K44: 41 | L44: Hungria | M44: 27985.9222 | N44: 0.001620752782 | O44: -5613.4894
A45: 42 | B45: Macau | C45: 11226.3432 | D45: 0.001588648434 | F45: 42 | G45: Austrália | H45: 12929.8552 | I45: 0.001267553734 | K45: 42 | L45: Turquia | M45: 27952.4328 | N45: 0.001618813306 | O45: -8019.7988
A46: 43 | B46: Hungria | C46: 11186.2164 | D46: 0.00158297006 | F46: 43 | G46: Rússia, Federação da | H46: 12158.6982 | I46: 0.001191954826 | K46: 43 | L46: Austrália | M46: 27374.0438 | N46: 0.00158531698 | O46: 1514.3334
A47: 44 | B47: Nigéria | C47: 10950.0114 | D47: 0.001549544509 | F47: 44 | G47: Moldava, República de | H47: 11903.4008 | I47: 0.001166927231 | K47: 44 | L47: Finlândia | M47: 27340.3908 | N47: 0.001583368029 | O47: 12430.2676
A48: 45 | B48: Turquia | C48: 9966.317 | D48: 0.00141034116 | F48: 45 | G48: Peru | H48: 11309.1784 | I48: 0.00110867377 | K48: 45 | L48: Costa do Marfim | M48: 27312.2444 | N48: 0.001581737982 | O48: -16101.144
A49: 46 | B49: Território Palestiniano Ocupado | C49: 9369.3582 | D49: 0.001325865063 | F49: 46 | G49: Lituânia | H49: 10559.0186 | I49: 0.001035133282 | K49: 46 | L49: São Tomé e Príncipe | M49: 26314.3518 | N49: 0.001523946883 | O49: 24207.4094
A50: 47 | B50: Eslováquia | C50: 9086.8 | D50: 0.001285880035 | F50: 47 | G50: Paquistão | H50: 10304.0036 | I50: 0.001010133372 | K50: 47 | L50: Arábia Saudita | M50: 25224.07 | N50: 0.001460805234 | O50: 25177.8592
A51: 48 | B51: Senegal | C51: 8493.732 | D51: 0.001201954528 | F51: 48 | G51: Tailândia | H51: 10199.4412 | I51: 0.0009998827965 | K51: 48 | L51: Uruguai | M51: 24295.7548 | N51: 0.001407043581 | O51: -20792.4732
A52: 49 | B52: Bulgária | C52: 8156.341 | D52: 0.001154210069 | F52: 49 | G52: Moçambique | H52: 10113.324 | I52: 0.0009914404608 | K52: 49 | L52: Índia | M52: 23835.9726 | N52: 0.001380416148 | O52: -17806.243
A53: 50 | B53: Líbia, Jamahira Árabe da | C53: 7994.648 | D53: 0.001131328768 | F53: 50 | G53: Marrocos | H53: 9886.206 | I53: 0.0009691753801 | K53: 50 | L53: Paraguai | M53: 19188.0202 | N53: 0.001111238604 | O53: -17898.767
A54: 51 | B54: Gibraltar | C54: 7555.2434 | D54: 0.001069148286 | F54: 51 | G54: Egito | H54: 9790.4264 | I54: 0.0009597858094 | K54: 51 | L54: México | M54: 18719.0294 | N54: 0.001084077872 | O54: -7407.859
A55: 52 | B55: Kuwait | C55: 7349.7522 | D55: 0.001040069069 | F55: 52 | G55: Letónia | H55: 8947.386 | I55: 0.0008771399491 | K55: 52 | L55: Noruega | M55: 18005.9244 | N55: 0.001042779718 | O55: 15986.0524
A56: 53 | B56: Ucrânia | C56: 6755.1782 | D56: 0.0009559304465 | F56: 53 | G56: Sérvia | H56: 8809.7352 | I56: 0.000863645615 | K56: 53 | L56: Jordânia | M56: 17548.9282 | N56: 0.001016313631 | O56: 17489.947
A57: 54 | B57: Colômbia | C57: 6361.4306 | D57: 0.0009002109218 | F57: 54 | G57: Luxemburgo | H57: 8243.4218 | I57: 0.0008081281592 | K57: 54 | L57: Uganda | M57: 17197.4672 | N57: 0.0009959594191 | O57: -16226.3552
A58: 55 | B58: Letónia | C58: 5852.2048 | D58: 0.0008281499884 | F58: 55 | G58: Equador | H58: 8207.9326 | I58: 0.0008046490431 | K58: 55 | L58: Lituânia | M58: 15596.0102 | N58: 0.0009032140069 | O58: -5522.027
A59: 56 | B59: HongKong | C59: 5831.0346 | D59: 0.0008251541771 | F59: 56 | G59: Nova Zelânda | H59: 7880.6232 | I59: 0.0007725618893 | K59: 56 | L59: Suazilândia | M59: 15229.1516 | N59: 0.0008819680715 | O59: -11247.9952
A60: 57 | B60: Maurícias | C60: 5663.2906 | D60: 0.0008014165951 | F60: 57 | G60: Finlândia | H60: 7455.0616 | I60: 0.0007308427682 | K60: 57 | L60: Letónia | M60: 14799.5908 | N60: 0.0008570908544 | O60: -3095.1812
A61: 58 | B61: México | C61: 5655.5852 | D61: 0.000800326198 | F61: 58 | G61: Malásia | H61: 7402.4108 | I61: 0.0007256812473 | K61: 58 | L61: Coreia, República da | M61: 14651.7386 | N61: 0.0008485282684 | O61: 12776.5406
A62: 59 | B62: Chile | C62: 5629.7746 | D62: 0.0007966737202 | F62: 59 | G62: Angola | H62: 7121.3024 | I62: 0.0006981233206 | K62: 59 | L62: Indonésia | M62: 14360.499 | N62: 0.0008316616671 | O62: -12085.7038
A63: 60 | B63: Costa do Marfim | C63: 5605.5502 | D63: 0.0007932457068 | F63: 60 | G63: Camarões | H63: 6330.7516 | I63: 0.0006206231782 | K63: 60 | L63: Tailândia | M63: 13287.7642 | N63: 0.0007695362206 | O63: -7111.1182
A64: 61 | B64: Andorra | C64: 5268.3636 | D64: 0.0007455301725 | F64: 61 | G64: Honduras | H64: 6193.611 | I64: 0.0006071788607 | K64: 61 | L64: Peru | M64: 13096.3328 | N64: 0.0007584498261 | O64: -9522.024
A65: 62 | B65: Lituânia | C65: 5036.9916 | D65: 0.0007127885434 | F65: 62 | G65: Etiópia | H65: 5332.6708 | I65: 0.0005227782275 | K65: 62 | L65: Eslováquia | M65: 12662.696 | N65: 0.000733336555 | O65: 5510.904
A66: 63 | B66: Estónia | C66: 4881.8086 | D66: 0.0006908284781 | F66: 63 | G66: Israel | H66: 5165.6882 | I66: 0.0005064084063 | K66: 63 | L66: Iraque | M66: 12415.1466 | N66: 0.0007190001906 | O66: 12390.6186
A67: 64 | B67: Malta | C67: 4732.9478 | D67: 0.0006697630721 | F67: 64 | G67: Belize | H67: 5153.7922 | I67: 0.0005052422046 | K67: 64 | L67: Emirados Árabes Unidos | M67: 12305.7766 | N67: 0.0007126662299 | O67: 11395.0938
A68: 65 | B68: Síria, República Árabe da | C68: 4399.3294 | D68: 0.0006225524765 | F68: 65 | G68: Camboja | H68: 4964.372 | I68: 0.000486672756 | K68: 65 | L68: Moldava, República de | M68: 12104.7888 | N68: 0.0007010263942 | O68: -11702.0128
A69: 66 | B69: Chipre | C69: 4087.4456 | D69: 0.0005784175609 | F69: 66 | G69: Zimbabwe | H69: 4708.9854 | I69: 0.000461636417 | K69: 66 | L69: Argélia | M69: 11803.7068 | N69: 0.0006835897886 | O69: 10709.442
A70: 67 | B70: Omã | C70: 3805.6814 | D70: 0.0005385448929 | F70: 67 | G70: Guatemala | H70: 4634.8976 | I70: 0.0004543733606 | K70: 67 | L70: Sérvia | M70: 11344.2464 | N70: 0.0006569809916 | O70: -6275.224
A71: 68 | B71: Eslovénia | C71: 3324.2138 | D71: 0.0004704120436 | F71: 68 | G71: Suriname | H71: 4613.819 | I71: 0.0004523069601 | K71: 68 | L71: Egito | M71: 11328.9988 | N71: 0.0006560979551 | O71: -8251.854
A72: 69 | B72: Mali | C72: 3288.1148 | D72: 0.0004653036465 | F72: 69 | G72: Macedónia, Antiga República jugoslava da | H72: 4601.6794 | I72: 0.0004511168776 | K72: 69 | L72: Macau | M72: 11242.8404 | N72: 0.0006511082512 | O72: 11209.846
A73: 70 | B73: Tailândia | C73: 3088.323 | D73: 0.0004370309557 | F73: 70 | G73: Eslovénia | H73: 4575.887 | I73: 0.0004485883688 | K73: 70 | L73: Nigéria | M73: 11147.6308 | N73: 0.0006455943638 | O73: 10752.392
A74: 71 | B74: Índia | C74: 3014.8648 | D74: 0.0004266358295 | F74: 71 | G74: Tanzânia, República Unida da | H74: 4539.6584 | I74: 0.0004450367669 | K74: 71 | L74: Paquistão | M74: 10570.8542 | N74: 0.0006121914167 | O74: -10037.153
A75: 72 | B75: Singapura | C75: 2956.254 | D75: 0.0004183417702 | F75: 72 | G75: Filipinas | H75: 4493.245 | I75: 0.0004404867176 | K75: 72 | L75: Nova Zelânda | M75: 10271.0628 | N75: 0.0005948295537 | O75: -5490.1836
A76: 73 | B76: Cuba | C76: 2869.5382 | D76: 0.0004060705509 | F76: 73 | G76: Tunísia | H76: 4126.4674 | I76: 0.000404530374 | K76: 73 | L76: Território Palestiniano Ocupado | M76: 9369.8434 | N76: 0.0005426371035 | O76: 9368.873
A77: 74 | B77: Taiwan | C77: 2744.627 | D77: 0.0003883942712 | F77: 74 | G77: Estónia | H77: 4043.5748 | I77: 0.0003964041558 | K77: 74 | L77: Senegal | M77: 9057.0902 | N77: 0.000524524582 | O77: 7930.3738
A78: 75 | B78: Gana | C78: 2742.0304 | D78: 0.0003880268243 | F78: 75 | G78: Reino Unido (Irlanda do Norte) pós-2020 | H78: 4000.7948 | I78: 0.0003922103 | K78: 75 | L78: Equador | M78: 9035.3682 | N78: 0.0005232665926 | O78: -7380.497
A79: 76 | B79: Sérvia | C79: 2534.5112 | D79: 0.0003586606232 | F79: 76 | G79: Mali | H79: 3760.9918 | I79: 0.0003687016695 | K79: 76 | L79: Estónia | M79: 8925.3834 | N79: 0.0005168970269 | O79: 838.2338
A80: 77 | B80: Líbano | C80: 2519.7508 | D80: 0.0003565718677 | F80: 77 | G80: Eslováquia | H80: 3575.896 | I80: 0.0003505561552 | K80: 77 | L80: Malásia | M80: 8903.6532 | N80: 0.0005156385627 | O80: -5901.1684
A81: 78 | B81: Timor-Leste | C81: 2471.9198 | D81: 0.0003498032662 | F81: 78 | G81: Myanmar | H81: 3336.325 | I81: 0.0003270702684 | K81: 78 | L81: Camarões | M81: 8611.8814 | N81: 0.00049874114 | O81: -4049.6218
A82: 79 | B82: Belarus | C82: 2455.9286 | D82: 0.0003475403392 | F82: 79 | G82: Quénia | H82: 3256.0222 | I82: 0.0003191979363 | K82: 79 | L82: Kuwait | M82: 8533.2046 | N82: 0.000494184719 | O82: 6166.2998
A83: 80 | B83: Nova Zelânda | C83: 2390.4396 | D83: 0.0003382729406 | F83: 80 | G83: Malavi | H83: 3254.1762 | I83: 0.0003190169672 | K83: 80 | L83: Líbia, Jamahira Árabe da | M83: 8000.598 | N83: 0.0004633397955 | O83: 7988.698
A84: 81 | B84: Filipinas | C84: 2342.9576 | D84: 0.0003315537264 | F84: 81 | G84: Nicarágua | H84: 3164.5064 | I84: 0.0003102263591 | K84: 81 | L84: Eslovénia | M84: 7900.1008 | N84: 0.0004575196866 | O84: -1251.6732
A85: 82 | B85: Camarões | C85: 2281.1298 | D85: 0.000322804427 | F85: 82 | G85: Chipre | H85: 3134.9022 | I85: 0.0003073241678 | K85: 82 | L85: Gibraltar | M85: 7555.2434 | N85: 0.0004375479098 | O85: 7555.2434
A86: 83 | B86: Guiné | C86: 2270.2954 | D86: 0.0003212712428 | F86: 83 | G86: Sri Lanca | H86: 3073.8124 | I86: 0.0003013353456 | K86: 83 | L86: Chipre | M86: 7222.3478 | N86: 0.0004182688785 | O86: 952.5434
A87: 84 | B87: Irão, República Islâmica do | C87: 2234.7082 | D87: 0.0003162352708 | F87: 84 | G87: Suíça | H87: 2987.087 | I87: 0.0002928333861 | K87: 84 | L87: Maurícias | M87: 7215.0708 | N87: 0.0004178474446 | O87: 4111.5104
A88: 85 | B88: Congo | C88: 2184.5722 | D88: 0.000309140487 | F88: 85 | G88: Taiwan | H88: 2718.5488 | I88: 0.000266507755 | K88: 85 | L88: Mali | M88: 7049.1066 | N88: 0.0004082359357 | O88: -472.877
A89: 86 | B89: Seychelles | C89: 2103.9052 | D89: 0.000297725238 | F89: 86 | G89: Dominicana, República | H89: 2224.7352 | I89: 0.000218097679 | K89: 86 | L89: HongKong | M89: 7034.5032 | N89: 0.0004073902069 | O89: 4627.566
A90: 87 | B90: Gabão | C90: 2079.6516 | D90: 0.0002942930925 | F90: 87 | G90: Serra Leoa | H90: 1997.841 | I90: 0.0001958545382 | K90: 87 | L90: Honduras | M90: 7007.3132 | N90: 0.0004058155485 | O90: -5379.9088
A91: 88 | B91: Venezuela | C91: 2058.7692 | D91: 0.000291338008 | F91: 88 | G91: Benim | H91: 1817.538 | I91: 0.0001781788769 | K91: 88 | L91: Filipinas | M91: 6836.2026 | N91: 0.0003959059954 | O91: -2150.2874
A92: 89 | B92: Vietname | C92: 2034.2138 | D92: 0.0002878631545 | F92: 89 | G92: Croácia | H92: 1813.5626 | I92: 0.0001777891561 | K92: 89 | L92: Etiópia | M92: 6077.0796 | N92: 0.0003519427947 | O92: -4588.262
A93: 90 | B93: Suazilândia | C93: 1990.5782 | D93: 0.0002816882473 | F93: 90 | G93: Burquina Faso | H93: 1725.737 | I93: 0.0001691793407 | K93: 90 | L93: Malta | M93: 5803.922 | N93: 0.0003361233789 | O93: 3661.9736
A94: 91 | B94: Sudão | C94: 1865.0268 | D94: 0.0002639213725 | F94: 91 | G94: Gana | H94: 1658.4144 | I94: 0.0001625794978 | K94: 91 | L94: Taiwan | M94: 5463.1758 | N94: 0.0003163896946 | O94: 26.0782
A95: 92 | B95: Burquina Faso | C95: 1848.8938 | D95: 0.0002616383793 | F95: 92 | G95: Laos, República Democrática Popular do | H95: 1570.3752 | I95: 0.0001539487425 | K95: 92 | L95: Camboja | M95: 5365.8038 | N95: 0.0003107505758 | O95: -4562.9402
A96: 93 | B96: Guiné Equatorial | C96: 1818.2522 | D96: 0.0002573022629 | F96: 93 | G96: Maurícias | H96: 1551.7802 | I96: 0.000152125817 | K96: 93 | L96: Síria, República Árabe da | M96: 5349.1634 | N96: 0.0003097868779 | O96: 3449.4954
A97: 94 | B97: Peru | C97: 1787.1544 | D97: 0.0002529015894 | F97: 94 | G97: Madagáscar | H97: 1535.4896 | I97: 0.0001505287991 | K97: 94 | L97: Reino Unido (Irlanda do Norte) pós-2020 | M97: 5342.7154 | N97: 0.000309413454 | O97: -2658.8742
A98: 95 | B98: Croácia | C98: 1771.985 | D98: 0.000250754956 | F98: 95 | G98: Panamá | H98: 1513.6692 | I98: 0.0001483896777 | K98: 95 | L98: Andorra | M98: 5273.09 | N98: 0.0003053812281 | O98: 5263.6372
A99: 96 | B99: Uruguai | C99: 1751.6408 | D99: 0.0002478760327 | F99: 96 | G99: Congo, República Democrática do | H99: 1226.6902 | I99: 0.0001202562379 | K99: 96 | L99: Belize | M99: 5155.9728 | N99: 0.0002985986026 | O99: -5151.6116
A100: 97 | B100: Dominicana, República | C100: 1708.9932 | D100: 0.0002418409381 | F100: 97 | G100: HongKong | H100: 1203.4686 | I100: 0.0001179797526 | K100: 97 | L100: Guatemala | M100: 5126.7604 | N100: 0.0002969068207 | O100: -4143.0348
A101: 98 | B101: Benim | C101: 1572.4166 | D101: 0.0002225138787 | F101: 98 | G101: Kuwait | H101: 1183.4524 | I101: 0.0001160175025 | K101: 98 | L101: Tanzânia, República Unida da | M101: 4910.6254 | N101: 0.000284389763 | O101: -4168.6914
A102: 99 | B102: Bangladesh | C102: 1558.9346 | D102: 0.0002206060305 | F102: 99 | G102: Togo | H102: 1123.3014 | I102: 0.0001101207138 | K102: 99 | L102: Macedónia, Antiga República jugoslava da | M102: 4874.3908 | N102: 0.0002822913033 | O102: -4328.968
A103: 100 | B103: Egito | C103: 1538.5724 | D103: 0.00021772456 | F103: 100 | G103: Malta | H103: 1070.9742 | I103: 0.0001049909164 | K103: 100 | L103: Tunísia | M103: 4852.0784 | N103: 0.000280999122 | O103: -3400.8564
A104: 101 | B104: Catar | C104: 1515.2294 | D104: 0.0002144212742 | F104: 101 | G104: Singapura | H104: 1064.6932 | I104: 0.0001043751705 | K104: 101 | L104: Zimbabwe | M104: 4772.268 | N104: 0.0002763770507 | O104: -4645.7028
A105: 102 | B105: Malásia | C105: 1501.2424 | D105: 0.0002124419631 | F105: 102 | G105: São Tomé e Príncipe | H105: 1053.4712 | I105: 0.0001032750431 | K105: 102 | L105: Suriname | M105: 4769.9158 | N105: 0.0002762408274 | O105: -4457.7222
A106: 103 | B106: Geórgia | C106: 1344.215 | D106: 0.0001902208953 | F106: 103 | G106: Noruega | H106: 1009.936 | I106: 9.900715266e-05 | K106: 103 | L106: Gana | M106: 4400.4448 | N106: 0.0002548435997 | O106: 1083.616
A107: 104 | B107: Reino Unido (Irlanda do Norte) pós-2020 | C107: 1341.9206 | D107: 0.000189896213 | F107: 104 | G107: Síria, República Árabe da | H107: 949.834 | I107: 9.311516754e-05 | K107: 104 | L107: Omã | M107: 4285.638 | N107: 0.0002481947768 | O107: 3325.7248
A108: 105 | B108: Albânia | C108: 1266.1722 | D108: 0.0001791769988 | F108: 105 | G108: Coreia, República da | H108: 937.599 | I108: 9.191573261e-05 | K108: 105 | L108: Singapura | M108: 4020.9472 | N108: 0.0002328657 | O108: 1891.5608
A109: 106 | B109: Costa Rica | C109: 1199.7232 | D109: 0.0001697737499 | F109: 106 | G109: El Salvador | H109: 727.8254 | I109: 7.135097718e-05 | K109: 106 | L109: Dominicana, República | M109: 3933.7284 | N109: 0.0002278145849 | O109: -515.742
A110: 107 | B110: Indonésia | C110: 1137.3976 | D110: 0.0001609540065 | F110: 107 | G110: Turquemenistão | H110: 720.6558 | I110: 7.06481191e-05 | K110: 107 | L110: Myanmar | M110: 3786.5344 | N110: 0.0002192901174 | O110: -2886.1156
A111: 108 | B111: Islândia | C111: 1133.5366 | D111: 0.0001604076334 | F111: 108 | G111: Chade | H111: 675.9004 | I111: 6.626060868e-05 | K111: 108 | L111: Quénia | M111: 3706.4946 | N111: 0.0002146547608 | O111: -2805.5498
A112: 109 | B112: Congo, República Democrática do | C112: 1102.9464 | D112: 0.0001560787907 | F112: 109 | G112: Timor-Leste | H112: 614.232 | I112: 6.021506451e-05 | K112: 109 | L112: Croácia | M112: 3585.5476 | N112: 0.0002076503396 | O112: -41.5776
A113: 110 | B113: Togo | C113: 886.836 | D113: 0.0001254968423 | F113: 110 | G113: Senegal | H113: 563.3582 | I113: 5.52277484e-05 | K113: 110 | L113: Nicarágua | M113: 3581.558 | N113: 0.0002074192893 | O113: -2747.4548
A114: 111 | B114: Panamá | C114: 853.2114 | D114: 0.0001207385994 | F114: 111 | G114: Argélia | H114: 547.1324 | I114: 5.3637083e-05 | K114: 111 | L114: Burquina Faso | M114: 3574.6308 | N114: 0.0002070181134 | O114: 123.1568
A115: 112 | B115: Equador | C115: 827.4356 | D115: 0.0001170910462 | F115: 112 | G115: Líbano | H115: 532.1362 | I115: 5.216695909e-05 | K115: 112 | L115: Sri Lanca | M115: 3466.8512 | N115: 0.0002007762577 | O115: -2680.7736
A116: 113 | B116: Ruanda | C116: 825.9096 | D116: 0.0001168751008 | F116: 113 | G116: Omã | H116: 479.9566 | I116: 4.705163136e-05 | K116: 113 | L116: Benim | M116: 3389.9546 | N116: 0.0001963229338 | O116: -245.1214
A117: 114 | B117: Honduras | C117: 813.7022 | D117: 0.0001151476222 | F117: 114 | G117: Emirados Árabes Unidos | H117: 455.3414 | I117: 4.46385271e-05 | K117: 114 | L117: Malavi | M117: 3260.7796 | N117: 0.0001888420032 | O117: -3247.5728
A118: 115 | B118: Bermudas | C118: 793.1712 | D118: 0.0001122422647 | F118: 115 | G118: Belarus | H118: 370.9342 | I118: 3.636382797e-05 | K118: 115 | L118: Timor-Leste | M118: 3086.1518 | N118: 0.000178728758 | O118: 1857.6878
A119: 116 | B119: Etiópia | C119: 744.4088 | D119: 0.0001053418601 | F119: 116 | G119: Guiné-Bissau | H119: 361.4462 | I119: 3.543368996e-05 | K119: 116 | L119: Líbano | M119: 3051.887 | N119: 0.0001767443757 | O119: 1987.6146
A120: 117 | B120: Tunísia | C120: 725.611 | D120: 0.000102681769 | F120: 117 | G120: Usbequistão | H120: 308.2694 | I120: 3.022060363e-05 | K120: 117 | L120: Belarus | M120: 2826.8628 | N120: 0.0001637125165 | O120: 2084.9944
A121: 118 | B121: Burundi | C121: 677.0954 | D121: 9.581628921e-05 | F121: 118 | G121: Guiné | H121: 302.1342 | I121: 2.961915098e-05 | K121: 118 | L121: Guiné | M121: 2572.4296 | N121: 0.0001489774895 | O121: 1968.1612
A122: 119 | B122: Iémen | C122: 670.7886 | D122: 9.492380911e-05 | F122: 119 | G122: Geórgia | H122: 294.5626 | I122: 2.887688359e-05 | K122: 119 | L122: Serra Leoa | M122: 2499.2974 | N122: 0.0001447421738 | O122: -1496.3846
A123: 120 | B123: Paraguai | C123: 644.6266 | D123: 9.122160443e-05 | F123: 120 | G123: Bolívia | H123: 281.6492 | I123: 2.761094301e-05 | K123: 120 | L123: Irão, República Islâmica do | M123: 2440.1832 | N123: 0.0001413186845 | O123: 2029.2332
A124: 121 | B124: Namíbia | C124: 633.8792 | D124: 8.970073161e-05 | F124: 121 | G124: Bangladesh | H124: 280.7044 | I124: 2.751832134e-05 | K124: 121 | L124: Congo | M124: 2383.877 | N124: 0.0001380578154 | O124: 1985.2674
A125: 122 | B125: Azerbaijão | C125: 594.9756 | D125: 8.419545335e-05 | F125: 122 | G125: Irão, República Islâmica do | H125: 205.475 | I125: 2.014335036e-05 | K125: 122 | L125: Panamá | M125: 2366.8806 | N125: 0.0001370735004 | O125: -660.4578
A126: 123 | B126: Arménia | C126: 559.6906 | D126: 7.920224594e-05 | F126: 123 | G126: Congo | H126: 199.3048 | I126: 1.953846656e-05 | K126: 123 | L126: Congo, República Democrática do | M126: 2329.6366 | N126: 0.0001349165832 | O126: -123.7438
A127: 124 | B127: Cazaquistão | C127: 531.8816 | D127: 7.526697303e-05 | F127: 124 | G127: Zâmbia | H127: 199.3012 | I127: 1.953811364e-05 | K127: 124 | L127: Venezuela | M127: 2213.7304 | N127: 0.0001282040906 | O127: 1903.808
A128: 125 | B128: Aruba | C128: 522.985 | D128: 7.400800834e-05 | F128: 125 | G128: Nigéria | H128: 197.6194 | I128: 1.937324158e-05 | K128: 125 | L128: Seychelles | M128: 2103.9052 | N128: 0.0001218437678 | O128: 2103.9052
A129: 126 | B129: Serra Leoa | C129: 501.4564 | D129: 7.096147965e-05 | F129: 126 | G129: Islândia | H129: 194.2478 | I129: 1.904271319e-05 | K129: 126 | L129: Gabão | M129: 2079.9016 | N129: 0.0001204536439 | O129: 2079.4016
A130: 127 | B130: Guatemala | C130: 491.8628 | D130: 6.960388196e-05 | F130: 127 | G130: Venezuela | H130: 154.9612 | I130: 1.519132617e-05 | K130: 127 | L130: Togo | M130: 2010.1374 | N130: 0.0001164133796 | O130: -236.4654
A131: 128 | B131: Uganda | C131: 485.556 | D131: 6.871140185e-05 | F131: 128 | G131: Cabo Verde | H131: 126.7382 | I131: 1.242453811e-05 | K131: 128 | L131: Sudão | M131: 1881.5594 | N131: 0.0001089670232 | O131: 1848.4942
A132: 129 | B132: São Bartolomeu | C132: 472.0258 | D132: 6.679673288e-05 | F132: 129 | G132: Azerbaijão | H132: 124.8946 | I132: 1.224380429e-05 | K132: 129 | L132: Bangladesh | M132: 1839.639 | N132: 0.000106539281 | O132: 1278.2302
A133: 130 | B133: Mauritânia | C133: 470.2498 | D133: 6.654540976e-05 | F133: 130 | G133: Albânia | H133: 104.056 | I133: 1.020093182e-05 | K133: 130 | L133: Guiné Equatorial | M133: 1818.2522 | N133: 0.0001053007041 | O133: 1818.2522
A134: 131 | B134: Barém | C134: 469.46 | D134: 6.643364455e-05 | F134: 131 | G134: Namíbia | H134: 69.6464 | I134: 6.827652205e-06 | K134: 131 | L134: Madagáscar | M134: 1665.147 | N134: 9.643390038e-05 | O134: -1405.8322
A135: 132 | B135: Gâmbia | C135: 455.249 | D135: 6.442263505e-05 | F135: 132 | G135: Tajiquistão | H135: 59.4122 | I135: 5.824361896e-06 | K135: 132 | L135: Geórgia | M135: 1638.7776 | N135: 9.490676548e-05 | O135: 1049.6524
A136: 133 | B136: Quénia | C136: 450.4724 | D136: 6.374669472e-05 | F136: 133 | G136: Iémen | H136: 45.76 | I136: 4.485994465e-06 | K136: 133 | L136: Laos, República Democrática Popular do | M136: 1584.7624 | N136: 9.177857535e-05 | O136: -1555.988
A137: 134 | B137: Myanmar | C137: 450.2094 | D137: 6.370947739e-05 | F137: 134 | G137: Libéria | H137: 38.8276 | I137: 3.806389831e-06 | K137: 134 | L137: Catar | M137: 1531.2716 | N137: 8.868075487e-05 | O137: 1499.1872
A138: 135 | B138: Kosovo | C138: 418.4652 | D138: 5.921733131e-05 | F138: 135 | G138: Aruba | H138: 38.029 | I138: 3.728100601e-06 | K138: 135 | L138: Albânia | M138: 1370.2282 | N138: 7.935422503e-05 | O138: 1162.1162
A139: 136 | B139: Nicarágua | C139: 417.0516 | D139: 5.901729169e-05 | F139: 136 | G139: São Marino | H139: 32.7702 | I139: 3.212564157e-06 | K139: 136 | L139: Islândia | M139: 1327.7844 | N139: 7.689617106e-05 | O139: 939.2888
A140: 137 | B140: Camboja | C140: 401.4318 | D140: 5.680692181e-05 | F140: 137 | G140: Botswana | H140: 29.9908 | I140: 2.94009097e-06 | K140: 137 | L140: El Salvador | M140: 1020.3732 | N140: 5.909302153e-05 | O140: -435.2776
A141: 138 | B141: Sri Lanca | C141: 393.0388 | D141: 5.561922195e-05 | F141: 138 | G141: Jordânia | H141: 29.4906 | I141: 2.891054816e-06 | K141: 138 | L141: Ruanda | M141: 826.0866 | N141: 4.784127341e-05 | O141: 825.7326
A142: 139 | B142: Bolívia | C142: 391.1324 | D142: 5.534944582e-05 | F142: 139 | G142: Bósnia-Herzegovina | H142: 27.8982 | I142: 2.734946914e-06 | K142: 139 | L142: Bermudas | M142: 793.8604 | N142: 4.59749528e-05 | O142: 792.482
A143: 140 | B143: Tanzânia, República Unida da | C143: 370.967 | D143: 5.24958246e-05 | F143: 140 | G143: Papuásia-Nova Guiné | H143: 25.837 | I143: 2.532881097e-06 | K143: 140 | L143: Turquemenistão | M143: 732.4956 | N143: 4.242112421e-05 | O143: -708.816
A144: 141 | B144: São Martinho (parte holandesa) | C144: 349.244 | D144: 4.942178622e-05 | F144: 141 | G144: Arábia Saudita | H144: 23.1054 | I144: 2.265093892e-06 | K144: 141 | L144: Azerbaijão | M144: 719.8702 | N144: 4.168994759e-05 | O144: 470.081
A145: 142 | B145: Comores | C145: 311.607 | D145: 4.409574549e-05 | F145: 142 | G145: Quirguizistão | H145: 17.4752 | I145: 1.713147956e-06 | K145: 142 | L145: Iémen | M145: 716.5486 | N145: 4.149758328e-05 | O145: 625.0286
A146: 143 | B146: Libéria | C146: 294.774 | D146: 4.171369475e-05 | F146: 143 | G146: Sudão | H146: 16.5326 | I146: 1.62074196e-06 | K146: 143 | L146: Namíbia | M146: 703.5256 | N146: 4.074338039e-05 | O146: 564.2328
A147: 144 | B147: Somália | C147: 292.8146 | D147: 4.143641856e-05 | F147: 144 | G147: Macau | H147: 16.4972 | I147: 1.617271588e-06 | K147: 144 | L147: Burundi | M147: 677.2094 | N147: 3.921932647e-05 | O147: 676.9814
A148: 145 | B148: El Salvador | C148: 292.5478 | D148: 4.139866349e-05 | F148: 145 | G148: Catar | H148: 16.0422 | I148: 1.57266653e-06 | K148: 145 | L148: Chade | M148: 675.9044 | N148: 3.914374982e-05 | O148: -675.8964
A149: 146 | B149: Jamaica | C149: 276.7996 | D149: 3.917012363e-05 | F149: 146 | G149: Arménia | H149: 15.34 | I149: 1.50382769e-06 | K149: 146 | L149: Bolívia | M149: 672.7816 | N149: 3.896289865e-05 | O149: 109.4832
A150: 147 | B150: Macedónia, Antiga República jugoslava da | C150: 272.7114 | D150: 3.859159931e-05 | F150: 147 | G150: Curaçau | H150: 12.9632 | I150: 1.270822628e-06 | K150: 147 | L150: Arménia | M150: 575.0306 | N150: 3.330183077e-05 | O150: 544.3506
A151: 148 | B151: Paquistão | C151: 266.8506 | D151: 3.776223301e-05 | F151: 148 | G151: Iraque | H151: 12.264 | I151: 1.202277887e-06 | K151: 148 | L151: Aruba | M151: 561.014 | N151: 3.249008537e-05 | O151: 484.956
A152: 149 | B152: Antígua e Barbuda | C152: 264.4064 | D152: 3.741635239e-05 | F152: 149 | G152: Jamaica | H152: 11.1226 | I152: 1.090382912e-06 | K152: 149 | L152: Cazaquistão | M152: 537.7376 | N152: 3.114207583e-05 | O152: 526.0256
A153: 150 | B153: Argentina | C153: 237.3284 | D153: 3.358452385e-05 | F153: 150 | G153: Kosovo | H153: 8.3722 | I153: 8.207526849e-07 | K153: 150 | L153: Barém | M153: 473.8044 | N153: 2.743950312e-05 | O153: 465.1156
A154: 151 | B154: Curaçau | C154: 224.0074 | D154: 3.169945893e-05 | F154: 151 | G154: Líbia, Jamahira Árabe da | H154: 5.95 | I154: 5.832969202e-07 | K154: 151 | L154: São Bartolomeu | M154: 472.3088 | N154: 2.735288822e-05 | O154: 471.7428
A155: 152 | B155: Moldava, República de | C155: 201.388 | D155: 2.849857029e-05 | F155: 152 | G155: Cazaquistão | H155: 5.856 | I155: 5.740818091e-07 | K155: 152 | L155: Mauritânia | M155: 471.8238 | N155: 2.732480035e-05 | O155: 468.6758
A156: 153 | B156: Haiti | C156: 195.7344 | D156: 2.769852502e-05 | F156: 153 | G156: Andorra | H156: 4.7264 | I156: 4.633436241e-07 | K156: 153 | L156: Gâmbia | M156: 455.249 | N156: 2.636490155e-05 | O156: 455.249
A157: 154 | B157: Ceuta e Melilha | C157: 191.5534 | D157: 2.710686851e-05 | F157: 154 | G157: São Cristovão e Nevis | H157: 4.4378 | I157: 4.350512726e-07 | K157: 154 | L157: Kosovo | M157: 426.8374 | N157: 2.471949642e-05 | O157: 410.093
A158: 155 | B158: Suriname | C158: 156.0968 | D158: 2.208937785e-05 | F158: 155 | G158: Afeganistão | H158: 4.3662 | I158: 4.28032103e-07 | K158: 155 | L158: São Martinho (parte holandesa) | M158: 349.244 | N158: 2.022581856e-05 | O158: 349.244
A159: 156 | B159: Trindade e Tobago | C159: 142.2682 | D159: 2.013248206e-05 | F159: 156 | G159: Barém | H159: 4.3444 | I159: 4.258949815e-07 | K159: 156 | L159: Usbequistão | M159: 348.6042 | N159: 2.018876573e-05 | O159: -267.9346
A160: 157 | B160: Nova Caledónia | C160: 140.1192 | D160: 1.982837543e-05 | F160: 157 | G160: Nepal | H160: 2.4222 | I160: 2.374557647e-07 | K160: 157 | L160: Zâmbia | M160: 336.5272 | N160: 1.948934868e-05 | O160: -62.0752
A161: 158 | B161: Zâmbia | C161: 137.226 | D161: 1.941895648e-05 | F161: 158 | G161: Lesoto | H161: 1.7136 | I161: 1.67989513e-07 | K161: 158 | L161: Libéria | M161: 333.6016 | N161: 1.931991798e-05 | O161: 255.9464
A162: 159 | B162: Polinésia Francesa | C162: 133.1554 | D162: 1.884292275e-05 | F162: 159 | G162: Liechtenstein | H162: 1.6922 | I162: 1.658916048e-07 | K162: 159 | L162: Comores | M162: 311.607 | N162: 1.804614151e-05 | O162: 311.607
A163: 160 | B163: Madagáscar | C163: 129.6574 | D163: 1.834791809e-05 | F163: 160 | G163: Mauritânia | H163: 1.574 | I163: 1.543040928e-07 | K163: 160 | L163: Somália | M163: 292.8146 | N163: 1.695781452e-05 | O163: 292.8146
A164: 161 | B164: Maldivas | C164: 127.1794 | D164: 1.799725441e-05 | F164: 161 | G164: Fiji, Ilhas | H164: 1.3646 | I164: 1.337759626e-07 | K164: 161 | L164: Jamaica | M164: 287.9222 | N164: 1.667448024e-05 | O164: 265.677
A165: 162 | B165: Niger | C165: 113.05 | D165: 1.599779218e-05 | F165: 162 | G165: Bermudas | H165: 0.6892 | I165: 6.756440964e-08 | K165: 162 | L165: Antígua e Barbuda | M165: 264.426 | N165: 1.531374139e-05 | O165: 264.3868
A166: 163 | B166: Liechtenstein | C166: 106.2456 | D166: 1.503489632e-05 | F166: 163 | G166: Território Palestiniano Ocupado | H166: 0.4852 | I166: 4.756565809e-08 | K166: 163 | L166: Curaçau | M166: 236.9706 | N166: 1.372371282e-05 | O166: 211.0442
A167: 164 | B167: Centro-Africana, República | C167: 83.0308 | D167: 1.174975217e-05 | F167: 164 | G167: Montenegro | H167: 0.3086 | I167: 3.025301337e-08 | K167: 164 | L167: Haiti | M167: 195.7408 | N167: 1.133596542e-05 | O167: 195.728
A168: 165 | B168: Jibuti | C168: 77.3086 | D168: 1.093999926e-05 | F168: 165 | G168: São Bartolomeu | H168: 0.283 | I168: 2.774336612e-08 | K168: 165 | L168: Ceuta e Melilha | M168: 191.5534 | N168: 1.109345991e-05 | O168: 191.5534
A169: 166 | B169: Nepal | C169: 76.6542 | D169: 1.084739462e-05 | F169: 166 | G169: Gabão | H169: 0.25 | I169: 2.450827396e-08 | K169: 166 | L169: Trindade e Tobago | M169: 142.2786 | N169: 8.239801254e-06 | O169: 142.2578
A170: 167 | B170: Zimbabwe | C170: 63.2826 | D170: 8.955169247e-06 | F170: 167 | G170: Ruanda | H170: 0.177 | I170: 1.735185796e-08 | K170: 167 | L170: Nova Caledónia | M170: 140.1192 | N170: 8.114743608e-06 | O170: 140.1192
A171: 168 | B171: Caimão, Ilhas | C171: 51.4562 | D171: 7.281606315e-06 | F171: 168 | G171: Barbados | H171: 0.1378 | I171: 1.35089606e-08 | K171: 168 | L171: Polinésia Francesa | M171: 133.1554 | N171: 7.711448046e-06 | O171: 133.1554
A172: 169 | B172: Bósnia-Herzegovina | C172: 50.6168 | D172: 7.162822178e-06 | F172: 169 | G172: Niger | H172: 0.1252 | I172: 1.22737436e-08 | K172: 169 | L172: Maldivas | M172: 127.183 | N172: 7.365567576e-06 | O172: 127.1758
A173: 170 | B173: Montenegro | C173: 46.101 | D173: 6.523787857e-06 | F173: 170 | G173: Burundi | H173: 0.114 | I173: 1.117577292e-08 | K173: 170 | L173: Niger | M173: 113.1752 | N173: 6.554331817e-06 | O173: 112.9248
A174: 171 | B174: Bahamas | C174: 42.9652 | D174: 6.080038395e-06 | F174: 171 | G174: Oceano Indico, Território Britânico do | H174: 0.098 | I174: 9.607243391e-09 | K174: 171 | L174: Liechtenstein | M174: 107.9378 | N174: 6.251017509e-06 | O174: 104.5534
A175: 172 | B175: Usbequistão | C175: 40.3348 | D175: 5.707808474e-06 | F175: 172 | G175: São Vicente e Granadinas | H175: 0.0416 | I175: 4.078176786e-09 | K175: 172 | L175: Centro-Africana, República | M175: 83.0308 | N175: 4.808574796e-06 | O175: 83.0308
A176: 173 | B176: Mongólia | C176: 30.8452 | D176: 4.364927902e-06 | F176: 173 | G176: Antígua e Barbuda | H176: 0.0196 | I176: 1.921448678e-09 | K176: 173 | L176: Nepal | M176: 79.0764 | N176: 4.579563054e-06 | O176: 74.232
A177: 174 | B177: Afeganistão | C177: 18.9718 | D177: 2.684713964e-06 | F177: 174 | G177: Santa Sé (Cidade Estado do Vaticano) | H177: 0.018 | I177: 1.764595725e-09 | K177: 174 | L177: Bósnia-Herzegovina | M177: 78.515 | N177: 4.547050614e-06 | O177: 22.7186
A178: 175 | B178: Guiana | C178: 18.2434 | D178: 2.581637522e-06 | F178: 175 | G178: Mongólia | H178: 0.0112 | I178: 1.097970673e-09 | K178: 175 | L178: Jibuti | M178: 77.3086 | N178: 4.477184195e-06 | O178: 77.3086
A179: 176 | B179: Turcas e Caicos, Ilhas | C179: 18.0666 | D179: 2.556618418e-06 | F179: 176 | G179: Trindade e Tobago | H179: 0.0104 | I179: 1.019544197e-09 | K179: 176 | L179: Tajiquistão | M179: 59.4122 | N179: 3.440747379e-06 | O179: -59.4122
A180: 177 | B180: Laos, República Democrática Popular do | C180: 14.3872 | D180: 2.035943703e-06 | F180: 177 | G180: Haiti | H180: 0.0064 | I180: 6.274118133e-10 | K180: 177 | L180: Caimão, Ilhas | M180: 51.4562 | N180: 2.979990394e-06 | O180: 51.4562
A181: 178 | B181: Turquemenistão | C181: 11.8398 | D181: 1.675459176e-06 | F181: 178 | G181: Maldivas | H181: 0.0036 | I181: 3.52919145e-10 | K181: 178 | L181: Montenegro | M181: 46.4096 | N181: 2.687725914e-06 | O181: 45.7924
A182: 179 | B182: Barbados | C182: 11.7888 | D182: 1.668242127e-06 | F182: 179 | G182: Anguila | H182: 0 | I182: 0 | K182: 179 | L182: Bahamas | M182: 42.9652 | N182: 2.488249876e-06 | O182: 42.9652
A183: 180 | B183: Virgens Britânicas, Ilhas | C183: 9.9272 | D183: 1.404805684e-06 | F183: 180 | G183: Antárctica | H183: 0 | I183: 0 | K183: 180 | L183: São Marino | M183: 32.7902 | N183: 1.898983621e-06 | O183: -32.7502
A184: 181 | B184: Fiji, Ilhas | C184: 8.1268 | D184: 1.150029699e-06 | F184: 181 | G184: Antilhas Holandesas | H184: 0 | I184: 0 | K184: 181 | L184: Mongólia | M184: 30.8564 | N184: 1.786991181e-06 | O184: 30.834
A185: 182 | B185: Santa Lúcia | C185: 7.138 | D185: 1.010103853e-06 | F185: 182 | G185: Bahamas | H185: 0 | I185: 0 | K185: 182 | L185: Botswana | M185: 30.0852 | N185: 1.742328563e-06 | O185: -29.8964
A186: 183 | B186: Brunei Darussalam | C186: 6.98 | D186: 9.877451518e-07 | F186: 183 | G186: Bonaire, Santo Eustáquio e Saba | H186: 0 | I186: 0 | K186: 183 | L186: Papuásia-Nova Guiné | M186: 28.7226 | N186: 1.663416111e-06 | O186: -22.9514
A187: 184 | B187: Malavi | C187: 6.6034 | D187: 9.344521971e-07 | F187: 184 | G187: Bouvet, Ilha | H187: 0 | I187: 0 | K187: 184 | L187: Afeganistão | M187: 23.338 | N187: 1.351576988e-06 | O187: 14.6056
A188: 185 | B188: Guam | C188: 6.5774 | D188: 9.307729171e-07 | F188: 185 | G188: Brunei Darussalam | H188: 0 | I188: 0 | K188: 185 | L188: Quirguizistão | M188: 22.1318 | N188: 1.281722152e-06 | O188: -12.8186
A189: 186 | B189: São Vicente e Granadinas | C189: 5.6654 | D189: 8.017150979e-07 | F189: 186 | G189: Butão | H189: 0 | I189: 0 | K189: 186 | L189: Turcas e Caicos, Ilhas | M189: 18.0666 | N189: 1.046293633e-06 | O189: 18.0666
A190: 187 | B190: Quirguizistão | C190: 4.6566 | D190: 6.589590364e-07 | F190: 187 | G190: Caimão, Ilhas | H190: 0 | I190: 0 | K190: 187 | L190: Barbados | M190: 11.9266 | N190: 6.907069203e-07 | O190: 11.651
A191: 188 | B191: Menores distantes dos Estados Unidos, lhas | C191: 4.5542 | D191: 6.444683339e-07 | F191: 188 | G191: Centro-Africana, República | H191: 0 | I191: 0 | K191: 188 | L191: Virgens Britânicas, Ilhas | M191: 9.9272 | N191: 5.749153774e-07 | O191: 9.9272
A192: 189 | B192: Sudão do Sul | C192: 3.771 | D192: 5.336371014e-07 | F192: 189 | G192: Ceuta | H192: 0 | I192: 0 | K192: 189 | L192: Fiji, Ilhas | M192: 9.4914 | N192: 5.496768286e-07 | O192: 6.7622
A193: 190 | B193: Bonaire, Santo Eustáquio e Saba | C193: 3.1276 | D193: 4.425890741e-07 | F193: 190 | G193: Ceuta e Melilha | H193: 0 | I193: 0 | K193: 190 | L193: Santa Lúcia | M193: 7.138 | N193: 4.133840321e-07 | O193: 7.138
A194: 191 | B194: Marianas do Norte, Ilhas | C194: 2.9244 | D194: 4.138340863e-07 | F194: 191 | G194: Christmas, Ilha | H194: 0 | I194: 0 | K194: 191 | L194: Brunei Darussalam | M194: 6.98 | N194: 4.042337551e-07 | O194: 6.98
A195: 192 | B195: Papuásia-Nova Guiné | C195: 2.8856 | D195: 4.083434685e-07 | F195: 192 | G195: Cocos (Keeling), Ilhas | H195: 0 | I195: 0 | K195: 192 | L195: Guam | M195: 6.5774 | N195: 3.809179228e-07 | O195: 6.5774
A196: 193 | B196: Belize | C196: 2.1806 | D196: 3.08578378e-07 | F196: 193 | G196: Comores | H196: 0 | I196: 0 | K196: 193 | L196: São Vicente e Granadinas | M196: 5.707 | N196: 3.30510321e-07 | O196: 5.6238
A197: 194 | B197: Melilha | C197: 1.3464 | D197: 1.905300963e-07 | F197: 194 | G197: Cook, Ilhas | H197: 0 | I197: 0 | K197: 194 | L197: Menores distantes dos Estados Unidos, lhas | M197: 4.5542 | N197: 2.637480469e-07 | O197: 4.5542
A198: 195 | B198: Granada | C198: 0.6866 | D198: 9.716129244e-08 | F198: 195 | G198: Coreia, República Popular Democrática da | H198: 0 | I198: 0 | K198: 195 | L198: São Cristovão e Nevis | M198: 4.4378 | N198: 2.570069568e-07 | O198: -4.4378
A199: 196 | B199: Virgens dos Estados Unidos, Ilhas | C199: 0.295 | D199: 4.174567619e-08 | F199: 196 | G199: Domínica | H199: 0 | I199: 0 | K199: 196 | L199: Sudão do Sul | M199: 3.771 | N199: 2.183904714e-07 | O199: 3.771
A200: 197 | B200: Botswana | C200: 0.0944 | D200: 1.335861638e-08 | F200: 197 | G200: Eritreia | H200: 0 | I200: 0 | K200: 197 | L200: Bonaire, Santo Eustáquio e Saba | M200: 3.1276 | N200: 1.811291537e-07 | O200: 3.1276
... 58 more rows

Sheet 2A
A1: Parceiros comerciais de Portugal - União Europeia vs. Países Terceiros (média 2018-2022 em milhões de euros) produtos agrícolas e agroalimentares, do mar e da floresta
A2: Exportações | F2: Importações | K2: Trocas comerciais (total e saldo)
A3: P | B3: Grupo de Países | C3: média quinquénio | D3: % do Total | F3: P | G3: Grupo de Países | H3: média quinquénio | I3: % do Total | K3: P | L3: Grupo de Países | M3: média quinquénio | N3: % do Total | O3: Saldo (exp-imp)
A4: 1 | B4: União Europeia | C4: 8690.064715 | D4: 0.6705031383 | F4: 1 | G4: União Europeia | H4: 11673.13485 | I4: 0.7803993275 | K4: 1 | L4: União Europeia | M4: 20363.19956 | N4: 0.7293824229 | O4: -2983.070133
A5: 2 | B5: Países Terceiros | C5: 4271.031018 | D5: 0.3295418153 | F5: 2 | G5: Países Terceiros | H5: 3284.764829 | I5: 0.2196006725 | K5: 2 | L5: Países Terceiros | M5: 7555.795847 | N5: 0.2706384458 | O5: 986.2661894
B6: Outros | C6: 0 | D6: -4.495366773e-05 | G6: Outros | H6: 0 | I6: 0 | L6: Outros | M6: 0 | N6: -2.086875799e-05 | O6: 0
B7: Total | C7: 12960.51311 | D7: 1 | G7: Total | H7: 14957.89968 | I7: 1 | L7: Total | M7: 27918.41279 | N7: 1 | O7: -1997.386566
F27: valores em milhões de euros
A28: Nota: Outros = Países não determinados, abastecimentos de bordo, etc.
A29: Fonte: GPP a partir de dados INE/Comércio Internacional (2021 provisórios; 2022 preliminares) | M29: 2023-03-23

Sheet 3
A1: Principais produtos agrícolas e agroalimentares, do mar e da floresta transacionados entre Portugal e Polónia em 2018-2022 (NC a 2 e 4 dígitos) em milhões de euros
AC4: P | AE4: Cód.NC | AF4: Descritivo | AG4: Média export quinquénio | AH4: % do total | AI4: % acumulada | AN4: P | AO4: NC | AP4: Exportações | AQ4: 2018 | AR4: 2019 | AS4: 2020 | AT4: 2021 | AU4: 2022 | AV4: média quinquénio
AC5: 1 | AD5: º | AE5: 47 | AF5: Pastas de madeira | AG5: 83.1233912 | AH5: 0.3306676466 | AN5: 1º | AO5: 47 | AP5: Pastas de madeira | AQ5: 81.921498 | AR5: 67.313297 | AS5: 59.130959 | AT5: 96.670524 | AU5: 110.580678 | AV5: 83.1233912
AC6: 2 | AD6: º | AE6: 08 | AF6: Frutas | AG6: 33.909853 | AH6: 0.134894536 | AN6: 2º | AO6: 08 | AP6: Frutas | AQ6: 61.538475 | AR6: 43.585579 | AS6: 28.9495 | AT6: 16.889874 | AU6: 18.585837 | AV6: 33.909853
AC7: 3 | AD7: º | AE7: 22 | AF7: Bebidas, líquidos alcoólicos e vinagres | AG7: 27.8174846 | AH7: 0.1106588896 | AI7: 0.5762210722 | AN7: 3º | AO7: 22 | AP7: Bebidas, líquidos alcoólicos e vinagres | AQ7: 23.567377 | AR7: 23.03147 | AS7: 26.740699 | AT7: 31.961919 | AU7: 33.785958 | AV7: 27.8174846
AC8: 4 | AD8: º | AE8: 48 | AF8: Papel e cartão | AG8: 16.9687184 | AH8: 0.06750213266 | AO8: - | AP8: Outros | AQ8: 84.428243 | AR8: 88.574933 | AS8: 85.550734 | AT8: 122.690188 | AU8: 151.40465 | AV8: 106.5297496
AC9: 5 | AD9: º | AE9: 20 | AF9: Preparações de produtos vegetais | AG9: 12.3929404 | AH9: 0.04929953383 | AP9: Total | AQ9: 251.455593 | AR9: 222.505279 | AS9: 200.371892 | AT9: 268.212505 | AU9: 314.357123 | AV9: 251.3804784
AC10: 6 | AD10: º | AE10: 15 | AF10: Gorduras e óleos animais ou vegetais | AG10: 10.4822692 | AH10: 0.04169881952
AC11: 7 | AD11: º | AE11: 21 | AF11: Preparações alimentícias diversas | AG11: 8.8589436 | AH11: 0.03524117567
AC12: 8 | AD12: º | AE12: 07 | AF12: Produtos hortícolas | AG12: 8.1006376 | AH12: 0.03222460889
AC13: 9 | AD13: º | AE13: 45 | AF13: Cortiça e suas obras | AG13: 7.870268 | AH13: 0.03130819088
AC14: 10 | AD14: º | AE14: 19a | AF14: Preparações à base de cereais (exc. NC 19022010) (a) | AG14: 7.8414844 | AH14: 0.03119368875 | AI14: 0.8646892224
AE15: - | AF15: Outros | AG15: 34.014488 | AH15: 0.1353107776
AE16: Total | AG16: 251.3804784 | AH16: 1
AC38: P | AE38: Cód.NC | AF38: Descritivo | AG38: Média import quinquénio | AH38: % do total | AI38: % acumulada | AN38: P | AO38: NC | AP38: Importações | AQ38: 2018 | AR38: 2019 | AS38: 2020 | AT38: 2021 | AU38: 2022 | AV38: média quinquénio
AC39: 1 | AD39: º | AE39: 24 | AF39: Tabaco | AG39: 49.169036 | AH39: 0.2372451501 | AN39: 1º | AO39: 24 | AP39: Tabaco | AQ39: 30.437375 | AR39: 26.853653 | AS39: 59.127258 | AT39: 58.733584 | AU39: 70.69331 | AV39: 49.169036
AC40: 2 | AD40: º | AE40: 02 | AF40: Carnes e miudezas | AG40: 46.3319532 | AH40: 0.2235559629 | AN40: 2º | AO40: 02 | AP40: Carnes e miudezas | AQ40: 39.142752 | AR40: 44.134153 | AS40: 42.142946 | AT40: 44.067997 | AU40: 62.171918 | AV40: 46.3319532
AC41: 3 | AD41: º | AE41: 10 | AF41: Cereais | AG41: 18.3648396 | AH41: 0.08861205103 | AI41: 0.549413164 | AN41: 3º | AO41: 10 | AP41: Cereais | AQ41: 5.130167 | AR41: 2.748669 | AS41: 17.951148 | AT41: 24.0481 | AU41: 41.946114 | AV41: 18.3648396
AC42: 4 | AD42: º | AE42: 21 | AF42: Preparações alimentícias diversas | AG42: 16.035653 | AH42: 0.07737351008 | AO42: - | AP42: Outros | AQ42: 79.864057 | AR42: 86.356219 | AS42: 81.672677 | AT42: 98.895526 | AU42: 120.131927 | AV42: 93.3840812
AC43: 5 | AD43: º | AE43: 48 | AF43: Papel e cartão | AG43: 14.1569928 | AH43: 0.06830880071 | AP43: Total | AQ43: 154.574351 | AR43: 160.092694 | AS43: 200.894029 | AT43: 225.745207 | AU43: 294.943269 | AV43: 207.24991
AC44: 6 | AD44: º | AE44: 19a | AF44: Preparações à base de cereais (exc. NC 19022010) (a) | AG44: 11.8263674 | AH44: 0.05706331742
AC45: 7 | AD45: º | AE45: 44 | AF45: Madeira e suas obras | AG45: 7.228847 | AH45: 0.03487985592
AC46: 8 | AD46: º | AE46: 08 | AF46: Frutas | AG46: 6.2847374 | AH46: 0.03032443971
AC47: 9 | AD47: º | AE47: 18 | AF47: Cacau e suas preparações | AG47: 6.0177078 | AH47: 0.02903599717
AC48: 10 | AD48: º | AE48: 23a | AF48: Resíduos indústrias alimentares; alimentos p/ animais (exc. NC 230120) (a) | AG48: 4.5952624 | AH48: 0.02217256644 | AI48: 0.8685716515
AE49: - | AF49: Outros | AG49: 27.2385134 | AH49: 0.1314283485
AE50: Total | AG50: 207.24991 | AH50: 1
AC62: DESAGREGAÇÃO A 4 DÍGITOS | AN62: DESAGREGAÇÃO A 4 DÍGITOS
AC64: P | AE64: Cód.NC | AF64: Descritivo | AG64: Média export quinquénio | AH64: % do total | AI64: % acumulada | AN64: P | AO64: NC | AP64: Exportações | AQ64: 2018 | AR64: 2019 | AS64: 2020 | AT64: 2021 | AU64: 2022 | AV64: média quinquénio
AC65: 1 | AD65: º | AE65: 4703 | AF65: Pastas químicas de madeira, à soda ou ao sulfato | AG65: 83.1157138 | AH65: 0.3306371057 | AN65: 1º | AO65: 4703 | AP65: Pastas químicas de madeira, à soda ou ao sulfato | AQ65: 81.911805 | AR65: 67.284603 | AS65: 59.130959 | AT65: 96.670524 | AU65: 110.580678 | AV65: 83.1157138
AC66: 2 | AD66: º | AE66: 2204 | AF66: Vinhos de uvas frescas | AG66: 27.1634608 | AH66: 0.1080571609 | AN66: 2º | AO66: 2204 | AP66: Vinhos de uvas frescas | AQ66: 23.248605 | AR66: 22.449454 | AS66: 25.91574 | AT66: 31.20654 | AU66: 32.996965 | AV66: 27.1634608
AC67: 3 | AD67: º | AE67: 4802 | AF67: Papel e cartão p/ escrita, etc. | AG67: 10.6597368 | AH67: 0.0424047916 | AI67: 0.4810990582 | AN67: 3º | AO67: 4802 | AP67: Papel e cartão p/ escrita, etc. | AQ67: 6.816724 | AR67: 5.998491 | AS67: 9.161796 | AT67: 7.640725 | AU67: 23.680948 | AV67: 10.6597368
AC68: 4 | AD68: º | AE68: 0805 | AF68: Citrinos, frescos ou secos | AG68: 10.580218 | AH68: 0.04208846314 | AN68: - | AO68: - | AP68: Outros | AQ68: 139.478459 | AR68: 126.772731 | AS68: 106.163397 | AT68: 132.694716 | AU68: 147.098532 | AV68: 130.441567
AC69: 5 | AD69: º | AE69: 2002 | AF69: Tomates preparados | AG69: 9.4436558 | AH69: 0.03756718048 | AP69: Total | AQ69: 251.455593 | AR69: 222.505279 | AS69: 200.371892 | AT69: 268.212505 | AU69: 314.357123 | AV69: 251.3804784
AC70: 6 | AD70: º | AE70: 1509 | AF70: Azeite (processos mecânicos ou físicos) | AG70: 8.0877632 | AH70: 0.0321733941
AC71: 7 | AD71: º | AE71: 4504 | AF71: Cortiça aglomerada e suas obras | AG71: 7.4547318 | AH71: 0.02965517389
AC72: 8 | AD72: º | AE72: 1701 | AF72: Açúcares (cana/beterraba); sacarose pura | AG72: 7.0668638 | AH72: 0.02811222194
AC73: 9 | AD73: º | AE73: 1905 | AF73: Produtos de padaria, pastelaria, etc. | AG73: 6.8139504 | AH73: 0.02710612393
AC74: 10 | AD74: º | AE74: 0804 | AF74: Tâmaras, figos, ananases, abacates, goiabas, mangas | AG74: 6.1722562 | AH74: 0.02455344281 | AI74: 0.7023550585
AE75: - | AF75: Outros | AG75: 74.8221278 | AH75: 0.2976449415
AE76: Total | AG76: 251.3804784 | AH76: 1
AC89: DESAGREGAÇÃO A 4 DÍGITOS | AN89: DESAGREGAÇÃO A 4 DÍGITOS
G91: média 2018-2022 em milhões de euros | I91: Cód. NC | J91: Descritivo | K91: Export | L91: Import | M91: Saldo | AC91: P | AE91: Cód.NC | AF91: Descritivo | AG91: Média import quinquénio | AH91: % do total | AI91: % acumulada | AN91: P | AO91: NC | AP91: Importações | AQ91: 2018 | AR91: 2019 | AS91: 2020 | AT91: 2021 | AU91: 2022 | AV91: média quinquénio
I92: 4703 | J92: Pastas químicas de madeira, à soda ou ao sulfato | K92: 83.1157138 | L92: 0.308103 | M92: 82.8076108 | AC92: 1 | AD92: º | AE92: 2402 | AF92: Charutos, cigarrilhas e cigarros | AG92: 45.2353148 | AH92: 0.2182645812 | AN92: 1º | AO92: 2402 | AP92: Charutos, cigarrilhas e cigarros | AQ92: 28.79927 | AR92: 25.440208 | AS92: 55.426759 | AT92: 53.403763 | AU92: 63.106574 | AV92: 45.2353148
I93: 2204 | J93: Vinhos de uvas frescas | K93: 27.1634608 | L93: 2e-06 | M93: 27.1634588 | AC93: 2 | AD93: º | AE93: 0201 | AF93: Carnes de bovino, frescas ou refrigeradas | AG93: 36.2615648 | AH93: 0.1749654067 | AN93: 2º | AO93: 0201 | AP93: Carnes de bovino, frescas ou refrigeradas | AQ93: 28.657278 | AR93: 33.295744 | AS93: 32.570143 | AT93: 37.140097 | AU93: 49.644562 | AV93: 36.2615648
I94: 4802 | J94: Papel e cartão p/ escrita, etc. | K94: 10.6597368 | L94: 0.2790154 | M94: 10.3807214 | AC94: 3 | AD94: º | AE94: 1001 | AF94: Trigo e mistura trigo/centeio | AG94: 13.5207858 | AH94: 0.06523904305 | AI94: 0.4584690309 | AN94: 3º | AO94: 1001 | AP94: Trigo e mistura trigo/centeio | AQ94: 4.427536 | AR94: 2.419118 | AS94: 12.819433 | AT94: 18.099139 | AU94: 29.838703 | AV94: 13.5207858
I95: 0805 | J95: Citrinos, frescos ou secos | K95: 10.580218 | L95: 0.4846888 | M95: 10.0955292 | AC95: 4 | AD95: º | AE95: 2106 | AF95: Outras preparações alimentícias | AG95: 10.8778612 | AH95: 0.05248668721 | AN95: - | AO95: - | AP95: Outros | AQ95: 92.690267 | AR95: 98.937624 | AS95: 100.077694 | AT95: 117.102208 | AU95: 152.35343 | AV95: 112.2322446
I96: 2002 | J96: Tomates preparados | K96: 9.4436558 | L96: 0.0087552 | M96: 9.4349006 | AC96: 5 | AD96: º | AE96: 0207 | AF96: Carnes e miudezas de aves de capoeira | AG96: 7.7493784 | AH96: 0.03739146811 | AP96: Total | AQ96: 154.574351 | AR96: 160.092694 | AS96: 200.894029 | AT96: 225.745207 | AU96: 294.943269 | AV96: 207.24991
I97: 1509 | J97: Azeite (processos mecânicos ou físicos) | K97: 8.0877632 | L97: 0.2918932 | M97: 7.79587 | AC97: 6 | AD97: º | AE97: 1905 | AF97: Produtos de padaria, pastelaria, etc. | AG97: 7.4883952 | AH97: 0.03613220001
I98: 4504 | J98: Cortiça aglomerada e suas obras | K98: 7.4547318 | L98: 0.0073466 | M98: 7.4473852 | AC98: 7 | AD98: º | AE98: 1806 | AF98: Chocolate e outras preparações com cacau | AG98: 6.0166156 | AH98: 0.0290307272
I99: 1701 | J99: Açúcares (cana/beterraba); sacarose pura | K99: 7.0668638 | L99: 0.0426848 | M99: 7.024179 | AC99: 8 | AD99: º | AE99: 4811 | AF99: Papel, cartão, pasta de celulose, etc. | AG99: 4.5762434 | AH99: 0.02208079801
I100: 0804 | J100: Tâmaras, figos, ananases, abacates, goiabas, mangas | K100: 6.1722562 | L100: 0.4188158 | M100: 5.7534404 | AC100: 9 | AD100: º | AE100: 2309 | AF100: Preparações p/ alimentação animal | AG100: 4.4593204 | AH100: 0.02151663371
I101: 0809 | J101: Damascos, cerejas, pêssegos, etc., frescos | K101: 5.0693632 | L101: 0.1991078 | M101: 4.8702554 | AC101: 10 | AD101: º | AE101: 4804 | AF101: Papel e cartão "kraft", não revestidos | AG101: 3.7411316 | AH101: 0.01805130627 | AI101: 0.6751588515
I102: - | J102: Outros | K102: 71.840556 | L102: 69.0606818 | M102: 2.7798742 | AE102: - | AF102: Outros | AG102: 67.3232988 | AH102: 0.3248411485
I103: 2403 | J103: Outros produtos de tabaco | K103: 0.1347896 | L103: 3.7105996 | M103: -3.57581 | AE103: Total | AG103: 207.24991 | AH103: 1
I104: 2309 | J104: Preparações p/ alimentação animal | K104: 0.8707064 | L104: 4.4593204 | M104: -3.588614
I105: 4804 | J105: Papel e cartão "kraft", não revestidos | K105: 0.0382712 | L105: 3.7411316 | M105: -3.7028604
I106: 4811 | J106: Papel, cartão, pasta de celulose, etc. | K106: 0.3063074 | L106: 4.5762434 | M106: -4.269936
I107: 1806 | J107: Chocolate e outras preparações com cacau | K107: 0.0935582 | L107: 6.0166156 | M107: -5.9230574
I108: 0207 | J108: Carnes e miudezas de aves de capoeira | K108: 0.6801796 | L108: 7.7493784 | M108: -7.0691988
I109: 2106 | J109: Outras preparações alimentícias | K109: 1.5433624 | L109: 10.8778612 | M109: -9.3344988
I110: 1001 | J110: Trigo e mistura trigo/centeio | K110: 0 | L110: 13.5207858 | M110: -13.5207858
I111: 0201 | J111: Carnes de bovino, frescas ou refrigeradas | K111: 0.028929 | L111: 36.2615648 | M111: -36.2326358
I112: 2402 | J112: Charutos, cigarrilhas e cigarros | K112: 1.0300552 | L112: 45.2353148 | M112: -44.2052596
I113: Total | K113: 251.3804784 | L113: 207.24991 | M113: 44.1305684
A116: Fonte: GPP a partir de dados INE/Comércio Internacional (2021 provisórios; 2022 preliminares) | Y116: 2023-04-27T17:29:25.040

Sheet 3A
A1: Principais produtos agrícolas e agroalimentares transacionados entre Portugal e Polónia em 2018-2022 (NC a 2 e 4 dígitos) em milhões de euros
AC4: P | AE4: Cód.NC | AF4: Descritivo | AG4: Média export quinquénio | AH4: % do total | AI4: % acumulada | AN4: P | AO4: NC | AP4: Exportações | AQ4: 2018 | AR4: 2019 | AS4: 2020 | AT4: 2021 | AU4: 2022 | AV4: média quinquénio
AC5: 1 | AD5: º | AE5: 08 | AF5: Frutas | AG5: 33.909853 | AH5: 0.2524945208 | AN5: 1º | AO5: 08 | AP5: Frutas | AQ5: 61.538475 | AR5: 43.585579 | AS5: 28.9495 | AT5: 16.889874 | AU5: 18.585837 | AV5: 33.909853
AC6: 2 | AD6: º | AE6: 22 | AF6: Bebidas, líquidos alcoólicos e vinagres | AG6: 27.8174846 | AH6: 0.2071304303 | AN6: 2º | AO6: 22 | AP6: Bebidas, líquidos alcoólicos e vinagres | AQ6: 23.567377 | AR6: 23.03147 | AS6: 26.740699 | AT6: 31.961919 | AU6: 33.785958 | AV6: 27.8174846
AC7: 3 | AD7: º | AE7: 20 | AF7: Preparações de produtos vegetais | AG7: 12.3929404 | AH7: 0.09227847574 | AI7: 0.5519034268 | AN7: 3º | AO7: 20 | AP7: Preparações de produtos vegetais | AQ7: 9.45007 | AR7: 9.358486 | AS7: 11.735985 | AT7: 11.849544 | AU7: 19.570617 | AV7: 12.3929404
AC8: 4 | AD8: º | AE8: 15 | AF8: Gorduras e óleos animais ou vegetais | AG8: 10.4822692 | AH8: 0.07805151908 | AO8: - | AP8: Outros | AQ8: 46.895325 | AR8: 48.63176 | AS8: 45.250064 | AT8: 80.353929 | AU8: 79.764341 | AV8: 60.1790838
AC9: 5 | AD9: º | AE9: 21 | AF9: Preparações alimentícias diversas | AG9: 8.8589436 | AH9: 0.06596415263 | AP9: Total | AQ9: 141.451247 | AR9: 124.607295 | AS9: 112.676248 | AT9: 141.055266 | AU9: 151.706753 | AV9: 134.2993618
AC10: 6 | AD10: º | AE10: 07 | AF10: Produtos hortícolas | AG10: 8.1006376 | AH10: 0.0603177669
AC11: 7 | AD11: º | AE11: 19a | AF11: Preparações à base de cereais (exc. NC 19022010) (a) | AG11: 7.8414844 | AH11: 0.05838809876
AC12: 8 | AD12: º | AE12: 17 | AF12: Açúcares e produtos de confeitaria | AG12: 7.2318236 | AH12: 0.05384853288
AC13: 9 | AD13: º | AE13: 04 | AF13: Leite e laticínios; ovos; mel, etc. | AG13: 3.8144764 | AH13: 0.02840278873
AC14: 10 | AD14: º | AE14: 09 | AF14: Café, chá, mate e especiarias | AG14: 3.5773766 | AH14: 0.02663733135 | AI14: 0.9235136172
AE15: - | AF15: Outros | AG15: 10.2720724 | AH15: 0.07648638283
AE16: Total | AG16: 134.2993618 | AH16: 1
AC38: P | AE38: Cód.NC | AF38: Descritivo | AG38: Média import quinquénio | AH38: % do total | AI38: % acumulada | AN38: P | AO38: NC | AP38: Importações | AQ38: 2018 | AR38: 2019 | AS38: 2020 | AT38: 2021 | AU38: 2022 | AV38: média quinquénio
AC39: 1 | AD39: º | AE39: 24 | AF39: Tabaco | AG39: 49.169036 | AH39: 0.2680543664 | AN39: 1º | AO39: 24 | AP39: Tabaco | AQ39: 30.437375 | AR39: 26.853653 | AS39: 59.127258 | AT39: 58.733584 | AU39: 70.69331 | AV39: 49.169036
AC40: 2 | AD40: º | AE40: 02 | AF40: Carnes e miudezas | AG40: 46.3319532 | AH40: 0.2525874691 | AN40: 2º | AO40: 02 | AP40: Carnes e miudezas | AQ40: 39.142752 | AR40: 44.134153 | AS40: 42.142946 | AT40: 44.067997 | AU40: 62.171918 | AV40: 46.3319532
AC41: 3 | AD41: º | AE41: 10 | AF41: Cereais | AG41: 18.3648396 | AH41: 0.1001194216 | AI41: 0.6207612571 | AN41: 3º | AO41: 10 | AP41: Cereais | AQ41: 5.130167 | AR41: 2.748669 | AS41: 17.951148 | AT41: 24.0481 | AU41: 41.946114 | AV41: 18.3648396
AC42: 4 | AD42: º | AE42: 21 | AF42: Preparações alimentícias diversas | AG42: 16.035653 | AH42: 0.08742141711 | AO42: - | AP42: Outros | AQ42: 53.340141 | AR42: 64.595239 | AS42: 60.963689 | AT42: 75.61571 | AU42: 93.302786 | AV42: 69.563513
AC43: 5 | AD43: º | AE43: 19a | AF43: Preparações à base de cereais (exc. NC 19022010) (a) | AG43: 11.8263674 | AH43: 0.0644736948 | AP43: Total | AQ43: 128.050435 | AR43: 138.331714 | AS43: 180.185041 | AT43: 202.465391 | AU43: 268.114128 | AV43: 183.4293418
AC44: 6 | AD44: º | AE44: 08 | AF44: Frutas | AG44: 6.2847374 | AH44: 0.03426244317
AC45: 7 | AD45: º | AE45: 18 | AF45: Cacau e suas preparações | AG45: 6.0177078 | AH45: 0.03280668044
AC46: 8 | AD46: º | AE46: 23a | AF46: Resíduos indústrias alimentares; alimentos p/ animais (exc. NC 230120) (a) | AG46: 4.5952624 | AH46: 0.02505194837
AC47: 9 | AD47: º | AE47: 09 | AF47: Café, chá, mate e especiarias | AG47: 3.7798772 | AH47: 0.02060672062
AC48: 10 | AD48: º | AE48: 20 | AF48: Preparações de produtos vegetais | AG48: 3.1220454 | AH48: 0.01702042525 | AI48: 0.9024045868
AE49: - | AF49: Outros | AG49: 17.9018624 | AH49: 0.09759541317
AE50: Total | AG50: 183.4293418 | AH50: 1
AC62: DESAGREGAÇÃO A 4 DÍGITOS | AN62: DESAGREGAÇÃO A 4 DÍGITOS
AC64: P | AE64: Cód.NC | AF64: Descritivo | AG64: Média export quinquénio | AH64: % do total | AI64: % acumulada | AN64: P | AO64: NC | AP64: Exportações | AQ64: 2018 | AR64: 2019 | AS64: 2020 | AT64: 2021 | AU64: 2022 | AV64: média quinquénio
AC65: 1 | AD65: º | AE65: 2204 | AF65: Vinhos de uvas frescas | AG65: 27.1634608 | AH65: 0.2022605352 | AN65: 1º | AO65: 2204 | AP65: Vinhos de uvas frescas | AQ65: 23.248605 | AR65: 22.449454 | AS65: 25.91574 | AT65: 31.20654 | AU65: 32.996965 | AV65: 27.1634608
AC66: 2 | AD66: º | AE66: 0805 | AF66: Citrinos, frescos ou secos | AG66: 10.580218 | AH66: 0.07878085092 | AN66: 2º | AO66: 0805 | AP66: Citrinos, frescos ou secos | AQ66: 18.031809 | AR66: 12.319844 | AS66: 9.609265 | AT66: 6.490276 | AU66: 6.449896 | AV66: 10.580218
AC67: 3 | AD67: º | AE67: 2002 | AF67: Tomates preparados | AG67: 9.4436558 | AH67: 0.07031794994 | AI67: 0.3513593361 | AN67: 3º | AO67: 2002 | AP67: Tomates preparados | AQ67: 7.932869 | AR67: 7.230602 | AS67: 9.108199 | AT67: 7.758543 | AU67: 15.188066 | AV67: 9.4436558
AC68: 4 | AD68: º | AE68: 1509 | AF68: Azeite (processos mecânicos ou físicos) | AG68: 8.0877632 | AH68: 0.06022190345 | AN68: - | AO68: - | AP68: Outros | AQ68: 92.237964 | AR68: 82.607395 | AS68: 68.043044 | AT68: 95.599907 | AU68: 97.071826 | AV68: 87.1120272
AC69: 5 | AD69: º | AE69: 1701 | AF69: Açúcares (cana/beterraba); sacarose pura | AG69: 7.0668638 | AH69: 0.05262023367 | AP69: Total | AQ69: 141.451247 | AR69: 124.607295 | AS69: 112.676248 | AT69: 141.055266 | AU69: 151.706753 | AV69: 134.2993618
AC70: 6 | AD70: º | AE70: 1905 | AF70: Produtos de padaria, pastelaria, etc. | AG70: 6.8139504 | AH70: 0.0507370274
AC71: 7 | AD71: º | AE71: 0804 | AF71: Tâmaras, figos, ananases, abacates, goiabas, mangas | AG71: 6.1722562 | AH71: 0.04595893917
AC72: 8 | AD72: º | AE72: 0809 | AF72: Damascos, cerejas, pêssegos, etc., frescos | AG72: 5.0693632 | AH72: 0.0377467408
AC73: 9 | AD73: º | AE73: 0807 | AF73: Melões, melancias e papaia, frescos | AG73: 4.4420314 | AH73: 0.03307559575
AC74: 10 | AD74: º | AE74: 0810 | AF74: Outras frutas frescas | AG74: 3.8040922 | AH74: 0.02832546744 | AI74: 0.6600452438
AE75: - | AF75: Outros | AG75: 45.6557068 | AH75: 0.3399547562
AE76: Total | AG76: 134.2993618 | AH76: 1
AC89: DESAGREGAÇÃO A 4 DÍGITOS | AN89: DESAGREGAÇÃO A 4 DÍGITOS
G91: média 2018-2022 em milhões de euros | I91: Cód. NC | J91: Descritivo | K91: Export | L91: Import | M91: Saldo | AC91: P | AE91: Cód.NC | AF91: Descritivo | AG91: Média import quinquénio | AH91: % do total | AI91: % acumulada | AN91: P | AO91: NC | AP91: Importações | AQ91: 2018 | AR91: 2019 | AS91: 2020 | AT91: 2021 | AU91: 2022 | AV91: média quinquénio
I92: 2204 | J92: Vinhos de uvas frescas | K92: 27.1634608 | L92: 2e-06 | M92: 27.1634588 | AC92: 1 | AD92: º | AE92: 2402 | AF92: Charutos, cigarrilhas e cigarros | AG92: 45.2353148 | AH92: 0.2466089359 | AN92: 1º | AO92: 2402 | AP92: Charutos, cigarrilhas e cigarros | AQ92: 28.79927 | AR92: 25.440208 | AS92: 55.426759 | AT92: 53.403763 | AU92: 63.106574 | AV92: 45.2353148
I93: 0805 | J93: Citrinos, frescos ou secos | K93: 10.580218 | L93: 0.4846888 | M93: 10.0955292 | AC93: 2 | AD93: º | AE93: 0201 | AF93: Carnes de bovino, frescas ou refrigeradas | AG93: 36.2615648 | AH93: 0.1976868283 | AN93: 2º | AO93: 0201 | AP93: Carnes de bovino, frescas ou refrigeradas | AQ93: 28.657278 | AR93: 33.295744 | AS93: 32.570143 | AT93: 37.140097 | AU93: 49.644562 | AV93: 36.2615648
I94: 2002 | J94: Tomates preparados | K94: 9.4436558 | L94: 0.0087552 | M94: 9.4349006 | AC94: 3 | AD94: º | AE94: 1001 | AF94: Trigo e mistura trigo/centeio | AG94: 13.5207858 | AH94: 0.07371113949 | AI94: 0.5180069037 | AN94: 3º | AO94: 1001 | AP94: Trigo e mistura trigo/centeio | AQ94: 4.427536 | AR94: 2.419118 | AS94: 12.819433 | AT94: 18.099139 | AU94: 29.838703 | AV94: 13.5207858
I95: 1509 | J95: Azeite (processos mecânicos ou físicos) | K95: 8.0877632 | L95: 0.2918932 | M95: 7.79587 | AC95: 4 | AD95: º | AE95: 2106 | AF95: Outras preparações alimentícias | AG95: 10.8778612 | AH95: 0.05930273256 | AN95: - | AO95: - | AP95: Outros | AQ95: 66.166351 | AR95: 77.176644 | AS95: 79.368706 | AT95: 93.822392 | AU95: 125.524289 | AV95: 88.4116764
I96: 1701 | J96: Açúcares (cana/beterraba); sacarose pura | K96: 7.0668638 | L96: 0.0426848 | M96: 7.024179 | AC96: 5 | AD96: º | AE96: 0207 | AF96: Carnes e miudezas de aves de capoeira | AG96: 7.7493784 | AH96: 0.0422472126 | AP96: Total | AQ96: 128.050435 | AR96: 138.331714 | AS96: 180.185041 | AT96: 202.465391 | AU96: 268.114128 | AV96: 183.4293418
I97: 0804 | J97: Tâmaras, figos, ananases, abacates, goiabas, mangas | K97: 6.1722562 | L97: 0.4188158 | M97: 5.7534404 | AC97: 6 | AD97: º | AE97: 1905 | AF97: Produtos de padaria, pastelaria, etc. | AG97: 7.4883952 | AH97: 0.04082441297
I98: 0809 | J98: Damascos, cerejas, pêssegos, etc., frescos | K98: 5.0693632 | L98: 0.1991078 | M98: 4.8702554 | AC98: 7 | AD98: º | AE98: 1806 | AF98: Chocolate e outras preparações com cacau | AG98: 6.0166156 | AH98: 0.0328007261
I99: 0807 | J99: Melões, melancias e papaia, frescos | K99: 4.4420314 | L99: 0.1382778 | M99: 4.3037536 | AC99: 8 | AD99: º | AE99: 2309 | AF99: Preparações p/ alimentação animal | AG99: 4.4593204 | AH99: 0.02431083466
I100: 0810 | J100: Outras frutas frescas | K100: 3.8040922 | L100: 0.2008158 | M100: 3.6032764 | AC100: 9 | AD100: º | AE100: 2403 | AF100: Outros produtos de tabaco | AG100: 3.7105996 | AH100: 0.02022904059
I101: 0901 | J101: Café | K101: 3.5687546 | L101: 0.3261384 | M101: 3.2426162 | AC101: 10 | AD101: º | AE101: 1904 | AF101: Produtos à base de cereais | AG101: 3.5411406 | AH101: 0.01930520257 | AI101: 0.7570270658
I102: - | J102: Outros | K102: 43.9236682 | L102: 47.618139 | M102: -3.6944708 | AE102: - | AF102: Outros | AG102: 44.5683654 | AH102: 0.2429729342
I103: 1008 | J103: Trigo mourisco, painço e outros cereais | K103: 0.002888 | L103: 2.327442 | M103: -2.324554 | AE103: Total | AG103: 183.4293418 | AH103: 1
I104: 1904 | J104: Produtos à base de cereais | K104: 0.592766 | L104: 3.5411406 | M104: -2.9483746
I105: 2403 | J105: Outros produtos de tabaco | K105: 0.1347896 | L105: 3.7105996 | M105: -3.57581
I106: 2309 | J106: Preparações p/ alimentação animal | K106: 0.8707064 | L106: 4.4593204 | M106: -3.588614
I107: 1806 | J107: Chocolate e outras preparações com cacau | K107: 0.0935582 | L107: 6.0166156 | M107: -5.9230574
I108: 0207 | J108: Carnes e miudezas de aves de capoeira | K108: 0.6801796 | L108: 7.7493784 | M108: -7.0691988
I109: 2106 | J109: Outras preparações alimentícias | K109: 1.5433624 | L109: 10.8778612 | M109: -9.3344988
I110: 1001 | J110: Trigo e mistura trigo/centeio | K110: 0 | L110: 13.5207858 | M110: -13.5207858
I111: 0201 | J111: Carnes de bovino, frescas ou refrigeradas | K111: 0.028929 | L111: 36.2615648 | M111: -36.2326358
I112: 2402 | J112: Charutos, cigarrilhas e cigarros | K112: 1.0300552 | L112: 45.2353148 | M112: -44.2052596
I113: Total | K113: 134.2993618 | L113: 183.4293418 | M113: -49.12998
A116: Fonte: GPP a partir de dados INE/Comércio Internacional (2021 provisórios; 2022 preliminares) | Y116: 2023-04-27T17:29:25.040

Sheet 4A
A1: Evolução da balança comercial Portugal-Polónia 2018-2022 por produto em euros (NC 2 dígitos)
A3: =+aux!A31 -> Evolução da balança comercial Portugal-Polónia para Frutas
A5: Selecione o produto:
Q7: Para obter uma maior desagregação deste produto, clique no botão respetivo:
A20: =+aux!A43 -> Evolução da balança comercial Portugal-Polónia para Tabaco
A22: Selecione o produto:
A38: Fonte: GPP a partir de dados INE/Comércio Internacional (2021 provisórios; 2022 preliminares) | N38: 2023-04-27T17:29:25.040

Sheet 5.2
A1: Trocas comerciais Portugal-Polónia 2018-2022 em milhares de euros (NC 2 dígitos) | C1: Produtos agrícolas e agroalimentares, do mar e da floresta
A2: Cód. NC | B2: Descritivo | C2: Importações | K2: Exportações | S2: Saldo quinquénio (exp-imp) | T2: Evolução das importações | U2: =+"Variação das Importações " & INDEX(K3:N3,1,aux!AL1) & "-"& '5.2'!O3 &"" -> Variação das Importações 2018-2022 | Z2: Evolução das exportações | AA2: ="Variação das Exportações " & INDEX(K3:N3,1,aux!AL1) & "-"& '5.2'!O3 &"" -> Variação das Exportações 2018-2022
C3: 2018 | D3: 2019 | E3: 2020 | F3: 2021 | G3: 2022 | H3: média quinquénio | I3: % Subtot | J3: % Total | K3: 2018 | L3: 2019 | M3: 2020 | N3: 2021 | O3: 2022 | P3: média quinquénio | Q3: % Subtot | R3: % Total | U3: variação total em valor | V3: % no subtotal de variação | W3: % no total de variação | X3: taxa de variação média anual | Y3: taxa de variação total | AA3: variação total em valor | AB3: % no subtotal de variação | AC3: % no total de variação | AD3: taxa de variação média anual | AE3: taxa de variação total
A4: 01 | B4: Animais vivos | C4: 0 | D4: 0 | E4: 0 | F4: 0 | G4: 274.097 | H4: 54.8194 | I4: 0.0002988584022 | J4: 0.0002645086794 | K4: 0 | L4: 119.735 | M4: 16.768 | N4: 0 | O4: 0 | P4: 27.3006 | Q4: 0.0002032816808 | R4: 0.0001086027052 | S4: -27.5188 | U4: =G4-INDEX($C4:$G4,1,aux!$AL$1) -> 274.097 | V4: =IF($U$37<>0,U4/$U$37, "n.d.") -> 0.001956945402 | W4: =IF($U$53<>0,U4/$U$53, "n.d.") -> 0.001952690125 | X4: =+IF(INDEX($C4:$G4,1,aux!$AL$1)>0,(G4/INDEX($C4:$G4,1,aux!$AL$1))^(1/($G$3-INDEX($C$3:$G$3,1,aux!$AL$1)))-1,"n.d.") -> n.d. | Y4: =IF(INDEX($C4:$G4,1,aux!$AL$1)>0,(G4-INDEX($C4:$G4,1,aux!$AL$1))/INDEX($C4:$G4,1,aux!$AL$1),"n.d.") -> n.d. | AA4: =O4-INDEX($K4:$O4,1,aux!$AL$1) -> 0 | AB4: =IF($AA$37<>0,AA4/$AA$37, "n.d.") -> 0 | AC4: =IF($AA$53<>0,AA4/$AA$53, "n.d.") -> 0 | AD4: =+IF(INDEX($K4:$O4,1,aux!$AL$1)>0,(O4/INDEX($K4:$O4,1,aux!$AL$1))^(1/($O$3-INDEX($K$3:$O$3,1,aux!$AL$1)))-1,"n.d.") -> n.d. | AE4: =IF(INDEX($K4:$O4,1,aux!$AL$1)>0,(O4-INDEX($K4:$O4,1,aux!$AL$1))/INDEX($K4:$O4,1,aux!$AL$1),"n.d.") -> n.d.
A5: 02 | B5: Carnes e miudezas | C5: 39142.752 | D5: 44134.153 | E5: 42142.946 | F5: 44067.997 | G5: 62171.918 | H5: 46331.9532 | I5: 0.2525874691 | J5: 0.2235559629 | K5: 2733.216 | L5: 1688.577 | M5: 1676.891 | N5: 1819.213 | O5: 2680.773 | P5: 2119.734 | Q5: 0.01578364909 | R5: 0.008432373164 | S5: -44212.2192 | U5: =G5-INDEX($C5:$G5,1,aux!$AL$1) -> 23029.166 | V5: 0.1644192403 | W5: 0.1640617191 | X5: =+IF(INDEX($C5:$G5,1,aux!$AL$1)>0,(G5/INDEX($C5:$G5,1,aux!$AL$1))^(1/($G$3-INDEX($C$3:$G$3,1,aux!$AL$1)))-1,"n.d.") -> 0.1226276313 | Y5: =IF(INDEX($C5:$G5,1,aux!$AL$1)>0,(G5-INDEX($C5:$G5,1,aux!$AL$1))/INDEX($C5:$G5,1,aux!$AL$1),"n.d.") -> 0.588337938 | AA5: =O5-INDEX($K5:$O5,1,aux!$AL$1) -> -52.443 | AB5: -0.005113643344 | AC5: -0.0008337317073 | AD5: =+IF(INDEX($K5:$O5,1,aux!$AL$1)>0,(O5/INDEX($K5:$O5,1,aux!$AL$1))^(1/($O$3-INDEX($K$3:$O$3,1,aux!$AL$1)))-1,"n.d.") -> -0.004831727489 | AE5: =IF(INDEX($K5:$O5,1,aux!$AL$1)>0,(O5-INDEX($K5:$O5,1,aux!$AL$1))/INDEX($K5:$O5,1,aux!$AL$1),"n.d.") -> -0.01918728706
A6: 04 | B6: Leite e laticínios; ovos; mel, etc. | C6: 2570.042 | D6: 2017.448 | E6: 925.425 | F6: 974.125 | G6: 2337.697 | H6: 1764.9474 | I6: 0.009621946972 | J6: 0.008516034579 | K6: 3815.986 | L6: 3049.154 | M6: 2984.818 | N6: 4066.514 | O6: 5155.91 | P6: 3814.4764 | Q6: 0.02840278873 | R6: 0.01517411545 | S6: 2049.529 | U6: =G6-INDEX($C6:$G6,1,aux!$AL$1) -> -232.345 | V6: -0.001658852448 | W6: -0.001655245359 | X6: =+IF(INDEX($C6:$G6,1,aux!$AL$1)>0,(G6/INDEX($C6:$G6,1,aux!$AL$1))^(1/($G$3-INDEX($C$3:$G$3,1,aux!$AL$1)))-1,"n.d.") -> -0.02341061438 | Y6: =IF(INDEX($C6:$G6,1,aux!$AL$1)>0,(G6-INDEX($C6:$G6,1,aux!$AL$1))/INDEX($C6:$G6,1,aux!$AL$1),"n.d.") -> -0.09040513735 | AA6: =O6-INDEX($K6:$O6,1,aux!$AL$1) -> 1339.924 | AB6: 0.1306541091 | AC6: 0.02130193018 | AD6: =+IF(INDEX($K6:$O6,1,aux!$AL$1)>0,(O6/INDEX($K6:$O6,1,aux!$AL$1))^(1/($O$3-INDEX($K$3:$O$3,1,aux!$AL$1)))-1,"n.d.") -> 0.07813870838 | AE6: =IF(INDEX($K6:$O6,1,aux!$AL$1)>0,(O6-INDEX($K6:$O6,1,aux!$AL$1))/INDEX($K6:$O6,1,aux!$AL$1),"n.d.") -> 0.3511344119
A7: 05a | B7: Outros produtos de origem animal (exc. NC 0508, 051191) (a) | C7: 2804.813 | D7: 2509.342 | E7: 2142.718 | F7: 2357.566 | G7: 2817.151 | H7: 2526.318 | I7: 0.01377270384 | J7: 0.0121897182 | K7: 1225.795 | L7: 1714.688 | M7: 2165.957 | N7: 2640.186 | O7: 2492.135 | P7: 2047.7522 | Q7: 0.01524766888 | R7: 0.008146027142 | S7: -478.5658 | U7: =G7-INDEX($C7:$G7,1,aux!$AL$1) -> 12.338 | V7: 8.808849557e-05 | W7: 8.789695166e-05 | X7: =+IF(INDEX($C7:$G7,1,aux!$AL$1)>0,(G7/INDEX($C7:$G7,1,aux!$AL$1))^(1/($G$3-INDEX($C$3:$G$3,1,aux!$AL$1)))-1,"n.d.") -> 0.001097907383 | Y7: =IF(INDEX($C7:$G7,1,aux!$AL$1)>0,(G7-INDEX($C7:$G7,1,aux!$AL$1))/INDEX($C7:$G7,1,aux!$AL$1),"n.d.") -> 0.004398867233 | AA7: =O7-INDEX($K7:$O7,1,aux!$AL$1) -> 1266.34 | AB7: 0.1234790365 | AC7: 0.02013210172 | AD7: =+IF(INDEX($K7:$O7,1,aux!$AL$1)>0,(O7/INDEX($K7:$O7,1,aux!$AL$1))^(1/($O$3-INDEX($K$3:$O$3,1,aux!$AL$1)))-1,"n.d.") -> 0.1940937625 | AE7: =IF(INDEX($K7:$O7,1,aux!$AL$1)>0,(O7-INDEX($K7:$O7,1,aux!$AL$1))/INDEX($K7:$O7,1,aux!$AL$1),"n.d.") -> 1.033076493
A8: 06 | B8: Plantas vivas e produtos de floricultura | C8: 116.952 | D8: 30.32 | E8: 1116.998 | F8: 2523.764 | G8: 850.89 | H8: 927.7848 | I8: 0.00505799558 | J8: 0.004476647541 | K8: 378.249 | L8: 964.717 | M8: 1038.9 | N8: 1720.582 | O8: 1822.242 | P8: 1184.938 | Q8: 0.008823109687 | R8: 0.004713723228 | S8: 257.1532 | U8: =G8-INDEX($C8:$G8,1,aux!$AL$1) -> 733.938 | V8: 0.005240030334 | W8: 0.005228636157 | X8: =+IF(INDEX($C8:$G8,1,aux!$AL$1)>0,(G8/INDEX($C8:$G8,1,aux!$AL$1))^(1/($G$3-INDEX($C$3:$G$3,1,aux!$AL$1)))-1,"n.d.") -> 0.6423527486 | Y8: =IF(INDEX($C8:$G8,1,aux!$AL$1)>0,(G8-INDEX($C8:$G8,1,aux!$AL$1))/INDEX($C8:$G8,1,aux!$AL$1),"n.d.") -> 6.275548943 | AA8: =O8-INDEX($K8:$O8,1,aux!$AL$1) -> 1443.993 | AB8: 0.1408017313 | AC8: 0.02295640503 | AD8: =+IF(INDEX($K8:$O8,1,aux!$AL$1)>0,(O8/INDEX($K8:$O8,1,aux!$AL$1))^(1/($O$3-INDEX($K$3:$O$3,1,aux!$AL$1)))-1,"n.d.") -> 0.4815184555 | AE8: =IF(INDEX($K8:$O8,1,aux!$AL$1)>0,(O8-INDEX($K8:$O8,1,aux!$AL$1))/INDEX($K8:$O8,1,aux!$AL$1),"n.d.") -> 3.817572551
A9: 07 | B9: Produtos hortícolas | C9: 1814.345 | D9: 3289.311 | E9: 1685.073 | F9: 1506.484 | G9: 3394.873 | H9: 2338.0172 | I9: 0.01274614616 | J9: 0.01128114941 | K9: 13470.957 | L9: 11361.849 | M9: 4068.487 | N9: 4418.155 | O9: 7183.74 | P9: 8100.6376 | Q9: 0.0603177669 | R9: 0.03222460889 | S9: 5762.6204 | U9: =G9-INDEX($C9:$G9,1,aux!$AL$1) -> 1580.528 | V9: 0.0112843519 | W9: 0.01125981465 | X9: =+IF(INDEX($C9:$G9,1,aux!$AL$1)>0,(G9/INDEX($C9:$G9,1,aux!$AL$1))^(1/($G$3-INDEX($C$3:$G$3,1,aux!$AL$1)))-1,"n.d.") -> 0.1695691789 | Y9: =IF(INDEX($C9:$G9,1,aux!$AL$1)>0,(G9-INDEX($C9:$G9,1,aux!$AL$1))/INDEX($C9:$G9,1,aux!$AL$1),"n.d.") -> 0.8711286993 | AA9: =O9-INDEX($K9:$O9,1,aux!$AL$1) -> -6287.217 | AB9: -0.6130577077 | AC9: -0.09995332387 | AD9: =+IF(INDEX($K9:$O9,1,aux!$AL$1)>0,(O9/INDEX($K9:$O9,1,aux!$AL$1))^(1/($O$3-INDEX($K$3:$O$3,1,aux!$AL$1)))-1,"n.d.") -> -0.1454488973 | AE9: =IF(INDEX($K9:$O9,1,aux!$AL$1)>0,(O9-INDEX($K9:$O9,1,aux!$AL$1))/INDEX($K9:$O9,1,aux!$AL$1),"n.d.") -> -0.4667238564
A10: 08 | B10: Frutas | C10: 4026.834 | D10: 5314.963 | E10: 5026.019 | F10: 10096.811 | G10: 6959.06 | H10: 6284.7374 | I10: 0.03426244317 | J10: 0.03032443971 | K10: 61538.475 | L10: 43585.579 | M10: 28949.5 | N10: 16889.874 | O10: 18585.837 | P10: 33909.853 | Q10: 0.2524945208 | R10: 0.134894536 | S10: 27625.1156 | U10: =G10-INDEX($C10:$G10,1,aux!$AL$1) -> 2932.226 | V10: 0.02093494707 | W10: 0.02088942511 | X10: =+IF(INDEX($C10:$G10,1,aux!$AL$1)>0,(G10/INDEX($C10:$G10,1,aux!$AL$1))^(1/($G$3-INDEX($C$3:$G$3,1,aux!$AL$1)))-1,"n.d.") -> 0.1465598074 | Y10: =IF(INDEX($C10:$G10,1,aux!$AL$1)>0,(G10-INDEX($C10:$G10,1,aux!$AL$1))/INDEX($C10:$G10,1,aux!$AL$1),"n.d.") -> 0.7281715611 | AA10: =O10-INDEX($K10:$O10,1,aux!$AL$1) -> -42952.638 | AB10: -4.188251462 | AC10: -0.6828552183 | AD10: =+IF(INDEX($K10:$O10,1,aux!$AL$1)>0,(O10/INDEX($K10:$O10,1,aux!$AL$1))^(1/($O$3-INDEX($K$3:$O$3,1,aux!$AL$1)))-1,"n.d.") -> -0.2586746546 | AE10: =IF(INDEX($K10:$O10,1,aux!$AL$1)>0,(O10-INDEX($K10:$O10,1,aux!$AL$1))/INDEX($K10:$O10,1,aux!$AL$1),"n.d.") -> -0.6979802148
A11: 09 | B11: Café, chá, mate e especiarias | C11: 3621.79 | D11: 3776.436 | E11: 3354.79 | F11: 4017.971 | G11: 4128.399 | H11: 3779.8772 | I11: 0.02060672062 | J11: 0.01823825738 | K11: 1279.493 | L11: 3798.988 | M11: 2228.663 | N11: 3413.651 | O11: 7166.088 | P11: 3577.3766 | Q11: 0.02663733135 | R11: 0.01423092446 | S11: -202.5006 | U11: =G11-INDEX($C11:$G11,1,aux!$AL$1) -> 506.609 | V11: 0.003616990165 | W11: 0.003609125205 | X11: =+IF(INDEX($C11:$G11,1,aux!$AL$1)>0,(G11/INDEX($C11:$G11,1,aux!$AL$1))^(1/($G$3-INDEX($C$3:$G$3,1,aux!$AL$1)))-1,"n.d.") -> 0.03327185452 | Y11: =IF(INDEX($C11:$G11,1,aux!$AL$1)>0,(G11-INDEX($C11:$G11,1,aux!$AL$1))/INDEX($C11:$G11,1,aux!$AL$1),"n.d.") -> 0.1398780713 | AA11: =O11-INDEX($K11:$O11,1,aux!$AL$1) -> 5886.595 | AB11: 0.5739936186 | AC11: 0.0935842896 | AD11: =+IF(INDEX($K11:$O11,1,aux!$AL$1)>0,(O11/INDEX($K11:$O11,1,aux!$AL$1))^(1/($O$3-INDEX($K$3:$O$3,1,aux!$AL$1)))-1,"n.d.") -> 0.5383708984 | AE11: =IF(INDEX($K11:$O11,1,aux!$AL$1)>0,(O11-INDEX($K11:$O11,1,aux!$AL$1))/INDEX($K11:$O11,1,aux!$AL$1),"n.d.") -> 4.600724662
A12: 10 | B12: Cereais | C12: 5130.167 | D12: 2748.669 | E12: 17951.148 | F12: 24048.1 | G12: 41946.114 | H12: 18364.8396 | I12: 0.1001194216 | J12: 0.08861205103 | K12: 499.021 | L12: 1071.023 | M12: 754.211 | N12: 613.038 | O12: 1990.682 | P12: 985.595 | Q12: 0.00733879139 | R12: 0.003920730067 | S12: -17379.2446 | U12: =G12-INDEX($C12:$G12,1,aux!$AL$1) -> 36815.947 | V12: 0.2628514657 | W12: 0.2622799087 | X12: =+IF(INDEX($C12:$G12,1,aux!$AL$1)>0,(G12/INDEX($C12:$G12,1,aux!$AL$1))^(1/($G$3-INDEX($C$3:$G$3,1,aux!$AL$1)))-1,"n.d.") -> 0.6909861772 | Y12: =IF(INDEX($C12:$G12,1,aux!$AL$1)>0,(G12-INDEX($C12:$G12,1,aux!$AL$1))/INDEX($C12:$G12,1,aux!$AL$1),"n.d.") -> 7.176364239 | AA12: =O12-INDEX($K12:$O12,1,aux!$AL$1) -> 1491.661 | AB12: 0.1454497711 | AC12: 0.02371422444 | AD12: =+IF(INDEX($K12:$O12,1,aux!$AL$1)>0,(O12/INDEX($K12:$O12,1,aux!$AL$1))^(1/($O$3-INDEX($K$3:$O$3,1,aux!$AL$1)))-1,"n.d.") -> 0.4132557686 | AE12: =IF(INDEX($K12:$O12,1,aux!$AL$1)>0,(O12-INDEX($K12:$O12,1,aux!$AL$1))/INDEX($K12:$O12,1,aux!$AL$1),"n.d.") -> 2.989174804
A13: 11 | B13: Produtos da indústria de moagem e outros | C13: 139.277 | D13: 93.633 | E13: 149.038 | F13: 317.667 | G13: 983.582 | H13: 336.6394 | I13: 0.001835253819 | J13: 0.001624316266 | K13: 2226.257 | L13: 1516.563 | M13: 788.829 | N13: 656.643 | O13: 848.569 | P13: 1207.3722 | Q13: 0.008990155901 | R13: 0.00480296723 | S13: 870.7328 | U13: =G13-INDEX($C13:$G13,1,aux!$AL$1) -> 844.305 | V13: 0.006028007558 | W13: 0.006014899965 | X13: =+IF(INDEX($C13:$G13,1,aux!$AL$1)>0,(G13/INDEX($C13:$G13,1,aux!$AL$1))^(1/($G$3-INDEX($C$3:$G$3,1,aux!$AL$1)))-1,"n.d.") -> 0.6301696082 | Y13: =IF(INDEX($C13:$G13,1,aux!$AL$1)>0,(G13-INDEX($C13:$G13,1,aux!$AL$1))/INDEX($C13:$G13,1,aux!$AL$1),"n.d.") -> 6.06205619 | AA13: =O13-INDEX($K13:$O13,1,aux!$AL$1) -> -1377.688 | AB13: -0.1343364238 | AC13: -0.02190229713 | AD13: =+IF(INDEX($K13:$O13,1,aux!$AL$1)>0,(O13/INDEX($K13:$O13,1,aux!$AL$1))^(1/($O$3-INDEX($K$3:$O$3,1,aux!$AL$1)))-1,"n.d.") -> -0.214261622 | AE13: =IF(INDEX($K13:$O13,1,aux!$AL$1)>0,(O13-INDEX($K13:$O13,1,aux!$AL$1))/INDEX($K13:$O13,1,aux!$AL$1),"n.d.") -> -0.6188360104
A14: 12 | B14: Sementes e frutos oleaginosos | C14: 1336.717 | D14: 1867.251 | E14: 2453.961 | F14: 3282.274 | G14: 4462.284 | H14: 2680.4974 | I14: 0.01461324221 | J14: 0.01293364808 | K14: 2.188 | L14: 36.785 | M14: 141.144 | N14: 88.795 | O14: 682.374 | P14: 190.2572 | Q14: 0.00141666496 | R14: 0.0007568495422 | S14: -2490.2402 | U14: =G14-INDEX($C14:$G14,1,aux!$AL$1) -> 3125.567 | V14: 0.02231532621 | W14: 0.02226680268 | X14: =+IF(INDEX($C14:$G14,1,aux!$AL$1)>0,(G14/INDEX($C14:$G14,1,aux!$AL$1))^(1/($G$3-INDEX($C$3:$G$3,1,aux!$AL$1)))-1,"n.d.") -> 0.3516972617 | Y14: =IF(INDEX($C14:$G14,1,aux!$AL$1)>0,(G14-INDEX($C14:$G14,1,aux!$AL$1))/INDEX($C14:$G14,1,aux!$AL$1),"n.d.") -> 2.338241378 | AA14: =O14-INDEX($K14:$O14,1,aux!$AL$1) -> 680.186 | AB14: 0.06632398245 | AC14: 0.01081350485 | AD14: =+IF(INDEX($K14:$O14,1,aux!$AL$1)>0,(O14/INDEX($K14:$O14,1,aux!$AL$1))^(1/($O$3-INDEX($K$3:$O$3,1,aux!$AL$1)))-1,"n.d.") -> 3.20236517 | AE14: =IF(INDEX($K14:$O14,1,aux!$AL$1)>0,(O14-INDEX($K14:$O14,1,aux!$AL$1))/INDEX($K14:$O14,1,aux!$AL$1),"n.d.") -> 310.8711152
A15: 13a | B15: Sucos e extratos vegetais (exc. NC 1301) (a) | C15: 226.628 | D15: 160.875 | E15: 14.96 | F15: 41.258 | G15: 27.297 | H15: 94.2036 | I15: 0.0005135688711 | J15: 0.00045454109 | K15: 2.819 | L15: 1.034 | M15: 0.31 | N15: 0.362 | O15: 0 | P15: 0.905 | Q15: 6.738676848e-06 | R15: 3.600120446e-06 | S15: -93.2986 | U15: =G15-INDEX($C15:$G15,1,aux!$AL$1) -> -199.331 | V15: -0.001423145397 | W15: -0.001420050841 | X15: =+IF(INDEX($C15:$G15,1,aux!$AL$1)>0,(G15/INDEX($C15:$G15,1,aux!$AL$1))^(1/($G$3-INDEX($C$3:$G$3,1,aux!$AL$1)))-1,"n.d.") -> -0.4108846506 | Y15: =IF(INDEX($C15:$G15,1,aux!$AL$1)>0,(G15-INDEX($C15:$G15,1,aux!$AL$1))/INDEX($C15:$G15,1,aux!$AL$1),"n.d.") -> -0.8795515117 | AA15: =O15-INDEX($K15:$O15,1,aux!$AL$1) -> -2.819 | AB15: -0.0002748767345 | AC15: -4.481607999e-05 | AD15: =+IF(INDEX($K15:$O15,1,aux!$AL$1)>0,(O15/INDEX($K15:$O15,1,aux!$AL$1))^(1/($O$3-INDEX($K$3:$O$3,1,aux!$AL$1)))-1,"n.d.") -> -1 | AE15: =IF(INDEX($K15:$O15,1,aux!$AL$1)>0,(O15-INDEX($K15:$O15,1,aux!$AL$1))/INDEX($K15:$O15,1,aux!$AL$1),"n.d.") -> -1
A16: 14 | B16: Matérias para entrançar e outros | C16: 0 | D16: 0 | E16: 0.063 | F16: 0.482 | G16: 6.609 | H16: 1.4308 | I16: 7.800278767e-06 | J16: 6.903742443e-06 | K16: 69.376 | L16: 62.327 | M16: 58.931 | N16: 0.007 | O16: 0.158 | P16: 38.1598 | Q16: 0.0002841398462 | R16: 0.0001518009682 | S16: 36.729 | U16: =G16-INDEX($C16:$G16,1,aux!$AL$1) -> 6.609 | V16: 4.718567573e-05 | W16: 4.708307291e-05 | X16: =+IF(INDEX($C16:$G16,1,aux!$AL$1)>0,(G16/INDEX($C16:$G16,1,aux!$AL$1))^(1/($G$3-INDEX($C$3:$G$3,1,aux!$AL$1)))-1,"n.d.") -> n.d. | Y16: =IF(INDEX($C16:$G16,1,aux!$AL$1)>0,(G16-INDEX($C16:$G16,1,aux!$AL$1))/INDEX($C16:$G16,1,aux!$AL$1),"n.d.") -> n.d. | AA16: =O16-INDEX($K16:$O16,1,aux!$AL$1) -> -69.218 | AB16: -0.006749350056 | AC16: -0.001100418384 | AD16: =+IF(INDEX($K16:$O16,1,aux!$AL$1)>0,(O16/INDEX($K16:$O16,1,aux!$AL$1))^(1/($O$3-INDEX($K$3:$O$3,1,aux!$AL$1)))-1,"n.d.") -> -0.7815450159 | AE16: =IF(INDEX($K16:$O16,1,aux!$AL$1)>0,(O16-INDEX($K16:$O16,1,aux!$AL$1))/INDEX($K16:$O16,1,aux!$AL$1),"n.d.") -> -0.9977225554
A17: 15 | B17: Gorduras e óleos animais ou vegetais | C17: 453.294 | D17: 281.135 | E17: 537.077 | F17: 1509.464 | G17: 635.957 | H17: 683.3854 | I17: 0.003725605693 | J17: 0.003297397813 | K17: 10485.343 | L17: 9523.51 | M17: 10251.027 | N17: 9694.225 | O17: 12457.241 | P17: 10482.2692 | Q17: 0.07805151908 | R17: 0.04169881952 | S17: 9798.8838 | U17: =G17-INDEX($C17:$G17,1,aux!$AL$1) -> 182.663 | V17: 0.001304142395 | W17: 0.001301306604 | X17: =+IF(INDEX($C17:$G17,1,aux!$AL$1)>0,(G17/INDEX($C17:$G17,1,aux!$AL$1))^(1/($G$3-INDEX($C$3:$G$3,1,aux!$AL$1)))-1,"n.d.") -> 0.08833336956 | Y17: =IF(INDEX($C17:$G17,1,aux!$AL$1)>0,(G17-INDEX($C17:$G17,1,aux!$AL$1))/INDEX($C17:$G17,1,aux!$AL$1),"n.d.") -> 0.4029680516 | AA17: =O17-INDEX($K17:$O17,1,aux!$AL$1) -> 1971.898 | AB17: 0.1922770071 | AC17: 0.03134896719 | AD17: =+IF(INDEX($K17:$O17,1,aux!$AL$1)>0,(O17/INDEX($K17:$O17,1,aux!$AL$1))^(1/($O$3-INDEX($K$3:$O$3,1,aux!$AL$1)))-1,"n.d.") -> 0.04402237452 | AE17: =IF(INDEX($K17:$O17,1,aux!$AL$1)>0,(O17-INDEX($K17:$O17,1,aux!$AL$1))/INDEX($K17:$O17,1,aux!$AL$1),"n.d.") -> 0.1880623266
A18: 16a | B18: Preparações de carnes (exc. NC 1604-05) (a) | C18: 2430.022 | D18: 2686.516 | E18: 2357.763 | F18: 3116.616 | G18: 3837.667 | H18: 2885.7168 | I18: 0.01573203486 | J18: 0.01392385068 | K18: 22.672 | L18: 79.03 | M18: 306.271 | N18: 363.185 | O18: 299.644 | P18: 214.1604 | Q18: 0.001594649424 | R18: 0.000851937276 | S18: -2671.5564 | U18: =G18-INDEX($C18:$G18,1,aux!$AL$1) -> 1407.645 | V18: 0.01005003488 | W18: 0.0100281816 | X18: =+IF(INDEX($C18:$G18,1,aux!$AL$1)>0,(G18/INDEX($C18:$G18,1,aux!$AL$1))^(1/($G$3-INDEX($C$3:$G$3,1,aux!$AL$1)))-1,"n.d.") -> 0.1210223481 | Y18: =IF(INDEX($C18:$G18,1,aux!$AL$1)>0,(G18-INDEX($C18:$G18,1,aux!$AL$1))/INDEX($C18:$G18,1,aux!$AL$1),"n.d.") -> 0.5792725333 | AA18: =O18-INDEX($K18:$O18,1,aux!$AL$1) -> 276.972 | AB18: 0.02700715109 | AC18: 0.004403263323 | AD18: =+IF(INDEX($K18:$O18,1,aux!$AL$1)>0,(O18/INDEX($K18:$O18,1,aux!$AL$1))^(1/($O$3-INDEX($K$3:$O$3,1,aux!$AL$1)))-1,"n.d.") -> 0.9066849486 | AE18: =IF(INDEX($K18:$O18,1,aux!$AL$1)>0,(O18-INDEX($K18:$O18,1,aux!$AL$1))/INDEX($K18:$O18,1,aux!$AL$1),"n.d.") -> 12.21647848
A19: 17 | B19: Açúcares e produtos de confeitaria | C19: 679.384 | D19: 1112.368 | E19: 1107.911 | F19: 1131.056 | G19: 1899.447 | H19: 1186.0332 | I19: 0.006465885928 | J19: 0.005722719976 | K19: 359.328 | L19: 413.698 | M19: 0.186 | N19: 28734.846 | O19: 6651.06 | P19: 7231.8236 | Q19: 0.05384853288 | R19: 0.02876843757 | S19: 6045.7904 | U19: =G19-INDEX($C19:$G19,1,aux!$AL$1) -> 1220.063 | V19: 0.008710772748 | W19: 0.00869183162 | X19: =+IF(INDEX($C19:$G19,1,aux!$AL$1)>0,(G19/INDEX($C19:$G19,1,aux!$AL$1))^(1/($G$3-INDEX($C$3:$G$3,1,aux!$AL$1)))-1,"n.d.") -> 0.2930876573 | Y19: =IF(INDEX($C19:$G19,1,aux!$AL$1)>0,(G19-INDEX($C19:$G19,1,aux!$AL$1))/INDEX($C19:$G19,1,aux!$AL$1),"n.d.") -> 1.795837111 | AA19: =O19-INDEX($K19:$O19,1,aux!$AL$1) -> 6291.732 | AB19: 0.613497959 | AC19: 0.1000251027 | AD19: =+IF(INDEX($K19:$O19,1,aux!$AL$1)>0,(O19/INDEX($K19:$O19,1,aux!$AL$1))^(1/($O$3-INDEX($K$3:$O$3,1,aux!$AL$1)))-1,"n.d.") -> 1.074196759 | AE19: =IF(INDEX($K19:$O19,1,aux!$AL$1)>0,(O19-INDEX($K19:$O19,1,aux!$AL$1))/INDEX($K19:$O19,1,aux!$AL$1),"n.d.") -> 17.50971814
A20: 18 | B20: Cacau e suas preparações | C20: 4428.505 | D20: 6798.958 | E20: 5887.22 | F20: 4998.876 | G20: 7974.98 | H20: 6017.7078 | I20: 0.03280668044 | J20: 0.02903599717 | K20: 10.475 | L20: 122.094 | M20: 4.092 | N20: 47.246 | O20: 283.932 | P20: 93.5678 | Q20: 0.0006967106824 | R20: 0.0003722158562 | S20: -5924.14 | U20: =G20-INDEX($C20:$G20,1,aux!$AL$1) -> 3546.475 | V20: 0.02532044475 | W20: 0.02526538674 | X20: =+IF(INDEX($C20:$G20,1,aux!$AL$1)>0,(G20/INDEX($C20:$G20,1,aux!$AL$1))^(1/($G$3-INDEX($C$3:$G$3,1,aux!$AL$1)))-1,"n.d.") -> 0.1584255184 | Y20: =IF(INDEX($C20:$G20,1,aux!$AL$1)>0,(G20-INDEX($C20:$G20,1,aux!$AL$1))/INDEX($C20:$G20,1,aux!$AL$1),"n.d.") -> 0.8008289479 | AA20: =O20-INDEX($K20:$O20,1,aux!$AL$1) -> 273.457 | AB20: 0.02666440837 | AC20: 0.004347382329 | AD20: =+IF(INDEX($K20:$O20,1,aux!$AL$1)>0,(O20/INDEX($K20:$O20,1,aux!$AL$1))^(1/($O$3-INDEX($K$3:$O$3,1,aux!$AL$1)))-1,"n.d.") -> 1.281734334 | AE20: =IF(INDEX($K20:$O20,1,aux!$AL$1)>0,(O20-INDEX($K20:$O20,1,aux!$AL$1))/INDEX($K20:$O20,1,aux!$AL$1),"n.d.") -> 26.10568019
A21: 19a | B21: Preparações à base de cereais (exc. NC 19022010) (a) | C21: 11114.524 | D21: 8329.234 | E21: 9931.727 | F21: 12837.157 | G21: 16919.195 | H21: 11826.3674 | I21: 0.0644736948 | J21: 0.05706331742 | K21: 4991.837 | L21: 5285.4 | M21: 6933.927 | N21: 9984.262 | O21: 12011.996 | P21: 7841.4844 | Q21: 0.05838809876 | R21: 0.03119368875 | S21: -3984.883 | U21: =G21-INDEX($C21:$G21,1,aux!$AL$1) -> 5804.671 | V21: 0.04144308118 | W21: 0.04135296533 | X21: =+IF(INDEX($C21:$G21,1,aux!$AL$1)>0,(G21/INDEX($C21:$G21,1,aux!$AL$1))^(1/($G$3-INDEX($C$3:$G$3,1,aux!$AL$1)))-1,"n.d.") -> 0.1107650517 | Y21: =IF(INDEX($C21:$G21,1,aux!$AL$1)>0,(G21-INDEX($C21:$G21,1,aux!$AL$1))/INDEX($C21:$G21,1,aux!$AL$1),"n.d.") -> 0.5222599726 | AA21: =O21-INDEX($K21:$O21,1,aux!$AL$1) -> 7020.159 | AB21: 0.6845258537 | AC21: 0.1116055365 | AD21: =+IF(INDEX($K21:$O21,1,aux!$AL$1)>0,(O21/INDEX($K21:$O21,1,aux!$AL$1))^(1/($O$3-INDEX($K$3:$O$3,1,aux!$AL$1)))-1,"n.d.") -> 0.2454855573 | AE21: =IF(INDEX($K21:$O21,1,aux!$AL$1)>0,(O21-INDEX($K21:$O21,1,aux!$AL$1))/INDEX($K21:$O21,1,aux!$AL$1),"n.d.") -> 1.406327771
A22: 20 | B22: Preparações de produtos vegetais | C22: 1319.193 | D22: 4500.861 | E22: 3726.526 | F22: 2890.85 | G22: 3172.797 | H22: 3122.0454 | I22: 0.01702042525 | J22: 0.01506415805 | K22: 9450.07 | L22: 9358.486 | M22: 11735.985 | N22: 11849.544 | O22: 19570.617 | P22: 12392.9404 | Q22: 0.09227847574 | R22: 0.04929953383 | S22: 9270.895 | U22: =G22-INDEX($C22:$G22,1,aux!$AL$1) -> 1853.604 | V22: 0.01323400776 | W22: 0.01320523109 | X22: =+IF(INDEX($C22:$G22,1,aux!$AL$1)>0,(G22/INDEX($C22:$G22,1,aux!$AL$1))^(1/($G$3-INDEX($C$3:$G$3,1,aux!$AL$1)))-1,"n.d.") -> 0.2453272376 | Y22: =IF(INDEX($C22:$G22,1,aux!$AL$1)>0,(G22-INDEX($C22:$G22,1,aux!$AL$1))/INDEX($C22:$G22,1,aux!$AL$1),"n.d.") -> 1.405104484 | AA22: =O22-INDEX($K22:$O22,1,aux!$AL$1) -> 10120.547 | AB22: 0.9868403373 | AC22: 0.1608950847 | AD22: =+IF(INDEX($K22:$O22,1,aux!$AL$1)>0,(O22/INDEX($K22:$O22,1,aux!$AL$1))^(1/($O$3-INDEX($K$3:$O$3,1,aux!$AL$1)))-1,"n.d.") -> 0.1996163412 | AE22: =IF(INDEX($K22:$O22,1,aux!$AL$1)>0,(O22-INDEX($K22:$O22,1,aux!$AL$1))/INDEX($K22:$O22,1,aux!$AL$1),"n.d.") -> 1.070949422
A23: 21 | B23: Preparações alimentícias diversas | C23: 10959.982 | D23: 14288.664 | E23: 14202.677 | F23: 17032.783 | G23: 23694.159 | H23: 16035.653 | I23: 0.08742141711 | J23: 0.07737351008 | K23: 3749.838 | L23: 6547.774 | M23: 10970.252 | N23: 11063.592 | O23: 11963.262 | P23: 8858.9436 | Q23: 0.06596415263 | R23: 0.03524117567 | S23: -7176.7094 | U23: =G23-INDEX($C23:$G23,1,aux!$AL$1) -> 12734.177 | V23: 0.09091704443 | W23: 0.09071934999 | X23: =+IF(INDEX($C23:$G23,1,aux!$AL$1)>0,(G23/INDEX($C23:$G23,1,aux!$AL$1))^(1/($G$3-INDEX($C$3:$G$3,1,aux!$AL$1)))-1,"n.d.") -> 0.2125729182 | Y23: =IF(INDEX($C23:$G23,1,aux!$AL$1)>0,(G23-INDEX($C23:$G23,1,aux!$AL$1))/INDEX($C23:$G23,1,aux!$AL$1),"n.d.") -> 1.161879372 | AA23: =O23-INDEX($K23:$O23,1,aux!$AL$1) -> 8213.424 | AB23: 0.8008794495 | AC23: 0.1305759017 | AD23: =+IF(INDEX($K23:$O23,1,aux!$AL$1)>0,(O23/INDEX($K23:$O23,1,aux!$AL$1))^(1/($O$3-INDEX($K$3:$O$3,1,aux!$AL$1)))-1,"n.d.") -> 0.3364701925 | AE23: =IF(INDEX($K23:$O23,1,aux!$AL$1)>0,(O23-INDEX($K23:$O23,1,aux!$AL$1))/INDEX($K23:$O23,1,aux!$AL$1),"n.d.") -> 2.190341023
A24: 22 | B24: Bebidas, líquidos alcoólicos e vinagres | C24: 383.657 | D24: 504.876 | E24: 1290.719 | F24: 877.331 | G24: 1334.917 | H24: 878.3 | I24: 0.004788219766 | J24: 0.004237878801 | K24: 23567.377 | L24: 23031.47 | M24: 26740.699 | N24: 31961.919 | O24: 33785.958 | P24: 27817.4846 | Q24: 0.2071304303 | R24: 0.1106588896 | S24: 26939.1846 | U24: =G24-INDEX($C24:$G24,1,aux!$AL$1) -> 951.26 | V24: 0.006791624436 | W24: 0.006776856398 | X24: =+IF(INDEX($C24:$G24,1,aux!$AL$1)>0,(G24/INDEX($C24:$G24,1,aux!$AL$1))^(1/($G$3-INDEX($C$3:$G$3,1,aux!$AL$1)))-1,"n.d.") -> 0.3657706773 | Y24: =IF(INDEX($C24:$G24,1,aux!$AL$1)>0,(G24-INDEX($C24:$G24,1,aux!$AL$1))/INDEX($C24:$G24,1,aux!$AL$1),"n.d.") -> 2.479454304 | AA24: =O24-INDEX($K24:$O24,1,aux!$AL$1) -> 10218.581 | AB24: 0.9963994951 | AC24: 0.162453616 | AD24: =+IF(INDEX($K24:$O24,1,aux!$AL$1)>0,(O24/INDEX($K24:$O24,1,aux!$AL$1))^(1/($O$3-INDEX($K$3:$O$3,1,aux!$AL$1)))-1,"n.d.") -> 0.09422402796 | AE24: =IF(INDEX($K24:$O24,1,aux!$AL$1)>0,(O24-INDEX($K24:$O24,1,aux!$AL$1))/INDEX($K24:$O24,1,aux!$AL$1),"n.d.") -> 0.4335900851
A25: 23a | B25: Resíduos indústrias alimentares; alimentos p/ animais (exc. NC 230120) (a) | C25: 4431.217 | D25: 5473.779 | E25: 3862.021 | F25: 4109.983 | G25: 5099.312 | H25: 4595.2624 | I25: 0.02505194837 | J25: 0.02217256644 | K25: 409.623 | L25: 439.959 | M25: 661.055 | N25: 808.738 | O25: 2196.654 | P25: 903.2058 | Q25: 0.006725317141 | R25: 0.003592983058 | S25: -3692.0566 | U25: =G25-INDEX($C25:$G25,1,aux!$AL$1) -> 668.095 | V25: 0.00476993706 | W25: 0.004759565077 | X25: =+IF(INDEX($C25:$G25,1,aux!$AL$1)>0,(G25/INDEX($C25:$G25,1,aux!$AL$1))^(1/($G$3-INDEX($C$3:$G$3,1,aux!$AL$1)))-1,"n.d.") -> 0.03573139722 | Y25: =IF(INDEX($C25:$G25,1,aux!$AL$1)>0,(G25-INDEX($C25:$G25,1,aux!$AL$1))/INDEX($C25:$G25,1,aux!$AL$1),"n.d.") -> 0.1507700932 | AA25: =O25-INDEX($K25:$O25,1,aux!$AL$1) -> 1787.031 | AB25: 0.1742508853 | AC25: 0.02840997667 | AD25: =+IF(INDEX($K25:$O25,1,aux!$AL$1)>0,(O25/INDEX($K25:$O25,1,aux!$AL$1))^(1/($O$3-INDEX($K$3:$O$3,1,aux!$AL$1)))-1,"n.d.") -> 0.521753574 | AE25: =IF(INDEX($K25:$O25,1,aux!$AL$1)>0,(O25-INDEX($K25:$O25,1,aux!$AL$1))/INDEX($K25:$O25,1,aux!$AL$1),"n.d.") -> 4.362623681
A26: 24 | B26: Tabaco | C26: 30437.375 | D26: 26853.653 | E26: 59127.258 | F26: 58733.584 | G26: 70693.31 | H26: 49169.036 | I26: 0.2680543664 | J26: 0.2372451501 | K26: 1121.8 | L26: 787.379 | M26: 197.792 | N26: 3.223 | O26: 3714.03 | P26: 1164.8448 | Q26: 0.008673494679 | R26: 0.004633791802 | S26: -48004.1912 | U26: =G26-INDEX($C26:$G26,1,aux!$AL$1) -> 40255.935 | V26: 0.2874116349 | W26: 0.2867866731 | X26: =+IF(INDEX($C26:$G26,1,aux!$AL$1)>0,(G26/INDEX($C26:$G26,1,aux!$AL$1))^(1/($G$3-INDEX($C$3:$G$3,1,aux!$AL$1)))-1,"n.d.") -> 0.2345047929 | Y26: =IF(INDEX($C26:$G26,1,aux!$AL$1)>0,(G26-INDEX($C26:$G26,1,aux!$AL$1))/INDEX($C26:$G26,1,aux!$AL$1),"n.d.") -> 1.322582351 | AA26: =O26-INDEX($K26:$O26,1,aux!$AL$1) -> 2592.23 | AB26: 0.25276471 | AC26: 0.04121092126 | AD26: =+IF(INDEX($K26:$O26,1,aux!$AL$1)>0,(O26/INDEX($K26:$O26,1,aux!$AL$1))^(1/($O$3-INDEX($K$3:$O$3,1,aux!$AL$1)))-1,"n.d.") -> 0.348908505 | AE26: =IF(INDEX($K26:$O26,1,aux!$AL$1)>0,(O26-INDEX($K26:$O26,1,aux!$AL$1))/INDEX($K26:$O26,1,aux!$AL$1),"n.d.") -> 2.310777322
A27: 29 | B27: Manitol e sorbitol (NC 290543; 290544) | C27: 1.202 | D27: 7.693 | E27: 5.478 | F27: 4.929 | G27: 2.034 | H27: 4.2672 | I27: 2.32634537e-05 | J27: 2.0589635e-05 | K27: 0 | L27: 0 | M27: 0 | N27: 0 | O27: 0 | P27: 0 | Q27: 0 | R27: 0 | S27: -4.2672 | U27: =G27-INDEX($C27:$G27,1,aux!$AL$1) -> 0.832 | V27: 5.940154669e-06 | W27: 5.927238108e-06 | X27: =+IF(INDEX($C27:$G27,1,aux!$AL$1)>0,(G27/INDEX($C27:$G27,1,aux!$AL$1))^(1/($G$3-INDEX($C$3:$G$3,1,aux!$AL$1)))-1,"n.d.") -> 0.1405428866 | Y27: =IF(INDEX($C27:$G27,1,aux!$AL$1)>0,(G27-INDEX($C27:$G27,1,aux!$AL$1))/INDEX($C27:$G27,1,aux!$AL$1),"n.d.") -> 0.6921797005 | AA27: =O27-INDEX($K27:$O27,1,aux!$AL$1) -> 0 | AB27: 0 | AC27: 0 | AD27: =+IF(INDEX($K27:$O27,1,aux!$AL$1)>0,(O27/INDEX($K27:$O27,1,aux!$AL$1))^(1/($O$3-INDEX($K$3:$O$3,1,aux!$AL$1)))-1,"n.d.") -> n.d. | AE27: =IF(INDEX($K27:$O27,1,aux!$AL$1)>0,(O27-INDEX($K27:$O27,1,aux!$AL$1))/INDEX($K27:$O27,1,aux!$AL$1),"n.d.") -> n.d.
A28: 33 | B28: Óleos essenciais e resinóides (NC 3301) | C28: 9.567 | D28: 5.672 | E28: 11.564 | F28: 5.737 | G28: 5.971 | H28: 7.7022 | I28: 4.199001056e-05 | J28: 3.716382796e-05 | K28: 0 | L28: 0 | M28: 0 | N28: 0.015 | O28: 0 | P28: 0.003 | Q28: 2.23381553e-08 | R28: 1.193410093e-08 | S28: -7.6992 | U28: =G28-INDEX($C28:$G28,1,aux!$AL$1) -> -3.596 | V28: -2.567403388e-05 | W28: -2.561820702e-05 | X28: =+IF(INDEX($C28:$G28,1,aux!$AL$1)>0,(G28/INDEX($C28:$G28,1,aux!$AL$1))^(1/($G$3-INDEX($C$3:$G$3,1,aux!$AL$1)))-1,"n.d.") -> -0.1111718016 | Y28: =IF(INDEX($C28:$G28,1,aux!$AL$1)>0,(G28-INDEX($C28:$G28,1,aux!$AL$1))/INDEX($C28:$G28,1,aux!$AL$1),"n.d.") -> -0.375875405 | AA28: =O28-INDEX($K28:$O28,1,aux!$AL$1) -> 0 | AB28: 0 | AC28: 0 | AD28: =+IF(INDEX($K28:$O28,1,aux!$AL$1)>0,(O28/INDEX($K28:$O28,1,aux!$AL$1))^(1/($O$3-INDEX($K$3:$O$3,1,aux!$AL$1)))-1,"n.d.") -> n.d. | AE28: =IF(INDEX($K28:$O28,1,aux!$AL$1)>0,(O28-INDEX($K28:$O28,1,aux!$AL$1))/INDEX($K28:$O28,1,aux!$AL$1),"n.d.") -> n.d.
A29: 35 | B29: Caseínas, albuminas, gelatinas, peptonas, dextrinas (NC 3501 a 3505) | C29: 294.113 | D29: 1369.3 | E29: 998.084 | F29: 1807.51 | G29: 1784.484 | H29: 1250.6982 | I29: 0.006818419495 | J29: 0.006034734587 | K29: 40.825 | L29: 21.392 | M29: 0.852 | N29: 0 | O29: 0.454 | P29: 12.7046 | Q29: 9.459910926e-05 | R29: 5.053932621e-05 | S29: -1237.9936 | U29: =G29-INDEX($C29:$G29,1,aux!$AL$1) -> 1490.371 | V29: 0.01064066617 | W29: 0.01061752859 | X29: =+IF(INDEX($C29:$G29,1,aux!$AL$1)>0,(G29/INDEX($C29:$G29,1,aux!$AL$1))^(1/($G$3-INDEX($C$3:$G$3,1,aux!$AL$1)))-1,"n.d.") -> 0.5694576791 | Y29: =IF(INDEX($C29:$G29,1,aux!$AL$1)>0,(G29-INDEX($C29:$G29,1,aux!$AL$1))/INDEX($C29:$G29,1,aux!$AL$1),"n.d.") -> 5.067341464 | AA29: =O29-INDEX($K29:$O29,1,aux!$AL$1) -> -40.371 | AB29: -0.003936519563 | AC29: -0.0006418126872 | AD29: =+IF(INDEX($K29:$O29,1,aux!$AL$1)>0,(O29/INDEX($K29:$O29,1,aux!$AL$1))^(1/($O$3-INDEX($K$3:$O$3,1,aux!$AL$1)))-1,"n.d.") -> -0.675262521 | AE29: =IF(INDEX($K29:$O29,1,aux!$AL$1)>0,(O29-INDEX($K29:$O29,1,aux!$AL$1))/INDEX($K29:$O29,1,aux!$AL$1),"n.d.") -> -0.9888793631
A30: 38a | B30: Agentes de acabamento, ácidos gordos, sorbitol (NC 380910, 382311-12-13-19-70, 382460) (a) | C30: 2.028 | D30: 0 | E30: 0.01 | F30: 0.007 | G30: 0 | H30: 0.409 | I30: 2.229741414e-06 | J30: 1.973462859e-06 | K30: 0.227 | L30: 26.084 | M30: 0.701 | N30: 0 | O30: 0 | P30: 5.4024 | Q30: 4.022655006e-05 | R30: 2.149092895e-05 | S30: 4.9934 | U30: =G30-INDEX($C30:$G30,1,aux!$AL$1) -> -2.028 | V30: -1.447912701e-05 | W30: -1.444764289e-05 | X30: =+IF(INDEX($C30:$G30,1,aux!$AL$1)>0,(G30/INDEX($C30:$G30,1,aux!$AL$1))^(1/($G$3-INDEX($C$3:$G$3,1,aux!$AL$1)))-1,"n.d.") -> -1 | Y30: =IF(INDEX($C30:$G30,1,aux!$AL$1)>0,(G30-INDEX($C30:$G30,1,aux!$AL$1))/INDEX($C30:$G30,1,aux!$AL$1),"n.d.") -> -1 | AA30: =O30-INDEX($K30:$O30,1,aux!$AL$1) -> -0.227 | AB30: -2.213445148e-05 | AC30: -3.608815239e-06 | AD30: =+IF(INDEX($K30:$O30,1,aux!$AL$1)>0,(O30/INDEX($K30:$O30,1,aux!$AL$1))^(1/($O$3-INDEX($K$3:$O$3,1,aux!$AL$1)))-1,"n.d.") -> -1 | AE30: =IF(INDEX($K30:$O30,1,aux!$AL$1)>0,(O30-INDEX($K30:$O30,1,aux!$AL$1))/INDEX($K30:$O30,1,aux!$AL$1),"n.d.") -> -1
A31: 41 | B31: Couro e peles em bruto (NC 4101 a 4103) | C31: 0 | D31: 33.951 | E31: 0 | F31: 0 | G31: 409.055 | H31: 88.6012 | I31: 0.0004830263203 | J31: 0.0004275089914 | K31: 0 | L31: 0 | M31: 0 | N31: 217.451 | O31: 163.397 | P31: 76.1696 | Q31: 0.0005671627845 | R31: 0.0003030052313 | S31: -12.4316 | U31: =G31-INDEX($C31:$G31,1,aux!$AL$1) -> 409.055 | V31: 0.00292049275 | W31: 0.002914142289 | X31: =+IF(INDEX($C31:$G31,1,aux!$AL$1)>0,(G31/INDEX($C31:$G31,1,aux!$AL$1))^(1/($G$3-INDEX($C$3:$G$3,1,aux!$AL$1)))-1,"n.d.") -> n.d. | Y31: =IF(INDEX($C31:$G31,1,aux!$AL$1)>0,(G31-INDEX($C31:$G31,1,aux!$AL$1))/INDEX($C31:$G31,1,aux!$AL$1),"n.d.") -> n.d. | AA31: =O31-INDEX($K31:$O31,1,aux!$AL$1) -> 163.397 | AB31: 0.0159326122 | AC31: 0.002597663364 | AD31: =+IF(INDEX($K31:$O31,1,aux!$AL$1)>0,(O31/INDEX($K31:$O31,1,aux!$AL$1))^(1/($O$3-INDEX($K$3:$O$3,1,aux!$AL$1)))-1,"n.d.") -> n.d. | AE31: =IF(INDEX($K31:$O31,1,aux!$AL$1)>0,(O31-INDEX($K31:$O31,1,aux!$AL$1))/INDEX($K31:$O31,1,aux!$AL$1),"n.d.") -> n.d.
A32: 43 | B32: Peles com pelo em bruto (NC 4301) | C32: 175.538 | D32: 141.97 | E32: 171.938 | F32: 173.107 | G32: 239.433 | H32: 180.3972 | I32: 0.0009834697014 | J32: 0.0008704331886 | K32: 0 | L32: 0 | M32: 0 | N32: 0 | O32: 0 | P32: 0 | Q32: 0 | R32: 0 | S32: -180.3972 | U32: =G32-INDEX($C32:$G32,1,aux!$AL$1) -> 63.895 | V32: 0.0004561853156 | W32: 0.0004551933641 | X32: =+IF(INDEX($C32:$G32,1,aux!$AL$1)>0,(G32/INDEX($C32:$G32,1,aux!$AL$1))^(1/($G$3-INDEX($C$3:$G$3,1,aux!$AL$1)))-1,"n.d.") -> 0.08069518205 | Y32: =IF(INDEX($C32:$G32,1,aux!$AL$1)>0,(G32-INDEX($C32:$G32,1,aux!$AL$1))/INDEX($C32:$G32,1,aux!$AL$1),"n.d.") -> 0.3639952603 | AA32: =O32-INDEX($K32:$O32,1,aux!$AL$1) -> 0 | AB32: 0 | AC32: 0 | AD32: =+IF(INDEX($K32:$O32,1,aux!$AL$1)>0,(O32/INDEX($K32:$O32,1,aux!$AL$1))^(1/($O$3-INDEX($K$3:$O$3,1,aux!$AL$1)))-1,"n.d.") -> n.d. | AE32: =IF(INDEX($K32:$O32,1,aux!$AL$1)>0,(O32-INDEX($K32:$O32,1,aux!$AL$1))/INDEX($K32:$O32,1,aux!$AL$1),"n.d.") -> n.d.
A33: 50 | B33: Seda crua (NC 5001-5003) | C33: 0 | D33: 0 | E33: 0 | F33: 0 | G33: 0 | H33: 0 | I33: 0 | J33: 0 | K33: 0 | L33: 0 | M33: 0 | N33: 0 | O33: 0 | P33: 0 | Q33: 0 | R33: 0 | S33: 0 | U33: =G33-INDEX($C33:$G33,1,aux!$AL$1) -> 0 | V33: 0 | W33: 0 | X33: =+IF(INDEX($C33:$G33,1,aux!$AL$1)>0,(G33/INDEX($C33:$G33,1,aux!$AL$1))^(1/($G$3-INDEX($C$3:$G$3,1,aux!$AL$1)))-1,"n.d.") -> n.d. | Y33: =IF(INDEX($C33:$G33,1,aux!$AL$1)>0,(G33-INDEX($C33:$G33,1,aux!$AL$1))/INDEX($C33:$G33,1,aux!$AL$1),"n.d.") -> n.d. | AA33: =O33-INDEX($K33:$O33,1,aux!$AL$1) -> 0 | AB33: 0 | AC33: 0 | AD33: =+IF(INDEX($K33:$O33,1,aux!$AL$1)>0,(O33/INDEX($K33:$O33,1,aux!$AL$1))^(1/($O$3-INDEX($K$3:$O$3,1,aux!$AL$1)))-1,"n.d.") -> n.d. | AE33: =IF(INDEX($K33:$O33,1,aux!$AL$1)>0,(O33-INDEX($K33:$O33,1,aux!$AL$1))/INDEX($K33:$O33,1,aux!$AL$1),"n.d.") -> n.d.
A34: 51 | B34: Lã não cardada (NC 5101-5103) | C34: 0 | D34: 0 | E34: 0 | F34: 0 | G34: 0 | H34: 0 | I34: 0 | J34: 0 | K34: 0 | L34: 0 | M34: 0 | N34: 0 | O34: 0 | P34: 0 | Q34: 0 | R34: 0 | S34: 0 | U34: =G34-INDEX($C34:$G34,1,aux!$AL$1) -> 0 | V34: 0 | W34: 0 | X34: =+IF(INDEX($C34:$G34,1,aux!$AL$1)>0,(G34/INDEX($C34:$G34,1,aux!$AL$1))^(1/($G$3-INDEX($C$3:$G$3,1,aux!$AL$1)))-1,"n.d.") -> n.d. | Y34: =IF(INDEX($C34:$G34,1,aux!$AL$1)>0,(G34-INDEX($C34:$G34,1,aux!$AL$1))/INDEX($C34:$G34,1,aux!$AL$1),"n.d.") -> n.d. | AA34: =O34-INDEX($K34:$O34,1,aux!$AL$1) -> 0 | AB34: 0 | AC34: 0 | AD34: =+IF(INDEX($K34:$O34,1,aux!$AL$1)>0,(O34/INDEX($K34:$O34,1,aux!$AL$1))^(1/($O$3-INDEX($K$3:$O$3,1,aux!$AL$1)))-1,"n.d.") -> n.d. | AE34: =IF(INDEX($K34:$O34,1,aux!$AL$1)>0,(O34-INDEX($K34:$O34,1,aux!$AL$1))/INDEX($K34:$O34,1,aux!$AL$1),"n.d.") -> n.d.
A35: 52 | B35: Algodão (NC 5201-5203) | C35: 0.517 | D35: 0.683 | E35: 0.916 | F35: 0.616 | G35: 13.843 | H35: 3.315 | I35: 1.807235401e-05 | J35: 1.599518186e-05 | K35: 0 | L35: 0 | M35: 0 | N35: 0 | O35: 0 | P35: 0 | Q35: 0 | R35: 0 | S35: -3.315 | U35: =G35-INDEX($C35:$G35,1,aux!$AL$1) -> 13.326 | V35: 9.514242924e-05 | W35: 9.493554691e-05 | X35: =+IF(INDEX($C35:$G35,1,aux!$AL$1)>0,(G35/INDEX($C35:$G35,1,aux!$AL$1))^(1/($G$3-INDEX($C$3:$G$3,1,aux!$AL$1)))-1,"n.d.") -> 1.274756522 | Y35: =IF(INDEX($C35:$G35,1,aux!$AL$1)>0,(G35-INDEX($C35:$G35,1,aux!$AL$1))/INDEX($C35:$G35,1,aux!$AL$1),"n.d.") -> 25.77562863 | AA35: =O35-INDEX($K35:$O35,1,aux!$AL$1) -> 0 | AB35: 0 | AC35: 0 | AD35: =+IF(INDEX($K35:$O35,1,aux!$AL$1)>0,(O35/INDEX($K35:$O35,1,aux!$AL$1))^(1/($O$3-INDEX($K$3:$O$3,1,aux!$AL$1)))-1,"n.d.") -> n.d. | AE35: =IF(INDEX($K35:$O35,1,aux!$AL$1)>0,(O35-INDEX($K35:$O35,1,aux!$AL$1))/INDEX($K35:$O35,1,aux!$AL$1),"n.d.") -> n.d.
A36: 53 | B36: Linho e cânhamo em bruto (NC 5301-5302) | C36: 0 | D36: 0 | E36: 3.013 | F36: 1.286 | G36: 37.596 | H36: 8.379 | I36: 4.567971469e-05 | J36: 4.042945061e-05 | K36: 0 | L36: 0 | M36: 0 | N36: 0 | O36: 0 | P36: 0 | Q36: 0 | R36: 0 | S36: -8.379 | U36: =G36-INDEX($C36:$G36,1,aux!$AL$1) -> 37.596 | V36: 0.0002684207391 | W36: =IF($U$53<>0,U36/$U$53, "n.d.") -> 0.000267837072 | X36: =+IF(INDEX($C36:$G36,1,aux!$AL$1)>0,(G36/INDEX($C36:$G36,1,aux!$AL$1))^(1/($G$3-INDEX($C$3:$G$3,1,aux!$AL$1)))-1,"n.d.") -> n.d. | Y36: =IF(INDEX($C36:$G36,1,aux!$AL$1)>0,(G36-INDEX($C36:$G36,1,aux!$AL$1))/INDEX($C36:$G36,1,aux!$AL$1),"n.d.") -> n.d. | AA36: =O36-INDEX($K36:$O36,1,aux!$AL$1) -> 0 | AB36: 0 | AC36: =IF($AA$53<>0,AA36/$AA$53, "n.d.") -> 0 | AD36: =+IF(INDEX($K36:$O36,1,aux!$AL$1)>0,(O36/INDEX($K36:$O36,1,aux!$AL$1))^(1/($O$3-INDEX($K$3:$O$3,1,aux!$AL$1)))-1,"n.d.") -> n.d. | AE36: =IF(INDEX($K36:$O36,1,aux!$AL$1)>0,(O36-INDEX($K36:$O36,1,aux!$AL$1))/INDEX($K36:$O36,1,aux!$AL$1),"n.d.") -> n.d.
A37: Subtotal Agrícola e Agroalimentar | C37: 128050.435 | D37: 138331.714 | E37: 180185.041 | F37: 202465.391 | G37: 268114.128 | H37: 183429.3418 | I37: 1 | J37: 0.8850635535 | K37: 141451.247 | L37: 124607.295 | M37: 112676.248 | N37: 141055.266 | O37: 151706.753 | P37: 134299.3618 | Q37: 1 | R37: 0.5342473793 | S37: -49129.98 | U37: =G37-INDEX($C37:$G37,1,aux!$AL$1) -> 140063.693 | V37: 1 | W37: 0.9978255514 | X37: =+IF(INDEX($C37:$G37,1,aux!$AL$1)>0,(G37/INDEX($C37:$G37,1,aux!$AL$1))^(1/($G$3-INDEX($C$3:$G$3,1,aux!$AL$1)))-1,"n.d.") -> 0.202914224 | Y37: =IF(INDEX($C37:$G37,1,aux!$AL$1)>0,(G37-INDEX($C37:$G37,1,aux!$AL$1))/INDEX($C37:$G37,1,aux!$AL$1),"n.d.") -> 1.093816612 | AA37: =O37-INDEX($K37:$O37,1,aux!$AL$1) -> 10255.506 | AB37: 1 | AC37: 0.1630406446 | AD37: =+IF(INDEX($K37:$O37,1,aux!$AL$1)>0,(O37/INDEX($K37:$O37,1,aux!$AL$1))^(1/($O$3-INDEX($K$3:$O$3,1,aux!$AL$1)))-1,"n.d.") -> 0.01765256877 | AE37: =IF(INDEX($K37:$O37,1,aux!$AL$1)>0,(O37-INDEX($K37:$O37,1,aux!$AL$1))/INDEX($K37:$O37,1,aux!$AL$1),"n.d.") -> 0.07250205437
A38: 03 | B38: Peixes e crustáceos | C38: 758.395 | D38: 616.033 | E38: 1659.977 | F38: 2472.467 | G38: 2428.855 | H38: 1587.1454 | I38: 0.7705677093 | J38: 0.00765812347 | K38: 2661.932 | L38: 4152.13 | M38: 2748.466 | N38: 2111.233 | O38: 1816.597 | P38: 2698.0716 | Q38: 0.5616691582 | R38: 0.01073301959 | S38: 1110.9262 | U38: =G38-INDEX($C38:$G38,1,aux!$AL$1) -> 1670.46 | V38: =IF($U$44<>0,U38/$U$44, "n.d.") -> 0.644447205 | W38: 0.0119004978 | X38: =+IF(INDEX($C38:$G38,1,aux!$AL$1)>0,(G38/INDEX($C38:$G38,1,aux!$AL$1))^(1/($G$3-INDEX($C$3:$G$3,1,aux!$AL$1)))-1,"n.d.") -> 0.337754843 | Y38: =IF(INDEX($C38:$G38,1,aux!$AL$1)>0,(G38-INDEX($C38:$G38,1,aux!$AL$1))/INDEX($C38:$G38,1,aux!$AL$1),"n.d.") -> 2.202625281 | AA38: =O38-INDEX($K38:$O38,1,aux!$AL$1) -> -845.335 | AB38: =IF($AA$44<>0,AA38/$AA$44, "n.d.") -> 2.238414507 | AC38: -0.01343902128 | AD38: =+IF(INDEX($K38:$O38,1,aux!$AL$1)>0,(O38/INDEX($K38:$O38,1,aux!$AL$1))^(1/($O$3-INDEX($K$3:$O$3,1,aux!$AL$1)))-1,"n.d.") -> -0.09110145353 | AE38: =IF(INDEX($K38:$O38,1,aux!$AL$1)>0,(O38-INDEX($K38:$O38,1,aux!$AL$1))/INDEX($K38:$O38,1,aux!$AL$1),"n.d.") -> -0.3175644607
A39: 05p | B39: Outros produtos de pescado (NC 0508, 051191) (p) | C39: 5.574 | D39: 3.923 | E39: 4.555 | F39: 3.306 | G39: 3.927 | H39: 4.257 | I39: 0.002066796614 | J39: 2.054041905e-05 | K39: 0 | L39: 0 | M39: 0 | N39: 0 | O39: 0 | P39: 0 | Q39: 0 | R39: 0 | S39: -4.257 | U39: =G39-INDEX($C39:$G39,1,aux!$AL$1) -> -1.647 | V39: -0.0006353965654 | W39: -1.173336678e-05 | X39: =+IF(INDEX($C39:$G39,1,aux!$AL$1)>0,(G39/INDEX($C39:$G39,1,aux!$AL$1))^(1/($G$3-INDEX($C$3:$G$3,1,aux!$AL$1)))-1,"n.d.") -> -0.08383544786 | Y39: =IF(INDEX($C39:$G39,1,aux!$AL$1)>0,(G39-INDEX($C39:$G39,1,aux!$AL$1))/INDEX($C39:$G39,1,aux!$AL$1),"n.d.") -> -0.2954790097 | AA39: =O39-INDEX($K39:$O39,1,aux!$AL$1) -> 0 | AB39: 0 | AC39: 0 | AD39: =+IF(INDEX($K39:$O39,1,aux!$AL$1)>0,(O39/INDEX($K39:$O39,1,aux!$AL$1))^(1/($O$3-INDEX($K$3:$O$3,1,aux!$AL$1)))-1,"n.d.") -> n.d. | AE39: =IF(INDEX($K39:$O39,1,aux!$AL$1)>0,(O39-INDEX($K39:$O39,1,aux!$AL$1))/INDEX($K39:$O39,1,aux!$AL$1),"n.d.") -> n.d.
A40: 16p | B40: Preparações e conservas de peixes ou crustáceos (NC 1604-05) (p) | C40: 80.104 | D40: 96.953 | E40: 539.908 | F40: 554.355 | G40: 1006.148 | H40: 455.4936 | I40: 0.2211446159 | J40: 0.002197798783 | K40: 1393.637 | L40: 2431.232 | M40: 2052.68 | N40: 1716.541 | O40: 1329.222 | P40: 1784.6624 | Q40: 0.3715208402 | R40: 0.007099447067 | S40: 1329.1688 | U40: =G40-INDEX($C40:$G40,1,aux!$AL$1) -> 926.044 | V40: 0.3572587596 | W40: 0.006597215489 | X40: =+IF(INDEX($C40:$G40,1,aux!$AL$1)>0,(G40/INDEX($C40:$G40,1,aux!$AL$1))^(1/($G$3-INDEX($C$3:$G$3,1,aux!$AL$1)))-1,"n.d.") -> 0.8825733926 | Y40: =IF(INDEX($C40:$G40,1,aux!$AL$1)>0,(G40-INDEX($C40:$G40,1,aux!$AL$1))/INDEX($C40:$G40,1,aux!$AL$1),"n.d.") -> 11.56052132 | AA40: =O40-INDEX($K40:$O40,1,aux!$AL$1) -> -64.415 | AB40: 0.1705684379 | AC40: -0.001024060941 | AD40: =+IF(INDEX($K40:$O40,1,aux!$AL$1)>0,(O40/INDEX($K40:$O40,1,aux!$AL$1))^(1/($O$3-INDEX($K$3:$O$3,1,aux!$AL$1)))-1,"n.d.") -> -0.01176105866 | AE40: =IF(INDEX($K40:$O40,1,aux!$AL$1)>0,(O40-INDEX($K40:$O40,1,aux!$AL$1))/INDEX($K40:$O40,1,aux!$AL$1),"n.d.") -> -0.04622078777
A41: 19p | B41: Massas recheadas com pescado (NC 19022010) (p) | C41: 0 | D41: 43.072 | E41: 0.08 | F41: 0.03 | G41: 0.02 | H41: 8.6404 | I41: 0.004194961114 | J41: 4.169072981e-05 | K41: 0 | L41: 0 | M41: 0 | N41: 0 | O41: 0 | P41: 0 | Q41: 0 | R41: 0 | S41: -8.6404 | U41: =G41-INDEX($C41:$G41,1,aux!$AL$1) -> 0.02 | V41: 7.715805287e-06 | W41: 1.424816853e-07 | X41: =+IF(INDEX($C41:$G41,1,aux!$AL$1)>0,(G41/INDEX($C41:$G41,1,aux!$AL$1))^(1/($G$3-INDEX($C$3:$G$3,1,aux!$AL$1)))-1,"n.d.") -> n.d. | Y41: =IF(INDEX($C41:$G41,1,aux!$AL$1)>0,(G41-INDEX($C41:$G41,1,aux!$AL$1))/INDEX($C41:$G41,1,aux!$AL$1),"n.d.") -> n.d. | AA41: =O41-INDEX($K41:$O41,1,aux!$AL$1) -> 0 | AB41: 0 | AC41: 0 | AD41: =+IF(INDEX($K41:$O41,1,aux!$AL$1)>0,(O41/INDEX($K41:$O41,1,aux!$AL$1))^(1/($O$3-INDEX($K$3:$O$3,1,aux!$AL$1)))-1,"n.d.") -> n.d. | AE41: =IF(INDEX($K41:$O41,1,aux!$AL$1)>0,(O41-INDEX($K41:$O41,1,aux!$AL$1))/INDEX($K41:$O41,1,aux!$AL$1),"n.d.") -> n.d.
A42: 23p | B42: Farinhas de pescado (NC 230120) (p) | C42: 0 | D42: 0 | E42: 0 | F42: 0.012 | G42: 0 | H42: 0.0024 | I42: 1.165213031e-06 | J42: 1.158022216e-08 | K42: 221.76 | L42: 24.288 | M42: 92.12 | N42: 446.945 | O42: 748.956 | P42: 306.8138 | Q42: 0.06387074708 | R42: 0.001220515618 | S42: 306.8114 | U42: =G42-INDEX($C42:$G42,1,aux!$AL$1) -> 0 | V42: 0 | W42: 0 | X42: =+IF(INDEX($C42:$G42,1,aux!$AL$1)>0,(G42/INDEX($C42:$G42,1,aux!$AL$1))^(1/($G$3-INDEX($C$3:$G$3,1,aux!$AL$1)))-1,"n.d.") -> n.d. | Y42: =IF(INDEX($C42:$G42,1,aux!$AL$1)>0,(G42-INDEX($C42:$G42,1,aux!$AL$1))/INDEX($C42:$G42,1,aux!$AL$1),"n.d.") -> n.d. | AA42: =O42-INDEX($K42:$O42,1,aux!$AL$1) -> 527.196 | AB42: -1.395994693 | AC42: 0.008381290566 | AD42: =+IF(INDEX($K42:$O42,1,aux!$AL$1)>0,(O42/INDEX($K42:$O42,1,aux!$AL$1))^(1/($O$3-INDEX($K$3:$O$3,1,aux!$AL$1)))-1,"n.d.") -> 0.3556365603 | AE42: =IF(INDEX($K42:$O42,1,aux!$AL$1)>0,(O42-INDEX($K42:$O42,1,aux!$AL$1))/INDEX($K42:$O42,1,aux!$AL$1),"n.d.") -> 2.37732684
A43: 25 | B43: Sal e cloreto de sódio puro; água do mar (NC 2501) | C43: 3.848 | D43: 0.579 | E43: 14.14 | F43: 1.232 | G43: 1.053 | H43: 4.1704 | I43: 0.002024751844 | J43: 2.012256604e-05 | K43: 24.102 | L43: 0.013 | M43: 17.277 | N43: 0.197 | O43: 29.007 | P43: 14.1192 | Q43: 0.002939254532 | R43: 5.61666526e-05 | S43: 9.9488 | U43: =G43-INDEX($C43:$G43,1,aux!$AL$1) -> -2.795 | V43: -0.001078283789 | W43: -1.991181552e-05 | X43: =+IF(INDEX($C43:$G43,1,aux!$AL$1)>0,(G43/INDEX($C43:$G43,1,aux!$AL$1))^(1/($G$3-INDEX($C$3:$G$3,1,aux!$AL$1)))-1,"n.d.") -> -0.2767335385 | Y43: =IF(INDEX($C43:$G43,1,aux!$AL$1)>0,(G43-INDEX($C43:$G43,1,aux!$AL$1))/INDEX($C43:$G43,1,aux!$AL$1),"n.d.") -> -0.7263513514 | AA43: =O43-INDEX($K43:$O43,1,aux!$AL$1) -> 4.905 | AB43: -0.01298825099 | AC43: 7.797902531e-05 | AD43: =+IF(INDEX($K43:$O43,1,aux!$AL$1)>0,(O43/INDEX($K43:$O43,1,aux!$AL$1))^(1/($O$3-INDEX($K$3:$O$3,1,aux!$AL$1)))-1,"n.d.") -> 0.04739967115 | AE43: =IF(INDEX($K43:$O43,1,aux!$AL$1)>0,(O43-INDEX($K43:$O43,1,aux!$AL$1))/INDEX($K43:$O43,1,aux!$AL$1),"n.d.") -> 0.2035100822
A44: Subtotal Mar | C44: 847.921 | D44: 760.56 | E44: 2218.66 | F44: 3031.402 | G44: 3440.003 | H44: 2059.7092 | I44: 1 | J44: 0.009938287549 | K44: 4301.431 | L44: 6607.663 | M44: 4910.543 | N44: 4274.916 | O44: 3923.782 | P44: 4803.667 | Q44: 1 | R44: 0.01910914893 | S44: 2743.9578 | U44: =G44-INDEX($C44:$G44,1,aux!$AL$1) -> 2592.082 | V44: 1 | W44: 0.01846621059 | X44: =+IF(INDEX($C44:$G44,1,aux!$AL$1)>0,(G44/INDEX($C44:$G44,1,aux!$AL$1))^(1/($G$3-INDEX($C$3:$G$3,1,aux!$AL$1)))-1,"n.d.") -> 0.4192237083 | Y44: =IF(INDEX($C44:$G44,1,aux!$AL$1)>0,(G44-INDEX($C44:$G44,1,aux!$AL$1))/INDEX($C44:$G44,1,aux!$AL$1),"n.d.") -> 3.056985262 | AA44: =O44-INDEX($K44:$O44,1,aux!$AL$1) -> -377.649 | AB44: 1 | AC44: -0.006003812626 | AD44: =+IF(INDEX($K44:$O44,1,aux!$AL$1)>0,(O44/INDEX($K44:$O44,1,aux!$AL$1))^(1/($O$3-INDEX($K$3:$O$3,1,aux!$AL$1)))-1,"n.d.") -> -0.02271107443 | AE44: =IF(INDEX($K44:$O44,1,aux!$AL$1)>0,(O44-INDEX($K44:$O44,1,aux!$AL$1))/INDEX($K44:$O44,1,aux!$AL$1),"n.d.") -> -0.0877961311
A45: 13f | B45: Gomas e resinas (NC 1301) (f) | C45: 0.12 | D45: 0 | E45: 0.155 | F45: 0.316 | G45: 0 | H45: 0.1182 | I45: 5.431770869e-06 | J45: 5.703259413e-07 | K45: 19.013 | L45: 0.169 | M45: 1.495 | N45: 0.786 | O45: 0 | P45: 4.2926 | Q45: 3.823207612e-05 | R45: 1.707610721e-05 | S45: 4.1744 | U45: =G45-INDEX($C45:$G45,1,aux!$AL$1) -> -0.12 | V45: =IF($U$52<>0,U45/$U$52, "n.d.") -> 5.24737664e-05 | W45: -8.548901118e-07 | X45: =+IF(INDEX($C45:$G45,1,aux!$AL$1)>0,(G45/INDEX($C45:$G45,1,aux!$AL$1))^(1/($G$3-INDEX($C$3:$G$3,1,aux!$AL$1)))-1,"n.d.") -> -1 | Y45: =IF(INDEX($C45:$G45,1,aux!$AL$1)>0,(G45-INDEX($C45:$G45,1,aux!$AL$1))/INDEX($C45:$G45,1,aux!$AL$1),"n.d.") -> -1 | AA45: =O45-INDEX($K45:$O45,1,aux!$AL$1) -> -19.013 | AB45: =IF($AA$52<>0,AA45/$AA$52, "n.d.") -> -0.0003585756875 | AC45: -0.0003022660975 | AD45: =+IF(INDEX($K45:$O45,1,aux!$AL$1)>0,(O45/INDEX($K45:$O45,1,aux!$AL$1))^(1/($O$3-INDEX($K$3:$O$3,1,aux!$AL$1)))-1,"n.d.") -> -1 | AE45: =IF(INDEX($K45:$O45,1,aux!$AL$1)>0,(O45-INDEX($K45:$O45,1,aux!$AL$1))/INDEX($K45:$O45,1,aux!$AL$1),"n.d.") -> -1
A46: 38f | B46: Tall oil, essências e colofónias (NC 3803,3805,3806) (f) | C46: 0.035 | D46: 0.037 | E46: 0.054 | F46: 0.075 | G46: 18.544 | H46: 3.749 | I46: 0.0001722818019 | J46: 1.808927203e-05 | K46: 2790.973 | L46: 1211.937 | M46: 1328.923 | N46: 1525.165 | O46: 2266.578 | P46: 1824.7152 | Q46: 0.01625184048 | R46: 0.007258778453 | S46: 1820.9662 | U46: =G46-INDEX($C46:$G46,1,aux!$AL$1) -> 18.509 | V46: -0.008093641185 | W46: 0.0001318596757 | X46: =+IF(INDEX($C46:$G46,1,aux!$AL$1)>0,(G46/INDEX($C46:$G46,1,aux!$AL$1))^(1/($G$3-INDEX($C$3:$G$3,1,aux!$AL$1)))-1,"n.d.") -> 3.797708346 | Y46: =IF(INDEX($C46:$G46,1,aux!$AL$1)>0,(G46-INDEX($C46:$G46,1,aux!$AL$1))/INDEX($C46:$G46,1,aux!$AL$1),"n.d.") -> 528.8285714 | AA46: =O46-INDEX($K46:$O46,1,aux!$AL$1) -> -524.395 | AB46: -0.009889827889 | AC46: -0.008336760648 | AD46: =+IF(INDEX($K46:$O46,1,aux!$AL$1)>0,(O46/INDEX($K46:$O46,1,aux!$AL$1))^(1/($O$3-INDEX($K$3:$O$3,1,aux!$AL$1)))-1,"n.d.") -> -0.05069939318 | AE46: =IF(INDEX($K46:$O46,1,aux!$AL$1)>0,(O46-INDEX($K46:$O46,1,aux!$AL$1))/INDEX($K46:$O46,1,aux!$AL$1),"n.d.") -> -0.1878896715
A47: 44 | B47: Madeira e suas obras | C47: 8398.59 | D47: 5389.21 | E47: 5778.927 | F47: 8344.082 | G47: 8233.426 | H47: 7228.847 | I47: 0.3321949285 | J47: 0.03487985592 | K47: 1842.63 | L47: 2322.949 | M47: 1698.736 | N47: 2597.352 | O47: 3968.383 | P47: 2486.01 | Q47: 0.02214166788 | R47: 0.009889431414 | S47: -4742.837 | U47: =G47-INDEX($C47:$G47,1,aux!$AL$1) -> -165.164 | V47: 0.07222314294 | W47: -0.001176642254 | X47: =+IF(INDEX($C47:$G47,1,aux!$AL$1)>0,(G47/INDEX($C47:$G47,1,aux!$AL$1))^(1/($G$3-INDEX($C$3:$G$3,1,aux!$AL$1)))-1,"n.d.") -> -0.004953098913 | Y47: =IF(INDEX($C47:$G47,1,aux!$AL$1)>0,(G47-INDEX($C47:$G47,1,aux!$AL$1))/INDEX($C47:$G47,1,aux!$AL$1),"n.d.") -> -0.01966568198 | AA47: =O47-INDEX($K47:$O47,1,aux!$AL$1) -> 2125.753 | AB47: 0.04009064027 | AC47: 0.03379493313 | AD47: =+IF(INDEX($K47:$O47,1,aux!$AL$1)>0,(O47/INDEX($K47:$O47,1,aux!$AL$1))^(1/($O$3-INDEX($K$3:$O$3,1,aux!$AL$1)))-1,"n.d.") -> 0.211417549 | AE47: =IF(INDEX($K47:$O47,1,aux!$AL$1)>0,(O47-INDEX($K47:$O47,1,aux!$AL$1))/INDEX($K47:$O47,1,aux!$AL$1),"n.d.") -> 1.153651574
A48: 45 | B48: Cortiça e suas obras | C48: 6.694 | D48: 42.357 | E48: 6.615 | F48: 14.817 | G48: 136.917 | H48: 41.48 | I48: 0.001906174752 | J48: 0.0002001448396 | K48: 7949.917 | L48: 8565.171 | M48: 7253.978 | N48: 7726.279 | O48: 7855.995 | P48: 7870.268 | Q48: 0.07009660469 | R48: 0.03130819088 | S48: 7828.788 | U48: =G48-INDEX($C48:$G48,1,aux!$AL$1) -> 130.223 | V48: -0.05694409401 | W48: 0.0009277196252 | X48: =+IF(INDEX($C48:$G48,1,aux!$AL$1)>0,(G48/INDEX($C48:$G48,1,aux!$AL$1))^(1/($G$3-INDEX($C$3:$G$3,1,aux!$AL$1)))-1,"n.d.") -> 1.126634802 | Y48: =IF(INDEX($C48:$G48,1,aux!$AL$1)>0,(G48-INDEX($C48:$G48,1,aux!$AL$1))/INDEX($C48:$G48,1,aux!$AL$1),"n.d.") -> 19.45368987 | AA48: =O48-INDEX($K48:$O48,1,aux!$AL$1) -> -93.922 | AB48: -0.001771322028 | AC48: -0.001493159228 | AD48: =+IF(INDEX($K48:$O48,1,aux!$AL$1)>0,(O48/INDEX($K48:$O48,1,aux!$AL$1))^(1/($O$3-INDEX($K$3:$O$3,1,aux!$AL$1)))-1,"n.d.") -> -0.002966728977 | AE48: =IF(INDEX($K48:$O48,1,aux!$AL$1)>0,(O48-INDEX($K48:$O48,1,aux!$AL$1))/INDEX($K48:$O48,1,aux!$AL$1),"n.d.") -> -0.01181421139
A49: 46 | B49: Obras de espartaria ou de cestaria | C49: 0 | D49: 12.005 | E49: 32.049 | F49: 49.295 | G49: 14.08 | H49: 21.4858 | I49: 0.0009873599199 | J49: 0.0001036709738 | K49: 0 | L49: 0 | M49: 0.005 | N49: 0.266 | O49: 0 | P49: 0.0542 | Q49: 4.827327321e-07 | R49: 2.156094234e-07 | S49: -21.4316 | U49: =G49-INDEX($C49:$G49,1,aux!$AL$1) -> 14.08 | V49: -0.006156921924 | W49: 0.0001003071064 | X49: =+IF(INDEX($C49:$G49,1,aux!$AL$1)>0,(G49/INDEX($C49:$G49,1,aux!$AL$1))^(1/($G$3-INDEX($C$3:$G$3,1,aux!$AL$1)))-1,"n.d.") -> n.d. | Y49: =IF(INDEX($C49:$G49,1,aux!$AL$1)>0,(G49-INDEX($C49:$G49,1,aux!$AL$1))/INDEX($C49:$G49,1,aux!$AL$1),"n.d.") -> n.d. | AA49: =O49-INDEX($K49:$O49,1,aux!$AL$1) -> 0 | AB49: 0 | AC49: 0 | AD49: =+IF(INDEX($K49:$O49,1,aux!$AL$1)>0,(O49/INDEX($K49:$O49,1,aux!$AL$1))^(1/($O$3-INDEX($K$3:$O$3,1,aux!$AL$1)))-1,"n.d.") -> n.d. | AE49: =IF(INDEX($K49:$O49,1,aux!$AL$1)>0,(O49-INDEX($K49:$O49,1,aux!$AL$1))/INDEX($K49:$O49,1,aux!$AL$1),"n.d.") -> n.d.
A50: 47 | B50: Pastas de madeira | C50: 0 | D50: 0.237 | E50: 84.766 | F50: 1299.978 | G50: 155.95 | H50: 308.1862 | I50: 0.01416240967 | J50: 0.001487026942 | K50: 81921.498 | L50: 67313.297 | M50: 59130.959 | N50: 96670.524 | O50: 110580.678 | P50: 83123.3912 | Q50: 0.7403391464 | R50: 0.3306676466 | S50: 82815.205 | U50: =G50-INDEX($C50:$G50,1,aux!$AL$1) -> 155.95 | V50: -0.06819403225 | W50: 0.001111000941 | X50: =+IF(INDEX($C50:$G50,1,aux!$AL$1)>0,(G50/INDEX($C50:$G50,1,aux!$AL$1))^(1/($G$3-INDEX($C$3:$G$3,1,aux!$AL$1)))-1,"n.d.") -> n.d. | Y50: =IF(INDEX($C50:$G50,1,aux!$AL$1)>0,(G50-INDEX($C50:$G50,1,aux!$AL$1))/INDEX($C50:$G50,1,aux!$AL$1),"n.d.") -> n.d. | AA50: =O50-INDEX($K50:$O50,1,aux!$AL$1) -> 28659.18 | AB50: 0.5404978263 | AC50: 0.45561976 | AD50: =+IF(INDEX($K50:$O50,1,aux!$AL$1)>0,(O50/INDEX($K50:$O50,1,aux!$AL$1))^(1/($O$3-INDEX($K$3:$O$3,1,aux!$AL$1)))-1,"n.d.") -> 0.07787981913 | AE50: =IF(INDEX($K50:$O50,1,aux!$AL$1)>0,(O50-INDEX($K50:$O50,1,aux!$AL$1))/INDEX($K50:$O50,1,aux!$AL$1),"n.d.") -> 0.3498371087
A51: 48 | B51: Papel e cartão | C51: 17270.556 | D51: 15556.574 | E51: 12587.762 | F51: 10539.851 | G51: 14830.221 | H51: 14156.9928 | I51: 0.6505714136 | J51: 0.06830880071 | K51: 11178.884 | L51: 11876.798 | M51: 13371.005 | N51: 14361.951 | O51: 34054.954 | P51: 16968.7184 | Q51: 0.1511320257 | R51: 0.06750213266 | S51: 2811.7256 | U51: =G51-INDEX($C51:$G51,1,aux!$AL$1) -> -2440.335 | V51: 1.067113073 | W51: -0.01738515217 | X51: =+IF(INDEX($C51:$G51,1,aux!$AL$1)>0,(G51/INDEX($C51:$G51,1,aux!$AL$1))^(1/($G$3-INDEX($C$3:$G$3,1,aux!$AL$1)))-1,"n.d.") -> -0.03736793032 | Y51: =IF(INDEX($C51:$G51,1,aux!$AL$1)>0,(G51-INDEX($C51:$G51,1,aux!$AL$1))/INDEX($C51:$G51,1,aux!$AL$1),"n.d.") -> -0.1413003148 | AA51: =O51-INDEX($K51:$O51,1,aux!$AL$1) -> 22876.07 | AB51: 0.431431259 | AC51: 0.3636806609 | AD51: =+IF(INDEX($K51:$O51,1,aux!$AL$1)>0,(O51/INDEX($K51:$O51,1,aux!$AL$1))^(1/($O$3-INDEX($K$3:$O$3,1,aux!$AL$1)))-1,"n.d.") -> 0.3211297187 | AE51: =IF(INDEX($K51:$O51,1,aux!$AL$1)>0,(O51-INDEX($K51:$O51,1,aux!$AL$1))/INDEX($K51:$O51,1,aux!$AL$1),"n.d.") -> 2.046364378
A52: Subtotal Florestas | C52: 25675.995 | D52: 21000.42 | E52: 18490.328 | F52: 20248.414 | G52: 23389.138 | H52: 21760.859 | I52: 1 | J52: 0.104998159 | K52: 105702.915 | L52: 91290.321 | M52: 82785.101 | N52: 122882.323 | O52: 158726.588 | P52: 112277.4496 | Q52: 1 | R52: 0.4466434717 | S52: 90516.5906 | U52: =G52-INDEX($C52:$G52,1,aux!$AL$1) -> -2286.857 | V52: 1 | W52: -0.01629176197 | X52: =+IF(INDEX($C52:$G52,1,aux!$AL$1)>0,(G52/INDEX($C52:$G52,1,aux!$AL$1))^(1/($G$3-INDEX($C$3:$G$3,1,aux!$AL$1)))-1,"n.d.") -> -0.02305135817 | Y52: =IF(INDEX($C52:$G52,1,aux!$AL$1)>0,(G52-INDEX($C52:$G52,1,aux!$AL$1))/INDEX($C52:$G52,1,aux!$AL$1),"n.d.") -> -0.08906595441 | AA52: =O52-INDEX($K52:$O52,1,aux!$AL$1) -> 53023.673 | AB52: 1 | AC52: 0.842963168 | AD52: =+IF(INDEX($K52:$O52,1,aux!$AL$1)>0,(O52/INDEX($K52:$O52,1,aux!$AL$1))^(1/($O$3-INDEX($K$3:$O$3,1,aux!$AL$1)))-1,"n.d.") -> 0.1069823059 | AE52: =IF(INDEX($K52:$O52,1,aux!$AL$1)>0,(O52-INDEX($K52:$O52,1,aux!$AL$1))/INDEX($K52:$O52,1,aux!$AL$1),"n.d.") -> 0.5016292408
B53: TOTAL | C53: 154574.351 | D53: 160092.694 | E53: 200894.029 | F53: 225745.207 | G53: 294943.269 | H53: 207249.91 | J53: 1 | K53: 251455.593 | L53: 222505.279 | M53: 200371.892 | N53: 268212.505 | O53: 314357.123 | P53: 251380.4784 | R53: 1 | S53: 44130.5684 | U53: =G53-INDEX($C53:$G53,1,aux!$AL$1) -> 140368.918 | W53: 1 | X53: =+IF(INDEX($C53:$G53,1,aux!$AL$1)>0,(G53/INDEX($C53:$G53,1,aux!$AL$1))^(1/($G$3-INDEX($C$3:$G$3,1,aux!$AL$1)))-1,"n.d.") -> 0.1753041359 | Y53: =IF(INDEX($C53:$G53,1,aux!$AL$1)>0,(G53-INDEX($C53:$G53,1,aux!$AL$1))/INDEX($C53:$G53,1,aux!$AL$1),"n.d.") -> 0.9080996756 | AA53: =O53-INDEX($K53:$O53,1,aux!$AL$1) -> 62901.53 | AC53: 1 | AD53: =+IF(INDEX($K53:$O53,1,aux!$AL$1)>0,(O53/INDEX($K53:$O53,1,aux!$AL$1))^(1/($O$3-INDEX($K$3:$O$3,1,aux!$AL$1)))-1,"n.d.") -> 0.05740291034 | AE53: =IF(INDEX($K53:$O53,1,aux!$AL$1)>0,(O53-INDEX($K53:$O53,1,aux!$AL$1))/INDEX($K53:$O53,1,aux!$AL$1),"n.d.") -> 0.2501496556
B54: a - agrícola e agroalimentar; p - pescas; f - florestas
A55: Fonte: GPP a partir de dados INE/Comércio Internacional (2021 provisórios; 2022 preliminares) | S55: 2023-04-27T17:29:25.040

Sheet 5.2_var
A1: ="Principais contributos por produto para a variação das trocas comerciais PT-Polónia_x000D_ no período " & INDEX('5.2'!K3:N3,1,aux!AL1) & "-2022 (NC 2 dígitos - milhares de euros) Produtos agrícolas e agroalimentares, do mar e da floresta" -> Principais contributos por produto para a variação das trocas comerciais PT-Polónia no período 2018-2022 (NC 2 dígitos - milhares de euros) Produtos agrícolas e agroalimentares, do mar e da floresta
E5: aumento das importações | J5: aumento das exportações
E17: redução das importações | J17: redução das exportações
A28: Fonte: GPP a partir de dados INE/Comércio Internacional (2021 provisórios; 2022 preliminares) | F28: a - agrícola e agroalimentar; p - mar; f - florestas | H28: ='3'!Y116 -> 2023-04-27T17:29:25.040
A29: Cód. NC | B29: Descritivo | C29: ="Variação das Importações " & INDEX('5.2'!K3:N3,1,aux!AL1) & "-"& '5.2'!O3 &"" -> Variação das Importações 2018-2022 | F29: Cód. NC | G29: Descritivo | H29: ="Variação das Exportações " & INDEX('5.2'!K3:N3,1,aux!AL1) & "-"& '5.2'!O3 &"" -> Variação das Exportações 2018-2022
C30: variação total em valor | D30: % do aumento/ redução total | H30: variação total em valor | I30: % do aumento/ redução total
A31: =IF(C31>0,aux!AU6,"") -> 24 | B31: =IF(C31>0,aux!AV6,"") -> Tabaco | C31: =IF(aux!AW6>0,aux!AW6,0) -> 40255.935 | D31: =IF(SUM($C$31:$C$41)<>0,C31/SUM($C$31:$C$41),0) -> 0.2806929261 | F31: =IF(H31>0,aux!AZ6,"") -> 47 | G31: =IF(H31>0,aux!BA6,"") -> Pastas de madeira | H31: =IF(aux!BB6>0,aux!BB6,0) -> 28659.18 | I31: =IF(SUM($H$31:$H$41)<>0,H31/SUM($H$31:$H$41),0) -> 0.2487101782
A32: =IF(C32>0,aux!AU7,"") -> 10 | B32: =IF(C32>0,aux!AV7,"") -> Cereais | C32: =IF(aux!AW7>0,aux!AW7,0) -> 36815.947 | D32: =IF(SUM($C$31:$C$41)<>0,C32/SUM($C$31:$C$41),0) -> 0.2567068903 | F32: =IF(H32>0,aux!AZ7,"") -> 48 | G32: =IF(H32>0,aux!BA7,"") -> Papel e cartão | H32: =IF(aux!BB7>0,aux!BB7,0) -> 22876.07 | I32: =IF(SUM($H$31:$H$41)<>0,H32/SUM($H$31:$H$41),0) -> 0.1985231764
A33: =IF(C33>0,aux!AU8,"") -> 02 | B33: =IF(C33>0,aux!AV8,"") -> Carnes e miudezas | C33: =IF(aux!AW8>0,aux!AW8,0) -> 23029.166 | D33: 0.1605756763 | F33: =IF(H33>0,aux!AZ8,"") -> 22 | G33: =IF(H33>0,aux!BA8,"") -> Bebidas, líquidos alcoólicos e vinagres | H33: =IF(aux!BB8>0,aux!BB8,0) -> 10218.581 | I33: 0.088678919
A34: =IF(C34>0,aux!AU9,"") -> 21 | B34: =IF(C34>0,aux!AV9,"") -> Preparações alimentícias diversas | C34: =IF(aux!AW9>0,aux!AW9,0) -> 12734.177 | D34: 0.08879171241 | F34: =IF(H34>0,aux!AZ9,"") -> 20 | G34: =IF(H34>0,aux!BA9,"") -> Preparações de produtos vegetais | H34: =IF(aux!BB9>0,aux!BB9,0) -> 10120.547 | I34: 0.08782816006
A35: =IF(C35>0,aux!AU10,"") -> 19a | B35: =IF(C35>0,aux!AV10,"") -> Preparações à base de cereais (exc. NC 19022010) (a) | C35: =IF(aux!AW10>0,aux!AW10,0) -> 5804.671 | D35: 0.04047428256 | F35: =IF(H35>0,aux!AZ10,"") -> 21 | G35: =IF(H35>0,aux!BA10,"") -> Preparações alimentícias diversas | H35: =IF(aux!BB10>0,aux!BB10,0) -> 8213.424 | I35: 0.07127775976
A36: =IF(C36>0,aux!AU11,"") -> 18 | B36: =IF(C36>0,aux!AV11,"") -> Cacau e suas preparações | C36: =IF(aux!AW11>0,aux!AW11,0) -> 3546.475 | D36: 0.02472853866 | F36: =IF(H36>0,aux!AZ11,"") -> 19a | G36: =IF(H36>0,aux!BA11,"") -> Preparações à base de cereais (exc. NC 19022010) (a) | H36: =IF(aux!BB11>0,aux!BB11,0) -> 7020.159 | I36: 0.06092236401
A37: =IF(C37>0,aux!AU12,"") -> 12 | B37: =IF(C37>0,aux!AV12,"") -> Sementes e frutos oleaginosos | C37: =IF(aux!AW12>0,aux!AW12,0) -> 3125.567 | D37: 0.0217936696 | F37: =IF(H37>0,aux!AZ12,"") -> 17 | G37: =IF(H37>0,aux!BA12,"") -> Açúcares e produtos de confeitaria | H37: =IF(aux!BB12>0,aux!BB12,0) -> 6291.732 | I37: 0.05460092672
A38: =IF(C38>0,aux!AU13,"") -> 08 | B38: =IF(C38>0,aux!AV13,"") -> Frutas | C38: =IF(aux!AW13>0,aux!AW13,0) -> 2932.226 | D38: 0.02044555904 | F38: =IF(H38>0,aux!AZ13,"") -> 09 | G38: =IF(H38>0,aux!BA13,"") -> Café, chá, mate e especiarias | H38: =IF(aux!BB13>0,aux!BB13,0) -> 5886.595 | I38: 0.05108506565
A39: =IF(C39>0,aux!AU14,"") -> 20 | B39: =IF(C39>0,aux!AV14,"") -> Preparações de produtos vegetais | C39: =IF(aux!AW14>0,aux!AW14,0) -> 1853.604 | D39: 0.01292464156 | F39: =IF(H39>0,aux!AZ14,"") -> 24 | G39: =IF(H39>0,aux!BA14,"") -> Tabaco | H39: =IF(aux!BB14>0,aux!BB14,0) -> 2592.23 | I39: 0.02249589784
A40: =IF(C40>0,aux!AU15,"") -> 03 | B40: =IF(C40>0,aux!AV15,"") -> Peixes e crustáceos | C40: =IF(aux!AW15>0,aux!AW15,0) -> 1670.46 | D40: 0.01164763172 | F40: =IF(H40>0,aux!AZ15,"") -> 44 | G40: =IF(H40>0,aux!BA15,"") -> Madeira e suas obras | H40: =IF(aux!BB15>0,aux!BB15,0) -> 2125.753 | I40: 0.01844771579
B41: Outros contributos para o aumento das importações | C41: =SUMIF(aux!AW16:AW51,">0") -> 11648.051 | D41: 0.08121847172 | G41: Outros contributos para o aumento das exportações | H41: =SUMIF(aux!BB16:BB51,">0") -> 11226.96 | I41: 0.09742983653
B42: Outros contributos para a redução das importações | C42: =SUMIF(aux!AW6:AW41,"<0") -> 0 | D42: =IF(SUM($C$42:$C$52)<>0,C42/SUM($C$42:$C$52),0) -> 0 | G42: Outros contributos para a redução das exportações | H42: =SUMIF(aux!BB6:BB41,"<0") -> -22.059 | I42: =IF(SUM($H$42:$H$52)<>0,H42/SUM($H$42:$H$52),0) -> 0.0004215388122
A43: =IF(C43<>0,aux!AU42,"") ->  | B43: =IF(C43<0,aux!AV42,"") ->  | C43: =IF(aux!AW42<0,aux!AW42,0) -> 0 | D43: =IF(SUM($C$42:$C$52)<>0,C43/SUM($C$42:$C$52),0) -> 0 | F43: =IF(H43<>0,aux!AZ42,"") -> 35 | G43: =IF(H43<>0,aux!BA42,"") -> Caseínas, albuminas, gelatinas, peptonas, dextrinas (NC 3501 a 3505) | H43: =IF(aux!BB42<0,aux!BB42,0) -> -40.371 | I43: =IF(SUM($H$42:$H$52)<>0,H43/SUM($H$42:$H$52),0) -> 0.0007714739284
A44: =IF(C44<>0,aux!AU43,"") -> 13f | B44: =IF(C44<0,aux!AV43,"") -> Gomas e resinas (NC 1301) (f) | C44: =IF(aux!AW43<0,aux!AW43,0) -> -0.12 | D44: 3.937833424e-05 | F44: =IF(H44<>0,aux!AZ43,"") -> 02 | G44: =IF(H44<>0,aux!BA43,"") -> Carnes e miudezas | H44: =IF(aux!BB43<0,aux!BB43,0) -> -52.443 | I44: 0.001002165099
A45: =IF(C45<>0,aux!AU44,"") -> 05p | B45: =IF(C45<0,aux!AV44,"") -> Outros produtos de pescado (NC 0508, 051191) (p) | C45: =IF(aux!AW44<0,aux!AW44,0) -> -1.647 | D45: 0.0005404676374 | F45: =IF(H45<>0,aux!AZ44,"") -> 16p | G45: =IF(H45<>0,aux!BA44,"") -> Preparações e conservas de peixes ou crustáceos (NC 1604-05) (p) | H45: =IF(aux!BB44<0,aux!BB44,0) -> -64.415 | I45: 0.00123094531
A46: =IF(C46<>0,aux!AU45,"") -> 38a | B46: =IF(C46<0,aux!AV45,"") -> Agentes de acabamento, ácidos gordos, sorbitol (NC 380910, 382311-12-13-19-70, 382460) (a) | C46: =IF(aux!AW45<0,aux!AW45,0) -> -2.028 | D46: 0.0006654938486 | F46: =IF(H46<>0,aux!AZ45,"") -> 14 | G46: =IF(H46<>0,aux!BA45,"") -> Matérias para entrançar e outros | H46: =IF(aux!BB45<0,aux!BB45,0) -> -69.218 | I46: 0.00132272875
A47: =IF(C47<>0,aux!AU46,"") -> 25 | B47: =IF(C47<0,aux!AV46,"") -> Sal e cloreto de sódio puro; água do mar (NC 2501) | C47: =IF(aux!AW46<0,aux!AW46,0) -> -2.795 | D47: 0.0009171870349 | F47: =IF(H47<>0,aux!AZ46,"") -> 45 | G47: =IF(H47<>0,aux!BA46,"") -> Cortiça e suas obras | H47: =IF(aux!BB46<0,aux!BB46,0) -> -93.922 | I47: 0.001794812472
A48: =IF(C48<>0,aux!AU47,"") -> 33 | B48: =IF(C48<0,aux!AV47,"") -> Óleos essenciais e resinóides (NC 3301) | C48: =IF(aux!AW47<0,aux!AW47,0) -> -3.596 | D48: 0.001180037416 | F48: =IF(H48<>0,aux!AZ47,"") -> 38f | G48: =IF(H48<>0,aux!BA47,"") -> Tall oil, essências e colofónias (NC 3803,3805,3806) (f) | H48: =IF(aux!BB47<0,aux!BB47,0) -> -524.395 | I48: 0.01002098216
A49: =IF(C49<>0,aux!AU48,"") -> 44 | B49: =IF(C49<0,aux!AV48,"") -> Madeira e suas obras | C49: =IF(aux!AW48<0,aux!AW48,0) -> -165.164 | D49: 0.05419902663 | F49: =IF(H49<>0,aux!AZ48,"") -> 03 | G49: =IF(H49<>0,aux!BA48,"") -> Peixes e crustáceos | H49: =IF(aux!BB48<0,aux!BB48,0) -> -845.335 | I49: 0.0161540193
A50: =IF(C50<>0,aux!AU49,"") -> 13a | B50: =IF(C50<0,aux!AV49,"") -> Sucos e extratos vegetais (exc. NC 1301) (a) | C50: =IF(aux!AW49<0,aux!AW49,0) -> -199.331 | D50: 0.06541102285 | F50: =IF(H50<>0,aux!AZ49,"") -> 11 | G50: =IF(H50<>0,aux!BA49,"") -> Produtos da indústria de moagem e outros | H50: =IF(aux!BB49<0,aux!BB49,0) -> -1377.688 | I50: 0.02632707571
A51: =IF(C51<>0,aux!AU50,"") -> 04 | B51: =IF(C51<0,aux!AV50,"") -> Leite e laticínios; ovos; mel, etc. | C51: =IF(aux!AW50<0,aux!AW50,0) -> -232.345 | D51: 0.0762446589 | F51: =IF(H51<>0,aux!AZ50,"") -> 07 | G51: =IF(H51<>0,aux!BA50,"") -> Produtos hortícolas | H51: =IF(aux!BB50<0,aux!BB50,0) -> -6287.217 | I51: 0.1201462435
A52: =IF(C52<>0,aux!AU51,"") -> 48 | B52: =IF(C52<0,aux!AV51,"") -> Papel e cartão | C52: =IF(aux!AW51<0,aux!AW51,0) -> -2440.335 | D52: 0.8008027273 | F52: =IF(H52<>0,aux!AZ51,"") -> 08 | G52: =IF(H52<>0,aux!BA51,"") -> Frutas | H52: =IF(aux!BB51<0,aux!BB51,0) -> -42952.638 | I52: 0.8208080149
A53: TOTAL | C53: =SUM(C31:C52) -> 140368.918 | F53: TOTAL | H53: =SUM(H31:H52) -> 62901.53

Sheet 5.2A
A1: Trocas comerciais Portugal-Polónia 2018-2022 em milhares de euros (NC 4 dígitos) | G1: Produtos agrícolas e agroalimentares, do mar e da floresta
A2: Cód. NC | B2: Descritivo | C2: Importações | K2: Exportações | S2: Saldo quinquénio (exp-imp) | T2: Evolução das importações | U2: =+"Variação das Importações " & INDEX(K3:N3,1,aux!AL1) & "-"& '5.2'!O3 &"" -> Variação das Importações 2018-2022 | Z2: Evolução das exportações | AA2: ="Variação das Exportações " & INDEX(K3:N3,1,aux!AL1) & "-"& '5.2'!O3 &"" -> Variação das Exportações 2018-2022
C3: 2018 | D3: 2019 | E3: 2020 | F3: 2021 | G3: 2022 | H3: média quinquénio | I3: % Subtot | J3: % Total | K3: 2018 | L3: 2019 | M3: 2020 | N3: 2021 | O3: 2022 | P3: média quinquénio | Q3: % Subtot | R3: % Total | U3: variação total em valor | V3: % no subtotal de variação | W3: % no total de variação | X3: taxa de variação média anual | Y3: taxa de variação total | AA3: variação total em valor | AB3: % no subtotal de variação | AC3: % no total de variação | AD3: taxa de variação média anual | AE3: taxa de variação total | AX3: filtro
A4: 0101 | B4: Equídeos vivos | C4: 0 | D4: 0 | E4: 0 | F4: 0 | G4: 0 | H4: 0 | I4: 0 | J4: 0 | K4: 0 | L4: 0 | M4: 0 | N4: 0 | O4: 0 | P4: 0 | Q4: 0 | R4: 0 | S4: 0 | U4: =G4-INDEX($C4:$G4,1,aux!$AL$1) -> 0 | V4: =IF($U$237<>0,U4/$U$237, "n.d.") -> 0 | W4: =IF($U$322<>0,U4/$U$322, "n.d.") -> 0 | X4: =+IF(INDEX($C4:$G4,1,aux!$AL$1)>0,(G4/INDEX($C4:$G4,1,aux!$AL$1))^(1/($G$3-INDEX($C$3:$G$3,1,aux!$AL$1)))-1,"n.d.") -> n.d. | Y4: =IF(INDEX($C4:$G4,1,aux!$AL$1)>0,(G4-INDEX($C4:$G4,1,aux!$AL$1))/INDEX($C4:$G4,1,aux!$AL$1),"n.d.") -> n.d. | AA4: =O4-INDEX($K4:$O4,1,aux!$AL$1) -> 0 | AB4: =IF($AA$237<>0,AA4/$AA$237, "n.d.") -> 0 | AC4: =IF($AA$322<>0,AA4/$AA$322, "n.d.") -> 0 | AD4: =+IF(INDEX($K4:$O4,1,aux!$AL$1)>0,(O4/INDEX($K4:$O4,1,aux!$AL$1))^(1/($O$3-INDEX($K$3:$O$3,1,aux!$AL$1)))-1,"n.d.") -> n.d. | AE4: =IF(INDEX($K4:$O4,1,aux!$AL$1)>0,(O4-INDEX($K4:$O4,1,aux!$AL$1))/INDEX($K4:$O4,1,aux!$AL$1),"n.d.") -> n.d. | AX4: =+LEFT(A4,2) -> 01
A5: 0102 | B5: Bovinos vivos | C5: 0 | D5: 0 | E5: 0 | F5: 0 | G5: 0 | H5: 0 | I5: 0 | J5: 0 | K5: 0 | L5: 89.404 | M5: 0 | N5: 0 | O5: 0 | P5: 17.8808 | Q5: 0.0001331413624 | R5: 7.113042394e-05 | S5: 17.8808 | U5: =G5-INDEX($C5:$G5,1,aux!$AL$1) -> 0 | V5: 0 | W5: 0 | X5: =+IF(INDEX($C5:$G5,1,aux!$AL$1)>0,(G5/INDEX($C5:$G5,1,aux!$AL$1))^(1/($G$3-INDEX($C$3:$G$3,1,aux!$AL$1)))-1,"n.d.") -> n.d. | Y5: =IF(INDEX($C5:$G5,1,aux!$AL$1)>0,(G5-INDEX($C5:$G5,1,aux!$AL$1))/INDEX($C5:$G5,1,aux!$AL$1),"n.d.") -> n.d. | AA5: =O5-INDEX($K5:$O5,1,aux!$AL$1) -> 0 | AB5: 0 | AC5: 0 | AD5: =+IF(INDEX($K5:$O5,1,aux!$AL$1)>0,(O5/INDEX($K5:$O5,1,aux!$AL$1))^(1/($O$3-INDEX($K$3:$O$3,1,aux!$AL$1)))-1,"n.d.") -> n.d. | AE5: =IF(INDEX($K5:$O5,1,aux!$AL$1)>0,(O5-INDEX($K5:$O5,1,aux!$AL$1))/INDEX($K5:$O5,1,aux!$AL$1),"n.d.") -> n.d. | AX5: 01
A6: 0103 | B6: Suínos vivos | C6: 0 | D6: 0 | E6: 0 | F6: 0 | G6: 0 | H6: 0 | I6: 0 | J6: 0 | K6: 0 | L6: 0 | M6: 0 | N6: 0 | O6: 0 | P6: 0 | Q6: 0 | R6: 0 | S6: 0 | U6: =G6-INDEX($C6:$G6,1,aux!$AL$1) -> 0 | V6: 0 | W6: 0 | X6: =+IF(INDEX($C6:$G6,1,aux!$AL$1)>0,(G6/INDEX($C6:$G6,1,aux!$AL$1))^(1/($G$3-INDEX($C$3:$G$3,1,aux!$AL$1)))-1,"n.d.") -> n.d. | Y6: =IF(INDEX($C6:$G6,1,aux!$AL$1)>0,(G6-INDEX($C6:$G6,1,aux!$AL$1))/INDEX($C6:$G6,1,aux!$AL$1),"n.d.") -> n.d. | AA6: =O6-INDEX($K6:$O6,1,aux!$AL$1) -> 0 | AB6: 0 | AC6: 0 | AD6: =+IF(INDEX($K6:$O6,1,aux!$AL$1)>0,(O6/INDEX($K6:$O6,1,aux!$AL$1))^(1/($O$3-INDEX($K$3:$O$3,1,aux!$AL$1)))-1,"n.d.") -> n.d. | AE6: =IF(INDEX($K6:$O6,1,aux!$AL$1)>0,(O6-INDEX($K6:$O6,1,aux!$AL$1))/INDEX($K6:$O6,1,aux!$AL$1),"n.d.") -> n.d. | AX6: 01
A7: 0104 | B7: Ovinos ou caprinos vivos | C7: 0 | D7: 0 | E7: 0 | F7: 0 | G7: 0 | H7: 0 | I7: 0 | J7: 0 | K7: 0 | L7: 0 | M7: 0 | N7: 0 | O7: 0 | P7: 0 | Q7: 0 | R7: 0 | S7: 0 | U7: =G7-INDEX($C7:$G7,1,aux!$AL$1) -> 0 | V7: 0 | W7: 0 | X7: =+IF(INDEX($C7:$G7,1,aux!$AL$1)>0,(G7/INDEX($C7:$G7,1,aux!$AL$1))^(1/($G$3-INDEX($C$3:$G$3,1,aux!$AL$1)))-1,"n.d.") -> n.d. | Y7: =IF(INDEX($C7:$G7,1,aux!$AL$1)>0,(G7-INDEX($C7:$G7,1,aux!$AL$1))/INDEX($C7:$G7,1,aux!$AL$1),"n.d.") -> n.d. | AA7: =O7-INDEX($K7:$O7,1,aux!$AL$1) -> 0 | AB7: 0 | AC7: 0 | AD7: =+IF(INDEX($K7:$O7,1,aux!$AL$1)>0,(O7/INDEX($K7:$O7,1,aux!$AL$1))^(1/($O$3-INDEX($K$3:$O$3,1,aux!$AL$1)))-1,"n.d.") -> n.d. | AE7: =IF(INDEX($K7:$O7,1,aux!$AL$1)>0,(O7-INDEX($K7:$O7,1,aux!$AL$1))/INDEX($K7:$O7,1,aux!$AL$1),"n.d.") -> n.d. | AX7: 01
A8: 0105 | B8: Aves de capoeira vivas | C8: 0 | D8: 0 | E8: 0 | F8: 0 | G8: 146.936 | H8: 29.3872 | I8: 0.000160209919 | J8: 0.0001417959602 | K8: 0 | L8: 0 | M8: 0 | N8: 0 | O8: 0 | P8: 0 | Q8: 0 | R8: 0 | S8: -29.3872 | U8: =G8-INDEX($C8:$G8,1,aux!$AL$1) -> 146.936 | V8: 0.001049065585 | W8: 0.001046784446 | X8: =+IF(INDEX($C8:$G8,1,aux!$AL$1)>0,(G8/INDEX($C8:$G8,1,aux!$AL$1))^(1/($G$3-INDEX($C$3:$G$3,1,aux!$AL$1)))-1,"n.d.") -> n.d. | Y8: =IF(INDEX($C8:$G8,1,aux!$AL$1)>0,(G8-INDEX($C8:$G8,1,aux!$AL$1))/INDEX($C8:$G8,1,aux!$AL$1),"n.d.") -> n.d. | AA8: =O8-INDEX($K8:$O8,1,aux!$AL$1) -> 0 | AB8: 0 | AC8: 0 | AD8: =+IF(INDEX($K8:$O8,1,aux!$AL$1)>0,(O8/INDEX($K8:$O8,1,aux!$AL$1))^(1/($O$3-INDEX($K$3:$O$3,1,aux!$AL$1)))-1,"n.d.") -> n.d. | AE8: =IF(INDEX($K8:$O8,1,aux!$AL$1)>0,(O8-INDEX($K8:$O8,1,aux!$AL$1))/INDEX($K8:$O8,1,aux!$AL$1),"n.d.") -> n.d. | AX8: 01
A9: 0106 | B9: Outros animais vivos | C9: 0 | D9: 0 | E9: 0 | F9: 0 | G9: 127.161 | H9: 25.4322 | I9: 0.0001386484831 | J9: 0.0001227127192 | K9: 0 | L9: 30.331 | M9: 16.768 | N9: 0 | O9: 0 | P9: 9.4198 | Q9: 7.014031842e-05 | R9: 3.74722813e-05 | S9: -16.0124 | U9: =G9-INDEX($C9:$G9,1,aux!$AL$1) -> 127.161 | V9: 0.0009078798172 | W9: 0.0009059056792 | X9: =+IF(INDEX($C9:$G9,1,aux!$AL$1)>0,(G9/INDEX($C9:$G9,1,aux!$AL$1))^(1/($G$3-INDEX($C$3:$G$3,1,aux!$AL$1)))-1,"n.d.") -> n.d. | Y9: =IF(INDEX($C9:$G9,1,aux!$AL$1)>0,(G9-INDEX($C9:$G9,1,aux!$AL$1))/INDEX($C9:$G9,1,aux!$AL$1),"n.d.") -> n.d. | AA9: =O9-INDEX($K9:$O9,1,aux!$AL$1) -> 0 | AB9: 0 | AC9: 0 | AD9: =+IF(INDEX($K9:$O9,1,aux!$AL$1)>0,(O9/INDEX($K9:$O9,1,aux!$AL$1))^(1/($O$3-INDEX($K$3:$O$3,1,aux!$AL$1)))-1,"n.d.") -> n.d. | AE9: =IF(INDEX($K9:$O9,1,aux!$AL$1)>0,(O9-INDEX($K9:$O9,1,aux!$AL$1))/INDEX($K9:$O9,1,aux!$AL$1),"n.d.") -> n.d. | AX9: 01
A10: 01SS | B10: Animais vivos | C10: 0 | D10: 0 | E10: 0 | F10: 0 | G10: 0 | H10: 0 | I10: 0 | J10: 0 | K10: 0 | L10: 0 | M10: 0 | N10: 0 | O10: 0 | P10: 0 | Q10: 0 | R10: 0 | S10: 0 | U10: =G10-INDEX($C10:$G10,1,aux!$AL$1) -> 0 | V10: 0 | W10: 0 | X10: =+IF(INDEX($C10:$G10,1,aux!$AL$1)>0,(G10/INDEX($C10:$G10,1,aux!$AL$1))^(1/($G$3-INDEX($C$3:$G$3,1,aux!$AL$1)))-1,"n.d.") -> n.d. | Y10: =IF(INDEX($C10:$G10,1,aux!$AL$1)>0,(G10-INDEX($C10:$G10,1,aux!$AL$1))/INDEX($C10:$G10,1,aux!$AL$1),"n.d.") -> n.d. | AA10: =O10-INDEX($K10:$O10,1,aux!$AL$1) -> 0 | AB10: 0 | AC10: 0 | AD10: =+IF(INDEX($K10:$O10,1,aux!$AL$1)>0,(O10/INDEX($K10:$O10,1,aux!$AL$1))^(1/($O$3-INDEX($K$3:$O$3,1,aux!$AL$1)))-1,"n.d.") -> n.d. | AE10: =IF(INDEX($K10:$O10,1,aux!$AL$1)>0,(O10-INDEX($K10:$O10,1,aux!$AL$1))/INDEX($K10:$O10,1,aux!$AL$1),"n.d.") -> n.d. | AX10: 01
A11: 0201 | B11: Carnes de bovino, frescas ou refrigeradas | C11: 28657.278 | D11: 33295.744 | E11: 32570.143 | F11: 37140.097 | G11: 49644.562 | H11: 36261.5648 | I11: 0.1976868283 | J11: 0.1749654067 | K11: 144.481 | L11: 0.036 | M11: 0.128 | N11: 0 | O11: 0 | P11: 28.929 | Q11: 0.0002154068315 | R11: 0.0001150805352 | S11: -36232.6358 | U11: =G11-INDEX($C11:$G11,1,aux!$AL$1) -> 20987.284 | V11: 0.1498410013 | W11: 0.1495151797 | X11: =+IF(INDEX($C11:$G11,1,aux!$AL$1)>0,(G11/INDEX($C11:$G11,1,aux!$AL$1))^(1/($G$3-INDEX($C$3:$G$3,1,aux!$AL$1)))-1,"n.d.") -> 0.1472529594 | Y11: =IF(INDEX($C11:$G11,1,aux!$AL$1)>0,(G11-INDEX($C11:$G11,1,aux!$AL$1))/INDEX($C11:$G11,1,aux!$AL$1),"n.d.") -> 0.7323544127 | AA11: =O11-INDEX($K11:$O11,1,aux!$AL$1) -> -144.481 | AB11: -0.01408813958 | AC11: -0.002296939359 | AD11: =+IF(INDEX($K11:$O11,1,aux!$AL$1)>0,(O11/INDEX($K11:$O11,1,aux!$AL$1))^(1/($O$3-INDEX($K$3:$O$3,1,aux!$AL$1)))-1,"n.d.") -> -1 | AE11: =IF(INDEX($K11:$O11,1,aux!$AL$1)>0,(O11-INDEX($K11:$O11,1,aux!$AL$1))/INDEX($K11:$O11,1,aux!$AL$1),"n.d.") -> -1 | AX11: 02
A12: 0202 | B12: Carnes de bovino, congeladas | C12: 639.919 | D12: 1246.064 | E12: 1570.853 | F12: 2234.427 | G12: 3118.856 | H12: 1762.0238 | I12: 0.00960600841 | J12: 0.008501927938 | K12: 0 | L12: 0 | M12: 0 | N12: 0 | O12: 5.902 | P12: 1.1804 | Q12: 8.789319504e-06 | R12: 4.695670911e-06 | S12: -1760.8434 | U12: =G12-INDEX($C12:$G12,1,aux!$AL$1) -> 2478.937 | V12: 0.01769864086 | W12: 0.01766015608 | X12: =+IF(INDEX($C12:$G12,1,aux!$AL$1)>0,(G12/INDEX($C12:$G12,1,aux!$AL$1))^(1/($G$3-INDEX($C$3:$G$3,1,aux!$AL$1)))-1,"n.d.") -> 0.4858247202 | Y12: =IF(INDEX($C12:$G12,1,aux!$AL$1)>0,(G12-INDEX($C12:$G12,1,aux!$AL$1))/INDEX($C12:$G12,1,aux!$AL$1),"n.d.") -> 3.873829344 | AA12: =O12-INDEX($K12:$O12,1,aux!$AL$1) -> 5.902 | AB12: 0.0005754957386 | AC12: 9.382919621e-05 | AD12: =+IF(INDEX($K12:$O12,1,aux!$AL$1)>0,(O12/INDEX($K12:$O12,1,aux!$AL$1))^(1/($O$3-INDEX($K$3:$O$3,1,aux!$AL$1)))-1,"n.d.") -> n.d. | AE12: =IF(INDEX($K12:$O12,1,aux!$AL$1)>0,(O12-INDEX($K12:$O12,1,aux!$AL$1))/INDEX($K12:$O12,1,aux!$AL$1),"n.d.") -> n.d. | AX12: 02
A13: 0203 | B13: Carnes de suíno | C13: 0 | D13: 53.218 | E13: 486.316 | F13: 961.572 | G13: 576.277 | H13: 415.4766 | I13: 0.002265049833 | J13: 0.002004713054 | K13: 1603.928 | L13: 1636.523 | M13: 1175.08 | N13: 263.017 | O13: 291.925 | P13: 994.0946 | Q13: 0.007402079851 | R13: 0.003954541762 | S13: 578.618 | U13: =G13-INDEX($C13:$G13,1,aux!$AL$1) -> 576.277 | V13: 0.004114392443 | W13: 0.004105445908 | X13: =+IF(INDEX($C13:$G13,1,aux!$AL$1)>0,(G13/INDEX($C13:$G13,1,aux!$AL$1))^(1/($G$3-INDEX($C$3:$G$3,1,aux!$AL$1)))-1,"n.d.") -> n.d. | Y13: =IF(INDEX($C13:$G13,1,aux!$AL$1)>0,(G13-INDEX($C13:$G13,1,aux!$AL$1))/INDEX($C13:$G13,1,aux!$AL$1),"n.d.") -> n.d. | AA13: =O13-INDEX($K13:$O13,1,aux!$AL$1) -> -1312.003 | AB13: -0.1279315716 | AC13: -0.0208580459 | AD13: =+IF(INDEX($K13:$O13,1,aux!$AL$1)>0,(O13/INDEX($K13:$O13,1,aux!$AL$1))^(1/($O$3-INDEX($K$3:$O$3,1,aux!$AL$1)))-1,"n.d.") -> -0.3468369551 | AE13: =IF(INDEX($K13:$O13,1,aux!$AL$1)>0,(O13-INDEX($K13:$O13,1,aux!$AL$1))/INDEX($K13:$O13,1,aux!$AL$1),"n.d.") -> -0.8179937005 | AX13: 02
A14: 0204 | B14: Carnes de ovino ou caprino | C14: 115.348 | D14: 48.26 | E14: 22.614 | F14: 0 | G14: 0 | H14: 37.2444 | I14: 0.0002030449416 | J14: 0.0001797076776 | K14: 0 | L14: 0 | M14: 0 | N14: 0 | O14: 0 | P14: 0 | Q14: 0 | R14: 0 | S14: -37.2444 | U14: =G14-INDEX($C14:$G14,1,aux!$AL$1) -> -115.348 | V14: -0.0008235396164 | W14: -0.0008217488718 | X14: =+IF(INDEX($C14:$G14,1,aux!$AL$1)>0,(G14/INDEX($C14:$G14,1,aux!$AL$1))^(1/($G$3-INDEX($C$3:$G$3,1,aux!$AL$1)))-1,"n.d.") -> -1 | Y14: =IF(INDEX($C14:$G14,1,aux!$AL$1)>0,(G14-INDEX($C14:$G14,1,aux!$AL$1))/INDEX($C14:$G14,1,aux!$AL$1),"n.d.") -> -1 | AA14: =O14-INDEX($K14:$O14,1,aux!$AL$1) -> 0 | AB14: 0 | AC14: 0 | AD14: =+IF(INDEX($K14:$O14,1,aux!$AL$1)>0,(O14/INDEX($K14:$O14,1,aux!$AL$1))^(1/($O$3-INDEX($K$3:$O$3,1,aux!$AL$1)))-1,"n.d.") -> n.d. | AE14: =IF(INDEX($K14:$O14,1,aux!$AL$1)>0,(O14-INDEX($K14:$O14,1,aux!$AL$1))/INDEX($K14:$O14,1,aux!$AL$1),"n.d.") -> n.d. | AX14: 02
A15: 0205 | B15: Carnes de equídeo | C15: 0 | D15: 0 | E15: 0 | F15: 0 | G15: 0 | H15: 0 | I15: 0 | J15: 0 | K15: 0 | L15: 0 | M15: 0 | N15: 0 | O15: 0 | P15: 0 | Q15: 0 | R15: 0 | S15: 0 | U15: =G15-INDEX($C15:$G15,1,aux!$AL$1) -> 0 | V15: 0 | W15: 0 | X15: =+IF(INDEX($C15:$G15,1,aux!$AL$1)>0,(G15/INDEX($C15:$G15,1,aux!$AL$1))^(1/($G$3-INDEX($C$3:$G$3,1,aux!$AL$1)))-1,"n.d.") -> n.d. | Y15: =IF(INDEX($C15:$G15,1,aux!$AL$1)>0,(G15-INDEX($C15:$G15,1,aux!$AL$1))/INDEX($C15:$G15,1,aux!$AL$1),"n.d.") -> n.d. | AA15: =O15-INDEX($K15:$O15,1,aux!$AL$1) -> 0 | AB15: 0 | AC15: 0 | AD15: =+IF(INDEX($K15:$O15,1,aux!$AL$1)>0,(O15/INDEX($K15:$O15,1,aux!$AL$1))^(1/($O$3-INDEX($K$3:$O$3,1,aux!$AL$1)))-1,"n.d.") -> n.d. | AE15: =IF(INDEX($K15:$O15,1,aux!$AL$1)>0,(O15-INDEX($K15:$O15,1,aux!$AL$1))/INDEX($K15:$O15,1,aux!$AL$1),"n.d.") -> n.d. | AX15: 02
A16: 0206 | B16: Miudezas de bovino, suíno, ovino, caprino,equídeo | C16: 0.305 | D16: 0 | E16: 16.909 | F16: 25.204 | G16: 90.32 | H16: 26.5476 | I16: 0.0001447292987 | J16: 0.0001280946274 | K16: 0 | L16: 21.134 | M16: 35.01 | N16: 83.396 | O16: 67.726 | P16: 41.4532 | Q16: 0.000308662673 | R16: 0.0001649022242 | S16: 14.9056 | U16: =G16-INDEX($C16:$G16,1,aux!$AL$1) -> 90.015 | V16: 0.0006426719021 | W16: 0.0006412744451 | X16: =+IF(INDEX($C16:$G16,1,aux!$AL$1)>0,(G16/INDEX($C16:$G16,1,aux!$AL$1))^(1/($G$3-INDEX($C$3:$G$3,1,aux!$AL$1)))-1,"n.d.") -> 3.148308271 | Y16: =IF(INDEX($C16:$G16,1,aux!$AL$1)>0,(G16-INDEX($C16:$G16,1,aux!$AL$1))/INDEX($C16:$G16,1,aux!$AL$1),"n.d.") -> 295.1311475 | AA16: =O16-INDEX($K16:$O16,1,aux!$AL$1) -> 67.726 | AB16: 0.00660386723 | AC16: 0.00107669877 | AD16: =+IF(INDEX($K16:$O16,1,aux!$AL$1)>0,(O16/INDEX($K16:$O16,1,aux!$AL$1))^(1/($O$3-INDEX($K$3:$O$3,1,aux!$AL$1)))-1,"n.d.") -> n.d. | AE16: =IF(INDEX($K16:$O16,1,aux!$AL$1)>0,(O16-INDEX($K16:$O16,1,aux!$AL$1))/INDEX($K16:$O16,1,aux!$AL$1),"n.d.") -> n.d. | AX16: 02
A17: 0207 | B17: Carnes e miudezas de aves de capoeira | C17: 9572.883 | D17: 9258.969 | E17: 7470.375 | F17: 3702.762 | G17: 8741.903 | H17: 7749.3784 | I17: 0.0422472126 | J17: 0.03739146811 | K17: 0 | L17: 0.07 | M17: 315.927 | N17: 1067.235 | O17: 2017.666 | P17: 680.1796 | Q17: 0.005064652511 | R17: 0.002705777331 | S17: -7069.1988 | U17: =G17-INDEX($C17:$G17,1,aux!$AL$1) -> -830.98 | V17: -0.005932872268 | W17: -0.005919971542 | X17: =+IF(INDEX($C17:$G17,1,aux!$AL$1)>0,(G17/INDEX($C17:$G17,1,aux!$AL$1))^(1/($G$3-INDEX($C$3:$G$3,1,aux!$AL$1)))-1,"n.d.") -> -0.02244588533 | Y17: =IF(INDEX($C17:$G17,1,aux!$AL$1)>0,(G17-INDEX($C17:$G17,1,aux!$AL$1))/INDEX($C17:$G17,1,aux!$AL$1),"n.d.") -> -0.0868056154 | AA17: =O17-INDEX($K17:$O17,1,aux!$AL$1) -> 2017.666 | AB17: 0.1967397806 | AC17: 0.03207658065 | AD17: =+IF(INDEX($K17:$O17,1,aux!$AL$1)>0,(O17/INDEX($K17:$O17,1,aux!$AL$1))^(1/($O$3-INDEX($K$3:$O$3,1,aux!$AL$1)))-1,"n.d.") -> n.d. | AE17: =IF(INDEX($K17:$O17,1,aux!$AL$1)>0,(O17-INDEX($K17:$O17,1,aux!$AL$1))/INDEX($K17:$O17,1,aux!$AL$1),"n.d.") -> n.d. | AX17: 02
A18: 0208 | B18: Outras carnes e miudezas | C18: 0 | D18: 0 | E18: 5.736 | F18: 0 | G18: 0 | H18: 1.1472 | I18: 6.254179341e-06 | J18: 5.535346191e-06 | K18: 982.504 | L18: 0 | M18: 0 | N18: 0 | O18: 0 | P18: 196.5008 | Q18: 0.001463155129 | R18: 0.0007816867931 | S18: 195.3536 | U18: =G18-INDEX($C18:$G18,1,aux!$AL$1) -> 0 | V18: 0 | W18: 0 | X18: =+IF(INDEX($C18:$G18,1,aux!$AL$1)>0,(G18/INDEX($C18:$G18,1,aux!$AL$1))^(1/($G$3-INDEX($C$3:$G$3,1,aux!$AL$1)))-1,"n.d.") -> n.d. | Y18: =IF(INDEX($C18:$G18,1,aux!$AL$1)>0,(G18-INDEX($C18:$G18,1,aux!$AL$1))/INDEX($C18:$G18,1,aux!$AL$1),"n.d.") -> n.d. | AA18: =O18-INDEX($K18:$O18,1,aux!$AL$1) -> -982.504 | AB18: -0.09580258644 | AC18: -0.01561971545 | AD18: =+IF(INDEX($K18:$O18,1,aux!$AL$1)>0,(O18/INDEX($K18:$O18,1,aux!$AL$1))^(1/($O$3-INDEX($K$3:$O$3,1,aux!$AL$1)))-1,"n.d.") -> -1 | AE18: =IF(INDEX($K18:$O18,1,aux!$AL$1)>0,(O18-INDEX($K18:$O18,1,aux!$AL$1))/INDEX($K18:$O18,1,aux!$AL$1),"n.d.") -> -1 | AX18: 02
A19: 0209 | B19: Toucinho, gorduras de porco e de aves | C19: 36.057 | D19: 0 | E19: 0 | F19: 0 | G19: 0 | H19: 7.2114 | I19: 3.931432087e-05 | J19: 3.479567253e-05 | K19: 0 | L19: 0 | M19: 0 | N19: 0 | O19: 6.155 | P19: 1.231 | Q19: 9.166089723e-06 | R19: 4.896959413e-06 | S19: -5.9804 | U19: =G19-INDEX($C19:$G19,1,aux!$AL$1) -> -36.057 | V19: -0.0002574328809 | W19: -0.0002568731063 | X19: =+IF(INDEX($C19:$G19,1,aux!$AL$1)>0,(G19/INDEX($C19:$G19,1,aux!$AL$1))^(1/($G$3-INDEX($C$3:$G$3,1,aux!$AL$1)))-1,"n.d.") -> -1 | Y19: =IF(INDEX($C19:$G19,1,aux!$AL$1)>0,(G19-INDEX($C19:$G19,1,aux!$AL$1))/INDEX($C19:$G19,1,aux!$AL$1),"n.d.") -> -1 | AA19: =O19-INDEX($K19:$O19,1,aux!$AL$1) -> 6.155 | AB19: 0.0006001654136 | AC19: 9.785135592e-05 | AD19: =+IF(INDEX($K19:$O19,1,aux!$AL$1)>0,(O19/INDEX($K19:$O19,1,aux!$AL$1))^(1/($O$3-INDEX($K$3:$O$3,1,aux!$AL$1)))-1,"n.d.") -> n.d. | AE19: =IF(INDEX($K19:$O19,1,aux!$AL$1)>0,(O19-INDEX($K19:$O19,1,aux!$AL$1))/INDEX($K19:$O19,1,aux!$AL$1),"n.d.") -> n.d. | AX19: 02
A20: 0210 | B20: Carnes e miudezas processadas; farinhas de carnes | C20: 120.962 | D20: 231.898 | E20: 0 | F20: 3.935 | G20: 0 | H20: 71.359 | I20: 0.0003890271823 | J20: 0.0003443137804 | K20: 2.303 | L20: 30.814 | M20: 150.746 | N20: 405.565 | O20: 291.399 | P20: 176.1654 | Q20: 0.001311736688 | R20: 0.0007007918877 | S20: 104.8064 | U20: =G20-INDEX($C20:$G20,1,aux!$AL$1) -> -120.962 | V20: -0.0008636213812 | W20: -0.0008617434808 | X20: =+IF(INDEX($C20:$G20,1,aux!$AL$1)>0,(G20/INDEX($C20:$G20,1,aux!$AL$1))^(1/($G$3-INDEX($C$3:$G$3,1,aux!$AL$1)))-1,"n.d.") -> -1 | Y20: =IF(INDEX($C20:$G20,1,aux!$AL$1)>0,(G20-INDEX($C20:$G20,1,aux!$AL$1))/INDEX($C20:$G20,1,aux!$AL$1),"n.d.") -> -1 | AA20: =O20-INDEX($K20:$O20,1,aux!$AL$1) -> 289.096 | AB20: 0.02818934531 | AC20: 0.004596009032 | AD20: =+IF(INDEX($K20:$O20,1,aux!$AL$1)>0,(O20/INDEX($K20:$O20,1,aux!$AL$1))^(1/($O$3-INDEX($K$3:$O$3,1,aux!$AL$1)))-1,"n.d.") -> 2.3538878 | AE20: =IF(INDEX($K20:$O20,1,aux!$AL$1)>0,(O20-INDEX($K20:$O20,1,aux!$AL$1))/INDEX($K20:$O20,1,aux!$AL$1),"n.d.") -> 125.530178 | AX20: 02
A21: 02SS | B21: Carnes e miudezas, comestíveis | C21: 0 | D21: 0 | E21: 0 | F21: 0 | G21: 0 | H21: 0 | I21: 0 | J21: 0 | K21: 0 | L21: 0 | M21: 0 | N21: 0 | O21: 0 | P21: 0 | Q21: 0 | R21: 0 | S21: 0 | U21: =G21-INDEX($C21:$G21,1,aux!$AL$1) -> 0 | V21: 0 | W21: 0 | X21: =+IF(INDEX($C21:$G21,1,aux!$AL$1)>0,(G21/INDEX($C21:$G21,1,aux!$AL$1))^(1/($G$3-INDEX($C$3:$G$3,1,aux!$AL$1)))-1,"n.d.") -> n.d. | Y21: =IF(INDEX($C21:$G21,1,aux!$AL$1)>0,(G21-INDEX($C21:$G21,1,aux!$AL$1))/INDEX($C21:$G21,1,aux!$AL$1),"n.d.") -> n.d. | AA21: =O21-INDEX($K21:$O21,1,aux!$AL$1) -> 0 | AB21: 0 | AC21: 0 | AD21: =+IF(INDEX($K21:$O21,1,aux!$AL$1)>0,(O21/INDEX($K21:$O21,1,aux!$AL$1))^(1/($O$3-INDEX($K$3:$O$3,1,aux!$AL$1)))-1,"n.d.") -> n.d. | AE21: =IF(INDEX($K21:$O21,1,aux!$AL$1)>0,(O21-INDEX($K21:$O21,1,aux!$AL$1))/INDEX($K21:$O21,1,aux!$AL$1),"n.d.") -> n.d. | AX21: 02
A22: 0401 | B22: Leite e nata, não concentrados | C22: 0 | D22: 0.01 | E22: 0.079 | F22: 0.18 | G22: 0.26 | H22: 0.1058 | I22: 5.767888548e-07 | J22: 5.104947935e-07 | K22: 0 | L22: 0 | M22: 391.455 | N22: 545.874 | O22: 46.291 | P22: 196.724 | Q22: 0.001464817087 | R22: 0.0007825746902 | S22: 196.6182 | U22: =G22-INDEX($C22:$G22,1,aux!$AL$1) -> 0.26 | V22: 1.856298334e-06 | W22: 1.852261909e-06 | X22: =+IF(INDEX($C22:$G22,1,aux!$AL$1)>0,(G22/INDEX($C22:$G22,1,aux!$AL$1))^(1/($G$3-INDEX($C$3:$G$3,1,aux!$AL$1)))-1,"n.d.") -> n.d. | Y22: =IF(INDEX($C22:$G22,1,aux!$AL$1)>0,(G22-INDEX($C22:$G22,1,aux!$AL$1))/INDEX($C22:$G22,1,aux!$AL$1),"n.d.") -> n.d. | AA22: =O22-INDEX($K22:$O22,1,aux!$AL$1) -> 46.291 | AB22: 0.004513770457 | AC22: 0.000735928045 | AD22: =+IF(INDEX($K22:$O22,1,aux!$AL$1)>0,(O22/INDEX($K22:$O22,1,aux!$AL$1))^(1/($O$3-INDEX($K$3:$O$3,1,aux!$AL$1)))-1,"n.d.") -> n.d. | AE22: =IF(INDEX($K22:$O22,1,aux!$AL$1)>0,(O22-INDEX($K22:$O22,1,aux!$AL$1))/INDEX($K22:$O22,1,aux!$AL$1),"n.d.") -> n.d. | AX22: 04
A23: 0402 | B23: Leite e nata, concentrados | C23: 32.866 | D23: 23.778 | E23: 3.037 | F23: 61.157 | G23: 98.857 | H23: 43.939 | I23: 0.0002395418289 | J23: 0.0002120097422 | K23: 705.428 | L23: 706.465 | M23: 429.954 | N23: 569.023 | O23: 1629.257 | P23: 808.0254 | Q23: 0.006016598956 | R23: 0.003214352225 | S23: 764.0864 | U23: =G23-INDEX($C23:$G23,1,aux!$AL$1) -> 65.991 | V23: 0.0004711499361 | W23: 0.0004701254447 | X23: =+IF(INDEX($C23:$G23,1,aux!$AL$1)>0,(G23/INDEX($C23:$G23,1,aux!$AL$1))^(1/($G$3-INDEX($C$3:$G$3,1,aux!$AL$1)))-1,"n.d.") -> 0.316937438 | Y23: =IF(INDEX($C23:$G23,1,aux!$AL$1)>0,(G23-INDEX($C23:$G23,1,aux!$AL$1))/INDEX($C23:$G23,1,aux!$AL$1),"n.d.") -> 2.007880484 | AA23: =O23-INDEX($K23:$O23,1,aux!$AL$1) -> 923.829 | AB23: 0.09008126952 | AC23: 0.01468690825 | AD23: =+IF(INDEX($K23:$O23,1,aux!$AL$1)>0,(O23/INDEX($K23:$O23,1,aux!$AL$1))^(1/($O$3-INDEX($K$3:$O$3,1,aux!$AL$1)))-1,"n.d.") -> 0.232776155 | AE23: =IF(INDEX($K23:$O23,1,aux!$AL$1)>0,(O23-INDEX($K23:$O23,1,aux!$AL$1))/INDEX($K23:$O23,1,aux!$AL$1),"n.d.") -> 1.309600696 | AX23: 04
A24: 0403 | B24: Leitelho, leite coalhado, iogurte, etc. | C24: 37.4 | D24: 206.877 | E24: 374.581 | F24: 632.964 | G24: 783.929 | H24: 407.1502 | I24: 0.002219656877 | J24: 0.001964537403 | K24: 2355.117 | L24: 1306.71 | M24: 1075.204 | N24: 1417.791 | O24: 1321.3 | P24: 1495.2244 | Q24: 0.01113351828 | R24: 0.005948052965 | S24: 1088.0742 | U24: =G24-INDEX($C24:$G24,1,aux!$AL$1) -> 746.529 | V24: 0.005329925151 | W24: 0.005318335502 | X24: =+IF(INDEX($C24:$G24,1,aux!$AL$1)>0,(G24/INDEX($C24:$G24,1,aux!$AL$1))^(1/($G$3-INDEX($C$3:$G$3,1,aux!$AL$1)))-1,"n.d.") -> 1.139692095 | Y24: =IF(INDEX($C24:$G24,1,aux!$AL$1)>0,(G24-INDEX($C24:$G24,1,aux!$AL$1))/INDEX($C24:$G24,1,aux!$AL$1),"n.d.") -> 19.96066845 | AA24: =O24-INDEX($K24:$O24,1,aux!$AL$1) -> -1033.817 | AB24: -0.1008060451 | AC24: -0.01643548257 | AD24: =+IF(INDEX($K24:$O24,1,aux!$AL$1)>0,(O24/INDEX($K24:$O24,1,aux!$AL$1))^(1/($O$3-INDEX($K$3:$O$3,1,aux!$AL$1)))-1,"n.d.") -> -0.1345395286 | AE24: =IF(INDEX($K24:$O24,1,aux!$AL$1)>0,(O24-INDEX($K24:$O24,1,aux!$AL$1))/INDEX($K24:$O24,1,aux!$AL$1),"n.d.") -> -0.4389663019 | AX24: 04
A25: 0404 | B25: Soro de leite e outros produtos do leite | C25: 227.397 | D25: 0 | E25: 60.117 | F25: 0.283 | G25: 7.36 | H25: 59.0314 | I25: 0.0003218209225 | J25: 0.0002848319693 | K25: 35.824 | L25: 229.698 | M25: 96.859 | N25: 73.886 | O25: 398.714 | P25: 166.9962 | Q25: 0.00124346235 | R25: 0.0006643165017 | S25: 107.9648 | U25: =G25-INDEX($C25:$G25,1,aux!$AL$1) -> -220.037 | V25: -0.001570978141 | W25: -0.001567562129 | X25: =+IF(INDEX($C25:$G25,1,aux!$AL$1)>0,(G25/INDEX($C25:$G25,1,aux!$AL$1))^(1/($G$3-INDEX($C$3:$G$3,1,aux!$AL$1)))-1,"n.d.") -> -0.5758462892 | Y25: =IF(INDEX($C25:$G25,1,aux!$AL$1)>0,(G25-INDEX($C25:$G25,1,aux!$AL$1))/INDEX($C25:$G25,1,aux!$AL$1),"n.d.") -> -0.9676336979 | AA25: =O25-INDEX($K25:$O25,1,aux!$AL$1) -> 362.89 | AB25: 0.03538489471 | AC25: 0.005769176044 | AD25: =+IF(INDEX($K25:$O25,1,aux!$AL$1)>0,(O25/INDEX($K25:$O25,1,aux!$AL$1))^(1/($O$3-INDEX($K$3:$O$3,1,aux!$AL$1)))-1,"n.d.") -> 0.8265091503 | AE25: =IF(INDEX($K25:$O25,1,aux!$AL$1)>0,(O25-INDEX($K25:$O25,1,aux!$AL$1))/INDEX($K25:$O25,1,aux!$AL$1),"n.d.") -> 10.12980125 | AX25: 04
A26: 0405 | B26: Manteiga | C26: 0 | D26: 5.43 | E26: 0 | F26: 0 | G26: 457.529 | H26: 92.5918 | I26: 0.0005047818364 | J26: 0.0004467640058 | K26: 0 | L26: 0 | M26: 0.104 | N26: 0 | O26: 150.609 | P26: 30.1426 | Q26: 0.0002244433599 | R26: 0.0001199082769 | S26: -62.4492 | U26: =G26-INDEX($C26:$G26,1,aux!$AL$1) -> 457.529 | V26: 0.003266578156 | W26: 0.00325947515 | X26: =+IF(INDEX($C26:$G26,1,aux!$AL$1)>0,(G26/INDEX($C26:$G26,1,aux!$AL$1))^(1/($G$3-INDEX($C$3:$G$3,1,aux!$AL$1)))-1,"n.d.") -> n.d. | Y26: =IF(INDEX($C26:$G26,1,aux!$AL$1)>0,(G26-INDEX($C26:$G26,1,aux!$AL$1))/INDEX($C26:$G26,1,aux!$AL$1),"n.d.") -> n.d. | AA26: =O26-INDEX($K26:$O26,1,aux!$AL$1) -> 150.609 | AB26: 0.01468567226 | AC26: 0.002394361473 | AD26: =+IF(INDEX($K26:$O26,1,aux!$AL$1)>0,(O26/INDEX($K26:$O26,1,aux!$AL$1))^(1/($O$3-INDEX($K$3:$O$3,1,aux!$AL$1)))-1,"n.d.") -> n.d. | AE26: =IF(INDEX($K26:$O26,1,aux!$AL$1)>0,(O26-INDEX($K26:$O26,1,aux!$AL$1))/INDEX($K26:$O26,1,aux!$AL$1),"n.d.") -> n.d. | AX26: 04
A27: 0406 | B27: Queijos e requeijão | C27: 2270.485 | D27: 1778.18 | E27: 484.511 | F27: 271.344 | G27: 881.76 | H27: 1137.256 | I27: 0.006199967731 | J27: 0.005487365471 | K27: 493.237 | L27: 790.588 | M27: 932.932 | N27: 1344.163 | O27: 1609.224 | P27: 1034.0288 | Q27: 0.007699431972 | R27: 0.004113401353 | S27: -103.2272 | U27: =G27-INDEX($C27:$G27,1,aux!$AL$1) -> -1388.725 | V27: -0.009914953478 | W27: -0.009893393921 | X27: =+IF(INDEX($C27:$G27,1,aux!$AL$1)>0,(G27/INDEX($C27:$G27,1,aux!$AL$1))^(1/($G$3-INDEX($C$3:$G$3,1,aux!$AL$1)))-1,"n.d.") -> -0.210580338 | Y27: =IF(INDEX($C27:$G27,1,aux!$AL$1)>0,(G27-INDEX($C27:$G27,1,aux!$AL$1))/INDEX($C27:$G27,1,aux!$AL$1),"n.d.") -> -0.6116424464 | AA27: =O27-INDEX($K27:$O27,1,aux!$AL$1) -> 1115.987 | AB27: 0.1088183265 | AC27: 0.0177418101 | AD27: =+IF(INDEX($K27:$O27,1,aux!$AL$1)>0,(O27/INDEX($K27:$O27,1,aux!$AL$1))^(1/($O$3-INDEX($K$3:$O$3,1,aux!$AL$1)))-1,"n.d.") -> 0.3439719769 | AE27: =IF(INDEX($K27:$O27,1,aux!$AL$1)>0,(O27-INDEX($K27:$O27,1,aux!$AL$1))/INDEX($K27:$O27,1,aux!$AL$1),"n.d.") -> 2.262577625 | AX27: 04
A28: 0407 | B28: Ovos de aves, com cascas | C28: 0 | D28: 0 | E28: 0 | F28: 0 | G28: 0 | H28: 0 | I28: 0 | J28: 0 | K28: 0 | L28: 0 | M28: 51.835 | N28: 3.744 | O28: 0 | P28: 11.1158 | Q28: 8.276882221e-05 | R28: 4.421902636e-05 | S28: 11.1158 | U28: =G28-INDEX($C28:$G28,1,aux!$AL$1) -> 0 | V28: 0 | W28: 0 | X28: =+IF(INDEX($C28:$G28,1,aux!$AL$1)>0,(G28/INDEX($C28:$G28,1,aux!$AL$1))^(1/($G$3-INDEX($C$3:$G$3,1,aux!$AL$1)))-1,"n.d.") -> n.d. | Y28: =IF(INDEX($C28:$G28,1,aux!$AL$1)>0,(G28-INDEX($C28:$G28,1,aux!$AL$1))/INDEX($C28:$G28,1,aux!$AL$1),"n.d.") -> n.d. | AA28: =O28-INDEX($K28:$O28,1,aux!$AL$1) -> 0 | AB28: 0 | AC28: 0 | AD28: =+IF(INDEX($K28:$O28,1,aux!$AL$1)>0,(O28/INDEX($K28:$O28,1,aux!$AL$1))^(1/($O$3-INDEX($K$3:$O$3,1,aux!$AL$1)))-1,"n.d.") -> n.d. | AE28: =IF(INDEX($K28:$O28,1,aux!$AL$1)>0,(O28-INDEX($K28:$O28,1,aux!$AL$1))/INDEX($K28:$O28,1,aux!$AL$1),"n.d.") -> n.d. | AX28: 04
A29: 0408 | B29: Ovos de aves, sem casca | C29: 1.894 | D29: 3.161 | E29: 1.809 | F29: 7.346 | G29: 89.547 | H29: 20.7514 | I29: 0.0001131302102 | J29: 0.0001001274259 | K29: 0 | L29: 0 | M29: 0 | N29: 0 | O29: 0 | P29: 0 | Q29: 0 | R29: 0 | S29: -20.7514 | U29: =G29-INDEX($C29:$G29,1,aux!$AL$1) -> 87.653 | V29: 0.0006258081457 | W29: 0.0006244473581 | X29: =+IF(INDEX($C29:$G29,1,aux!$AL$1)>0,(G29/INDEX($C29:$G29,1,aux!$AL$1))^(1/($G$3-INDEX($C$3:$G$3,1,aux!$AL$1)))-1,"n.d.") -> 1.622211795 | Y29: =IF(INDEX($C29:$G29,1,aux!$AL$1)>0,(G29-INDEX($C29:$G29,1,aux!$AL$1))/INDEX($C29:$G29,1,aux!$AL$1),"n.d.") -> 46.27930306 | AA29: =O29-INDEX($K29:$O29,1,aux!$AL$1) -> 0 | AB29: 0 | AC29: 0 | AD29: =+IF(INDEX($K29:$O29,1,aux!$AL$1)>0,(O29/INDEX($K29:$O29,1,aux!$AL$1))^(1/($O$3-INDEX($K$3:$O$3,1,aux!$AL$1)))-1,"n.d.") -> n.d. | AE29: =IF(INDEX($K29:$O29,1,aux!$AL$1)>0,(O29-INDEX($K29:$O29,1,aux!$AL$1))/INDEX($K29:$O29,1,aux!$AL$1),"n.d.") -> n.d. | AX29: 04
A30: 0409 | B30: Mel natural | C30: 0 | D30: 0.012 | E30: 0.942 | F30: 0.851 | G30: 18.455 | H30: 4.052 | I30: 2.20902499e-05 | J30: 1.955127508e-05 | K30: 226.38 | L30: 15.693 | M30: 6.475 | N30: 112.033 | O30: 0.515 | P30: 72.2192 | Q30: 0.0005377479016 | R30: 0.0002872904072 | S30: 68.1672 | U30: =G30-INDEX($C30:$G30,1,aux!$AL$1) -> 18.455 | V30: 0.0001317614837 | W30: 0.0001314749751 | X30: =+IF(INDEX($C30:$G30,1,aux!$AL$1)>0,(G30/INDEX($C30:$G30,1,aux!$AL$1))^(1/($G$3-INDEX($C$3:$G$3,1,aux!$AL$1)))-1,"n.d.") -> n.d. | Y30: =IF(INDEX($C30:$G30,1,aux!$AL$1)>0,(G30-INDEX($C30:$G30,1,aux!$AL$1))/INDEX($C30:$G30,1,aux!$AL$1),"n.d.") -> n.d. | AA30: =O30-INDEX($K30:$O30,1,aux!$AL$1) -> -225.865 | AB30: -0.02202377923 | AC30: -0.003590771162 | AD30: =+IF(INDEX($K30:$O30,1,aux!$AL$1)>0,(O30/INDEX($K30:$O30,1,aux!$AL$1))^(1/($O$3-INDEX($K$3:$O$3,1,aux!$AL$1)))-1,"n.d.") -> -0.7816052001 | AE30: =IF(INDEX($K30:$O30,1,aux!$AL$1)>0,(O30-INDEX($K30:$O30,1,aux!$AL$1))/INDEX($K30:$O30,1,aux!$AL$1),"n.d.") -> -0.9977250641 | AX30: 04
A31: 0410 | B31: Outros produtos comestíveis de origem animal | C31: 0 | D31: 0 | E31: 0.349 | F31: 0 | G31: 0 | H31: 0.0698 | I31: 3.805279969e-07 | J31: 3.367914611e-07 | K31: 0 | L31: 0 | M31: 0 | N31: 0 | O31: 0 | P31: 0 | Q31: 0 | R31: 0 | S31: -0.0698 | U31: =G31-INDEX($C31:$G31,1,aux!$AL$1) -> 0 | V31: 0 | W31: 0 | X31: =+IF(INDEX($C31:$G31,1,aux!$AL$1)>0,(G31/INDEX($C31:$G31,1,aux!$AL$1))^(1/($G$3-INDEX($C$3:$G$3,1,aux!$AL$1)))-1,"n.d.") -> n.d. | Y31: =IF(INDEX($C31:$G31,1,aux!$AL$1)>0,(G31-INDEX($C31:$G31,1,aux!$AL$1))/INDEX($C31:$G31,1,aux!$AL$1),"n.d.") -> n.d. | AA31: =O31-INDEX($K31:$O31,1,aux!$AL$1) -> 0 | AB31: 0 | AC31: 0 | AD31: =+IF(INDEX($K31:$O31,1,aux!$AL$1)>0,(O31/INDEX($K31:$O31,1,aux!$AL$1))^(1/($O$3-INDEX($K$3:$O$3,1,aux!$AL$1)))-1,"n.d.") -> n.d. | AE31: =IF(INDEX($K31:$O31,1,aux!$AL$1)>0,(O31-INDEX($K31:$O31,1,aux!$AL$1))/INDEX($K31:$O31,1,aux!$AL$1),"n.d.") -> n.d. | AX31: 04
A32: 04SS | B32: Leite e lacticínios; ovos de aves; mel natural; etc. | C32: 0 | D32: 0 | E32: 0 | F32: 0 | G32: 0 | H32: 0 | I32: 0 | J32: 0 | K32: 0 | L32: 0 | M32: 0 | N32: 0 | O32: 0 | P32: 0 | Q32: 0 | R32: 0 | S32: 0 | U32: =G32-INDEX($C32:$G32,1,aux!$AL$1) -> 0 | V32: 0 | W32: 0 | X32: =+IF(INDEX($C32:$G32,1,aux!$AL$1)>0,(G32/INDEX($C32:$G32,1,aux!$AL$1))^(1/($G$3-INDEX($C$3:$G$3,1,aux!$AL$1)))-1,"n.d.") -> n.d. | Y32: =IF(INDEX($C32:$G32,1,aux!$AL$1)>0,(G32-INDEX($C32:$G32,1,aux!$AL$1))/INDEX($C32:$G32,1,aux!$AL$1),"n.d.") -> n.d. | AA32: =O32-INDEX($K32:$O32,1,aux!$AL$1) -> 0 | AB32: 0 | AC32: 0 | AD32: =+IF(INDEX($K32:$O32,1,aux!$AL$1)>0,(O32/INDEX($K32:$O32,1,aux!$AL$1))^(1/($O$3-INDEX($K$3:$O$3,1,aux!$AL$1)))-1,"n.d.") -> n.d. | AE32: =IF(INDEX($K32:$O32,1,aux!$AL$1)>0,(O32-INDEX($K32:$O32,1,aux!$AL$1))/INDEX($K32:$O32,1,aux!$AL$1),"n.d.") -> n.d. | AX32: 04
A33: 0501 | B33: Cabelos em bruto | C33: 0 | D33: 0 | E33: 0 | F33: 0 | G33: 0 | H33: 0 | I33: 0 | J33: 0 | K33: 0 | L33: 0 | M33: 0 | N33: 0 | O33: 0 | P33: 0 | Q33: 0 | R33: 0 | S33: 0 | U33: =G33-INDEX($C33:$G33,1,aux!$AL$1) -> 0 | V33: 0 | W33: 0 | X33: =+IF(INDEX($C33:$G33,1,aux!$AL$1)>0,(G33/INDEX($C33:$G33,1,aux!$AL$1))^(1/($G$3-INDEX($C$3:$G$3,1,aux!$AL$1)))-1,"n.d.") -> n.d. | Y33: =IF(INDEX($C33:$G33,1,aux!$AL$1)>0,(G33-INDEX($C33:$G33,1,aux!$AL$1))/INDEX($C33:$G33,1,aux!$AL$1),"n.d.") -> n.d. | AA33: =O33-INDEX($K33:$O33,1,aux!$AL$1) -> 0 | AB33: 0 | AC33: 0 | AD33: =+IF(INDEX($K33:$O33,1,aux!$AL$1)>0,(O33/INDEX($K33:$O33,1,aux!$AL$1))^(1/($O$3-INDEX($K$3:$O$3,1,aux!$AL$1)))-1,"n.d.") -> n.d. | AE33: =IF(INDEX($K33:$O33,1,aux!$AL$1)>0,(O33-INDEX($K33:$O33,1,aux!$AL$1))/INDEX($K33:$O33,1,aux!$AL$1),"n.d.") -> n.d. | AX33: 05
A34: 0502 | B34: Cerdas de porco ou de javali, etc. | C34: 0 | D34: 0 | E34: 0 | F34: 0 | G34: 0 | H34: 0 | I34: 0 | J34: 0 | K34: 0 | L34: 0 | M34: 0 | N34: 0 | O34: 0 | P34: 0 | Q34: 0 | R34: 0 | S34: 0 | U34: =G34-INDEX($C34:$G34,1,aux!$AL$1) -> 0 | V34: 0 | W34: 0 | X34: =+IF(INDEX($C34:$G34,1,aux!$AL$1)>0,(G34/INDEX($C34:$G34,1,aux!$AL$1))^(1/($G$3-INDEX($C$3:$G$3,1,aux!$AL$1)))-1,"n.d.") -> n.d. | Y34: =IF(INDEX($C34:$G34,1,aux!$AL$1)>0,(G34-INDEX($C34:$G34,1,aux!$AL$1))/INDEX($C34:$G34,1,aux!$AL$1),"n.d.") -> n.d. | AA34: =O34-INDEX($K34:$O34,1,aux!$AL$1) -> 0 | AB34: 0 | AC34: 0 | AD34: =+IF(INDEX($K34:$O34,1,aux!$AL$1)>0,(O34/INDEX($K34:$O34,1,aux!$AL$1))^(1/($O$3-INDEX($K$3:$O$3,1,aux!$AL$1)))-1,"n.d.") -> n.d. | AE34: =IF(INDEX($K34:$O34,1,aux!$AL$1)>0,(O34-INDEX($K34:$O34,1,aux!$AL$1))/INDEX($K34:$O34,1,aux!$AL$1),"n.d.") -> n.d. | AX34: 05
A35: 0504 | B35: Tripas de animais (excepto peixes) | C35: 2803.387 | D35: 2502.194 | E35: 2142.696 | F35: 2351.665 | G35: 2813.479 | H35: 2522.6842 | I35: 0.01375289349 | J35: 0.01217218478 | K35: 1225.795 | L35: 1714.688 | M35: 2139.484 | N35: 2632.614 | O35: 2492.135 | P35: 2040.9432 | Q35: 0.01519696872 | R35: 0.008118940711 | S35: -481.741 | U35: =G35-INDEX($C35:$G35,1,aux!$AL$1) -> 10.092 | V35: 7.20529338e-05 | W35: 7.18962584e-05 | X35: =+IF(INDEX($C35:$G35,1,aux!$AL$1)>0,(G35/INDEX($C35:$G35,1,aux!$AL$1))^(1/($G$3-INDEX($C$3:$G$3,1,aux!$AL$1)))-1,"n.d.") -> 0.0008987703624 | Y35: =IF(INDEX($C35:$G35,1,aux!$AL$1)>0,(G35-INDEX($C35:$G35,1,aux!$AL$1))/INDEX($C35:$G35,1,aux!$AL$1),"n.d.") -> 0.003599931083 | AA35: =O35-INDEX($K35:$O35,1,aux!$AL$1) -> 1266.34 | AB35: 0.1234790365 | AC35: 0.02013210172 | AD35: =+IF(INDEX($K35:$O35,1,aux!$AL$1)>0,(O35/INDEX($K35:$O35,1,aux!$AL$1))^(1/($O$3-INDEX($K$3:$O$3,1,aux!$AL$1)))-1,"n.d.") -> 0.1940937625 | AE35: =IF(INDEX($K35:$O35,1,aux!$AL$1)>0,(O35-INDEX($K35:$O35,1,aux!$AL$1))/INDEX($K35:$O35,1,aux!$AL$1),"n.d.") -> 1.033076493 | AX35: 05
A36: 0505 | B36: Peles e outras partes de aves | C36: 0 | D36: 0 | E36: 0 | F36: 0 | G36: 0 | H36: 0 | I36: 0 | J36: 0 | K36: 0 | L36: 0 | M36: 0 | N36: 0 | O36: 0 | P36: 0 | Q36: 0 | R36: 0 | S36: 0 | U36: =G36-INDEX($C36:$G36,1,aux!$AL$1) -> 0 | V36: 0 | W36: 0 | X36: =+IF(INDEX($C36:$G36,1,aux!$AL$1)>0,(G36/INDEX($C36:$G36,1,aux!$AL$1))^(1/($G$3-INDEX($C$3:$G$3,1,aux!$AL$1)))-1,"n.d.") -> n.d. | Y36: =IF(INDEX($C36:$G36,1,aux!$AL$1)>0,(G36-INDEX($C36:$G36,1,aux!$AL$1))/INDEX($C36:$G36,1,aux!$AL$1),"n.d.") -> n.d. | AA36: =O36-INDEX($K36:$O36,1,aux!$AL$1) -> 0 | AB36: 0 | AC36: 0 | AD36: =+IF(INDEX($K36:$O36,1,aux!$AL$1)>0,(O36/INDEX($K36:$O36,1,aux!$AL$1))^(1/($O$3-INDEX($K$3:$O$3,1,aux!$AL$1)))-1,"n.d.") -> n.d. | AE36: =IF(INDEX($K36:$O36,1,aux!$AL$1)>0,(O36-INDEX($K36:$O36,1,aux!$AL$1))/INDEX($K36:$O36,1,aux!$AL$1),"n.d.") -> n.d. | AX36: 05
A37: 0506 | B37: Ossos e núcleos córneos, em bruto | C37: 0 | D37: 3.19 | E37: 0 | F37: 0 | G37: 0 | H37: 0.638 | I37: 3.478178539e-06 | J37: 3.078409057e-06 | K37: 0 | L37: 0 | M37: 0 | N37: 0 | O37: 0 | P37: 0 | Q37: 0 | R37: 0 | S37: -0.638 | U37: =G37-INDEX($C37:$G37,1,aux!$AL$1) -> 0 | V37: 0 | W37: 0 | X37: =+IF(INDEX($C37:$G37,1,aux!$AL$1)>0,(G37/INDEX($C37:$G37,1,aux!$AL$1))^(1/($G$3-INDEX($C$3:$G$3,1,aux!$AL$1)))-1,"n.d.") -> n.d. | Y37: =IF(INDEX($C37:$G37,1,aux!$AL$1)>0,(G37-INDEX($C37:$G37,1,aux!$AL$1))/INDEX($C37:$G37,1,aux!$AL$1),"n.d.") -> n.d. | AA37: =O37-INDEX($K37:$O37,1,aux!$AL$1) -> 0 | AB37: 0 | AC37: 0 | AD37: =+IF(INDEX($K37:$O37,1,aux!$AL$1)>0,(O37/INDEX($K37:$O37,1,aux!$AL$1))^(1/($O$3-INDEX($K$3:$O$3,1,aux!$AL$1)))-1,"n.d.") -> n.d. | AE37: =IF(INDEX($K37:$O37,1,aux!$AL$1)>0,(O37-INDEX($K37:$O37,1,aux!$AL$1))/INDEX($K37:$O37,1,aux!$AL$1),"n.d.") -> n.d. | AX37: 05
A38: 0507 | B38: Marfim, carapaças de tartaruga, etc. | C38: 0 | D38: 0 | E38: 0 | F38: 0 | G38: 0 | H38: 0 | I38: 0 | J38: 0 | K38: 0 | L38: 0 | M38: 0 | N38: 0 | O38: 0 | P38: 0 | Q38: 0 | R38: 0 | S38: 0 | U38: =G38-INDEX($C38:$G38,1,aux!$AL$1) -> 0 | V38: 0 | W38: 0 | X38: =+IF(INDEX($C38:$G38,1,aux!$AL$1)>0,(G38/INDEX($C38:$G38,1,aux!$AL$1))^(1/($G$3-INDEX($C$3:$G$3,1,aux!$AL$1)))-1,"n.d.") -> n.d. | Y38: =IF(INDEX($C38:$G38,1,aux!$AL$1)>0,(G38-INDEX($C38:$G38,1,aux!$AL$1))/INDEX($C38:$G38,1,aux!$AL$1),"n.d.") -> n.d. | AA38: =O38-INDEX($K38:$O38,1,aux!$AL$1) -> 0 | AB38: 0 | AC38: 0 | AD38: =+IF(INDEX($K38:$O38,1,aux!$AL$1)>0,(O38/INDEX($K38:$O38,1,aux!$AL$1))^(1/($O$3-INDEX($K$3:$O$3,1,aux!$AL$1)))-1,"n.d.") -> n.d. | AE38: =IF(INDEX($K38:$O38,1,aux!$AL$1)>0,(O38-INDEX($K38:$O38,1,aux!$AL$1))/INDEX($K38:$O38,1,aux!$AL$1),"n.d.") -> n.d. | AX38: 05
A39: 0510 | B39: Âmbar-cinzento, castóreo, algália e almíscar, etc. | C39: 0 | D39: 0 | E39: 0 | F39: 0 | G39: 0 | H39: 0 | I39: 0 | J39: 0 | K39: 0 | L39: 0 | M39: 0 | N39: 0 | O39: 0 | P39: 0 | Q39: 0 | R39: 0 | S39: 0 | U39: =G39-INDEX($C39:$G39,1,aux!$AL$1) -> 0 | V39: 0 | W39: 0 | X39: =+IF(INDEX($C39:$G39,1,aux!$AL$1)>0,(G39/INDEX($C39:$G39,1,aux!$AL$1))^(1/($G$3-INDEX($C$3:$G$3,1,aux!$AL$1)))-1,"n.d.") -> n.d. | Y39: =IF(INDEX($C39:$G39,1,aux!$AL$1)>0,(G39-INDEX($C39:$G39,1,aux!$AL$1))/INDEX($C39:$G39,1,aux!$AL$1),"n.d.") -> n.d. | AA39: =O39-INDEX($K39:$O39,1,aux!$AL$1) -> 0 | AB39: 0 | AC39: 0 | AD39: =+IF(INDEX($K39:$O39,1,aux!$AL$1)>0,(O39/INDEX($K39:$O39,1,aux!$AL$1))^(1/($O$3-INDEX($K$3:$O$3,1,aux!$AL$1)))-1,"n.d.") -> n.d. | AE39: =IF(INDEX($K39:$O39,1,aux!$AL$1)>0,(O39-INDEX($K39:$O39,1,aux!$AL$1))/INDEX($K39:$O39,1,aux!$AL$1),"n.d.") -> n.d. | AX39: 05
A40: 0511 | B40: Outros produtos de origem animal (exc. NC 0511 91) (a) | C40: 1.426 | D40: 3.958 | E40: 0.022 | F40: 5.901 | G40: 3.672 | H40: 2.9958 | I40: 1.63321744e-05 | J40: 1.445501231e-05 | K40: 0 | L40: 0 | M40: 26.473 | N40: 7.572 | O40: 0 | P40: 6.809 | Q40: 5.070016647e-05 | R40: 2.708643107e-05 | S40: 3.8132 | U40: =G40-INDEX($C40:$G40,1,aux!$AL$1) -> 2.246 | V40: 1.603556176e-05 | W40: 1.600069326e-05 | X40: =+IF(INDEX($C40:$G40,1,aux!$AL$1)>0,(G40/INDEX($C40:$G40,1,aux!$AL$1))^(1/($G$3-INDEX($C$3:$G$3,1,aux!$AL$1)))-1,"n.d.") -> 0.266764216 | Y40: =IF(INDEX($C40:$G40,1,aux!$AL$1)>0,(G40-INDEX($C40:$G40,1,aux!$AL$1))/INDEX($C40:$G40,1,aux!$AL$1),"n.d.") -> 1.575035063 | AA40: =O40-INDEX($K40:$O40,1,aux!$AL$1) -> 0 | AB40: 0 | AC40: 0 | AD40: =+IF(INDEX($K40:$O40,1,aux!$AL$1)>0,(O40/INDEX($K40:$O40,1,aux!$AL$1))^(1/($O$3-INDEX($K$3:$O$3,1,aux!$AL$1)))-1,"n.d.") -> n.d. | AE40: =IF(INDEX($K40:$O40,1,aux!$AL$1)>0,(O40-INDEX($K40:$O40,1,aux!$AL$1))/INDEX($K40:$O40,1,aux!$AL$1),"n.d.") -> n.d. | AX40: 05
A41: 05SS | B41: Outros produtos de origem animal | C41: 0 | D41: 0 | E41: 0 | F41: 0 | G41: 0 | H41: 0 | I41: 0 | J41: 0 | K41: 0 | L41: 0 | M41: 0 | N41: 0 | O41: 0 | P41: 0 | Q41: 0 | R41: 0 | S41: 0 | U41: =G41-INDEX($C41:$G41,1,aux!$AL$1) -> 0 | V41: 0 | W41: 0 | X41: =+IF(INDEX($C41:$G41,1,aux!$AL$1)>0,(G41/INDEX($C41:$G41,1,aux!$AL$1))^(1/($G$3-INDEX($C$3:$G$3,1,aux!$AL$1)))-1,"n.d.") -> n.d. | Y41: =IF(INDEX($C41:$G41,1,aux!$AL$1)>0,(G41-INDEX($C41:$G41,1,aux!$AL$1))/INDEX($C41:$G41,1,aux!$AL$1),"n.d.") -> n.d. | AA41: =O41-INDEX($K41:$O41,1,aux!$AL$1) -> 0 | AB41: 0 | AC41: 0 | AD41: =+IF(INDEX($K41:$O41,1,aux!$AL$1)>0,(O41/INDEX($K41:$O41,1,aux!$AL$1))^(1/($O$3-INDEX($K$3:$O$3,1,aux!$AL$1)))-1,"n.d.") -> n.d. | AE41: =IF(INDEX($K41:$O41,1,aux!$AL$1)>0,(O41-INDEX($K41:$O41,1,aux!$AL$1))/INDEX($K41:$O41,1,aux!$AL$1),"n.d.") -> n.d. | AX41: 05
A42: 0601 | B42: Bolbos, tubérculos, raízes, etc. | C42: 0 | D42: 0 | E42: 0 | F42: 0.812 | G42: 0 | H42: 0.1624 | I42: 8.853545371e-07 | J42: 7.835950327e-07 | K42: 0 | L42: 0 | M42: 0 | N42: 0 | O42: 0 | P42: 0 | Q42: 0 | R42: 0 | S42: -0.1624 | U42: =G42-INDEX($C42:$G42,1,aux!$AL$1) -> 0 | V42: 0 | W42: 0 | X42: =+IF(INDEX($C42:$G42,1,aux!$AL$1)>0,(G42/INDEX($C42:$G42,1,aux!$AL$1))^(1/($G$3-INDEX($C$3:$G$3,1,aux!$AL$1)))-1,"n.d.") -> n.d. | Y42: =IF(INDEX($C42:$G42,1,aux!$AL$1)>0,(G42-INDEX($C42:$G42,1,aux!$AL$1))/INDEX($C42:$G42,1,aux!$AL$1),"n.d.") -> n.d. | AA42: =O42-INDEX($K42:$O42,1,aux!$AL$1) -> 0 | AB42: 0 | AC42: 0 | AD42: =+IF(INDEX($K42:$O42,1,aux!$AL$1)>0,(O42/INDEX($K42:$O42,1,aux!$AL$1))^(1/($O$3-INDEX($K$3:$O$3,1,aux!$AL$1)))-1,"n.d.") -> n.d. | AE42: =IF(INDEX($K42:$O42,1,aux!$AL$1)>0,(O42-INDEX($K42:$O42,1,aux!$AL$1))/INDEX($K42:$O42,1,aux!$AL$1),"n.d.") -> n.d. | AX42: 06
A43: 0602 | B43: Plantas vivas | C43: 116.348 | D43: 28.973 | E43: 1116.692 | F43: 2521.532 | G43: 849.752 | H43: 926.6594 | I43: 0.005051860247 | J43: 0.004471217382 | K43: 378.249 | L43: 961.294 | M43: 1038.9 | N43: 1720.582 | O43: 1822.242 | P43: 1184.2534 | Q43: 0.00881801212 | R43: 0.004710999866 | S43: 257.594 | U43: =G43-INDEX($C43:$G43,1,aux!$AL$1) -> 733.404 | V43: 0.005236217783 | W43: 0.005224831896 | X43: =+IF(INDEX($C43:$G43,1,aux!$AL$1)>0,(G43/INDEX($C43:$G43,1,aux!$AL$1))^(1/($G$3-INDEX($C$3:$G$3,1,aux!$AL$1)))-1,"n.d.") -> 0.6439299899 | Y43: =IF(INDEX($C43:$G43,1,aux!$AL$1)>0,(G43-INDEX($C43:$G43,1,aux!$AL$1))/INDEX($C43:$G43,1,aux!$AL$1),"n.d.") -> 6.303537663 | AA43: =O43-INDEX($K43:$O43,1,aux!$AL$1) -> 1443.993 | AB43: 0.1408017313 | AC43: 0.02295640503 | AD43: =+IF(INDEX($K43:$O43,1,aux!$AL$1)>0,(O43/INDEX($K43:$O43,1,aux!$AL$1))^(1/($O$3-INDEX($K$3:$O$3,1,aux!$AL$1)))-1,"n.d.") -> 0.4815184555 | AE43: =IF(INDEX($K43:$O43,1,aux!$AL$1)>0,(O43-INDEX($K43:$O43,1,aux!$AL$1))/INDEX($K43:$O43,1,aux!$AL$1),"n.d.") -> 3.817572551 | AX43: 06
A44: 0603 | B44: Flores e seus botões | C44: 0.604 | D44: 1.347 | E44: 0.096 | F44: 1.368 | G44: 0.798 | H44: 0.8426 | I44: 4.593594415e-06 | J44: 4.065622996e-06 | K44: 0 | L44: 0 | M44: 0 | N44: 0 | O44: 0 | P44: 0 | Q44: 0 | R44: 0 | S44: -0.8426 | U44: =G44-INDEX($C44:$G44,1,aux!$AL$1) -> 0.194 | V44: 1.385084142e-06 | W44: 1.382072347e-06 | X44: =+IF(INDEX($C44:$G44,1,aux!$AL$1)>0,(G44/INDEX($C44:$G44,1,aux!$AL$1))^(1/($G$3-INDEX($C$3:$G$3,1,aux!$AL$1)))-1,"n.d.") -> 0.07211528611 | Y44: =IF(INDEX($C44:$G44,1,aux!$AL$1)>0,(G44-INDEX($C44:$G44,1,aux!$AL$1))/INDEX($C44:$G44,1,aux!$AL$1),"n.d.") -> 0.321192053 | AA44: =O44-INDEX($K44:$O44,1,aux!$AL$1) -> 0 | AB44: 0 | AC44: 0 | AD44: =+IF(INDEX($K44:$O44,1,aux!$AL$1)>0,(O44/INDEX($K44:$O44,1,aux!$AL$1))^(1/($O$3-INDEX($K$3:$O$3,1,aux!$AL$1)))-1,"n.d.") -> n.d. | AE44: =IF(INDEX($K44:$O44,1,aux!$AL$1)>0,(O44-INDEX($K44:$O44,1,aux!$AL$1))/INDEX($K44:$O44,1,aux!$AL$1),"n.d.") -> n.d. | AX44: 06
A45: 0604 | B45: Folhagem, folhas, ramos e outras partes de plantas | C45: 0 | D45: 0 | E45: 0.21 | F45: 0.052 | G45: 0.34 | H45: 0.1204 | I45: 6.563835361e-07 | J45: 5.809411449e-07 | K45: 0 | L45: 3.423 | M45: 0 | N45: 0 | O45: 0 | P45: 0.6846 | Q45: 5.097567038e-06 | R45: 2.723361831e-06 | S45: 0.5642 | U45: =G45-INDEX($C45:$G45,1,aux!$AL$1) -> 0.34 | V45: 2.427467052e-06 | W45: 2.42218865e-06 | X45: =+IF(INDEX($C45:$G45,1,aux!$AL$1)>0,(G45/INDEX($C45:$G45,1,aux!$AL$1))^(1/($G$3-INDEX($C$3:$G$3,1,aux!$AL$1)))-1,"n.d.") -> n.d. | Y45: =IF(INDEX($C45:$G45,1,aux!$AL$1)>0,(G45-INDEX($C45:$G45,1,aux!$AL$1))/INDEX($C45:$G45,1,aux!$AL$1),"n.d.") -> n.d. | AA45: =O45-INDEX($K45:$O45,1,aux!$AL$1) -> 0 | AB45: 0 | AC45: 0 | AD45: =+IF(INDEX($K45:$O45,1,aux!$AL$1)>0,(O45/INDEX($K45:$O45,1,aux!$AL$1))^(1/($O$3-INDEX($K$3:$O$3,1,aux!$AL$1)))-1,"n.d.") -> n.d. | AE45: =IF(INDEX($K45:$O45,1,aux!$AL$1)>0,(O45-INDEX($K45:$O45,1,aux!$AL$1))/INDEX($K45:$O45,1,aux!$AL$1),"n.d.") -> n.d. | AX45: 06
A46: 06SS | B46: Plantas vivas e produtos de floricultura | C46: 0 | D46: 0 | E46: 0 | F46: 0 | G46: 0 | H46: 0 | I46: 0 | J46: 0 | K46: 0 | L46: 0 | M46: 0 | N46: 0 | O46: 0 | P46: 0 | Q46: 0 | R46: 0 | S46: 0 | U46: =G46-INDEX($C46:$G46,1,aux!$AL$1) -> 0 | V46: 0 | W46: 0 | X46: =+IF(INDEX($C46:$G46,1,aux!$AL$1)>0,(G46/INDEX($C46:$G46,1,aux!$AL$1))^(1/($G$3-INDEX($C$3:$G$3,1,aux!$AL$1)))-1,"n.d.") -> n.d. | Y46: =IF(INDEX($C46:$G46,1,aux!$AL$1)>0,(G46-INDEX($C46:$G46,1,aux!$AL$1))/INDEX($C46:$G46,1,aux!$AL$1),"n.d.") -> n.d. | AA46: =O46-INDEX($K46:$O46,1,aux!$AL$1) -> 0 | AB46: 0 | AC46: 0 | AD46: =+IF(INDEX($K46:$O46,1,aux!$AL$1)>0,(O46/INDEX($K46:$O46,1,aux!$AL$1))^(1/($O$3-INDEX($K$3:$O$3,1,aux!$AL$1)))-1,"n.d.") -> n.d. | AE46: =IF(INDEX($K46:$O46,1,aux!$AL$1)>0,(O46-INDEX($K46:$O46,1,aux!$AL$1))/INDEX($K46:$O46,1,aux!$AL$1),"n.d.") -> n.d. | AX46: 06
A47: 0701 | B47: Batatas, frescas ou refrigeradas | C47: 94.727 | D47: 285.807 | E47: 243.996 | F47: 131.087 | G47: 218.293 | H47: 194.782 | I47: 0.001061891179 | J47: 0.0009398411801 | K47: 0 | L47: 198.562 | M47: 0 | N47: 0 | O47: 0 | P47: 39.7124 | Q47: 0.0002957005861 | R47: 0.0001579772632 | S47: -155.0696 | U47: =G47-INDEX($C47:$G47,1,aux!$AL$1) -> 123.566 | V47: 0.0008822129229 | W47: 0.0008802945963 | X47: =+IF(INDEX($C47:$G47,1,aux!$AL$1)>0,(G47/INDEX($C47:$G47,1,aux!$AL$1))^(1/($G$3-INDEX($C$3:$G$3,1,aux!$AL$1)))-1,"n.d.") -> 0.2320873723 | Y47: =IF(INDEX($C47:$G47,1,aux!$AL$1)>0,(G47-INDEX($C47:$G47,1,aux!$AL$1))/INDEX($C47:$G47,1,aux!$AL$1),"n.d.") -> 1.304443295 | AA47: =O47-INDEX($K47:$O47,1,aux!$AL$1) -> 0 | AB47: 0 | AC47: 0 | AD47: =+IF(INDEX($K47:$O47,1,aux!$AL$1)>0,(O47/INDEX($K47:$O47,1,aux!$AL$1))^(1/($O$3-INDEX($K$3:$O$3,1,aux!$AL$1)))-1,"n.d.") -> n.d. | AE47: =IF(INDEX($K47:$O47,1,aux!$AL$1)>0,(O47-INDEX($K47:$O47,1,aux!$AL$1))/INDEX($K47:$O47,1,aux!$AL$1),"n.d.") -> n.d. | AX47: 07
A48: 0702 | B48: Tomates, frescos ou refrigerados | C48: 468.003 | D48: 121.686 | E48: 51.083 | F48: 0 | G48: 630.343 | H48: 254.223 | I48: 0.001385945114 | J48: 0.001226649507 | K48: 1629.838 | L48: 1067.385 | M48: 1121.31 | N48: 407.104 | O48: 160.091 | P48: 877.1456 | Q48: 0.006531271543 | R48: 0.003489314706 | S48: 622.9226 | U48: =G48-INDEX($C48:$G48,1,aux!$AL$1) -> 162.34 | V48: 0.001159044121 | W48: 0.00115652384 | X48: =+IF(INDEX($C48:$G48,1,aux!$AL$1)>0,(G48/INDEX($C48:$G48,1,aux!$AL$1))^(1/($G$3-INDEX($C$3:$G$3,1,aux!$AL$1)))-1,"n.d.") -> 0.07728862535 | Y48: =IF(INDEX($C48:$G48,1,aux!$AL$1)>0,(G48-INDEX($C48:$G48,1,aux!$AL$1))/INDEX($C48:$G48,1,aux!$AL$1),"n.d.") -> 0.3468781183 | AA48: =O48-INDEX($K48:$O48,1,aux!$AL$1) -> -1469.747 | AB48: -0.1433129677 | AC48: -0.02336583864 | AD48: =+IF(INDEX($K48:$O48,1,aux!$AL$1)>0,(O48/INDEX($K48:$O48,1,aux!$AL$1))^(1/($O$3-INDEX($K$3:$O$3,1,aux!$AL$1)))-1,"n.d.") -> -0.4401707065 | AE48: =IF(INDEX($K48:$O48,1,aux!$AL$1)>0,(O48-INDEX($K48:$O48,1,aux!$AL$1))/INDEX($K48:$O48,1,aux!$AL$1),"n.d.") -> -0.9017749003 | AX48: 07
A49: 0703 | B49: Cebolas, alhos, etc., frescos ou refrigerados | C49: 386.146 | D49: 1244.619 | E49: 493.821 | F49: 59.918 | G49: 538.665 | H49: 544.6338 | I49: 0.002969174913 | J49: 0.002627908499 | K49: 1810.795 | L49: 1383.572 | M49: 84.799 | N49: 137.86 | O49: 114.689 | P49: 706.343 | Q49: 0.005259466542 | R49: 0.002809856217 | S49: 161.7092 | U49: =G49-INDEX($C49:$G49,1,aux!$AL$1) -> 152.519 | V49: 0.001088926022 | W49: 0.001086558208 | X49: =+IF(INDEX($C49:$G49,1,aux!$AL$1)>0,(G49/INDEX($C49:$G49,1,aux!$AL$1))^(1/($G$3-INDEX($C$3:$G$3,1,aux!$AL$1)))-1,"n.d.") -> 0.08678041761 | Y49: =IF(INDEX($C49:$G49,1,aux!$AL$1)>0,(G49-INDEX($C49:$G49,1,aux!$AL$1))/INDEX($C49:$G49,1,aux!$AL$1),"n.d.") -> 0.3949775474 | AA49: =O49-INDEX($K49:$O49,1,aux!$AL$1) -> -1696.106 | AB49: -0.1653849162 | AC49: -0.02696446334 | AD49: =+IF(INDEX($K49:$O49,1,aux!$AL$1)>0,(O49/INDEX($K49:$O49,1,aux!$AL$1))^(1/($O$3-INDEX($K$3:$O$3,1,aux!$AL$1)))-1,"n.d.") -> -0.4983357884 | AE49: =IF(INDEX($K49:$O49,1,aux!$AL$1)>0,(O49-INDEX($K49:$O49,1,aux!$AL$1))/INDEX($K49:$O49,1,aux!$AL$1),"n.d.") -> -0.9366637306 | AX49: 07
A50: 0704 | B50: Couves, frescas ou refrigeradas | C50: 28.652 | D50: 162.822 | E50: 131.6 | F50: 18.145 | G50: 246.127 | H50: 117.4692 | I50: 0.0006404057216 | J50: 0.0005667997636 | K50: 4007.587 | L50: 3784.281 | M50: 884.881 | N50: 879.343 | O50: 1913.967 | P50: 2294.0118 | Q50: 0.01708133061 | R50: 0.009125656115 | S50: 2176.5426 | U50: =G50-INDEX($C50:$G50,1,aux!$AL$1) -> 217.475 | V50: 0.001552686462 | W50: 0.001549310226 | X50: =+IF(INDEX($C50:$G50,1,aux!$AL$1)>0,(G50/INDEX($C50:$G50,1,aux!$AL$1))^(1/($G$3-INDEX($C$3:$G$3,1,aux!$AL$1)))-1,"n.d.") -> 0.7119894298 | Y50: =IF(INDEX($C50:$G50,1,aux!$AL$1)>0,(G50-INDEX($C50:$G50,1,aux!$AL$1))/INDEX($C50:$G50,1,aux!$AL$1),"n.d.") -> 7.590220578 | AA50: =O50-INDEX($K50:$O50,1,aux!$AL$1) -> -2093.62 | AB50: -0.2041459485 | AC50: -0.03328408705 | AD50: =+IF(INDEX($K50:$O50,1,aux!$AL$1)>0,(O50/INDEX($K50:$O50,1,aux!$AL$1))^(1/($O$3-INDEX($K$3:$O$3,1,aux!$AL$1)))-1,"n.d.") -> -0.1686902549 | AE50: =IF(INDEX($K50:$O50,1,aux!$AL$1)>0,(O50-INDEX($K50:$O50,1,aux!$AL$1))/INDEX($K50:$O50,1,aux!$AL$1),"n.d.") -> -0.522414111 | AX50: 07
A51: 0705 | B51: Alfaces, frescas ou refrigeradas | C51: 3.12 | D51: 5.908 | E51: 28.561 | F51: 29.56 | G51: 134.521 | H51: 40.334 | I51: 0.0002198884846 | J51: 0.0001946152835 | K51: 869.87 | L51: 753.022 | M51: 80.363 | N51: 267.546 | O51: 27.224 | P51: 399.605 | Q51: 0.002975479516 | R51: 0.001589642133 | S51: 359.271 | U51: =G51-INDEX($C51:$G51,1,aux!$AL$1) -> 131.401 | V51: 0.0009381517593 | W51: 0.0009361117965 | X51: =+IF(INDEX($C51:$G51,1,aux!$AL$1)>0,(G51/INDEX($C51:$G51,1,aux!$AL$1))^(1/($G$3-INDEX($C$3:$G$3,1,aux!$AL$1)))-1,"n.d.") -> 1.562470494 | Y51: =IF(INDEX($C51:$G51,1,aux!$AL$1)>0,(G51-INDEX($C51:$G51,1,aux!$AL$1))/INDEX($C51:$G51,1,aux!$AL$1),"n.d.") -> 42.11570513 | AA51: =O51-INDEX($K51:$O51,1,aux!$AL$1) -> -842.646 | AB51: -0.0821652291 | AC51: -0.01339627192 | AD51: =+IF(INDEX($K51:$O51,1,aux!$AL$1)>0,(O51/INDEX($K51:$O51,1,aux!$AL$1))^(1/($O$3-INDEX($K$3:$O$3,1,aux!$AL$1)))-1,"n.d.") -> -0.5793950343 | AE51: =IF(INDEX($K51:$O51,1,aux!$AL$1)>0,(O51-INDEX($K51:$O51,1,aux!$AL$1))/INDEX($K51:$O51,1,aux!$AL$1),"n.d.") -> -0.9687033695 | AX51: 07
A52: 0706 | B52: Cenouras, nabos, beterrabas, etc., frescos ou refrigerados | C52: 5.784 | D52: 0 | E52: 99.051 | F52: 2.506 | G52: 0 | H52: 21.4682 | I52: 0.000117037982 | J52: 0.0001035860522 | K52: 339.003 | L52: 546.877 | M52: 366.016 | N52: 239.751 | O52: 33.824 | P52: 305.0942 | Q52: 0.002271747206 | R52: 0.001213674992 | S52: 283.626 | U52: =G52-INDEX($C52:$G52,1,aux!$AL$1) -> -5.784 | V52: -4.129549833e-05 | W52: -4.120570339e-05 | X52: =+IF(INDEX($C52:$G52,1,aux!$AL$1)>0,(G52/INDEX($C52:$G52,1,aux!$AL$1))^(1/($G$3-INDEX($C$3:$G$3,1,aux!$AL$1)))-1,"n.d.") -> -1 | Y52: =IF(INDEX($C52:$G52,1,aux!$AL$1)>0,(G52-INDEX($C52:$G52,1,aux!$AL$1))/INDEX($C52:$G52,1,aux!$AL$1),"n.d.") -> -1 | AA52: =O52-INDEX($K52:$O52,1,aux!$AL$1) -> -305.179 | AB52: -0.02975757608 | AC52: -0.004851694386 | AD52: =+IF(INDEX($K52:$O52,1,aux!$AL$1)>0,(O52/INDEX($K52:$O52,1,aux!$AL$1))^(1/($O$3-INDEX($K$3:$O$3,1,aux!$AL$1)))-1,"n.d.") -> -0.4379753601 | AE52: =IF(INDEX($K52:$O52,1,aux!$AL$1)>0,(O52-INDEX($K52:$O52,1,aux!$AL$1))/INDEX($K52:$O52,1,aux!$AL$1),"n.d.") -> -0.9002250718 | AX52: 07
A53: 0707 | B53: Pepinos e pepininhos, frescos ou refrigerados | C53: 0 | D53: 0 | E53: 0 | F53: 0 | G53: 22.248 | H53: 4.4496 | I53: 2.425784205e-05 | J53: 2.146973188e-05 | K53: 65.383 | L53: 44.657 | M53: 66.982 | N53: 30.367 | O53: 1076.003 | P53: 256.6784 | Q53: 0.001911240653 | R53: 0.00102107531 | S53: 252.2288 | U53: =G53-INDEX($C53:$G53,1,aux!$AL$1) -> 22.248 | V53: 0.0001588420205 | W53: 0.0001584966267 | X53: =+IF(INDEX($C53:$G53,1,aux!$AL$1)>0,(G53/INDEX($C53:$G53,1,aux!$AL$1))^(1/($G$3-INDEX($C$3:$G$3,1,aux!$AL$1)))-1,"n.d.") -> n.d. | Y53: =IF(INDEX($C53:$G53,1,aux!$AL$1)>0,(G53-INDEX($C53:$G53,1,aux!$AL$1))/INDEX($C53:$G53,1,aux!$AL$1),"n.d.") -> n.d. | AA53: =O53-INDEX($K53:$O53,1,aux!$AL$1) -> 1010.62 | AB53: 0.09854413814 | AC53: 0.01606669981 | AD53: =+IF(INDEX($K53:$O53,1,aux!$AL$1)>0,(O53/INDEX($K53:$O53,1,aux!$AL$1))^(1/($O$3-INDEX($K$3:$O$3,1,aux!$AL$1)))-1,"n.d.") -> 1.01412843 | AE53: =IF(INDEX($K53:$O53,1,aux!$AL$1)>0,(O53-INDEX($K53:$O53,1,aux!$AL$1))/INDEX($K53:$O53,1,aux!$AL$1),"n.d.") -> 15.45692305 | AX53: 07
A54: 0708 | B54: Tomates preparados ou conservados | C54: 0 | D54: 0 | E54: 0 | F54: 0 | G54: 0 | H54: 0 | I54: 0 | J54: 0 | K54: 2.189 | L54: 0 | M54: 0 | N54: 0 | O54: 0 | P54: 0.4378 | Q54: 3.259881463e-06 | R54: 1.741583128e-06 | S54: 0.4378 | U54: =G54-INDEX($C54:$G54,1,aux!$AL$1) -> 0 | V54: 0 | W54: 0 | X54: =+IF(INDEX($C54:$G54,1,aux!$AL$1)>0,(G54/INDEX($C54:$G54,1,aux!$AL$1))^(1/($G$3-INDEX($C$3:$G$3,1,aux!$AL$1)))-1,"n.d.") -> n.d. | Y54: =IF(INDEX($C54:$G54,1,aux!$AL$1)>0,(G54-INDEX($C54:$G54,1,aux!$AL$1))/INDEX($C54:$G54,1,aux!$AL$1),"n.d.") -> n.d. | AA54: =O54-INDEX($K54:$O54,1,aux!$AL$1) -> -2.189 | AB54: -0.0002134463185 | AC54: -3.480042536e-05 | AD54: =+IF(INDEX($K54:$O54,1,aux!$AL$1)>0,(O54/INDEX($K54:$O54,1,aux!$AL$1))^(1/($O$3-INDEX($K$3:$O$3,1,aux!$AL$1)))-1,"n.d.") -> -1 | AE54: =IF(INDEX($K54:$O54,1,aux!$AL$1)>0,(O54-INDEX($K54:$O54,1,aux!$AL$1))/INDEX($K54:$O54,1,aux!$AL$1),"n.d.") -> -1 | AX54: 07
A55: 0709 | B55: Outros produtos hortícolas, frescos ou refrigerados | C55: 41.377 | D55: 438.166 | E55: 174.858 | F55: 208.239 | G55: 301.32 | H55: 232.792 | I55: 0.001269109935 | J55: 0.001123242949 | K55: 3902.845 | L55: 2274.006 | M55: 590.053 | N55: 1123.141 | O55: 2368.122 | P55: 2051.6334 | Q55: 0.0152765685 | R55: 0.008161466686 | S55: 1818.8414 | U55: =G55-INDEX($C55:$G55,1,aux!$AL$1) -> 259.943 | V55: 0.001855891377 | W55: 0.001851855836 | X55: =+IF(INDEX($C55:$G55,1,aux!$AL$1)>0,(G55/INDEX($C55:$G55,1,aux!$AL$1))^(1/($G$3-INDEX($C$3:$G$3,1,aux!$AL$1)))-1,"n.d.") -> 0.6427339771 | Y55: =IF(INDEX($C55:$G55,1,aux!$AL$1)>0,(G55-INDEX($C55:$G55,1,aux!$AL$1))/INDEX($C55:$G55,1,aux!$AL$1),"n.d.") -> 6.282306595 | AA55: =O55-INDEX($K55:$O55,1,aux!$AL$1) -> -1534.723 | AB55: -0.1496486863 | AC55: -0.02439881828 | AD55: =+IF(INDEX($K55:$O55,1,aux!$AL$1)>0,(O55/INDEX($K55:$O55,1,aux!$AL$1))^(1/($O$3-INDEX($K$3:$O$3,1,aux!$AL$1)))-1,"n.d.") -> -0.1174167273 | AE55: =IF(INDEX($K55:$O55,1,aux!$AL$1)>0,(O55-INDEX($K55:$O55,1,aux!$AL$1))/INDEX($K55:$O55,1,aux!$AL$1),"n.d.") -> -0.3932318603 | AX55: 07
A56: 0710 | B56: Produtos hortícolas congelados | C56: 383.025 | D56: 742.186 | E56: 106.589 | F56: 295.727 | G56: 500.657 | H56: 405.6368 | I56: 0.002211406289 | J56: 0.001957235108 | K56: 143.915 | L56: 737.777 | M56: 658.526 | N56: 618.404 | O56: 775.425 | P56: 586.8094 | Q56: 0.004369413169 | R56: 0.002334347535 | S56: 181.1726 | U56: =G56-INDEX($C56:$G56,1,aux!$AL$1) -> 117.632 | V56: 0.0008398464833 | W56: 0.0008380202802 | X56: =+IF(INDEX($C56:$G56,1,aux!$AL$1)>0,(G56/INDEX($C56:$G56,1,aux!$AL$1))^(1/($G$3-INDEX($C$3:$G$3,1,aux!$AL$1)))-1,"n.d.") -> 0.0692476215 | Y56: =IF(INDEX($C56:$G56,1,aux!$AL$1)>0,(G56-INDEX($C56:$G56,1,aux!$AL$1))/INDEX($C56:$G56,1,aux!$AL$1),"n.d.") -> 0.3071131127 | AA56: =O56-INDEX($K56:$O56,1,aux!$AL$1) -> 631.51 | AB56: 0.06157765399 | AC56: 0.0100396604 | AD56: =+IF(INDEX($K56:$O56,1,aux!$AL$1)>0,(O56/INDEX($K56:$O56,1,aux!$AL$1))^(1/($O$3-INDEX($K$3:$O$3,1,aux!$AL$1)))-1,"n.d.") -> 0.5235560433 | AE56: =IF(INDEX($K56:$O56,1,aux!$AL$1)>0,(O56-INDEX($K56:$O56,1,aux!$AL$1))/INDEX($K56:$O56,1,aux!$AL$1),"n.d.") -> 4.388076295 | AX56: 07
A57: 0711 | B57: Produtos hortícolas conservados transitoriamente | C57: 0 | D57: 0 | E57: 0 | F57: 0 | G57: 0 | H57: 0 | I57: 0 | J57: 0 | K57: 0 | L57: 0 | M57: 0 | N57: 0 | O57: 0 | P57: 0 | Q57: 0 | R57: 0 | S57: 0 | U57: =G57-INDEX($C57:$G57,1,aux!$AL$1) -> 0 | V57: 0 | W57: 0 | X57: =+IF(INDEX($C57:$G57,1,aux!$AL$1)>0,(G57/INDEX($C57:$G57,1,aux!$AL$1))^(1/($G$3-INDEX($C$3:$G$3,1,aux!$AL$1)))-1,"n.d.") -> n.d. | Y57: =IF(INDEX($C57:$G57,1,aux!$AL$1)>0,(G57-INDEX($C57:$G57,1,aux!$AL$1))/INDEX($C57:$G57,1,aux!$AL$1),"n.d.") -> n.d. | AA57: =O57-INDEX($K57:$O57,1,aux!$AL$1) -> 0 | AB57: 0 | AC57: 0 | AD57: =+IF(INDEX($K57:$O57,1,aux!$AL$1)>0,(O57/INDEX($K57:$O57,1,aux!$AL$1))^(1/($O$3-INDEX($K$3:$O$3,1,aux!$AL$1)))-1,"n.d.") -> n.d. | AE57: =IF(INDEX($K57:$O57,1,aux!$AL$1)>0,(O57-INDEX($K57:$O57,1,aux!$AL$1))/INDEX($K57:$O57,1,aux!$AL$1),"n.d.") -> n.d. | AX57: 07
A58: 0712 | B58: Produtos hortícolas secos | C58: 141.099 | D58: 148.837 | E58: 209.283 | F58: 318.337 | G58: 491.358 | H58: 261.7828 | I58: 0.001427158804 | J58: 0.001263126242 | K58: 699.26 | L58: 553.02 | M58: 130.6 | N58: 568.387 | O58: 557.527 | P58: 501.7588 | Q58: 0.003736121998 | R58: 0.001996013387 | S58: 239.976 | U58: =G58-INDEX($C58:$G58,1,aux!$AL$1) -> 350.259 | V58: 0.002500712301 | W58: 0.002495274631 | X58: =+IF(INDEX($C58:$G58,1,aux!$AL$1)>0,(G58/INDEX($C58:$G58,1,aux!$AL$1))^(1/($G$3-INDEX($C$3:$G$3,1,aux!$AL$1)))-1,"n.d.") -> 0.3660560652 | Y58: =IF(INDEX($C58:$G58,1,aux!$AL$1)>0,(G58-INDEX($C58:$G58,1,aux!$AL$1))/INDEX($C58:$G58,1,aux!$AL$1),"n.d.") -> 2.482363447 | AA58: =O58-INDEX($K58:$O58,1,aux!$AL$1) -> -141.733 | AB58: -0.01382018596 | AC58: -0.002253252027 | AD58: =+IF(INDEX($K58:$O58,1,aux!$AL$1)>0,(O58/INDEX($K58:$O58,1,aux!$AL$1))^(1/($O$3-INDEX($K$3:$O$3,1,aux!$AL$1)))-1,"n.d.") -> -0.05505440549 | AE58: =IF(INDEX($K58:$O58,1,aux!$AL$1)>0,(O58-INDEX($K58:$O58,1,aux!$AL$1))/INDEX($K58:$O58,1,aux!$AL$1),"n.d.") -> -0.2026899866 | AX58: 07
A59: 0713 | B59: Legumes de vagem, secos, em grão | C59: 262.412 | D59: 139.28 | E59: 146.224 | F59: 442.958 | G59: 311.341 | H59: 260.443 | I59: 0.001419854629 | J59: 0.001256661583 | K59: 0.272 | L59: 0.199 | M59: 34.319 | N59: 146.252 | O59: 156.868 | P59: 67.582 | Q59: 0.0005032190704 | R59: 0.0002688434696 | S59: -192.861 | U59: =G59-INDEX($C59:$G59,1,aux!$AL$1) -> 48.929 | V59: 0.0003493339277 | W59: 0.000348574319 | X59: =+IF(INDEX($C59:$G59,1,aux!$AL$1)>0,(G59/INDEX($C59:$G59,1,aux!$AL$1))^(1/($G$3-INDEX($C$3:$G$3,1,aux!$AL$1)))-1,"n.d.") -> 0.04366989476 | Y59: =IF(INDEX($C59:$G59,1,aux!$AL$1)>0,(G59-INDEX($C59:$G59,1,aux!$AL$1))/INDEX($C59:$G59,1,aux!$AL$1),"n.d.") -> 0.1864586985 | AA59: =O59-INDEX($K59:$O59,1,aux!$AL$1) -> 156.596 | AB59: 0.01526945623 | AC59: 0.002489541987 | AD59: =+IF(INDEX($K59:$O59,1,aux!$AL$1)>0,(O59/INDEX($K59:$O59,1,aux!$AL$1))^(1/($O$3-INDEX($K$3:$O$3,1,aux!$AL$1)))-1,"n.d.") -> 3.900510949 | AE59: =IF(INDEX($K59:$O59,1,aux!$AL$1)>0,(O59-INDEX($K59:$O59,1,aux!$AL$1))/INDEX($K59:$O59,1,aux!$AL$1),"n.d.") -> 575.7205882 | AX59: 07
A60: 0714 | B60: Raízes de mandioca, de araruta, batata-doce, etc. | C60: 0 | D60: 0 | E60: 0.007 | F60: 0.007 | G60: 0 | H60: 0.0028 | I60: 1.52647334e-08 | J60: 1.351025918e-08 | K60: 0 | L60: 18.491 | M60: 50.638 | N60: 0 | O60: 0 | P60: 13.8258 | Q60: 0.0001029476225 | R60: 5.499949753e-05 | S60: 13.823 | U60: =G60-INDEX($C60:$G60,1,aux!$AL$1) -> 0 | V60: 0 | W60: 0 | X60: =+IF(INDEX($C60:$G60,1,aux!$AL$1)>0,(G60/INDEX($C60:$G60,1,aux!$AL$1))^(1/($G$3-INDEX($C$3:$G$3,1,aux!$AL$1)))-1,"n.d.") -> n.d. | Y60: =IF(INDEX($C60:$G60,1,aux!$AL$1)>0,(G60-INDEX($C60:$G60,1,aux!$AL$1))/INDEX($C60:$G60,1,aux!$AL$1),"n.d.") -> n.d. | AA60: =O60-INDEX($K60:$O60,1,aux!$AL$1) -> 0 | AB60: 0 | AC60: 0 | AD60: =+IF(INDEX($K60:$O60,1,aux!$AL$1)>0,(O60/INDEX($K60:$O60,1,aux!$AL$1))^(1/($O$3-INDEX($K$3:$O$3,1,aux!$AL$1)))-1,"n.d.") -> n.d. | AE60: =IF(INDEX($K60:$O60,1,aux!$AL$1)>0,(O60-INDEX($K60:$O60,1,aux!$AL$1))/INDEX($K60:$O60,1,aux!$AL$1),"n.d.") -> n.d. | AX60: 07
A61: 07SS | B61: Produtos hortícolas, plantas, raízes e tubérculos, comestíveis | C61: 0 | D61: 0 | E61: 0 | F61: 0 | G61: 0 | H61: 0 | I61: 0 | J61: 0 | K61: 0 | L61: 0 | M61: 0 | N61: 0 | O61: 0 | P61: 0 | Q61: 0 | R61: 0 | S61: 0 | U61: =G61-INDEX($C61:$G61,1,aux!$AL$1) -> 0 | V61: 0 | W61: 0 | X61: =+IF(INDEX($C61:$G61,1,aux!$AL$1)>0,(G61/INDEX($C61:$G61,1,aux!$AL$1))^(1/($G$3-INDEX($C$3:$G$3,1,aux!$AL$1)))-1,"n.d.") -> n.d. | Y61: =IF(INDEX($C61:$G61,1,aux!$AL$1)>0,(G61-INDEX($C61:$G61,1,aux!$AL$1))/INDEX($C61:$G61,1,aux!$AL$1),"n.d.") -> n.d. | AA61: =O61-INDEX($K61:$O61,1,aux!$AL$1) -> 0 | AB61: 0 | AC61: 0 | AD61: =+IF(INDEX($K61:$O61,1,aux!$AL$1)>0,(O61/INDEX($K61:$O61,1,aux!$AL$1))^(1/($O$3-INDEX($K$3:$O$3,1,aux!$AL$1)))-1,"n.d.") -> n.d. | AE61: =IF(INDEX($K61:$O61,1,aux!$AL$1)>0,(O61-INDEX($K61:$O61,1,aux!$AL$1))/INDEX($K61:$O61,1,aux!$AL$1),"n.d.") -> n.d. | AX61: 07
A62: 0801 | B62: Cocos, castanhas do brasil e castanha de cajú | C62: 11.519 | D62: 24.942 | E62: 260.099 | F62: 441.531 | G62: 11.841 | H62: 149.9864 | I62: 0.0008176794319 | J62: 0.0007236982636 | K62: 0 | L62: 0.008 | M62: 69.887 | N62: 0 | O62: 14.225 | P62: 16.824 | Q62: 0.0001252723749 | R62: 6.692643799e-05 | S62: -133.1624 | U62: =G62-INDEX($C62:$G62,1,aux!$AL$1) -> 0.322 | V62: 2.298954091e-06 | W62: 2.293955133e-06 | X62: =+IF(INDEX($C62:$G62,1,aux!$AL$1)>0,(G62/INDEX($C62:$G62,1,aux!$AL$1))^(1/($G$3-INDEX($C$3:$G$3,1,aux!$AL$1)))-1,"n.d.") -> 0.006916368211 | Y62: =IF(INDEX($C62:$G62,1,aux!$AL$1)>0,(G62-INDEX($C62:$G62,1,aux!$AL$1))/INDEX($C62:$G62,1,aux!$AL$1),"n.d.") -> 0.02795381544 | AA62: =O62-INDEX($K62:$O62,1,aux!$AL$1) -> 14.225 | AB62: 0.00138705979 | AC62: 0.0002261471223 | AD62: =+IF(INDEX($K62:$O62,1,aux!$AL$1)>0,(O62/INDEX($K62:$O62,1,aux!$AL$1))^(1/($O$3-INDEX($K$3:$O$3,1,aux!$AL$1)))-1,"n.d.") -> n.d. | AE62: =IF(INDEX($K62:$O62,1,aux!$AL$1)>0,(O62-INDEX($K62:$O62,1,aux!$AL$1))/INDEX($K62:$O62,1,aux!$AL$1),"n.d.") -> n.d. | AX62: 08
A63: 0802 | B63: Frutas de casca rija | C63: 367.916 | D63: 438.704 | E63: 619.533 | F63: 538.962 | G63: 503.623 | H63: 493.7476 | I63: 0.0026917591 | J63: 0.002382377874 | K63: 269.321 | L63: 1.158 | M63: 0 | N63: 24.17 | O63: 16.967 | P63: 62.3232 | Q63: 0.0004640617734 | R63: 0.0002479237863 | S63: -431.4244 | U63: =G63-INDEX($C63:$G63,1,aux!$AL$1) -> 135.707 | V63: 0.0009688949155 | W63: 0.0009667881033 | X63: =+IF(INDEX($C63:$G63,1,aux!$AL$1)>0,(G63/INDEX($C63:$G63,1,aux!$AL$1))^(1/($G$3-INDEX($C$3:$G$3,1,aux!$AL$1)))-1,"n.d.") -> 0.08165614078 | Y63: =IF(INDEX($C63:$G63,1,aux!$AL$1)>0,(G63-INDEX($C63:$G63,1,aux!$AL$1))/INDEX($C63:$G63,1,aux!$AL$1),"n.d.") -> 0.3688532165 | AA63: =O63-INDEX($K63:$O63,1,aux!$AL$1) -> -252.354 | AB63: -0.02460668445 | AC63: -0.004011889695 | AD63: =+IF(INDEX($K63:$O63,1,aux!$AL$1)>0,(O63/INDEX($K63:$O63,1,aux!$AL$1))^(1/($O$3-INDEX($K$3:$O$3,1,aux!$AL$1)))-1,"n.d.") -> -0.4990046322 | AE63: =IF(INDEX($K63:$O63,1,aux!$AL$1)>0,(O63-INDEX($K63:$O63,1,aux!$AL$1))/INDEX($K63:$O63,1,aux!$AL$1),"n.d.") -> -0.937000828 | AX63: 08
A64: 0803 | B64: Bananas, frescas ou secas | C64: 0 | D64: 17.927 | E64: 0 | F64: 0 | G64: 151.342 | H64: 33.8538 | I64: 0.0001845604398 | J64: 0.0001633477187 | K64: 0 | L64: 0.001 | M64: 0 | N64: 0 | O64: 0 | P64: 0.0002 | Q64: 1.489210353e-09 | R64: 7.956067284e-10 | S64: -33.8536 | U64: =G64-INDEX($C64:$G64,1,aux!$AL$1) -> 151.342 | V64: 0.001080522702 | W64: 0.001078173161 | X64: =+IF(INDEX($C64:$G64,1,aux!$AL$1)>0,(G64/INDEX($C64:$G64,1,aux!$AL$1))^(1/($G$3-INDEX($C$3:$G$3,1,aux!$AL$1)))-1,"n.d.") -> n.d. | Y64: =IF(INDEX($C64:$G64,1,aux!$AL$1)>0,(G64-INDEX($C64:$G64,1,aux!$AL$1))/INDEX($C64:$G64,1,aux!$AL$1),"n.d.") -> n.d. | AA64: =O64-INDEX($K64:$O64,1,aux!$AL$1) -> 0 | AB64: 0 | AC64: 0 | AD64: =+IF(INDEX($K64:$O64,1,aux!$AL$1)>0,(O64/INDEX($K64:$O64,1,aux!$AL$1))^(1/($O$3-INDEX($K$3:$O$3,1,aux!$AL$1)))-1,"n.d.") -> n.d. | AE64: =IF(INDEX($K64:$O64,1,aux!$AL$1)>0,(O64-INDEX($K64:$O64,1,aux!$AL$1))/INDEX($K64:$O64,1,aux!$AL$1),"n.d.") -> n.d. | AX64: 08
A65: 0804 | B65: Tâmaras, figos, ananases, abacates, goiabas, mangas | C65: 427.006 | D65: 596.426 | E65: 108.916 | F65: 645.987 | G65: 315.744 | H65: 418.8158 | I65: 0.002283254118 | J65: 0.002020825003 | K65: 10247.572 | L65: 10112.368 | M65: 4879.958 | N65: 2617.408 | O65: 3003.975 | P65: 6172.2562 | Q65: 0.04595893917 | R65: 0.02455344281 | S65: 5753.4404 | U65: =G65-INDEX($C65:$G65,1,aux!$AL$1) -> -111.262 | V65: -0.0007943671741 | W65: -0.0007926398635 | X65: =+IF(INDEX($C65:$G65,1,aux!$AL$1)>0,(G65/INDEX($C65:$G65,1,aux!$AL$1))^(1/($G$3-INDEX($C$3:$G$3,1,aux!$AL$1)))-1,"n.d.") -> -0.07268927601 | Y65: =IF(INDEX($C65:$G65,1,aux!$AL$1)>0,(G65-INDEX($C65:$G65,1,aux!$AL$1))/INDEX($C65:$G65,1,aux!$AL$1),"n.d.") -> -0.2605630834 | AA65: =O65-INDEX($K65:$O65,1,aux!$AL$1) -> -7243.597 | AB65: -0.7063129796 | AC65: -0.1151577235 | AD65: =+IF(INDEX($K65:$O65,1,aux!$AL$1)>0,(O65/INDEX($K65:$O65,1,aux!$AL$1))^(1/($O$3-INDEX($K$3:$O$3,1,aux!$AL$1)))-1,"n.d.") -> -0.2641846662 | AE65: =IF(INDEX($K65:$O65,1,aux!$AL$1)>0,(O65-INDEX($K65:$O65,1,aux!$AL$1))/INDEX($K65:$O65,1,aux!$AL$1),"n.d.") -> -0.7068598298 | AX65: 08
A66: 0805 | B66: Citrinos, frescos ou secos | C66: 466.355 | D66: 506.733 | E66: 372.565 | F66: 537.751 | G66: 540.04 | H66: 484.6888 | I66: 0.002642373326 | J66: 0.002338668326 | K66: 18031.809 | L66: 12319.844 | M66: 9609.265 | N66: 6490.276 | O66: 6449.896 | P66: 10580.218 | Q66: 0.07878085092 | R66: 0.04208846314 | S66: 10095.5292 | U66: =G66-INDEX($C66:$G66,1,aux!$AL$1) -> 73.685 | V66: 0.0005260820875 | W66: 0.0005249381491 | X66: =+IF(INDEX($C66:$G66,1,aux!$AL$1)>0,(G66/INDEX($C66:$G66,1,aux!$AL$1))^(1/($G$3-INDEX($C$3:$G$3,1,aux!$AL$1)))-1,"n.d.") -> 0.0373548047 | Y66: =IF(INDEX($C66:$G66,1,aux!$AL$1)>0,(G66-INDEX($C66:$G66,1,aux!$AL$1))/INDEX($C66:$G66,1,aux!$AL$1),"n.d.") -> 0.1580019513 | AA66: =O66-INDEX($K66:$O66,1,aux!$AL$1) -> -11581.913 | AB66: -1.129336085 | AC66: -0.1841276834 | AD66: =+IF(INDEX($K66:$O66,1,aux!$AL$1)>0,(O66/INDEX($K66:$O66,1,aux!$AL$1))^(1/($O$3-INDEX($K$3:$O$3,1,aux!$AL$1)))-1,"n.d.") -> -0.2266459694 | AE66: =IF(INDEX($K66:$O66,1,aux!$AL$1)>0,(O66-INDEX($K66:$O66,1,aux!$AL$1))/INDEX($K66:$O66,1,aux!$AL$1),"n.d.") -> -0.6423045519 | AX66: 08
A67: 0806 | B67: Uvas, frescas ou secas | C67: 0 | D67: 0 | E67: 3.941 | F67: 7.265 | G67: 94.304 | H67: 21.102 | I67: 0.0001150415729 | J67: 0.0001018191033 | K67: 2350.695 | L67: 1698.533 | M67: 656.669 | N67: 809.054 | O67: 1560.552 | P67: 1415.1006 | Q67: 0.01053691232 | R67: 0.005629317794 | S67: 1393.9986 | U67: =G67-INDEX($C67:$G67,1,aux!$AL$1) -> 94.304 | V67: 0.000673293685 | W67: 0.0006718296425 | X67: =+IF(INDEX($C67:$G67,1,aux!$AL$1)>0,(G67/INDEX($C67:$G67,1,aux!$AL$1))^(1/($G$3-INDEX($C$3:$G$3,1,aux!$AL$1)))-1,"n.d.") -> n.d. | Y67: =IF(INDEX($C67:$G67,1,aux!$AL$1)>0,(G67-INDEX($C67:$G67,1,aux!$AL$1))/INDEX($C67:$G67,1,aux!$AL$1),"n.d.") -> n.d. | AA67: =O67-INDEX($K67:$O67,1,aux!$AL$1) -> -790.143 | AB67: -0.07704573524 | AC67: -0.01256158634 | AD67: =+IF(INDEX($K67:$O67,1,aux!$AL$1)>0,(O67/INDEX($K67:$O67,1,aux!$AL$1))^(1/($O$3-INDEX($K$3:$O$3,1,aux!$AL$1)))-1,"n.d.") -> -0.09734770589 | AE67: =IF(INDEX($K67:$O67,1,aux!$AL$1)>0,(O67-INDEX($K67:$O67,1,aux!$AL$1))/INDEX($K67:$O67,1,aux!$AL$1),"n.d.") -> -0.3361316547 | AX67: 08
A68: 0807 | B68: Melões, melancias e papaia, frescos | C68: 47.528 | D68: 9.988 | E68: 0 | F68: 13.873 | G68: 620 | H68: 138.2778 | I68: 0.0007538477685 | J68: 0.0006672031848 | K68: 11533.739 | L68: 4884.018 | M68: 1443.55 | N68: 1642.912 | O68: 2705.938 | P68: 4442.0314 | Q68: 0.03307559575 | R68: 0.01767055035 | S68: 4303.7536 | U68: =G68-INDEX($C68:$G68,1,aux!$AL$1) -> 572.472 | V68: =IF($U$237<>0,U68/$U$237, "n.d.") -> 0.004087226231 | W68: =IF($U$322<>0,U68/$U$322, "n.d.") -> 0.004078338767 | X68: =+IF(INDEX($C68:$G68,1,aux!$AL$1)>0,(G68/INDEX($C68:$G68,1,aux!$AL$1))^(1/($G$3-INDEX($C$3:$G$3,1,aux!$AL$1)))-1,"n.d.") -> 0.9004678957 | Y68: =IF(INDEX($C68:$G68,1,aux!$AL$1)>0,(G68-INDEX($C68:$G68,1,aux!$AL$1))/INDEX($C68:$G68,1,aux!$AL$1),"n.d.") -> 12.04494193 | AA68: =O68-INDEX($K68:$O68,1,aux!$AL$1) -> -8827.801 | AB68: =IF($AA$237<>0,AA68/$AA$237, "n.d.") -> -0.8607864887 | AC68: =IF($AA$322<>0,AA68/$AA$322, "n.d.") -> -0.140343184 | AD68: =+IF(INDEX($K68:$O68,1,aux!$AL$1)>0,(O68/INDEX($K68:$O68,1,aux!$AL$1))^(1/($O$3-INDEX($K$3:$O$3,1,aux!$AL$1)))-1,"n.d.") -> -0.3040357516 | AE68: =IF(INDEX($K68:$O68,1,aux!$AL$1)>0,(O68-INDEX($K68:$O68,1,aux!$AL$1))/INDEX($K68:$O68,1,aux!$AL$1),"n.d.") -> -0.7653893503 | AX68: 08
A69: 0808 | B69: Maçãs, peras e marmelos, frescos | C69: 338.999 | D69: 800.914 | E69: 755.439 | F69: 4283.423 | G69: 1178.913 | H69: 1471.5376 | I69: 0.008022367553 | J69: 0.007100305134 | K69: 2928.425 | L69: 2343.512 | M69: 3159.893 | N69: 52.709 | O69: 769.987 | P69: 1850.9052 | Q69: 0.01378193593 | R69: 0.007362963154 | S69: 379.3676 | U69: =G69-INDEX($C69:$G69,1,aux!$AL$1) -> 839.914 | V69: 0.005996657535 | W69: 0.005983618111 | X69: =+IF(INDEX($C69:$G69,1,aux!$AL$1)>0,(G69/INDEX($C69:$G69,1,aux!$AL$1))^(1/($G$3-INDEX($C$3:$G$3,1,aux!$AL$1)))-1,"n.d.") -> 0.3655915944 | Y69: =IF(INDEX($C69:$G69,1,aux!$AL$1)>0,(G69-INDEX($C69:$G69,1,aux!$AL$1))/INDEX($C69:$G69,1,aux!$AL$1),"n.d.") -> 2.477629728 | AA69: =O69-INDEX($K69:$O69,1,aux!$AL$1) -> -2158.438 | AB69: -0.2104662608 | AC69: -0.03431455483 | AD69: =+IF(INDEX($K69:$O69,1,aux!$AL$1)>0,(O69/INDEX($K69:$O69,1,aux!$AL$1))^(1/($O$3-INDEX($K$3:$O$3,1,aux!$AL$1)))-1,"n.d.") -> -0.2839187178 | AE69: =IF(INDEX($K69:$O69,1,aux!$AL$1)>0,(O69-INDEX($K69:$O69,1,aux!$AL$1))/INDEX($K69:$O69,1,aux!$AL$1),"n.d.") -> -0.737064463 | AX69: 08
A70: 0809 | B70: Damascos, cerejas, pêssegos, etc., frescos | C70: 0 | D70: 553.17 | E70: 0 | F70: 158.665 | G70: 283.704 | H70: 199.1078 | I70: 0.001085474102 | J70: 0.0009607135656 | K70: 12350.306 | L70: 5463.923 | M70: 3060.383 | N70: 2386.755 | O70: 2085.449 | P70: 5069.3632 | Q70: 0.0377467408 | R70: 0.02016609735 | S70: 4870.2554 | U70: =G70-INDEX($C70:$G70,1,aux!$AL$1) -> 283.704 | V70: 0.002025535625 | W70: 0.002021131202 | X70: =+IF(INDEX($C70:$G70,1,aux!$AL$1)>0,(G70/INDEX($C70:$G70,1,aux!$AL$1))^(1/($G$3-INDEX($C$3:$G$3,1,aux!$AL$1)))-1,"n.d.") -> n.d. | Y70: =IF(INDEX($C70:$G70,1,aux!$AL$1)>0,(G70-INDEX($C70:$G70,1,aux!$AL$1))/INDEX($C70:$G70,1,aux!$AL$1),"n.d.") -> n.d. | AA70: =O70-INDEX($K70:$O70,1,aux!$AL$1) -> -10264.857 | AB70: -1.000911803 | AC70: -0.1631893056 | AD70: =+IF(INDEX($K70:$O70,1,aux!$AL$1)>0,(O70/INDEX($K70:$O70,1,aux!$AL$1))^(1/($O$3-INDEX($K$3:$O$3,1,aux!$AL$1)))-1,"n.d.") -> -0.358966887 | AE70: =IF(INDEX($K70:$O70,1,aux!$AL$1)>0,(O70-INDEX($K70:$O70,1,aux!$AL$1))/INDEX($K70:$O70,1,aux!$AL$1),"n.d.") -> -0.8311419166 | AX70: 08
A71: 0810 | B71: Outras frutas frescas | C71: 22.644 | D71: 0.461 | E71: 107.778 | F71: 66.827 | G71: 806.369 | H71: 200.8158 | I71: 0.001094785589 | J71: 0.0009689548237 | K71: 3705.268 | L71: 5806.623 | M71: 5617.519 | N71: 2355.902 | O71: 1535.149 | P71: 3804.0922 | Q71: 0.02832546744 | R71: 0.01513280675 | S71: 3603.2764 | U71: =G71-INDEX($C71:$G71,1,aux!$AL$1) -> 783.725 | V71: 0.005595490046 | W71: 0.00558332294 | X71: =+IF(INDEX($C71:$G71,1,aux!$AL$1)>0,(G71/INDEX($C71:$G71,1,aux!$AL$1))^(1/($G$3-INDEX($C$3:$G$3,1,aux!$AL$1)))-1,"n.d.") -> 1.442840825 | Y71: =IF(INDEX($C71:$G71,1,aux!$AL$1)>0,(G71-INDEX($C71:$G71,1,aux!$AL$1))/INDEX($C71:$G71,1,aux!$AL$1),"n.d.") -> 34.61071365 | AA71: =O71-INDEX($K71:$O71,1,aux!$AL$1) -> -2170.119 | AB71: -0.2116052587 | AC71: -0.03450025778 | AD71: =+IF(INDEX($K71:$O71,1,aux!$AL$1)>0,(O71/INDEX($K71:$O71,1,aux!$AL$1))^(1/($O$3-INDEX($K$3:$O$3,1,aux!$AL$1)))-1,"n.d.") -> -0.1977075097 | AE71: =IF(INDEX($K71:$O71,1,aux!$AL$1)>0,(O71-INDEX($K71:$O71,1,aux!$AL$1))/INDEX($K71:$O71,1,aux!$AL$1),"n.d.") -> -0.5856847602 | AX71: 08
A72: 0811 | B72: Frutas não cozidas ou cozidas em água ou vapor, congeladas | C72: 1944.148 | D72: 1118.322 | E72: 1503.895 | F72: 2115.863 | G72: 2217.941 | H72: 1780.0338 | I72: 0.009704193356 | J72: 0.008588827855 | K72: 121.34 | L72: 955.591 | M72: 452.376 | N72: 510.688 | O72: 442.805 | P72: 496.56 | Q72: 0.003697411465 | R72: 0.001975332385 | S72: -1283.4738 | U72: =G72-INDEX($C72:$G72,1,aux!$AL$1) -> 273.793 | V72: 0.001954774961 | W72: 0.001950524403 | X72: =+IF(INDEX($C72:$G72,1,aux!$AL$1)>0,(G72/INDEX($C72:$G72,1,aux!$AL$1))^(1/($G$3-INDEX($C$3:$G$3,1,aux!$AL$1)))-1,"n.d.") -> 0.03348735331 | Y72: =IF(INDEX($C72:$G72,1,aux!$AL$1)>0,(G72-INDEX($C72:$G72,1,aux!$AL$1))/INDEX($C72:$G72,1,aux!$AL$1),"n.d.") -> 0.140829299 | AA72: =O72-INDEX($K72:$O72,1,aux!$AL$1) -> 321.465 | AB72: 0.03134560108 | AC72: 0.005110607007 | AD72: =+IF(INDEX($K72:$O72,1,aux!$AL$1)>0,(O72/INDEX($K72:$O72,1,aux!$AL$1))^(1/($O$3-INDEX($K$3:$O$3,1,aux!$AL$1)))-1,"n.d.") -> 0.3821403038 | AE72: =IF(INDEX($K72:$O72,1,aux!$AL$1)>0,(O72-INDEX($K72:$O72,1,aux!$AL$1))/INDEX($K72:$O72,1,aux!$AL$1),"n.d.") -> 2.649291248 | AX72: 08
A73: 0812 | B73: Frutas conservadas transitoriamente | C73: 0 | D73: 0 | E73: 0.065 | F73: 1.003 | G73: 0.142 | H73: 0.242 | I73: 1.319309101e-06 | J73: 1.167672401e-06 | K73: 0 | L73: 0 | M73: 0 | N73: 0 | O73: 0 | P73: 0 | Q73: 0 | R73: 0 | S73: -0.242 | U73: =G73-INDEX($C73:$G73,1,aux!$AL$1) -> 0.142 | V73: 1.013824475e-06 | W73: 1.011619966e-06 | X73: =+IF(INDEX($C73:$G73,1,aux!$AL$1)>0,(G73/INDEX($C73:$G73,1,aux!$AL$1))^(1/($G$3-INDEX($C$3:$G$3,1,aux!$AL$1)))-1,"n.d.") -> n.d. | Y73: =IF(INDEX($C73:$G73,1,aux!$AL$1)>0,(G73-INDEX($C73:$G73,1,aux!$AL$1))/INDEX($C73:$G73,1,aux!$AL$1),"n.d.") -> n.d. | AA73: =O73-INDEX($K73:$O73,1,aux!$AL$1) -> 0 | AB73: 0 | AC73: 0 | AD73: =+IF(INDEX($K73:$O73,1,aux!$AL$1)>0,(O73/INDEX($K73:$O73,1,aux!$AL$1))^(1/($O$3-INDEX($K$3:$O$3,1,aux!$AL$1)))-1,"n.d.") -> n.d. | AE73: =IF(INDEX($K73:$O73,1,aux!$AL$1)>0,(O73-INDEX($K73:$O73,1,aux!$AL$1))/INDEX($K73:$O73,1,aux!$AL$1),"n.d.") -> n.d. | AX73: 08
A74: 0813 | B74: Outras frutas secas | C74: 400.719 | D74: 1247.376 | E74: 1293.788 | F74: 1285.661 | G74: 235.097 | H74: 892.5282 | I74: 0.004865787508 | J74: 0.004306531183 | K74: 0 | L74: 0 | M74: 0 | N74: 0 | O74: 0.894 | P74: 0.1788 | Q74: 1.331354056e-06 | R74: 7.112724152e-07 | S74: -892.3494 | U74: =G74-INDEX($C74:$G74,1,aux!$AL$1) -> -165.622 | V74: -0.001182476318 | W74: -0.001179905084 | X74: =+IF(INDEX($C74:$G74,1,aux!$AL$1)>0,(G74/INDEX($C74:$G74,1,aux!$AL$1))^(1/($G$3-INDEX($C$3:$G$3,1,aux!$AL$1)))-1,"n.d.") -> -0.1248111258 | Y74: =IF(INDEX($C74:$G74,1,aux!$AL$1)>0,(G74-INDEX($C74:$G74,1,aux!$AL$1))/INDEX($C74:$G74,1,aux!$AL$1),"n.d.") -> -0.4133120716 | AA74: =O74-INDEX($K74:$O74,1,aux!$AL$1) -> 0.894 | AB74: 8.717268558e-05 | AC74: 1.421269085e-05 | AD74: =+IF(INDEX($K74:$O74,1,aux!$AL$1)>0,(O74/INDEX($K74:$O74,1,aux!$AL$1))^(1/($O$3-INDEX($K$3:$O$3,1,aux!$AL$1)))-1,"n.d.") -> n.d. | AE74: =IF(INDEX($K74:$O74,1,aux!$AL$1)>0,(O74-INDEX($K74:$O74,1,aux!$AL$1))/INDEX($K74:$O74,1,aux!$AL$1),"n.d.") -> n.d. | AX74: 08
A75: 0814 | B75: Cascas de citrinos, melões ou melancias | C75: 0 | D75: 0 | E75: 0 | F75: 0 | G75: 0 | H75: 0 | I75: 0 | J75: 0 | K75: 0 | L75: 0 | M75: 0 | N75: 0 | O75: 0 | P75: 0 | Q75: 0 | R75: 0 | S75: 0 | U75: =G75-INDEX($C75:$G75,1,aux!$AL$1) -> 0 | V75: 0 | W75: 0 | X75: =+IF(INDEX($C75:$G75,1,aux!$AL$1)>0,(G75/INDEX($C75:$G75,1,aux!$AL$1))^(1/($G$3-INDEX($C$3:$G$3,1,aux!$AL$1)))-1,"n.d.") -> n.d. | Y75: =IF(INDEX($C75:$G75,1,aux!$AL$1)>0,(G75-INDEX($C75:$G75,1,aux!$AL$1))/INDEX($C75:$G75,1,aux!$AL$1),"n.d.") -> n.d. | AA75: =O75-INDEX($K75:$O75,1,aux!$AL$1) -> 0 | AB75: 0 | AC75: 0 | AD75: =+IF(INDEX($K75:$O75,1,aux!$AL$1)>0,(O75/INDEX($K75:$O75,1,aux!$AL$1))^(1/($O$3-INDEX($K$3:$O$3,1,aux!$AL$1)))-1,"n.d.") -> n.d. | AE75: =IF(INDEX($K75:$O75,1,aux!$AL$1)>0,(O75-INDEX($K75:$O75,1,aux!$AL$1))/INDEX($K75:$O75,1,aux!$AL$1),"n.d.") -> n.d. | AX75: =+LEFT(A75,2) -> 08
A76: 08SS | B76: Frutas; cascas de citrinos e de melões | C76: 0 | D76: 0 | E76: 0 | F76: 0 | G76: 0 | H76: 0 | I76: 0 | J76: 0 | K76: 0 | L76: 0 | M76: 0 | N76: 0 | O76: 0 | P76: 0 | Q76: 0 | R76: 0 | S76: 0 | U76: =G76-INDEX($C76:$G76,1,aux!$AL$1) -> 0 | V76: 0 | W76: 0 | X76: =+IF(INDEX($C76:$G76,1,aux!$AL$1)>0,(G76/INDEX($C76:$G76,1,aux!$AL$1))^(1/($G$3-INDEX($C$3:$G$3,1,aux!$AL$1)))-1,"n.d.") -> n.d. | Y76: =IF(INDEX($C76:$G76,1,aux!$AL$1)>0,(G76-INDEX($C76:$G76,1,aux!$AL$1))/INDEX($C76:$G76,1,aux!$AL$1),"n.d.") -> n.d. | AA76: =O76-INDEX($K76:$O76,1,aux!$AL$1) -> 0 | AB76: 0 | AC76: 0 | AD76: =+IF(INDEX($K76:$O76,1,aux!$AL$1)>0,(O76/INDEX($K76:$O76,1,aux!$AL$1))^(1/($O$3-INDEX($K$3:$O$3,1,aux!$AL$1)))-1,"n.d.") -> n.d. | AE76: =IF(INDEX($K76:$O76,1,aux!$AL$1)>0,(O76-INDEX($K76:$O76,1,aux!$AL$1))/INDEX($K76:$O76,1,aux!$AL$1),"n.d.") -> n.d. | AX76: 08
A77: 0901 | B77: Café | C77: 227.819 | D77: 341.749 | E77: 256.41 | F77: 768.868 | G77: 35.846 | H77: 326.1384 | I77: 0.001778005617 | J77: 0.001573647969 | K77: 1249.021 | L77: 3793.251 | M77: 2223.841 | N77: 3411.93 | O77: 7165.73 | P77: 3568.7546 | Q77: 0.02657313149 | R77: 0.01419662586 | S77: 3242.6162 | U77: =G77-INDEX($C77:$G77,1,aux!$AL$1) -> -191.973 | V77: -0.001370612154 | W77: -0.001367631829 | X77: =+IF(INDEX($C77:$G77,1,aux!$AL$1)>0,(G77/INDEX($C77:$G77,1,aux!$AL$1))^(1/($G$3-INDEX($C$3:$G$3,1,aux!$AL$1)))-1,"n.d.") -> -0.3701854496 | Y77: =IF(INDEX($C77:$G77,1,aux!$AL$1)>0,(G77-INDEX($C77:$G77,1,aux!$AL$1))/INDEX($C77:$G77,1,aux!$AL$1),"n.d.") -> -0.8426557925 | AA77: =O77-INDEX($K77:$O77,1,aux!$AL$1) -> 5916.709 | AB77: 0.5769299925 | AC77: 0.09406303789 | AD77: =+IF(INDEX($K77:$O77,1,aux!$AL$1)>0,(O77/INDEX($K77:$O77,1,aux!$AL$1))^(1/($O$3-INDEX($K$3:$O$3,1,aux!$AL$1)))-1,"n.d.") -> 0.5476497253 | AE77: =IF(INDEX($K77:$O77,1,aux!$AL$1)>0,(O77-INDEX($K77:$O77,1,aux!$AL$1))/INDEX($K77:$O77,1,aux!$AL$1),"n.d.") -> 4.737077279 | AX77: 09
A78: 0902 | B78: Chá | C78: 1222.535 | D78: 1278.635 | E78: 929.163 | F78: 1011.66 | G78: 1004.092 | H78: 1089.217 | I78: 0.005938073971 | J78: 0.005255572849 | K78: 0.19 | L78: 0 | M78: 0.068 | N78: 1.528 | O78: 0.236 | P78: 0.4044 | Q78: 3.011183334e-06 | R78: 1.608716805e-06 | S78: -1088.8126 | U78: =G78-INDEX($C78:$G78,1,aux!$AL$1) -> -218.443 | V78: -0.001559597604 | W78: -0.001556206339 | X78: =+IF(INDEX($C78:$G78,1,aux!$AL$1)>0,(G78/INDEX($C78:$G78,1,aux!$AL$1))^(1/($G$3-INDEX($C$3:$G$3,1,aux!$AL$1)))-1,"n.d.") -> -0.04801950259 | Y78: =IF(INDEX($C78:$G78,1,aux!$AL$1)>0,(G78-INDEX($C78:$G78,1,aux!$AL$1))/INDEX($C78:$G78,1,aux!$AL$1),"n.d.") -> -0.178680365 | AA78: =O78-INDEX($K78:$O78,1,aux!$AL$1) -> 0.046 | AB78: 4.485395455e-06 | AC78: 7.313017664e-07 | AD78: =+IF(INDEX($K78:$O78,1,aux!$AL$1)>0,(O78/INDEX($K78:$O78,1,aux!$AL$1))^(1/($O$3-INDEX($K$3:$O$3,1,aux!$AL$1)))-1,"n.d.") -> 0.05569776108 | AE78: =IF(INDEX($K78:$O78,1,aux!$AL$1)>0,(O78-INDEX($K78:$O78,1,aux!$AL$1))/INDEX($K78:$O78,1,aux!$AL$1),"n.d.") -> 0.2421052632 | AX78: 09
A79: 0903 | B79: Mate | C79: 0 | D79: 0 | E79: 0 | F79: 0 | G79: 0 | H79: 0 | I79: 0 | J79: 0 | K79: 0.392 | L79: 0 | M79: 0 | N79: 0 | O79: 0 | P79: 0.0784 | Q79: 5.837704584e-07 | R79: 3.118778375e-07 | S79: 0.0784 | U79: =G79-INDEX($C79:$G79,1,aux!$AL$1) -> 0 | V79: 0 | W79: 0 | X79: =+IF(INDEX($C79:$G79,1,aux!$AL$1)>0,(G79/INDEX($C79:$G79,1,aux!$AL$1))^(1/($G$3-INDEX($C$3:$G$3,1,aux!$AL$1)))-1,"n.d.") -> n.d. | Y79: =IF(INDEX($C79:$G79,1,aux!$AL$1)>0,(G79-INDEX($C79:$G79,1,aux!$AL$1))/INDEX($C79:$G79,1,aux!$AL$1),"n.d.") -> n.d. | AA79: =O79-INDEX($K79:$O79,1,aux!$AL$1) -> -0.392 | AB79: -3.822336996e-05 | AC79: -6.231962879e-06 | AD79: =+IF(INDEX($K79:$O79,1,aux!$AL$1)>0,(O79/INDEX($K79:$O79,1,aux!$AL$1))^(1/($O$3-INDEX($K$3:$O$3,1,aux!$AL$1)))-1,"n.d.") -> -1 | AE79: =IF(INDEX($K79:$O79,1,aux!$AL$1)>0,(O79-INDEX($K79:$O79,1,aux!$AL$1))/INDEX($K79:$O79,1,aux!$AL$1),"n.d.") -> -1 | AX79: 09
A80: 0904 | B80: Pimenta | C80: 8.041 | D80: 0 | E80: 0.023 | F80: 0.048 | G80: 682.017 | H80: 138.0258 | I80: 0.0007524739425 | J80: 0.0006659872615 | K80: 24.482 | L80: 0 | M80: 0 | N80: 0 | O80: 0 | P80: 4.8964 | Q80: 3.645884786e-05 | R80: 1.947804392e-05 | S80: -133.1294 | U80: =G80-INDEX($C80:$G80,1,aux!$AL$1) -> 673.976 | V80: 0.0048119251 | W80: 0.004801461816 | X80: =+IF(INDEX($C80:$G80,1,aux!$AL$1)>0,(G80/INDEX($C80:$G80,1,aux!$AL$1))^(1/($G$3-INDEX($C$3:$G$3,1,aux!$AL$1)))-1,"n.d.") -> 2.034738571 | Y80: =IF(INDEX($C80:$G80,1,aux!$AL$1)>0,(G80-INDEX($C80:$G80,1,aux!$AL$1))/INDEX($C80:$G80,1,aux!$AL$1),"n.d.") -> 83.81743564 | AA80: =O80-INDEX($K80:$O80,1,aux!$AL$1) -> -24.482 | AB80: -0.002387205468 | AC80: -0.0003892115184 | AD80: =+IF(INDEX($K80:$O80,1,aux!$AL$1)>0,(O80/INDEX($K80:$O80,1,aux!$AL$1))^(1/($O$3-INDEX($K$3:$O$3,1,aux!$AL$1)))-1,"n.d.") -> -1 | AE80: =IF(INDEX($K80:$O80,1,aux!$AL$1)>0,(O80-INDEX($K80:$O80,1,aux!$AL$1))/INDEX($K80:$O80,1,aux!$AL$1),"n.d.") -> -1 | AX80: 09
A81: 0905 | B81: Baunilha | C81: 186.094 | D81: 335.259 | E81: 249.302 | F81: 216.847 | G81: 102.804 | H81: 218.0612 | I81: 0.001188802172 | J81: 0.001052165475 | K81: 0 | L81: 0 | M81: 0 | N81: 0 | O81: 0 | P81: 0 | Q81: 0 | R81: 0 | S81: -218.0612 | U81: =G81-INDEX($C81:$G81,1,aux!$AL$1) -> -83.29 | V81: -0.0005946580318 | W81: -0.0005933649784 | X81: =+IF(INDEX($C81:$G81,1,aux!$AL$1)>0,(G81/INDEX($C81:$G81,1,aux!$AL$1))^(1/($G$3-INDEX($C$3:$G$3,1,aux!$AL$1)))-1,"n.d.") -> -0.1378766447 | Y81: =IF(INDEX($C81:$G81,1,aux!$AL$1)>0,(G81-INDEX($C81:$G81,1,aux!$AL$1))/INDEX($C81:$G81,1,aux!$AL$1),"n.d.") -> -0.4475695079 | AA81: =O81-INDEX($K81:$O81,1,aux!$AL$1) -> 0 | AB81: 0 | AC81: 0 | AD81: =+IF(INDEX($K81:$O81,1,aux!$AL$1)>0,(O81/INDEX($K81:$O81,1,aux!$AL$1))^(1/($O$3-INDEX($K$3:$O$3,1,aux!$AL$1)))-1,"n.d.") -> n.d. | AE81: =IF(INDEX($K81:$O81,1,aux!$AL$1)>0,(O81-INDEX($K81:$O81,1,aux!$AL$1))/INDEX($K81:$O81,1,aux!$AL$1),"n.d.") -> n.d. | AX81: 09
A82: 0906 | B82: Canela | C82: 1249.287 | D82: 1101.24 | E82: 1232.381 | F82: 1025.696 | G82: 1161.375 | H82: 1153.9958 | I82: 0.006291227939 | J82: 0.005568136556 | K82: 5.408 | L82: 5.67 | M82: 4.754 | N82: 0.193 | O82: 0.068 | P82: 3.2186 | Q82: 2.396586221e-05 | R82: 1.280369908e-05 | S82: -1150.7772 | U82: =G82-INDEX($C82:$G82,1,aux!$AL$1) -> -87.912 | V82: -0.0006276573045 | W82: -0.0006262924959 | X82: =+IF(INDEX($C82:$G82,1,aux!$AL$1)>0,(G82/INDEX($C82:$G82,1,aux!$AL$1))^(1/($G$3-INDEX($C$3:$G$3,1,aux!$AL$1)))-1,"n.d.") -> -0.01807670546 | Y82: =IF(INDEX($C82:$G82,1,aux!$AL$1)>0,(G82-INDEX($C82:$G82,1,aux!$AL$1))/INDEX($C82:$G82,1,aux!$AL$1),"n.d.") -> -0.0703697389 | AA82: =O82-INDEX($K82:$O82,1,aux!$AL$1) -> -5.34 | AB82: -0.0005206959072 | AC82: -8.489459636e-05 | AD82: =+IF(INDEX($K82:$O82,1,aux!$AL$1)>0,(O82/INDEX($K82:$O82,1,aux!$AL$1))^(1/($O$3-INDEX($K$3:$O$3,1,aux!$AL$1)))-1,"n.d.") -> -0.6651363109 | AE82: =IF(INDEX($K82:$O82,1,aux!$AL$1)>0,(O82-INDEX($K82:$O82,1,aux!$AL$1))/INDEX($K82:$O82,1,aux!$AL$1),"n.d.") -> -0.9874260355 | AX82: 09
A83: 0907 | B83: Cravo-da-índia | C83: 0 | D83: 0 | E83: 0 | F83: 0 | G83: 46.321 | H83: 9.2642 | I83: 5.050555112e-05 | J83: 4.470062255e-05 | K83: 0 | L83: 0 | M83: 0 | N83: 0 | O83: 0 | P83: 0 | Q83: 0 | R83: 0 | S83: -9.2642 | U83: =G83-INDEX($C83:$G83,1,aux!$AL$1) -> 46.321 | V83: 0.0003307138275 | W83: 0.0003299947072 | X83: =+IF(INDEX($C83:$G83,1,aux!$AL$1)>0,(G83/INDEX($C83:$G83,1,aux!$AL$1))^(1/($G$3-INDEX($C$3:$G$3,1,aux!$AL$1)))-1,"n.d.") -> n.d. | Y83: =IF(INDEX($C83:$G83,1,aux!$AL$1)>0,(G83-INDEX($C83:$G83,1,aux!$AL$1))/INDEX($C83:$G83,1,aux!$AL$1),"n.d.") -> n.d. | AA83: =O83-INDEX($K83:$O83,1,aux!$AL$1) -> 0 | AB83: 0 | AC83: 0 | AD83: =+IF(INDEX($K83:$O83,1,aux!$AL$1)>0,(O83/INDEX($K83:$O83,1,aux!$AL$1))^(1/($O$3-INDEX($K$3:$O$3,1,aux!$AL$1)))-1,"n.d.") -> n.d. | AE83: =IF(INDEX($K83:$O83,1,aux!$AL$1)>0,(O83-INDEX($K83:$O83,1,aux!$AL$1))/INDEX($K83:$O83,1,aux!$AL$1),"n.d.") -> n.d. | AX83: 09
A84: 0908 | B84: Noz-moscada, etc. | C84: 63.967 | D84: 65.715 | E84: 41.4 | F84: 61.389 | G84: 92.858 | H84: 65.0658 | I84: 0.0003547186037 | J84: 0.0003139485079 | K84: 0 | L84: 0 | M84: 0 | N84: 0 | O84: 0 | P84: 0 | Q84: 0 | R84: 0 | S84: -65.0658 | U84: =G84-INDEX($C84:$G84,1,aux!$AL$1) -> 28.891 | V84: 0.000206270443 | W84: 0.0002058219185 | X84: =+IF(INDEX($C84:$G84,1,aux!$AL$1)>0,(G84/INDEX($C84:$G84,1,aux!$AL$1))^(1/($G$3-INDEX($C$3:$G$3,1,aux!$AL$1)))-1,"n.d.") -> 0.09765493824 | Y84: =IF(INDEX($C84:$G84,1,aux!$AL$1)>0,(G84-INDEX($C84:$G84,1,aux!$AL$1))/INDEX($C84:$G84,1,aux!$AL$1),"n.d.") -> 0.4516547595 | AA84: =O84-INDEX($K84:$O84,1,aux!$AL$1) -> 0 | AB84: 0 | AC84: 0 | AD84: =+IF(INDEX($K84:$O84,1,aux!$AL$1)>0,(O84/INDEX($K84:$O84,1,aux!$AL$1))^(1/($O$3-INDEX($K$3:$O$3,1,aux!$AL$1)))-1,"n.d.") -> n.d. | AE84: =IF(INDEX($K84:$O84,1,aux!$AL$1)>0,(O84-INDEX($K84:$O84,1,aux!$AL$1))/INDEX($K84:$O84,1,aux!$AL$1),"n.d.") -> n.d. | AX84: 09
A85: 0909 | B85: Sementes de anis, funcho, etc. | C85: 0 | D85: 0 | E85: 32.566 | F85: 100.822 | G85: 269.602 | H85: 80.598 | I85: 0.0004393953509 | J85: 0.0003888928106 | K85: 0 | L85: 0 | M85: 0 | N85: 0 | O85: 0 | P85: 0 | Q85: 0 | R85: 0 | S85: -80.598 | U85: =G85-INDEX($C85:$G85,1,aux!$AL$1) -> 269.602 | V85: 0.00192485286 | W85: 0.001920667366 | X85: =+IF(INDEX($C85:$G85,1,aux!$AL$1)>0,(G85/INDEX($C85:$G85,1,aux!$AL$1))^(1/($G$3-INDEX($C$3:$G$3,1,aux!$AL$1)))-1,"n.d.") -> n.d. | Y85: =IF(INDEX($C85:$G85,1,aux!$AL$1)>0,(G85-INDEX($C85:$G85,1,aux!$AL$1))/INDEX($C85:$G85,1,aux!$AL$1),"n.d.") -> n.d. | AA85: =O85-INDEX($K85:$O85,1,aux!$AL$1) -> 0 | AB85: 0 | AC85: 0 | AD85: =+IF(INDEX($K85:$O85,1,aux!$AL$1)>0,(O85/INDEX($K85:$O85,1,aux!$AL$1))^(1/($O$3-INDEX($K$3:$O$3,1,aux!$AL$1)))-1,"n.d.") -> n.d. | AE85: =IF(INDEX($K85:$O85,1,aux!$AL$1)>0,(O85-INDEX($K85:$O85,1,aux!$AL$1))/INDEX($K85:$O85,1,aux!$AL$1),"n.d.") -> n.d. | AX85: 09
A86: 0910 | B86: Gengibre, açafrão, tomilho, louro, etc. | C86: 664.047 | D86: 653.838 | E86: 613.545 | F86: 832.641 | G86: 733.484 | H86: 699.511 | I86: 0.003813517473 | J86: 0.003375205326 | K86: 0 | L86: 0.067 | M86: 0 | N86: 0 | O86: 0.054 | P86: 0.0242 | Q86: 1.801944527e-07 | R86: 9.626841413e-08 | S86: -699.4868 | U86: =G86-INDEX($C86:$G86,1,aux!$AL$1) -> 69.437 | V86: 0.0004957530286 | W86: 0.0004946750391 | X86: =+IF(INDEX($C86:$G86,1,aux!$AL$1)>0,(G86/INDEX($C86:$G86,1,aux!$AL$1))^(1/($G$3-INDEX($C$3:$G$3,1,aux!$AL$1)))-1,"n.d.") -> 0.02517488085 | Y86: =IF(INDEX($C86:$G86,1,aux!$AL$1)>0,(G86-INDEX($C86:$G86,1,aux!$AL$1))/INDEX($C86:$G86,1,aux!$AL$1),"n.d.") -> 0.1045663936 | AA86: =O86-INDEX($K86:$O86,1,aux!$AL$1) -> 0.054 | AB86: 5.26546423e-06 | AC86: 8.584846823e-07 | AD86: =+IF(INDEX($K86:$O86,1,aux!$AL$1)>0,(O86/INDEX($K86:$O86,1,aux!$AL$1))^(1/($O$3-INDEX($K$3:$O$3,1,aux!$AL$1)))-1,"n.d.") -> n.d. | AE86: =IF(INDEX($K86:$O86,1,aux!$AL$1)>0,(O86-INDEX($K86:$O86,1,aux!$AL$1))/INDEX($K86:$O86,1,aux!$AL$1),"n.d.") -> n.d. | AX86: 09
A87: 09SS | B87: Café, chá, mate e especiarias | C87: 0 | D87: 0 | E87: 0 | F87: 0 | G87: 0 | H87: 0 | I87: 0 | J87: 0 | K87: 0 | L87: 0 | M87: 0 | N87: 0 | O87: 0 | P87: 0 | Q87: 0 | R87: 0 | S87: 0 | U87: =G87-INDEX($C87:$G87,1,aux!$AL$1) -> 0 | V87: 0 | W87: 0 | X87: =+IF(INDEX($C87:$G87,1,aux!$AL$1)>0,(G87/INDEX($C87:$G87,1,aux!$AL$1))^(1/($G$3-INDEX($C$3:$G$3,1,aux!$AL$1)))-1,"n.d.") -> n.d. | Y87: =IF(INDEX($C87:$G87,1,aux!$AL$1)>0,(G87-INDEX($C87:$G87,1,aux!$AL$1))/INDEX($C87:$G87,1,aux!$AL$1),"n.d.") -> n.d. | AA87: =O87-INDEX($K87:$O87,1,aux!$AL$1) -> 0 | AB87: 0 | AC87: 0 | AD87: =+IF(INDEX($K87:$O87,1,aux!$AL$1)>0,(O87/INDEX($K87:$O87,1,aux!$AL$1))^(1/($O$3-INDEX($K$3:$O$3,1,aux!$AL$1)))-1,"n.d.") -> n.d. | AE87: =IF(INDEX($K87:$O87,1,aux!$AL$1)>0,(O87-INDEX($K87:$O87,1,aux!$AL$1))/INDEX($K87:$O87,1,aux!$AL$1),"n.d.") -> n.d. | AX87: 09
A88: 1001 | B88: Trigo e mistura trigo/centeio | C88: 4427.536 | D88: 2419.118 | E88: 12819.433 | F88: 18099.139 | G88: 29838.703 | H88: 13520.7858 | I88: 0.07371113949 | J88: 0.06523904305 | K88: 0 | L88: 0 | M88: 0 | N88: 0 | O88: 0 | P88: 0 | Q88: 0 | R88: 0 | S88: -13520.7858 | U88: =G88-INDEX($C88:$G88,1,aux!$AL$1) -> 25411.167 | V88: 0.181425796 | W88: 0.181031295 | X88: =+IF(INDEX($C88:$G88,1,aux!$AL$1)>0,(G88/INDEX($C88:$G88,1,aux!$AL$1))^(1/($G$3-INDEX($C$3:$G$3,1,aux!$AL$1)))-1,"n.d.") -> 0.6112185755 | Y88: =IF(INDEX($C88:$G88,1,aux!$AL$1)>0,(G88-INDEX($C88:$G88,1,aux!$AL$1))/INDEX($C88:$G88,1,aux!$AL$1),"n.d.") -> 5.739347348 | AA88: =O88-INDEX($K88:$O88,1,aux!$AL$1) -> 0 | AB88: 0 | AC88: 0 | AD88: =+IF(INDEX($K88:$O88,1,aux!$AL$1)>0,(O88/INDEX($K88:$O88,1,aux!$AL$1))^(1/($O$3-INDEX($K$3:$O$3,1,aux!$AL$1)))-1,"n.d.") -> n.d. | AE88: =IF(INDEX($K88:$O88,1,aux!$AL$1)>0,(O88-INDEX($K88:$O88,1,aux!$AL$1))/INDEX($K88:$O88,1,aux!$AL$1),"n.d.") -> n.d. | AX88: 10
A89: 1002 | B89: Centeio | C89: 637.723 | D89: 276.276 | E89: 780.483 | F89: 1377.501 | G89: 944.71 | H89: 803.3386 | I89: 0.004379553413 | J89: 0.003876183107 | K89: 0 | L89: 0 | M89: 0 | N89: 0 | O89: 0 | P89: 0 | Q89: 0 | R89: 0 | S89: -803.3386 | U89: =G89-INDEX($C89:$G89,1,aux!$AL$1) -> 306.987 | V89: 0.002191767141 | W89: 0.002187001256 | X89: =+IF(INDEX($C89:$G89,1,aux!$AL$1)>0,(G89/INDEX($C89:$G89,1,aux!$AL$1))^(1/($G$3-INDEX($C$3:$G$3,1,aux!$AL$1)))-1,"n.d.") -> 0.1032313844 | Y89: =IF(INDEX($C89:$G89,1,aux!$AL$1)>0,(G89-INDEX($C89:$G89,1,aux!$AL$1))/INDEX($C89:$G89,1,aux!$AL$1),"n.d.") -> 0.4813798467 | AA89: =O89-INDEX($K89:$O89,1,aux!$AL$1) -> 0 | AB89: 0 | AC89: 0 | AD89: =+IF(INDEX($K89:$O89,1,aux!$AL$1)>0,(O89/INDEX($K89:$O89,1,aux!$AL$1))^(1/($O$3-INDEX($K$3:$O$3,1,aux!$AL$1)))-1,"n.d.") -> n.d. | AE89: =IF(INDEX($K89:$O89,1,aux!$AL$1)>0,(O89-INDEX($K89:$O89,1,aux!$AL$1))/INDEX($K89:$O89,1,aux!$AL$1),"n.d.") -> n.d. | AX89: 10
A90: 1003 | B90: Cevada | C90: 0 | D90: 17.409 | E90: 0.064 | F90: 5.796 | G90: 225.932 | H90: 49.8402 | I90: 0.0002717133448 | J90: 0.0002404835785 | K90: 0 | L90: 0 | M90: 0 | N90: 0 | O90: 0 | P90: 0 | Q90: 0 | R90: 0 | S90: -49.8402 | U90: =G90-INDEX($C90:$G90,1,aux!$AL$1) -> 225.932 | V90: 0.001613066136 | W90: 0.001609558606 | X90: =+IF(INDEX($C90:$G90,1,aux!$AL$1)>0,(G90/INDEX($C90:$G90,1,aux!$AL$1))^(1/($G$3-INDEX($C$3:$G$3,1,aux!$AL$1)))-1,"n.d.") -> n.d. | Y90: =IF(INDEX($C90:$G90,1,aux!$AL$1)>0,(G90-INDEX($C90:$G90,1,aux!$AL$1))/INDEX($C90:$G90,1,aux!$AL$1),"n.d.") -> n.d. | AA90: =O90-INDEX($K90:$O90,1,aux!$AL$1) -> 0 | AB90: 0 | AC90: 0 | AD90: =+IF(INDEX($K90:$O90,1,aux!$AL$1)>0,(O90/INDEX($K90:$O90,1,aux!$AL$1))^(1/($O$3-INDEX($K$3:$O$3,1,aux!$AL$1)))-1,"n.d.") -> n.d. | AE90: =IF(INDEX($K90:$O90,1,aux!$AL$1)>0,(O90-INDEX($K90:$O90,1,aux!$AL$1))/INDEX($K90:$O90,1,aux!$AL$1),"n.d.") -> n.d. | AX90: 10
A91: 1004 | B91: Aveia | C91: 0 | D91: 0 | E91: 0 | F91: 0.221 | G91: 0.171 | H91: 0.0784 | I91: 4.274125352e-07 | J91: 3.782872572e-07 | K91: 0 | L91: 1.29 | M91: 0 | N91: 0 | O91: 0 | P91: 0.258 | Q91: 1.921081355e-06 | R91: 1.02633268e-06 | S91: 0.1796 | U91: =G91-INDEX($C91:$G91,1,aux!$AL$1) -> 0.171 | V91: 1.220873135e-06 | W91: 1.218218409e-06 | X91: =+IF(INDEX($C91:$G91,1,aux!$AL$1)>0,(G91/INDEX($C91:$G91,1,aux!$AL$1))^(1/($G$3-INDEX($C$3:$G$3,1,aux!$AL$1)))-1,"n.d.") -> n.d. | Y91: =IF(INDEX($C91:$G91,1,aux!$AL$1)>0,(G91-INDEX($C91:$G91,1,aux!$AL$1))/INDEX($C91:$G91,1,aux!$AL$1),"n.d.") -> n.d. | AA91: =O91-INDEX($K91:$O91,1,aux!$AL$1) -> 0 | AB91: 0 | AC91: 0 | AD91: =+IF(INDEX($K91:$O91,1,aux!$AL$1)>0,(O91/INDEX($K91:$O91,1,aux!$AL$1))^(1/($O$3-INDEX($K$3:$O$3,1,aux!$AL$1)))-1,"n.d.") -> n.d. | AE91: =IF(INDEX($K91:$O91,1,aux!$AL$1)>0,(O91-INDEX($K91:$O91,1,aux!$AL$1))/INDEX($K91:$O91,1,aux!$AL$1),"n.d.") -> n.d. | AX91: 10
A92: 1005 | B92: Milho | C92: 0 | D92: 13.056 | E92: 12.958 | F92: 0.004 | G92: 8170.437 | H92: 1639.291 | I92: 0.00893690717 | J92: 0.007909730817 | K92: 0 | L92: 0 | M92: 0 | N92: 7.469 | O92: 129.126 | P92: 27.319 | Q92: 0.0002034186882 | R92: 0.0001086759011 | S92: -1611.972 | U92: =G92-INDEX($C92:$G92,1,aux!$AL$1) -> 8170.437 | V92: 0.05833372536 | W92: 0.05820688167 | X92: =+IF(INDEX($C92:$G92,1,aux!$AL$1)>0,(G92/INDEX($C92:$G92,1,aux!$AL$1))^(1/($G$3-INDEX($C$3:$G$3,1,aux!$AL$1)))-1,"n.d.") -> n.d. | Y92: =IF(INDEX($C92:$G92,1,aux!$AL$1)>0,(G92-INDEX($C92:$G92,1,aux!$AL$1))/INDEX($C92:$G92,1,aux!$AL$1),"n.d.") -> n.d. | AA92: =O92-INDEX($K92:$O92,1,aux!$AL$1) -> 129.126 | AB92: 0.01259089508 | AC92: 0.00205282765 | AD92: =+IF(INDEX($K92:$O92,1,aux!$AL$1)>0,(O92/INDEX($K92:$O92,1,aux!$AL$1))^(1/($O$3-INDEX($K$3:$O$3,1,aux!$AL$1)))-1,"n.d.") -> n.d. | AE92: =IF(INDEX($K92:$O92,1,aux!$AL$1)>0,(O92-INDEX($K92:$O92,1,aux!$AL$1))/INDEX($K92:$O92,1,aux!$AL$1),"n.d.") -> n.d. | AX92: 10
A93: 1006 | B93: Arroz | C93: 55.359 | D93: 8.07 | E93: 12.779 | F93: 6.322 | G93: 15.141 | H93: 19.5342 | I93: 0.0001064944126 | J93: 9.42543232e-05 | K93: 484.603 | L93: 1069.733 | M93: 754.189 | N93: 605.569 | O93: 1861.556 | P93: 955.13 | Q93: 0.007111947423 | R93: 0.003799539272 | S93: 935.5958 | U93: =G93-INDEX($C93:$G93,1,aux!$AL$1) -> -40.218 | V93: -0.0002871407939 | W93: -0.000286516421 | X93: =+IF(INDEX($C93:$G93,1,aux!$AL$1)>0,(G93/INDEX($C93:$G93,1,aux!$AL$1))^(1/($G$3-INDEX($C$3:$G$3,1,aux!$AL$1)))-1,"n.d.") -> -0.2768280365 | Y93: =IF(INDEX($C93:$G93,1,aux!$AL$1)>0,(G93-INDEX($C93:$G93,1,aux!$AL$1))/INDEX($C93:$G93,1,aux!$AL$1),"n.d.") -> -0.726494337 | AA93: =O93-INDEX($K93:$O93,1,aux!$AL$1) -> 1376.953 | AB93: 0.134264755 | AC93: 0.0218906122 | AD93: =+IF(INDEX($K93:$O93,1,aux!$AL$1)>0,(O93/INDEX($K93:$O93,1,aux!$AL$1))^(1/($O$3-INDEX($K$3:$O$3,1,aux!$AL$1)))-1,"n.d.") -> 0.3999821608 | AE93: =IF(INDEX($K93:$O93,1,aux!$AL$1)>0,(O93-INDEX($K93:$O93,1,aux!$AL$1))/INDEX($K93:$O93,1,aux!$AL$1),"n.d.") -> 2.841404201 | AX93: 10
A94: 1007 | B94: Sorgo de grão | C94: 0 | D94: 0 | E94: 0 | F94: 0.067 | G94: 22.58 | H94: 4.5294 | I94: 2.469288695e-05 | J94: 2.185477427e-05 | K94: 0 | L94: 0 | M94: 0 | N94: 0 | O94: 0 | P94: 0 | Q94: 0 | R94: 0 | S94: -4.5294 | U94: =G94-INDEX($C94:$G94,1,aux!$AL$1) -> 22.58 | V94: 0.0001612123707 | W94: 0.0001608618227 | X94: =+IF(INDEX($C94:$G94,1,aux!$AL$1)>0,(G94/INDEX($C94:$G94,1,aux!$AL$1))^(1/($G$3-INDEX($C$3:$G$3,1,aux!$AL$1)))-1,"n.d.") -> n.d. | Y94: =IF(INDEX($C94:$G94,1,aux!$AL$1)>0,(G94-INDEX($C94:$G94,1,aux!$AL$1))/INDEX($C94:$G94,1,aux!$AL$1),"n.d.") -> n.d. | AA94: =O94-INDEX($K94:$O94,1,aux!$AL$1) -> 0 | AB94: 0 | AC94: 0 | AD94: =+IF(INDEX($K94:$O94,1,aux!$AL$1)>0,(O94/INDEX($K94:$O94,1,aux!$AL$1))^(1/($O$3-INDEX($K$3:$O$3,1,aux!$AL$1)))-1,"n.d.") -> n.d. | AE94: =IF(INDEX($K94:$O94,1,aux!$AL$1)>0,(O94-INDEX($K94:$O94,1,aux!$AL$1))/INDEX($K94:$O94,1,aux!$AL$1),"n.d.") -> n.d. | AX94: 10
A95: 1008 | B95: Trigo mourisco, painço e outros cereais | C95: 9.549 | D95: 14.74 | E95: 4325.431 | F95: 4559.05 | G95: 2728.44 | H95: 2327.442 | I95: 0.01268849344 | J95: 0.01123012309 | K95: 14.418 | L95: 0 | M95: 0.022 | N95: 0 | O95: 0 | P95: 2.888 | Q95: 2.15041975e-05 | R95: 1.148856116e-05 | S95: -2324.554 | U95: =G95-INDEX($C95:$G95,1,aux!$AL$1) -> 2718.891 | V95: 0.01941181859 | W95: 0.01936960859 | X95: =+IF(INDEX($C95:$G95,1,aux!$AL$1)>0,(G95/INDEX($C95:$G95,1,aux!$AL$1))^(1/($G$3-INDEX($C$3:$G$3,1,aux!$AL$1)))-1,"n.d.") -> 3.111394292 | Y95: =IF(INDEX($C95:$G95,1,aux!$AL$1)>0,(G95-INDEX($C95:$G95,1,aux!$AL$1))/INDEX($C95:$G95,1,aux!$AL$1),"n.d.") -> 284.730443 | AA95: =O95-INDEX($K95:$O95,1,aux!$AL$1) -> -14.418 | AB95: -0.001405878949 | AC95: -0.0002292154102 | AD95: =+IF(INDEX($K95:$O95,1,aux!$AL$1)>0,(O95/INDEX($K95:$O95,1,aux!$AL$1))^(1/($O$3-INDEX($K$3:$O$3,1,aux!$AL$1)))-1,"n.d.") -> -1 | AE95: =IF(INDEX($K95:$O95,1,aux!$AL$1)>0,(O95-INDEX($K95:$O95,1,aux!$AL$1))/INDEX($K95:$O95,1,aux!$AL$1),"n.d.") -> -1 | AX95: 10
A96: 10SS | B96: Cereais | C96: 0 | D96: 0 | E96: 0 | F96: 0 | G96: 0 | H96: 0 | I96: 0 | J96: 0 | K96: 0 | L96: 0 | M96: 0 | N96: 0 | O96: 0 | P96: 0 | Q96: 0 | R96: 0 | S96: 0 | U96: =G96-INDEX($C96:$G96,1,aux!$AL$1) -> 0 | V96: 0 | W96: 0 | X96: =+IF(INDEX($C96:$G96,1,aux!$AL$1)>0,(G96/INDEX($C96:$G96,1,aux!$AL$1))^(1/($G$3-INDEX($C$3:$G$3,1,aux!$AL$1)))-1,"n.d.") -> n.d. | Y96: =IF(INDEX($C96:$G96,1,aux!$AL$1)>0,(G96-INDEX($C96:$G96,1,aux!$AL$1))/INDEX($C96:$G96,1,aux!$AL$1),"n.d.") -> n.d. | AA96: =O96-INDEX($K96:$O96,1,aux!$AL$1) -> 0 | AB96: 0 | AC96: 0 | AD96: =+IF(INDEX($K96:$O96,1,aux!$AL$1)>0,(O96/INDEX($K96:$O96,1,aux!$AL$1))^(1/($O$3-INDEX($K$3:$O$3,1,aux!$AL$1)))-1,"n.d.") -> n.d. | AE96: =IF(INDEX($K96:$O96,1,aux!$AL$1)>0,(O96-INDEX($K96:$O96,1,aux!$AL$1))/INDEX($K96:$O96,1,aux!$AL$1),"n.d.") -> n.d. | AX96: 10
A97: 1101 | B97: Farinhas de trigo ou trigo/centeio | C97: 0 | D97: 0 | E97: 14.402 | F97: 0 | G97: 0.443 | H97: 2.969 | I97: 1.618606909e-05 | J97: 1.432569983e-05 | K97: 0.47 | L97: 0.717 | M97: 0.235 | N97: 0.586 | O97: 1.97 | P97: 0.7956 | Q97: 5.924078784e-06 | R97: 3.164923566e-06 | S97: -2.1734 | U97: =G97-INDEX($C97:$G97,1,aux!$AL$1) -> 0.443 | V97: 3.162846777e-06 | W97: 3.155969329e-06 | X97: =+IF(INDEX($C97:$G97,1,aux!$AL$1)>0,(G97/INDEX($C97:$G97,1,aux!$AL$1))^(1/($G$3-INDEX($C$3:$G$3,1,aux!$AL$1)))-1,"n.d.") -> n.d. | Y97: =IF(INDEX($C97:$G97,1,aux!$AL$1)>0,(G97-INDEX($C97:$G97,1,aux!$AL$1))/INDEX($C97:$G97,1,aux!$AL$1),"n.d.") -> n.d. | AA97: =O97-INDEX($K97:$O97,1,aux!$AL$1) -> 1.5 | AB97: 0.0001462628953 | AC97: 2.384679673e-05 | AD97: =+IF(INDEX($K97:$O97,1,aux!$AL$1)>0,(O97/INDEX($K97:$O97,1,aux!$AL$1))^(1/($O$3-INDEX($K$3:$O$3,1,aux!$AL$1)))-1,"n.d.") -> 0.4308433587 | AE97: =IF(INDEX($K97:$O97,1,aux!$AL$1)>0,(O97-INDEX($K97:$O97,1,aux!$AL$1))/INDEX($K97:$O97,1,aux!$AL$1),"n.d.") -> 3.191489362 | AX97: 11
A98: 1102 | B98: Outras farinhas de cereais | C98: 37.392 | D98: 73.448 | E98: 84.316 | F98: 68.545 | G98: 96.636 | H98: 72.0674 | I98: 0.0003928891599 | J98: 0.000347731876 | K98: 2225.219 | L98: 1475.973 | M98: 788.494 | N98: 655.773 | O98: 846.599 | P98: 1198.4116 | Q98: 0.00892343481 | R98: 0.004767321662 | S98: 1126.3442 | U98: =G98-INDEX($C98:$G98,1,aux!$AL$1) -> 59.244 | V98: 0.0004229789943 | W98: 0.0004220592482 | X98: =+IF(INDEX($C98:$G98,1,aux!$AL$1)>0,(G98/INDEX($C98:$G98,1,aux!$AL$1))^(1/($G$3-INDEX($C$3:$G$3,1,aux!$AL$1)))-1,"n.d.") -> 0.2679147745 | Y98: =IF(INDEX($C98:$G98,1,aux!$AL$1)>0,(G98-INDEX($C98:$G98,1,aux!$AL$1))/INDEX($C98:$G98,1,aux!$AL$1),"n.d.") -> 1.584403081 | AA98: =O98-INDEX($K98:$O98,1,aux!$AL$1) -> -1378.62 | AB98: -0.1344273018 | AC98: -0.02191711394 | AD98: =+IF(INDEX($K98:$O98,1,aux!$AL$1)>0,(O98/INDEX($K98:$O98,1,aux!$AL$1))^(1/($O$3-INDEX($K$3:$O$3,1,aux!$AL$1)))-1,"n.d.") -> -0.2146264916 | AE98: =IF(INDEX($K98:$O98,1,aux!$AL$1)>0,(O98-INDEX($K98:$O98,1,aux!$AL$1))/INDEX($K98:$O98,1,aux!$AL$1),"n.d.") -> -0.6195435146 | AX98: 11
A99: 1103 | B99: Grumos, sêmolas, etc. de cereais | C99: 0 | D99: 0 | E99: 0 | F99: 14.618 | G99: 283.758 | H99: 59.6752 | I99: 0.0003253307209 | J99: 0.0002879383639 | K99: 0 | L99: 39.773 | M99: 0 | N99: 0 | O99: 0 | P99: 7.9546 | Q99: 5.923036337e-05 | R99: 3.164366641e-05 | S99: -51.7206 | U99: =G99-INDEX($C99:$G99,1,aux!$AL$1) -> 283.758 | V99: 0.002025921164 | W99: 0.002021515903 | X99: =+IF(INDEX($C99:$G99,1,aux!$AL$1)>0,(G99/INDEX($C99:$G99,1,aux!$AL$1))^(1/($G$3-INDEX($C$3:$G$3,1,aux!$AL$1)))-1,"n.d.") -> n.d. | Y99: =IF(INDEX($C99:$G99,1,aux!$AL$1)>0,(G99-INDEX($C99:$G99,1,aux!$AL$1))/INDEX($C99:$G99,1,aux!$AL$1),"n.d.") -> n.d. | AA99: =O99-INDEX($K99:$O99,1,aux!$AL$1) -> 0 | AB99: 0 | AC99: 0 | AD99: =+IF(INDEX($K99:$O99,1,aux!$AL$1)>0,(O99/INDEX($K99:$O99,1,aux!$AL$1))^(1/($O$3-INDEX($K$3:$O$3,1,aux!$AL$1)))-1,"n.d.") -> n.d. | AE99: =IF(INDEX($K99:$O99,1,aux!$AL$1)>0,(O99-INDEX($K99:$O99,1,aux!$AL$1))/INDEX($K99:$O99,1,aux!$AL$1),"n.d.") -> n.d. | AX99: 11
A100: 1104 | B100: Grãos de cereais processados | C100: 0 | D100: 0 | E100: 0 | F100: 0.034 | G100: 0 | H100: 0.0068 | I100: 3.70714954e-08 | J100: 3.281062945e-08 | K100: 0.11 | L100: 0.024 | M100: 0.071 | N100: 0.105 | O100: 0 | P100: 0.062 | Q100: 4.616552094e-07 | R100: 2.466380858e-07 | S100: 0.0552 | U100: =G100-INDEX($C100:$G100,1,aux!$AL$1) -> 0 | V100: 0 | W100: 0 | X100: =+IF(INDEX($C100:$G100,1,aux!$AL$1)>0,(G100/INDEX($C100:$G100,1,aux!$AL$1))^(1/($G$3-INDEX($C$3:$G$3,1,aux!$AL$1)))-1,"n.d.") -> n.d. | Y100: =IF(INDEX($C100:$G100,1,aux!$AL$1)>0,(G100-INDEX($C100:$G100,1,aux!$AL$1))/INDEX($C100:$G100,1,aux!$AL$1),"n.d.") -> n.d. | AA100: =O100-INDEX($K100:$O100,1,aux!$AL$1) -> -0.11 | AB100: -1.072594565e-05 | AC100: -1.748765094e-06 | AD100: =+IF(INDEX($K100:$O100,1,aux!$AL$1)>0,(O100/INDEX($K100:$O100,1,aux!$AL$1))^(1/($O$3-INDEX($K$3:$O$3,1,aux!$AL$1)))-1,"n.d.") -> -1 | AE100: =IF(INDEX($K100:$O100,1,aux!$AL$1)>0,(O100-INDEX($K100:$O100,1,aux!$AL$1))/INDEX($K100:$O100,1,aux!$AL$1),"n.d.") -> -1 | AX100: 11
A101: 1105 | B101: Farinha, sêmola, etc. de batata | C101: 1.69 | D101: 2.781 | E101: 46.137 | F101: 213.389 | G101: 497.398 | H101: 152.279 | I101: 0.0008301779776 | J101: 0.0007347602708 | K101: 0 | L101: 0 | M101: 0 | N101: 0 | O101: 0 | P101: 0 | Q101: 0 | R101: 0 | S101: -152.279 | U101: =G101-INDEX($C101:$G101,1,aux!$AL$1) -> 495.708 | V101: 0.003539161287 | W101: 0.003531465563 | X101: =+IF(INDEX($C101:$G101,1,aux!$AL$1)>0,(G101/INDEX($C101:$G101,1,aux!$AL$1))^(1/($G$3-INDEX($C$3:$G$3,1,aux!$AL$1)))-1,"n.d.") -> 3.141945046 | Y101: =IF(INDEX($C101:$G101,1,aux!$AL$1)>0,(G101-INDEX($C101:$G101,1,aux!$AL$1))/INDEX($C101:$G101,1,aux!$AL$1),"n.d.") -> 293.3183432 | AA101: =O101-INDEX($K101:$O101,1,aux!$AL$1) -> 0 | AB101: 0 | AC101: 0 | AD101: =+IF(INDEX($K101:$O101,1,aux!$AL$1)>0,(O101/INDEX($K101:$O101,1,aux!$AL$1))^(1/($O$3-INDEX($K$3:$O$3,1,aux!$AL$1)))-1,"n.d.") -> n.d. | AE101: =IF(INDEX($K101:$O101,1,aux!$AL$1)>0,(O101-INDEX($K101:$O101,1,aux!$AL$1))/INDEX($K101:$O101,1,aux!$AL$1),"n.d.") -> n.d. | AX101: 11
A102: 1106 | B102: Farinhas, etc. de leguminosas e outros tubérculos | C102: 100.195 | D102: 0.796 | E102: 2.87 | F102: 6.927 | G102: 1.668 | H102: 22.4912 | I102: 0.0001226150614 | J102: 0.0001085221219 | K102: 0.428 | L102: 0.049 | M102: 0 | N102: 0 | O102: 0 | P102: 0.0954 | Q102: 7.103533384e-07 | R102: 3.795044094e-07 | S102: -22.3958 | U102: =G102-INDEX($C102:$G102,1,aux!$AL$1) -> -98.527 | V102: -0.0007034442538 | W102: -0.0007019146504 | X102: =+IF(INDEX($C102:$G102,1,aux!$AL$1)>0,(G102/INDEX($C102:$G102,1,aux!$AL$1))^(1/($G$3-INDEX($C$3:$G$3,1,aux!$AL$1)))-1,"n.d.") -> -0.6407990313 | Y102: =IF(INDEX($C102:$G102,1,aux!$AL$1)>0,(G102-INDEX($C102:$G102,1,aux!$AL$1))/INDEX($C102:$G102,1,aux!$AL$1),"n.d.") -> -0.9833524627 | AA102: =O102-INDEX($K102:$O102,1,aux!$AL$1) -> -0.428 | AB102: -4.173367945e-05 | AC102: -6.804286001e-06 | AD102: =+IF(INDEX($K102:$O102,1,aux!$AL$1)>0,(O102/INDEX($K102:$O102,1,aux!$AL$1))^(1/($O$3-INDEX($K$3:$O$3,1,aux!$AL$1)))-1,"n.d.") -> -1 | AE102: =IF(INDEX($K102:$O102,1,aux!$AL$1)>0,(O102-INDEX($K102:$O102,1,aux!$AL$1))/INDEX($K102:$O102,1,aux!$AL$1),"n.d.") -> -1 | AX102: 11
A103: 1107 | B103: Malte, mesmo torrado | C103: 0 | D103: 0 | E103: 0.156 | F103: 0.324 | G103: 43.826 | H103: 8.8612 | I103: 4.830851985e-05 | J103: 4.275611024e-05 | K103: 0 | L103: 0 | M103: 0 | N103: 0 | O103: 0 | P103: 0 | Q103: 0 | R103: 0 | S103: -8.8612 | U103: =G103-INDEX($C103:$G103,1,aux!$AL$1) -> 43.826 | V103: 0.0003129005031 | W103: 0.000312220117 | X103: =+IF(INDEX($C103:$G103,1,aux!$AL$1)>0,(G103/INDEX($C103:$G103,1,aux!$AL$1))^(1/($G$3-INDEX($C$3:$G$3,1,aux!$AL$1)))-1,"n.d.") -> n.d. | Y103: =IF(INDEX($C103:$G103,1,aux!$AL$1)>0,(G103-INDEX($C103:$G103,1,aux!$AL$1))/INDEX($C103:$G103,1,aux!$AL$1),"n.d.") -> n.d. | AA103: =O103-INDEX($K103:$O103,1,aux!$AL$1) -> 0 | AB103: 0 | AC103: 0 | AD103: =+IF(INDEX($K103:$O103,1,aux!$AL$1)>0,(O103/INDEX($K103:$O103,1,aux!$AL$1))^(1/($O$3-INDEX($K$3:$O$3,1,aux!$AL$1)))-1,"n.d.") -> n.d. | AE103: =IF(INDEX($K103:$O103,1,aux!$AL$1)>0,(O103-INDEX($K103:$O103,1,aux!$AL$1))/INDEX($K103:$O103,1,aux!$AL$1),"n.d.") -> n.d. | AX103: 11
A104: 1108 | B104: Amidos e féculas; inulina | C104: 0 | D104: 16.608 | E104: 1.157 | F104: 13.83 | G104: 1.136 | H104: 6.5462 | I104: 3.568785635e-05 | J104: 3.158602095e-05 | K104: 0.03 | L104: 0.027 | M104: 0.029 | N104: 0.179 | O104: 0 | P104: 0.053 | Q104: 3.946407436e-07 | R104: 2.10835783e-07 | S104: -6.4932 | U104: =G104-INDEX($C104:$G104,1,aux!$AL$1) -> 1.136 | V104: 8.110595799e-06 | W104: 8.092959725e-06 | X104: =+IF(INDEX($C104:$G104,1,aux!$AL$1)>0,(G104/INDEX($C104:$G104,1,aux!$AL$1))^(1/($G$3-INDEX($C$3:$G$3,1,aux!$AL$1)))-1,"n.d.") -> n.d. | Y104: =IF(INDEX($C104:$G104,1,aux!$AL$1)>0,(G104-INDEX($C104:$G104,1,aux!$AL$1))/INDEX($C104:$G104,1,aux!$AL$1),"n.d.") -> n.d. | AA104: =O104-INDEX($K104:$O104,1,aux!$AL$1) -> -0.03 | AB104: -2.925257905e-06 | AC104: -4.769359346e-07 | AD104: =+IF(INDEX($K104:$O104,1,aux!$AL$1)>0,(O104/INDEX($K104:$O104,1,aux!$AL$1))^(1/($O$3-INDEX($K$3:$O$3,1,aux!$AL$1)))-1,"n.d.") -> -1 | AE104: =IF(INDEX($K104:$O104,1,aux!$AL$1)>0,(O104-INDEX($K104:$O104,1,aux!$AL$1))/INDEX($K104:$O104,1,aux!$AL$1),"n.d.") -> -1 | AX104: 11
A105: 1109 | B105: Glúten de trigo, mesmo seco | C105: 0 | D105: 0 | E105: 0 | F105: 0 | G105: 58.717 | H105: 11.7434 | I105: 6.402138221e-05 | J105: 5.666299204e-05 | K105: 0 | L105: 0 | M105: 0 | N105: 0 | O105: 0 | P105: 0 | Q105: 0 | R105: 0 | S105: -11.7434 | U105: =G105-INDEX($C105:$G105,1,aux!$AL$1) -> 58.717 | V105: 0.0004192164203 | W105: 0.0004183048558 | X105: =+IF(INDEX($C105:$G105,1,aux!$AL$1)>0,(G105/INDEX($C105:$G105,1,aux!$AL$1))^(1/($G$3-INDEX($C$3:$G$3,1,aux!$AL$1)))-1,"n.d.") -> n.d. | Y105: =IF(INDEX($C105:$G105,1,aux!$AL$1)>0,(G105-INDEX($C105:$G105,1,aux!$AL$1))/INDEX($C105:$G105,1,aux!$AL$1),"n.d.") -> n.d. | AA105: =O105-INDEX($K105:$O105,1,aux!$AL$1) -> 0 | AB105: 0 | AC105: 0 | AD105: =+IF(INDEX($K105:$O105,1,aux!$AL$1)>0,(O105/INDEX($K105:$O105,1,aux!$AL$1))^(1/($O$3-INDEX($K$3:$O$3,1,aux!$AL$1)))-1,"n.d.") -> n.d. | AE105: =IF(INDEX($K105:$O105,1,aux!$AL$1)>0,(O105-INDEX($K105:$O105,1,aux!$AL$1))/INDEX($K105:$O105,1,aux!$AL$1),"n.d.") -> n.d. | AX105: 11
A106: 11SS | B106: Produtos da indústria de moagem e outros | C106: 0 | D106: 0 | E106: 0 | F106: 0 | G106: 0 | H106: 0 | I106: 0 | J106: 0 | K106: 0 | L106: 0 | M106: 0 | N106: 0 | O106: 0 | P106: 0 | Q106: 0 | R106: 0 | S106: 0 | U106: =G106-INDEX($C106:$G106,1,aux!$AL$1) -> 0 | V106: 0 | W106: 0 | X106: =+IF(INDEX($C106:$G106,1,aux!$AL$1)>0,(G106/INDEX($C106:$G106,1,aux!$AL$1))^(1/($G$3-INDEX($C$3:$G$3,1,aux!$AL$1)))-1,"n.d.") -> n.d. | Y106: =IF(INDEX($C106:$G106,1,aux!$AL$1)>0,(G106-INDEX($C106:$G106,1,aux!$AL$1))/INDEX($C106:$G106,1,aux!$AL$1),"n.d.") -> n.d. | AA106: =O106-INDEX($K106:$O106,1,aux!$AL$1) -> 0 | AB106: 0 | AC106: 0 | AD106: =+IF(INDEX($K106:$O106,1,aux!$AL$1)>0,(O106/INDEX($K106:$O106,1,aux!$AL$1))^(1/($O$3-INDEX($K$3:$O$3,1,aux!$AL$1)))-1,"n.d.") -> n.d. | AE106: =IF(INDEX($K106:$O106,1,aux!$AL$1)>0,(O106-INDEX($K106:$O106,1,aux!$AL$1))/INDEX($K106:$O106,1,aux!$AL$1),"n.d.") -> n.d. | AX106: 11
A107: 1201 | B107: Soja, mesmo triturada | C107: 3.713 | D107: 0 | E107: 0 | F107: 0 | G107: 0 | H107: 0.7426 | I107: 4.048425365e-06 | J107: 3.583113739e-06 | K107: 0 | L107: 0 | M107: 0 | N107: 0 | O107: 0 | P107: 0 | Q107: 0 | R107: 0 | S107: -0.7426 | U107: =G107-INDEX($C107:$G107,1,aux!$AL$1) -> -3.713 | V107: -2.650936813e-05 | W107: -2.645172488e-05 | X107: =+IF(INDEX($C107:$G107,1,aux!$AL$1)>0,(G107/INDEX($C107:$G107,1,aux!$AL$1))^(1/($G$3-INDEX($C$3:$G$3,1,aux!$AL$1)))-1,"n.d.") -> -1 | Y107: =IF(INDEX($C107:$G107,1,aux!$AL$1)>0,(G107-INDEX($C107:$G107,1,aux!$AL$1))/INDEX($C107:$G107,1,aux!$AL$1),"n.d.") -> -1 | AA107: =O107-INDEX($K107:$O107,1,aux!$AL$1) -> 0 | AB107: 0 | AC107: 0 | AD107: =+IF(INDEX($K107:$O107,1,aux!$AL$1)>0,(O107/INDEX($K107:$O107,1,aux!$AL$1))^(1/($O$3-INDEX($K$3:$O$3,1,aux!$AL$1)))-1,"n.d.") -> n.d. | AE107: =IF(INDEX($K107:$O107,1,aux!$AL$1)>0,(O107-INDEX($K107:$O107,1,aux!$AL$1))/INDEX($K107:$O107,1,aux!$AL$1),"n.d.") -> n.d. | AX107: 12
A108: 1202 | B108: Amendoins não torrados | C108: 0 | D108: 0.064 | E108: 0 | F108: 0.107 | G108: 0.06 | H108: 0.0462 | I108: 2.518681011e-07 | J108: 2.229192765e-07 | K108: 0 | L108: 0 | M108: 0 | N108: 0 | O108: 0 | P108: 0 | Q108: 0 | R108: 0 | S108: -0.0462 | U108: =G108-INDEX($C108:$G108,1,aux!$AL$1) -> 0.06 | V108: 4.283765387e-07 | W108: 4.274450559e-07 | X108: =+IF(INDEX($C108:$G108,1,aux!$AL$1)>0,(G108/INDEX($C108:$G108,1,aux!$AL$1))^(1/($G$3-INDEX($C$3:$G$3,1,aux!$AL$1)))-1,"n.d.") -> n.d. | Y108: =IF(INDEX($C108:$G108,1,aux!$AL$1)>0,(G108-INDEX($C108:$G108,1,aux!$AL$1))/INDEX($C108:$G108,1,aux!$AL$1),"n.d.") -> n.d. | AA108: =O108-INDEX($K108:$O108,1,aux!$AL$1) -> 0 | AB108: 0 | AC108: 0 | AD108: =+IF(INDEX($K108:$O108,1,aux!$AL$1)>0,(O108/INDEX($K108:$O108,1,aux!$AL$1))^(1/($O$3-INDEX($K$3:$O$3,1,aux!$AL$1)))-1,"n.d.") -> n.d. | AE108: =IF(INDEX($K108:$O108,1,aux!$AL$1)>0,(O108-INDEX($K108:$O108,1,aux!$AL$1))/INDEX($K108:$O108,1,aux!$AL$1),"n.d.") -> n.d. | AX108: 12
A109: 1203 | B109: Copra | C109: 0 | D109: 0 | E109: 0 | F109: 0 | G109: 0 | H109: 0 | I109: 0 | J109: 0 | K109: 0 | L109: 0 | M109: 0 | N109: 0 | O109: 0 | P109: 0 | Q109: 0 | R109: 0 | S109: 0 | U109: =G109-INDEX($C109:$G109,1,aux!$AL$1) -> 0 | V109: 0 | W109: 0 | X109: =+IF(INDEX($C109:$G109,1,aux!$AL$1)>0,(G109/INDEX($C109:$G109,1,aux!$AL$1))^(1/($G$3-INDEX($C$3:$G$3,1,aux!$AL$1)))-1,"n.d.") -> n.d. | Y109: =IF(INDEX($C109:$G109,1,aux!$AL$1)>0,(G109-INDEX($C109:$G109,1,aux!$AL$1))/INDEX($C109:$G109,1,aux!$AL$1),"n.d.") -> n.d. | AA109: =O109-INDEX($K109:$O109,1,aux!$AL$1) -> 0 | AB109: 0 | AC109: 0 | AD109: =+IF(INDEX($K109:$O109,1,aux!$AL$1)>0,(O109/INDEX($K109:$O109,1,aux!$AL$1))^(1/($O$3-INDEX($K$3:$O$3,1,aux!$AL$1)))-1,"n.d.") -> n.d. | AE109: =IF(INDEX($K109:$O109,1,aux!$AL$1)>0,(O109-INDEX($K109:$O109,1,aux!$AL$1))/INDEX($K109:$O109,1,aux!$AL$1),"n.d.") -> n.d. | AX109: 12
